Workbook

Sheet Log
C4: 1. Allow different index for reading in and for default graph dropdown options
C5: 2. Adjust main index for different options including S&P with dividends
C6: 3. Adjust the indicies so you can multiply or divide by more than one index

Sheet Read Stocks
D1: Do not Insert Rows because of the Python Program | M1: Final Applied | N1: Final Applied | O1: Column | P1: Source | Q1: Finance.yahoo Index | X1: FRED Index | AF1: Google Index | AN1: FRED Commodities | AV1: Yahoo Stock Prices | AY1: Re-ordered | BA1: Re-ordered | BB1: Column in Sheet | BD1: Google Stock Prices | BL1: FRED Exonomic Data
G2: Start Row | H2: Number | I2: Column | J2: Source | M2: Ticker/Description | N2: Sheet Name | Q2: Counter | R2: Accum | S2: Sheet | T2: Name | U2: Column | V2: Source | X2: Counter | Y2: Counter 1 | Z2: Sheet | AA2: Re-ordered | AB2: Name | AC2: Re-ordered | AD2: Column | AE2: Source | AF2: Counter | AG2: Counter | AH2: Sheet | AI2: Re-ordered | AJ2: Name | AK2: Re-ordered | AL2: Column | AM2: Source | AN2: counter | AO2: Accum | AP2: Sheet | AQ2: Re-ordered | AR2: Name | AS2: Re-ordered | AT2: Column | AU2: Source | AV2: Counter | AW2: Counter 1 | AX2: Sheet | AY2: for List | AZ2: Name | BA2: To Complete List | BB2: Column | BC2: Source | BD2: Counter | BE2: Counter 1 | BF2: Sheet | BG2: Re-ordered | BH2: Name | BI2: Re-ordered | BJ2: Column | BK2: Source | BL2: Counter | BM2: Counter 1 | BN2: Sheet | BO2: Re-ordered | BP2: Description | BQ2: Re-ordered | BR2: Column | BS2: Source
F4: TRUE | G4: 1 | H4: =Index_Tickers*F4 -> 18 | I4: =I85 -> B | J4: yahoo | L4: 1 | M4: =S4&AA4&AI4&AQ4&AY4&BG4&BO4 -> ^GSPC | N4: =T4&AC4&AK4&AS4&BA4&BI4&BQ4 -> S&P 500 | O4: =U4&AD4&AL4&AT4&BB4&BJ4&BR4 -> B | P4: =V4&AE4&AM4&AU4&BC4&BK4&BS4 -> yahoo | Q4: =G4 -> 1 | R4: =IF(AND($F$4,Q4<=$H$4),Q4,0) -> 1 | S4: =IF(R4,'Yahoo Index'!D10,"") -> ^GSPC | T4: =IF(R4,'Yahoo Index'!E10,"") -> S&P 500 | U4: =IF(R4,$I$4,"") -> B | V4: =IF(R4,$J$4,"") -> yahoo | X4: =G69 -> 19 | Y4: =IF(AND($F$69,X4<=$H$69),X4) -> FALSE | Z4: =IF($F$69,'FRED Indicies'!E16) -> FALSE | AA4: =IFERROR(INDEX(Z:Z,MATCH(L4,Y:Y,0)),"") ->  | AB4: =IF($F$69,'FRED Indicies'!D16) -> FALSE | AC4: =IFERROR(INDEX(AB:AB,MATCH(L4,Y:Y,0)),"") ->  | AD4: =IF(AA4<>"",$I$69,"") ->  | AE4: =IF(AA4<>"",$J$69,"") ->  | AF4: =G72 -> 19 | AG4: =IF(AND($F$72,AF4<=$H$72),AF4) -> FALSE | AH4: =IF(AG4,#REF!) -> FALSE | AI4: =IFERROR(INDEX(AH:AH,MATCH(Q4,AG:AG,0)),"") ->  | AK4: =IFERROR(INDEX(AJ:AJ,MATCH(Q4,AG:AG,0)),"") ->  | AL4: =IF(AI4<>"",$I$69,"") ->  | AM4: =IF(AK4<>"",$J$69,"") ->  | AN4: =G63 -> 1 | AO4: =IF(AND($F$63,AN4<=$H$63),AN4) -> FALSE | AP4: =IF(AO4,'Commodity Prices'!C16) -> FALSE | AQ4: =IFERROR(INDEX(AP:AP,MATCH(L4,AO:AO,0)),"") ->  | AR4: =IF(AO4,'Commodity Prices'!D16) -> FALSE | AS4: =IFERROR(INDEX(AR:AR,MATCH(L4,AO:AO,0)),"") ->  | AT4: =IF(AQ4<>"",$I$63,"") ->  | AU4: =IF(AS4<>"",$J$63,"") ->  | AV4: =G6 -> 19 | AW4: =IF(AND($F$6,AV4<=$H$6),AV4) -> 19 | AX4: =IF(AW4,'Yahoo Stocks'!D10) -> ORSTED.CO | AY4: =IFERROR(INDEX(AX:AX,MATCH(L4,AW:AW,0)),"") ->  | AZ4: =IF(AW4,'Yahoo Stocks'!E10) -> ORSTED A/S | BA4: =IFERROR(INDEX(AZ:AZ,MATCH(L4,AW:AW,0)),"") ->  | BB4: =IF(AY4<>"",$I$6,"") ->  | BC4: =IF(BA4<>"",$J$6,"") ->  | BD4: =G66 -> 0 | BE4: =IF(AND($F$66,BD4<=$H$66),BD4) -> FALSE | BF4: =IF(BE4,#REF!) -> FALSE | BG4: =IFERROR(INDEX(BF:BF,MATCH(Q4,BE:BE,0)),"") ->  | BH4: =IF(BE4,#REF!) -> FALSE | BI4: =IFERROR(INDEX(BH:BH,MATCH(Q4,BE:BE,0)),"") ->  | BJ4: =IF(BI4<>"",$I$66,"") ->  | BK4: =IF(BI4<>"",$J$66,"") ->  | BL4: =G9 -> 47 | BM4: =IF(AND($F$9,BL4<=$H$9),BL4) -> 47 | BN4: ='FRED Series'!D16 -> GDP Deflator | BO4: =IFERROR(INDEX(BN:BN,MATCH(L4,BM:BM,0)),"") ->  | BP4: =IF(BM4,'FRED Series'!E16) -> Implicit Price Deflator | BQ4: =IFERROR(INDEX(BN:BN,MATCH(L4,BM:BM,0)),"") ->  | BR4: =IF(BQ4<>"",$I$9,"") ->  | BS4: =IF(BQ4<>"",$J$9,"") -> 
L5: 2 | M5: =S5&AA5&AI5&AQ5&AY5&BG5&BO5 -> ^GDAXI | N5: DAX | O5: B | P5: yahoo | Q5: =Q4+1 -> 2 | R5: =IF(AND($F$4,Q5<=$H$4),Q5) -> 2 | S5: =IF(R5,'Yahoo Index'!D11,"") -> ^GDAXI | T5: =IF(R5,'Yahoo Index'!E11,"") -> DAX | U5: B | V5: yahoo | X5: =X4+1 -> 20 | Y5: FALSE | Z5: =IF($F$69,'FRED Indicies'!E17) -> FALSE | AB5: =IF($F$69,'FRED Indicies'!D17) -> FALSE | AF5: =AF4+1 -> 20 | AG5: FALSE | AH5: =IF(AG5,#REF!) -> FALSE | AN5: =AN4+1 -> 2 | AO5: FALSE | AP5: =IF(AO5,'Commodity Prices'!C17) -> FALSE | AR5: =IF(AO5,'Commodity Prices'!D17) -> FALSE | AV5: =AV4+1 -> 20 | AW5: 20 | AX5: =IF(AW5,'Yahoo Stocks'!D11) -> RWE.DE | AZ5: =IF(AW5,'Yahoo Stocks'!E11) -> RWE | BD5: =BD4+1 -> 1 | BE5: FALSE | BF5: =IF(BE5,#REF!) -> FALSE | BH5: =IF(BE5,#REF!) -> FALSE | BL5: =BL4+1 -> 48 | BM5: 48 | BN5: ='FRED Series'!D17 -> CPI US | BO5: =IFERROR(INDEX(BN:BN,MATCH(L5,BM:BM,0)),"") ->  | BP5: =IF(BM5,'FRED Series'!E17) -> Consumer Price Inflation | BQ5: =IFERROR(INDEX(BN:BN,MATCH(L5,BM:BM,0)),"") -> 
F6: TRUE | G6: =H4+1 -> 19 | H6: =Yahoo_Stock_Tickers*F6+G6-1 -> 46 | I6: =I85 -> B | J6: Yahoo | L6: 3 | M6: FTSEMIB.MI | N6: Milan | O6: B | P6: yahoo | Q6: 3 | R6: 3 | S6: =IF(R6,'Yahoo Index'!D12,"") -> FTSEMIB.MI | T6: =IF(R6,'Yahoo Index'!E12,"") -> Milan | U6: B | V6: yahoo | X6: 21 | Y6: FALSE | Z6: =IF($F$69,'FRED Indicies'!E18) -> FALSE | AB6: =IF($F$69,'FRED Indicies'!D18) -> FALSE | AF6: 21 | AG6: FALSE | AH6: =IF(AG6,#REF!) -> FALSE | AN6: 3 | AO6: FALSE | AP6: =IF(AO6,'Commodity Prices'!C18) -> FALSE | AR6: =IF(AO6,'Commodity Prices'!D18) -> FALSE | AV6: 21 | AW6: 21 | AX6: =IF(AW6,'Yahoo Stocks'!D12) -> NEE | AZ6: =IF(AW6,'Yahoo Stocks'!E12) -> Nextera | BD6: 2 | BE6: FALSE | BF6: =IF(BE6,#REF!) -> FALSE | BH6: =IF(BE6,#REF!) -> FALSE | BL6: 49 | BM6: 49 | BN6: ='FRED Series'!D18 -> USD_EUR | BP6: =IF(BM6,'FRED Series'!E18) -> U.S. / Euro Foreign Exchange Rate (EXUSEU)
L7: 4 | M7: ^FCHI | N7: CAC 40 | O7: B | P7: yahoo | Q7: 4 | R7: 4 | S7: =IF(R7,'Yahoo Index'!D13,"") -> ^FCHI | T7: =IF(R7,'Yahoo Index'!E13,"") -> CAC 40 | U7: B | V7: yahoo | X7: 22 | Y7: FALSE | Z7: =IF($F$69,'FRED Indicies'!E19) -> FALSE | AB7: =IF($F$69,'FRED Indicies'!D19) -> FALSE | AF7: 22 | AG7: FALSE | AH7: =IF(AG7,#REF!) -> FALSE | AN7: 4 | AO7: FALSE | AP7: =IF(AO7,'Commodity Prices'!C19) -> FALSE | AR7: =IF(AO7,'Commodity Prices'!D19) -> FALSE | AV7: 22 | AW7: 22 | AX7: =IF(AW7,'Yahoo Stocks'!D13) -> IBE.MC | AZ7: =IF(AW7,'Yahoo Stocks'!E13) -> Ibederola | BD7: 3 | BE7: FALSE | BF7: =IF(BE7,#REF!) -> FALSE | BH7: =IF(BE7,#REF!) -> FALSE | BL7: 50 | BM7: 50 | BN7: ='FRED Series'!D19 -> INR | BP7: =IF(BM7,'FRED Series'!E19) -> India / U.S. Foreign Exchange Rate (DEXINUS)
L8: 5 | M8: ^NDX | N8: Nasdaq 100 | O8: B | P8: yahoo | Q8: 5 | R8: 5 | S8: =IF(R8,'Yahoo Index'!D14,"") -> ^NDX | T8: =IF(R8,'Yahoo Index'!E14,"") -> Nasdaq 100 | U8: B | V8: yahoo | X8: 23 | Y8: FALSE | Z8: =IF($F$69,'FRED Indicies'!E20) -> FALSE | AB8: =IF($F$69,'FRED Indicies'!D20) -> FALSE | AF8: 23 | AG8: FALSE | AH8: =IF(AG8,#REF!) -> FALSE | AN8: 5 | AO8: FALSE | AP8: =IF(AO8,'Commodity Prices'!C20) -> FALSE | AR8: =IF(AO8,'Commodity Prices'!D20) -> FALSE | AV8: 23 | AW8: 23 | AX8: =IF(AW8,'Yahoo Stocks'!D14) -> ENGI.PA | AZ8: =IF(AW8,'Yahoo Stocks'!E14) -> ENGIE | BD8: 4 | BE8: FALSE | BF8: =IF(BE8,#REF!) -> FALSE | BH8: =IF(BE8,#REF!) -> FALSE | BL8: 51 | BM8: 51 | BN8: ='FRED Series'!D20 -> USD_GBP | BP8: =IF(BM8,'FRED Series'!E20) -> U.S. / U.K. Foreign Exchange Rate (EXUSUK)
F9: TRUE | G9: =H6+1 -> 47 | H9: ='FRED Series'!D8*'Read Stocks'!F9+G9-1 -> 88 | I9: B | J9: FRED | L9: 6 | M9: ^DJI | N9: 30 Industrials | O9: B | P9: yahoo | Q9: 6 | R9: 6 | S9: =IF(R9,'Yahoo Index'!D15,"") -> ^DJI | T9: =IF(R9,'Yahoo Index'!E15,"") -> 30 Industrials | U9: B | V9: yahoo | X9: 24 | Y9: FALSE | Z9: =IF($F$69,'FRED Indicies'!E21) -> FALSE | AB9: =IF($F$69,'FRED Indicies'!D21) -> FALSE | AF9: 24 | AG9: FALSE | AH9: =IF(AG9,#REF!) -> FALSE | AN9: 6 | AO9: FALSE | AP9: =IF(AO9,'Commodity Prices'!C21) -> FALSE | AR9: =IF(AO9,'Commodity Prices'!D21) -> FALSE | AV9: 24 | AW9: 24 | AX9: =IF(AW9,'Yahoo Stocks'!D15) -> RWE.DE | AZ9: =IF(AW9,'Yahoo Stocks'!E15) -> RWE | BD9: 5 | BE9: FALSE | BF9: =IF(BE9,#REF!) -> FALSE | BH9: =IF(BE9,#REF!) -> FALSE | BL9: 52 | BM9: 52 | BN9: ='FRED Series'!D21 -> US Population | BP9: =IF(BM9,'FRED Series'!E21) -> Population Total for United States (POPTOTUSA647NWDB)
L10: 7 | M10: ^SSMI | N10: Swiss | O10: B | P10: yahoo | Q10: 7 | R10: 7 | S10: =IF(R10,'Yahoo Index'!D16,"") -> ^SSMI | T10: =IF(R10,'Yahoo Index'!E16,"") -> Swiss | U10: B | V10: yahoo | X10: 25 | Y10: FALSE | Z10: =IF($F$69,'FRED Indicies'!E22) -> FALSE | AB10: =IF($F$69,'FRED Indicies'!D22) -> FALSE | AF10: 25 | AG10: FALSE | AH10: =IF(AG10,#REF!) -> FALSE | AN10: 7 | AO10: FALSE | AP10: =IF(AO10,'Commodity Prices'!C22) -> FALSE | AR10: =IF(AO10,'Commodity Prices'!D22) -> FALSE | AV10: 25 | AW10: 25 | AX10: =IF(AW10,'Yahoo Stocks'!D16) -> EDP.LS | AZ10: =IF(AW10,'Yahoo Stocks'!E16) -> EDP | BD10: 6 | BE10: FALSE | BF10: =IF(BE10,#REF!) -> FALSE | BH10: =IF(BE10,#REF!) -> FALSE | BL10: 53 | BM10: 53 | BN10: ='FRED Series'!D22 -> US NOM GNP | BP10: =IF(BM10,'FRED Series'!E22) -> Gross National Product (GNP)
L11: 8 | M11: ^KLSE | N11: Malaysia | O11: B | P11: yahoo | Q11: 8 | R11: 8 | S11: =IF(R11,'Yahoo Index'!D17,"") -> ^KLSE | T11: =IF(R11,'Yahoo Index'!E17,"") -> Malaysia | U11: B | V11: yahoo | X11: 26 | Y11: FALSE | Z11: =IF($F$69,'FRED Indicies'!E23) -> FALSE | AB11: =IF($F$69,'FRED Indicies'!D23) -> FALSE | AF11: 26 | AG11: FALSE | AH11: =IF(AG11,#REF!) -> FALSE | AN11: 8 | AO11: FALSE | AP11: =IF(AO11,'Commodity Prices'!C23) -> FALSE | AR11: =IF(AO11,'Commodity Prices'!D23) -> FALSE | AV11: 26 | AW11: 26 | AX11: =IF(AW11,'Yahoo Stocks'!D17) -> SHEL | AZ11: =IF(AW11,'Yahoo Stocks'!E17) -> Shell | BD11: 7 | BE11: FALSE | BF11: =IF(BE11,#REF!) -> FALSE | BH11: =IF(BE11,#REF!) -> FALSE | BL11: 54 | BM11: 54 | BN11: ='FRED Series'!D23 -> 5 yr treasury | BP11: =IF(BM11,'FRED Series'!E23) -> 5-Year Treasury Constant Maturity Rate (GS5)
D12: Read Indices from Python Code (1-->yes) | F12: 1 | G12: TRUE | L12: 9 | M12: ^SP500TR | N12: S&P TR | O12: B | P12: yahoo | Q12: 9 | R12: 9 | S12: =IF(R12,'Yahoo Index'!D18,"") -> ^SP500TR | T12: =IF(R12,'Yahoo Index'!E18,"") -> S&P TR | U12: B | V12: yahoo | X12: 27 | Y12: FALSE | Z12: =IF($F$69,'FRED Indicies'!E24) -> FALSE | AB12: =IF($F$69,'FRED Indicies'!D24) -> FALSE | AF12: 27 | AG12: FALSE | AH12: =IF(AG12,#REF!) -> FALSE | AN12: 9 | AO12: FALSE | AP12: =IF(AO12,'Commodity Prices'!C24) -> FALSE | AR12: =IF(AO12,'Commodity Prices'!D24) -> FALSE | AV12: 27 | AW12: 27 | AX12: =IF(AW12,'Yahoo Stocks'!D18) -> TTE | AZ12: =IF(AW12,'Yahoo Stocks'!E18) -> Total Energies | BD12: 8 | BE12: FALSE | BF12: =IF(BE12,#REF!) -> FALSE | BH12: =IF(BE12,#REF!) -> FALSE | BL12: 55 | BM12: 55 | BN12: ='FRED Series'!D24 -> 10 year treasury | BP12: =IF(BM12,'FRED Series'!E24) -> 10-Year Treasury Constant Maturity Rate (GS10)
D13: Read Stocks from Python Code (1-->yes) | F13: =NOT(F12)*1 -> 0 | L13: 10 | M13: ^JKSE | N13: Indonesia | O13: B | P13: yahoo | Q13: 10 | R13: 10 | S13: =IF(R13,'Yahoo Index'!D19,"") -> ^JKSE | T13: =IF(R13,'Yahoo Index'!E19,"") -> Indonesia | U13: B | V13: yahoo | X13: 28 | Y13: FALSE | Z13: =IF($F$69,'FRED Indicies'!E25) -> FALSE | AB13: =IF($F$69,'FRED Indicies'!D25) -> FALSE | AF13: 28 | AG13: FALSE | AH13: =IF(AG13,#REF!) -> FALSE | AN13: 10 | AO13: FALSE | AP13: =IF(AO13,'Commodity Prices'!C25) -> FALSE | AR13: =IF(AO13,'Commodity Prices'!D25) -> FALSE | AV13: 28 | AW13: 28 | AX13: =IF(AW13,'Yahoo Stocks'!D19) -> XOM | AZ13: =IF(AW13,'Yahoo Stocks'!E19) -> Exxon Mobil | BD13: 9 | BE13: FALSE | BF13: =IF(BE13,#REF!) -> FALSE | BH13: =IF(BE13,#REF!) -> FALSE | BL13: 56 | BM13: 56 | BN13: ='FRED Series'!D25 -> 6 Month Treasury Bil | BP13: =IF(BM13,'FRED Series'!E25) -> 6 Month Treasury Bill Secondary Market Rate Discount Basis (DTB6)
L14: 11 | M14: ^KS11 | N14: Seoul Composite | O14: B | P14: yahoo | Q14: 11 | R14: 11 | S14: =IF(R14,'Yahoo Index'!D20,"") -> ^KS11 | T14: =IF(R14,'Yahoo Index'!E20,"") -> Seoul Composite | U14: B | V14: yahoo | X14: 29 | Y14: FALSE | Z14: =IF($F$69,'FRED Indicies'!E26) -> FALSE | AB14: =IF($F$69,'FRED Indicies'!D26) -> FALSE | AF14: 29 | AG14: FALSE | AH14: =IF(AG14,#REF!) -> FALSE | AN14: 11 | AO14: FALSE | AP14: =IF(AO14,'Commodity Prices'!C26) -> FALSE | AR14: =IF(AO14,'Commodity Prices'!D26) -> FALSE | AV14: 29 | AW14: 29 | AX14: =IF(AW14,'Yahoo Stocks'!D20) -> BP | AZ14: =IF(AW14,'Yahoo Stocks'!E20) -> BP | BD14: 10 | BE14: FALSE | BF14: =IF(BE14,#REF!) -> FALSE | BH14: =IF(BE14,#REF!) -> FALSE | BL14: 57 | BM14: 57 | BN14: ='FRED Series'!D26 -> 3-Month Treasury Bil | BP14: =IF(BM14,'FRED Series'!E26) -> 3-Month Treasury Bill Secondary Market Rate, Discount Basis (TB3MS)
D15: Python Debug (1-->pause) | F15: 1 | L15: 12 | M15: ^N225 | N15: Nikkei 225 | O15: B | P15: yahoo | Q15: 12 | R15: 12 | S15: =IF(R15,'Yahoo Index'!D21,"") -> ^N225 | T15: =IF(R15,'Yahoo Index'!E21,"") -> Nikkei 225 | U15: B | V15: yahoo | X15: 30 | Y15: FALSE | Z15: =IF($F$69,'FRED Indicies'!E27) -> FALSE | AB15: =IF($F$69,'FRED Indicies'!D27) -> FALSE | AF15: 30 | AG15: FALSE | AH15: =IF(AG15,#REF!) -> FALSE | AN15: 12 | AO15: FALSE | AP15: =IF(AO15,'Commodity Prices'!C27) -> FALSE | AR15: =IF(AO15,'Commodity Prices'!D27) -> FALSE | AV15: 30 | AW15: 30 | AX15: =IF(AW15,'Yahoo Stocks'!D21) -> CVX | AZ15: =IF(AW15,'Yahoo Stocks'!E21) -> Chevron | BD15: 11 | BE15: FALSE | BF15: =IF(BE15,#REF!) -> FALSE | BH15: =IF(BE15,#REF!) -> FALSE | BL15: 58 | BM15: 58 | BN15: ='FRED Series'!D27 -> Disposable Personal | BP15: =IF(BM15,'FRED Series'!E27) -> Disposable Personal Income (DSPI)
L16: 13 | M16: ^FTSE | N16: FTSE 100 | O16: B | P16: yahoo | Q16: 13 | R16: 13 | S16: =IF(R16,'Yahoo Index'!D22,"") -> ^FTSE | T16: =IF(R16,'Yahoo Index'!E22,"") -> FTSE 100 | U16: B | V16: yahoo | X16: 31 | Y16: FALSE | Z16: =IF($F$69,'FRED Indicies'!E28) -> FALSE | AB16: =IF($F$69,'FRED Indicies'!D28) -> FALSE | AF16: 31 | AG16: FALSE | AH16: =IF(AG16,#REF!) -> FALSE | AN16: 13 | AO16: FALSE | AP16: =IF(AO16,'Commodity Prices'!C28) -> FALSE | AR16: =IF(AO16,'Commodity Prices'!D28) -> FALSE | AV16: 31 | AW16: 31 | AX16: =IF(AW16,'Yahoo Stocks'!D22) -> 5347.KL | AZ16: =IF(AW16,'Yahoo Stocks'!E22) -> Tenaga Malaysia | BD16: 12 | BE16: FALSE | BF16: =IF(BE16,#REF!) -> FALSE | BH16: =IF(BE16,#REF!) -> FALSE | BL16: 59 | BM16: 59 | BN16: ='FRED Series'!D28 -> National inc Rent | BP16: =IF(BM16,'FRED Series'!E28) -> National income: Rental income of persons without CCAdj (B049RC1Q027SBEA)
D17: Use Current Path (1-->yes) | F17: 1 | L17: 14 | M17: NGE | N17: Nigeria | O17: B | P17: yahoo | Q17: 14 | R17: 14 | S17: =IF(R17,'Yahoo Index'!D23,"") -> NGE | T17: =IF(R17,'Yahoo Index'!E23,"") -> Nigeria | U17: B | V17: yahoo | X17: 32 | Y17: FALSE | Z17: =IF($F$69,'FRED Indicies'!E29) -> FALSE | AB17: =IF($F$69,'FRED Indicies'!D29) -> FALSE | AF17: 32 | AG17: FALSE | AH17: =IF(AG17,#REF!) -> FALSE | AN17: 14 | AO17: FALSE | AP17: =IF(AO17,'Commodity Prices'!C29) -> FALSE | AR17: =IF(AO17,'Commodity Prices'!D29) -> FALSE | AV17: 32 | AW17: 32 | AX17: =IF(AW17,'Yahoo Stocks'!D23) -> CYZB.F | AZ17: =IF(AW17,'Yahoo Stocks'!E23) -> China Yangtze Power Co | BD17: 13 | BE17: FALSE | BF17: =IF(BE17,#REF!) -> FALSE | BH17: =IF(BE17,#REF!) -> FALSE | BL17: 60 | BM17: 60 | BN17: ='FRED Series'!D29 -> Personal Income | BP17: =IF(BM17,'FRED Series'!E29) -> Personal Income (PI)
L18: 15 | M18: ^TWII | N18: Taiwan Weighted | O18: B | P18: yahoo | Q18: 15 | R18: 15 | S18: =IF(R18,'Yahoo Index'!D24,"") -> ^TWII | T18: =IF(R18,'Yahoo Index'!E24,"") -> Taiwan Weighted | U18: B | V18: yahoo | X18: 33 | Y18: FALSE | Z18: =IF($F$69,'FRED Indicies'!E30) -> FALSE | AB18: =IF($F$69,'FRED Indicies'!D30) -> FALSE | AF18: 33 | AG18: FALSE | AH18: =IF(AG18,#REF!) -> FALSE | AN18: 15 | AO18: FALSE | AP18: =IF(AO18,'Commodity Prices'!C30) -> FALSE | AR18: =IF(AO18,'Commodity Prices'!D30) -> FALSE | AV18: 33 | AW18: 33 | AX18: =IF(AW18,'Yahoo Stocks'!D24) -> 015760.KS | AZ18: =IF(AW18,'Yahoo Stocks'!E24) -> Korea Electric Power | BD18: 14 | BE18: FALSE | BF18: =IF(BE18,#REF!) -> FALSE | BH18: =IF(BE18,#REF!) -> FALSE | BL18: 61 | BM18: 61 | BN18: ='FRED Series'!D30 -> Compensation of empl | BP18: =IF(BM18,'FRED Series'!E30) -> Compensation of employees (A033RC1A027NBEA)
D19: Timing Code for Graph Axis | F19: 1 | G19: =CHOOSE(timing_code,"Monthly","Weekly","Daily") -> Monthly | L19: 16 | M19: ^STI | N19: Straits Times | O19: B | P19: yahoo | Q19: 16 | R19: 16 | S19: =IF(R19,'Yahoo Index'!D25,"") -> ^STI | T19: =IF(R19,'Yahoo Index'!E25,"") -> Straits Times | U19: B | V19: yahoo | X19: 34 | Y19: FALSE | Z19: =IF($F$69,'FRED Indicies'!E31) -> FALSE | AB19: =IF($F$69,'FRED Indicies'!D31) -> FALSE | AF19: 34 | AG19: FALSE | AH19: =IF(AG19,#REF!) -> FALSE | AN19: 16 | AO19: FALSE | AP19: =IF(AO19,'Commodity Prices'!C31) -> FALSE | AR19: =IF(AO19,'Commodity Prices'!D31) -> FALSE | AV19: 34 | AW19: 34 | AX19: =IF(AW19,'Yahoo Stocks'!D25) -> NG.L | AZ19: =IF(AW19,'Yahoo Stocks'!E25) -> National Grid plc | BD19: 15 | BE19: FALSE | BF19: =IF(BE19,#REF!) -> FALSE | BH19: =IF(BE19,#REF!) -> FALSE | BL19: 62 | BM19: 62 | BN19: ='FRED Series'!D31 -> US Med Inc Nom | BP19: =IF(BM19,'FRED Series'!E31) -> Median Household Income in the United States (MEHOINUSA646N)
D20: Timing Code for Read (1 Mo, 2 wk, 3 Daily) | F20: 3 | G20: =CHOOSE(F20,"Monthly","Weekly","Daily") -> Daily | L20: 17 | M20: 000001.SS | N20: SSE Composite | O20: B | P20: yahoo | Q20: 17 | R20: 17 | S20: =IF(R20,'Yahoo Index'!D26,"") -> 000001.SS | T20: =IF(R20,'Yahoo Index'!E26,"") -> SSE Composite | U20: B | V20: yahoo | X20: 35 | Y20: FALSE | Z20: =IF($F$69,'FRED Indicies'!E32) -> FALSE | AB20: =IF($F$69,'FRED Indicies'!D32) -> FALSE | AF20: 35 | AG20: FALSE | AH20: =IF(AG20,#REF!) -> FALSE | AN20: 17 | AO20: FALSE | AP20: =IF(AO20,'Commodity Prices'!C32) -> FALSE | AR20: =IF(AO20,'Commodity Prices'!D32) -> FALSE | AV20: 35 | AW20: 35 | AX20: =IF(AW20,'Yahoo Stocks'!D26) -> ED | AZ20: =IF(AW20,'Yahoo Stocks'!E26) -> Consolidated Edison | BD20: 16 | BE20: FALSE | BF20: =IF(BE20,#REF!) -> FALSE | BH20: =IF(BE20,#REF!) -> FALSE | BL20: 63 | BM20: 63 | BN20: ='FRED Series'!D32 -> Median Income | BP20: =IF(BM20,'FRED Series'!E32) -> Employed full time: Median usual weekly real earnings: d over (LES1252881600Q)
L21: 18 | M21: Tadawul Saudi | N21: Tadawul Saudi | O21: B | P21: yahoo | Q21: 18 | R21: 18 | S21: =IF(R21,'Yahoo Index'!E27,"") -> Tadawul Saudi | T21: =IF(R21,'Yahoo Index'!E27,"") -> Tadawul Saudi | U21: B | V21: yahoo | X21: 36 | Y21: FALSE | Z21: =IF($F$69,'FRED Indicies'!E33) -> FALSE | AB21: =IF($F$69,'FRED Indicies'!D33) -> FALSE | AF21: 36 | AG21: FALSE | AH21: =IF(AG21,#REF!) -> FALSE | AN21: 18 | AO21: FALSE | AP21: =IF(AO21,'Commodity Prices'!C33) -> FALSE | AR21: =IF(AO21,'Commodity Prices'!D33) -> FALSE | AV21: 36 | AW21: 36 | AX21: =IF(AW21,'Yahoo Stocks'!D27) -> WEC | AZ21: =IF(AW21,'Yahoo Stocks'!E27) -> Wisconsin Energy Group | BD21: 17 | BE21: FALSE | BF21: =IF(BE21,#REF!) -> FALSE | BH21: =IF(BE21,#REF!) -> FALSE | BL21: 64 | BM21: 64 | BN21: ='FRED Series'!D33 -> US Real GDP | BP21: =IF(BM21,'FRED Series'!E33) -> Real Gross Domestic Product (GDPC1)
L22: 19 | M22: ORSTED.CO | N22: ORSTED A/S | O22: B | P22: Yahoo | Q22: 19 | R22: FALSE | S22: =IF(R22,'Yahoo Index'!E28,"") ->  | T22: =IF(R22,'Yahoo Index'!E28,"") ->  | X22: 37 | Y22: FALSE | Z22: =IF($F$69,'FRED Indicies'!E34) -> FALSE | AB22: =IF($F$69,'FRED Indicies'!D34) -> FALSE | AF22: 37 | AG22: FALSE | AH22: =IF(AG22,#REF!) -> FALSE | AN22: 19 | AO22: FALSE | AP22: =IF(AO22,'Commodity Prices'!C34) -> FALSE | AR22: =IF(AO22,'Commodity Prices'!D34) -> FALSE | AV22: 37 | AW22: 37 | AX22: =IF(AW22,'Yahoo Stocks'!D28) -> EDPR.LS | AY22: ORSTED.CO | AZ22: =IF(AW22,'Yahoo Stocks'!E28) -> EDP Renovaveis S/A | BA22: ORSTED A/S | BB22: B | BC22: Yahoo | BD22: 18 | BE22: FALSE | BF22: =IF(BE22,#REF!) -> FALSE | BH22: =IF(BE22,#REF!) -> FALSE | BL22: 65 | BM22: 65 | BN22: ='FRED Series'!D34 -> US Real GNP | BP22: =IF(BM22,'FRED Series'!E34) -> Real Gross National Product (GNPC96)
L23: 20 | M23: RWE.DE | N23: RWE | O23: B | P23: Yahoo | Q23: 20 | R23: FALSE | S23: =IF(R23,'Yahoo Index'!E29,"") ->  | T23: =IF(R23,'Yahoo Index'!E29,"") ->  | X23: 38 | Y23: FALSE | Z23: =IF($F$69,'FRED Indicies'!E35) -> FALSE | AB23: =IF($F$69,'FRED Indicies'!D35) -> FALSE | AF23: 38 | AG23: FALSE | AH23: =IF(AG23,#REF!) -> FALSE | AN23: 20 | AO23: FALSE | AP23: =IF(AO23,'Commodity Prices'!C35) -> FALSE | AR23: =IF(AO23,'Commodity Prices'!D35) -> FALSE | AV23: 38 | AW23: 38 | AX23: =IF(AW23,'Yahoo Stocks'!D29) -> 1038.HK | AY23: RWE.DE | AZ23: =IF(AW23,'Yahoo Stocks'!E29) -> CK Infrastructure | BA23: RWE | BB23: B | BC23: Yahoo | BD23: 19 | BE23: FALSE | BF23: =IF(BE23,#REF!) -> FALSE | BH23: =IF(BE23,#REF!) -> FALSE | BL23: 66 | BM23: 66 | BN23: ='FRED Series'!D35 -> GDP GDI | BP23: =IF(BM23,'FRED Series'!E35) -> Real Average of GDP and GDI (LB0000091Q020SBEA)
L24: 21 | M24: NEE | N24: Nextera | O24: B | P24: Yahoo | Q24: 21 | R24: FALSE | S24: =IF(R24,'Yahoo Index'!E30,"") ->  | T24: =IF(R24,'Yahoo Index'!E30,"") ->  | X24: 39 | Y24: FALSE | Z24: =IF($F$69,'FRED Indicies'!E36) -> FALSE | AB24: =IF($F$69,'FRED Indicies'!D36) -> FALSE | AF24: 39 | AG24: FALSE | AH24: =IF(AG24,#REF!) -> FALSE | AN24: 21 | AO24: FALSE | AP24: =IF(AO24,'Commodity Prices'!C36) -> FALSE | AR24: =IF(AO24,'Commodity Prices'!D36) -> FALSE | AV24: 39 | AW24: 39 | AX24: =IF(AW24,'Yahoo Stocks'!D30) -> ETR | AY24: NEE | AZ24: =IF(AW24,'Yahoo Stocks'!E30) -> Entergy Corporation | BA24: Nextera | BB24: B | BC24: Yahoo | BD24: 20 | BE24: FALSE | BF24: =IF(BE24,#REF!) -> FALSE | BH24: =IF(BE24,#REF!) -> FALSE | BL24: 67 | BM24: 67 | BN24: ='FRED Series'!D36 -> Crude Oil Price | BP24: =IF(BM24,'FRED Series'!E36) -> Crude Oil Prices: Brent - Europe (DCOILBRENTEU)
C25: Start of Graph | E25: ='Multiple Stock Graph'!K20 -> 1927-02-01 | L25: 22 | M25: IBE.MC | N25: Ibederola | O25: B | P25: Yahoo | Q25: 22 | R25: FALSE | S25: =IF(R25,'Yahoo Index'!E31,"") ->  | T25: =IF(R25,'Yahoo Index'!E31,"") ->  | X25: 40 | Y25: FALSE | Z25: =IF($F$69,'FRED Indicies'!E37) -> FALSE | AB25: =IF($F$69,'FRED Indicies'!D37) -> FALSE | AF25: 40 | AG25: FALSE | AH25: =IF(AG25,#REF!) -> FALSE | AN25: 22 | AO25: FALSE | AP25: =IF(AO25,'Commodity Prices'!C37) -> FALSE | AR25: =IF(AO25,'Commodity Prices'!D37) -> FALSE | AV25: 40 | AW25: 40 | AX25: =IF(AW25,'Yahoo Stocks'!D31) -> ENEL.MI | AY25: IBE.MC | AZ25: =IF(AW25,'Yahoo Stocks'!E31) -> ENEL | BA25: Ibederola | BB25: B | BC25: Yahoo | BD25: 21 | BE25: FALSE | BF25: =IF(BE25,#REF!) -> FALSE | BH25: =IF(BE25,#REF!) -> FALSE | BL25: 68 | BM25: 68 | BN25: ='FRED Series'!D37 -> Gold Fixing Pr | BP25: =IF(BM25,'FRED Series'!E37) -> Gold Fixing Price 10:30 A.M. London time in London Bullion Market, based in U.S. Dollars (GOLDAMGBD228NLBM)
C26: End of Graph | E26: ='Multiple Stock Graph'!K21 -> 2025-12-31 | L26: 23 | M26: ENGI.PA | N26: ENGIE | O26: B | P26: Yahoo | Q26: 23 | R26: FALSE | S26: =IF(R26,'Yahoo Index'!E32,"") ->  | T26: =IF(R26,'Yahoo Index'!E32,"") ->  | X26: 41 | Y26: FALSE | Z26: =IF($F$69,'FRED Indicies'!E38) -> FALSE | AB26: =IF($F$69,'FRED Indicies'!D38) -> FALSE | AF26: 41 | AG26: FALSE | AH26: =IF(AG26,#REF!) -> FALSE | AN26: 23 | AO26: FALSE | AP26: =IF(AO26,'Commodity Prices'!C38) -> FALSE | AR26: =IF(AO26,'Commodity Prices'!D38) -> FALSE | AV26: 41 | AW26: 41 | AX26: =IF(AW26,'Yahoo Stocks'!D32) -> DUK | AY26: ENGI.PA | AZ26: =IF(AW26,'Yahoo Stocks'!E32) -> DUKE ENERGY CORPORATION | BA26: ENGIE | BB26: B | BC26: Yahoo | BD26: 22 | BE26: FALSE | BF26: =IF(BE26,#REF!) -> FALSE | BH26: =IF(BE26,#REF!) -> FALSE | BL26: 69 | BM26: 69 | BN26: ='FRED Series'!D38 -> Henry Hub Natur | BP26: =IF(BM26,'FRED Series'!E38) -> Henry Hub Natural Gas Spot Price (MHHNGSP)
L27: 24 | M27: RWE.DE | N27: RWE | O27: B | P27: Yahoo | Q27: 24 | R27: FALSE | S27: =IF(R27,'Yahoo Index'!E33,"") ->  | T27: =IF(R27,'Yahoo Index'!E33,"") ->  | X27: 42 | Y27: FALSE | Z27: =IF($F$69,'FRED Indicies'!E39) -> FALSE | AB27: =IF($F$69,'FRED Indicies'!D39) -> FALSE | AF27: 42 | AG27: FALSE | AH27: =IF(AG27,#REF!) -> FALSE | AN27: 24 | AO27: FALSE | AP27: =IF(AO27,'Commodity Prices'!C39) -> FALSE | AR27: =IF(AO27,'Commodity Prices'!D39) -> FALSE | AV27: 42 | AW27: 42 | AX27: =IF(AW27,'Yahoo Stocks'!D33) -> AEP | AY27: RWE.DE | AZ27: =IF(AW27,'Yahoo Stocks'!E33) -> AMERICAN ELECTRIC POWER COMPANY INC | BA27: RWE | BB27: B | BC27: Yahoo | BD27: 23 | BE27: FALSE | BF27: =IF(BE27,#REF!) -> FALSE | BH27: =IF(BE27,#REF!) -> FALSE | BL27: 70 | BM27: 70 | BN27: ='FRED Series'!D39 -> LNG, Asia (PNG | BP27: =IF(BM27,'FRED Series'!E39) -> Global price of LNG, Asia (PNGASJPUSDM)
L28: 25 | M28: EDP.LS | N28: EDP | O28: B | P28: Yahoo | Q28: 25 | R28: FALSE | S28: =IF(R28,'Yahoo Index'!E34,"") ->  | T28: =IF(R28,'Yahoo Index'!E34,"") ->  | X28: 43 | Y28: FALSE | Z28: =IF($F$69,'FRED Indicies'!E40) -> FALSE | AB28: =IF($F$69,'FRED Indicies'!D40) -> FALSE | AF28: 43 | AG28: FALSE | AH28: =IF(AG28,#REF!) -> FALSE | AN28: 25 | AO28: FALSE | AP28: =IF(AO28,'Commodity Prices'!C40) -> FALSE | AR28: =IF(AO28,'Commodity Prices'!D40) -> FALSE | AV28: 43 | AW28: 43 | AX28: =IF(AW28,'Yahoo Stocks'!D34) -> EXC | AY28: EDP.LS | AZ28: =IF(AW28,'Yahoo Stocks'!E34) -> EXELON CORPORATION | BA28: EDP | BB28: B | BC28: Yahoo | BD28: 24 | BE28: FALSE | BF28: =IF(BE28,#REF!) -> FALSE | BH28: =IF(BE28,#REF!) -> FALSE | BL28: 71 | BM28: 71 | BN28: ='FRED Series'!D40 -> EU Natural Gas | BP28: =IF(BM28,'FRED Series'!E40) -> Global price of Natural gas, EU (PNGASEUUSDM)
L29: 26 | M29: SHEL | N29: Shell | O29: B | P29: Yahoo | Q29: 26 | R29: FALSE | S29: =IF(R29,'Yahoo Index'!E35,"") ->  | T29: =IF(R29,'Yahoo Index'!E35,"") ->  | X29: 44 | Y29: FALSE | Z29: =IF($F$69,'FRED Indicies'!E41) -> FALSE | AB29: =IF($F$69,'FRED Indicies'!D41) -> FALSE | AF29: 44 | AG29: FALSE | AH29: =IF(AG29,#REF!) -> FALSE | AN29: 26 | AO29: FALSE | AP29: =IF(AO29,'Commodity Prices'!C41) -> FALSE | AR29: =IF(AO29,'Commodity Prices'!D41) -> FALSE | AV29: 44 | AW29: 44 | AX29: =IF(AW29,'Yahoo Stocks'!D35) -> MAEOY | AY29: SHEL | AZ29: =IF(AW29,'Yahoo Stocks'!E35) -> MERALCO | BA29: Shell | BB29: B | BC29: Yahoo | BD29: 25 | BE29: FALSE | BF29: =IF(BE29,#REF!) -> FALSE | BH29: =IF(BE29,#REF!) -> FALSE | BL29: 72 | BM29: 72 | BN29: ='FRED Series'!D41 -> Uranium (PURAN | BP29: =IF(BM29,'FRED Series'!E41) -> Global price of Uranium (PURANUSDM)
C30: active workbook | D30: Stock and Economic Analysis.xlsm | L30: 27 | M30: TTE | N30: Total Energies | O30: B | P30: Yahoo | Q30: 27 | R30: FALSE | S30: =IF(R30,'Yahoo Index'!E36,"") ->  | T30: =IF(R30,'Yahoo Index'!E36,"") ->  | X30: 45 | Y30: FALSE | Z30: =IF($F$69,'FRED Indicies'!E42) -> FALSE | AB30: =IF($F$69,'FRED Indicies'!D42) -> FALSE | AF30: 45 | AG30: FALSE | AH30: =IF(AG30,#REF!) -> FALSE | AN30: 27 | AO30: FALSE | AP30: =IF(AO30,'Commodity Prices'!C42) -> FALSE | AR30: =IF(AO30,'Commodity Prices'!D42) -> FALSE | AV30: 45 | AW30: 45 | AX30: =IF(AW30,'Yahoo Stocks'!D36) -> NTPC.NS | AY30: TTE | AZ30: =IF(AW30,'Yahoo Stocks'!E36) -> NTPC | BA30: Total Energies | BB30: B | BC30: Yahoo | BD30: 26 | BE30: FALSE | BF30: =IF(BE30,#REF!) -> FALSE | BH30: =IF(BE30,#REF!) -> FALSE | BL30: 73 | BM30: 73 | BN30: ='FRED Series'!D42 -> GDP Per Capital France | BP30: =IF(BM30,'FRED Series'!E42) -> Gross Domestic Product Per Capita for France (PCAGDPFRA646NWDB)
C31: workbook path | D31: C:\Stocks\Stock and Economic Analysis.xlsm | L31: 28 | M31: XOM | N31: Exxon Mobil | O31: B | P31: Yahoo | Q31: 28 | R31: FALSE | S31: =IF(R31,'Yahoo Index'!E37,"") ->  | T31: =IF(R31,'Yahoo Index'!E37,"") ->  | X31: 46 | Y31: FALSE | Z31: =IF($F$69,'FRED Indicies'!E43) -> FALSE | AB31: =IF($F$69,'FRED Indicies'!D43) -> FALSE | AF31: 46 | AG31: FALSE | AH31: =IF(AG31,#REF!) -> FALSE | AN31: 28 | AO31: FALSE | AP31: =IF(AO31,'Commodity Prices'!C43) -> FALSE | AR31: =IF(AO31,'Commodity Prices'!D43) -> FALSE | AV31: 46 | AW31: 46 | AX31: =IF(AW31,'Yahoo Stocks'!D37) -> ENA.MU | AY31: XOM | AZ31: =IF(AW31,'Yahoo Stocks'!E37) -> ENDESA SA | BA31: Exxon Mobil | BB31: B | BC31: Yahoo | BD31: 27 | BE31: FALSE | BF31: =IF(BE31,#REF!) -> FALSE | BH31: =IF(BE31,#REF!) -> FALSE | BL31: 74 | BM31: 74 | BN31: ='FRED Series'!D43 -> GDP Per Capital Germany | BP31: =IF(BM31,'FRED Series'!E43) -> Gross Domestic Product Per Capita for Germany (PCAGDPDEA646NWDB)
C32: workbook path name | D32: C:\Stocks | L32: 29 | M32: BP | N32: BP | O32: B | P32: Yahoo | Q32: 29 | R32: FALSE | S32: =IF(R32,'Yahoo Index'!E38,"") ->  | T32: =IF(R32,'Yahoo Index'!E38,"") ->  | X32: 47 | Y32: FALSE | Z32: =IF($F$69,'FRED Indicies'!E44) -> FALSE | AB32: =IF($F$69,'FRED Indicies'!D44) -> FALSE | AF32: 47 | AG32: FALSE | AH32: =IF(AG32,#REF!) -> FALSE | AN32: 29 | AO32: FALSE | AP32: =IF(AO32,'Commodity Prices'!C44) -> FALSE | AR32: =IF(AO32,'Commodity Prices'!D44) -> FALSE | AV32: 47 | AW32: FALSE | AX32: =IF(AW32,'Yahoo Stocks'!D38) -> FALSE | AY32: BP | AZ32: =IF(AW32,'Yahoo Stocks'!E38) -> FALSE | BA32: BP | BB32: B | BC32: Yahoo | BD32: 28 | BE32: FALSE | BF32: =IF(BE32,#REF!) -> FALSE | BH32: =IF(BE32,#REF!) -> FALSE | BL32: 75 | BM32: 75 | BN32: ='FRED Series'!D44 -> GDP Per Capital US | BP32: =IF(BM32,'FRED Series'!E44) -> Gross domestic product per capita (A939RC0Q052SBEA)
C33: active sheet name | D33: Read Stocks | L33: 30 | M33: CVX | N33: Chevron | O33: B | P33: Yahoo | Q33: 30 | R33: FALSE | S33: =IF(R33,'Yahoo Index'!E39,"") ->  | T33: =IF(R33,'Yahoo Index'!E39,"") ->  | X33: 48 | Y33: FALSE | Z33: =IF($F$69,'FRED Indicies'!E45) -> FALSE | AB33: =IF($F$69,'FRED Indicies'!D45) -> FALSE | AF33: 48 | AG33: FALSE | AH33: =IF(AG33,#REF!) -> FALSE | AN33: 30 | AO33: FALSE | AP33: =IF(AO33,'Commodity Prices'!C45) -> FALSE | AR33: =IF(AO33,'Commodity Prices'!D45) -> FALSE | AV33: 48 | AW33: FALSE | AX33: =IF(AW33,'Yahoo Stocks'!D39) -> FALSE | AY33: CVX | AZ33: =IF(AW33,'Yahoo Stocks'!E39) -> FALSE | BA33: Chevron | BB33: B | BC33: Yahoo | BD33: 29 | BE33: FALSE | BF33: =IF(BE33,#REF!) -> FALSE | BH33: =IF(BE33,#REF!) -> FALSE | BL33: 76 | BM33: 76 | BN33: ='FRED Series'!D45 -> GDP Per Capital China | BP33: =IF(BM33,'FRED Series'!E45) -> Gross Domestic Product Per Capita for China (PCAGDPCNA646NWDB)
C34: python path | D34: C:\Stocks | L34: 31 | M34: 5347.KL | N34: Tenaga Malaysia | O34: B | P34: Yahoo | Q34: 31 | R34: FALSE | S34: =IF(R34,'Yahoo Index'!E40,"") ->  | T34: =IF(R34,'Yahoo Index'!E40,"") ->  | X34: 49 | Y34: FALSE | Z34: =IF($F$69,'FRED Indicies'!E46) -> FALSE | AB34: =IF($F$69,'FRED Indicies'!D46) -> FALSE | AF34: 49 | AG34: FALSE | AH34: =IF(AG34,#REF!) -> FALSE | AN34: 31 | AO34: FALSE | AP34: =IF(AO34,'Commodity Prices'!C46) -> FALSE | AR34: =IF(AO34,'Commodity Prices'!D46) -> FALSE | AV34: 49 | AW34: FALSE | AX34: =IF(AW34,'Yahoo Stocks'!D40) -> FALSE | AY34: 5347.KL | AZ34: =IF(AW34,'Yahoo Stocks'!E40) -> FALSE | BA34: Tenaga Malaysia | BB34: B | BC34: Yahoo | BD34: 30 | BE34: FALSE | BF34: =IF(BE34,#REF!) -> FALSE | BH34: =IF(BE34,#REF!) -> FALSE | BL34: 77 | BM34: 77 | BN34: ='FRED Series'!D46 -> Corporate profits BT | BP34: =IF(BM34,'FRED Series'!E46) -> Corporate profits before tax without IVA and CCAdj (A053RC1Q027SBEA)
L35: 32 | M35: CYZB.F | N35: China Yangtze Power Co | O35: B | P35: Yahoo | Q35: 32 | R35: FALSE | S35: =IF(R35,'Yahoo Index'!E41,"") ->  | T35: =IF(R35,'Yahoo Index'!E41,"") ->  | X35: 50 | Y35: FALSE | Z35: =IF($F$69,'FRED Indicies'!E47) -> FALSE | AB35: =IF($F$69,'FRED Indicies'!D47) -> FALSE | AF35: 50 | AG35: FALSE | AH35: =IF(AG35,#REF!) -> FALSE | AN35: 32 | AO35: FALSE | AP35: =IF(AO35,'Commodity Prices'!C47) -> FALSE | AR35: =IF(AO35,'Commodity Prices'!D47) -> FALSE | AV35: 50 | AW35: FALSE | AX35: =IF(AW35,'Yahoo Stocks'!D41) -> FALSE | AY35: CYZB.F | AZ35: =IF(AW35,'Yahoo Stocks'!E41) -> FALSE | BA35: China Yangtze Power Co | BB35: B | BC35: Yahoo | BD35: 31 | BE35: FALSE | BF35: =IF(BE35,#REF!) -> FALSE | BH35: =IF(BE35,#REF!) -> FALSE | BL35: 78 | BM35: 78 | BN35: ='FRED Series'!D47 -> Gross national inc | BP35: =IF(BM35,'FRED Series'!E47) -> Gross national income (A023RC1Q027SBEA)
C36: data workbook | D36: C:\Stocks\Stock_Output.xlsx | L36: 33 | M36: 015760.KS | N36: =T36&AC36&AK36&AS36&BA36&BI36&BQ36 -> Korea Electric Power | O36: =U36&AD36&AL36&AT36&BB36&BJ36&BR36 -> B | P36: =V36&AE36&AM36&AU36&BC36&BK36&BS36 -> Yahoo | Q36: 33 | R36: FALSE | S36: =IF(R36,'Yahoo Index'!E42,"") ->  | T36: =IF(R36,'Yahoo Index'!E42,"") ->  | U36: =IF(R36,$I$4,"") ->  | V36: =IF(R36,$J$4,"") ->  | X36: 51 | Y36: =IF(AND($F$69,X36<=$H$69),X36) -> FALSE | Z36: =IF($F$69,'FRED Indicies'!E48) -> FALSE | AA36: =IFERROR(INDEX(Z:Z,MATCH(L36,Y:Y,0)),"") ->  | AB36: =IF($F$69,'FRED Indicies'!D48) -> FALSE | AC36: =IFERROR(INDEX(AB:AB,MATCH(L36,Y:Y,0)),"") ->  | AD36: =IF(AA36<>"",$I$69,"") ->  | AE36: =IF(AA36<>"",$J$69,"") ->  | AF36: 51 | AG36: =IF(AND($F$72,AF36<=$H$72),AF36) -> FALSE | AH36: =IF(AG36,#REF!) -> FALSE | AI36: =IFERROR(INDEX(AH:AH,MATCH(Q36,AG:AG,0)),"") ->  | AK36: =IFERROR(INDEX(AJ:AJ,MATCH(Q36,AG:AG,0)),"") ->  | AL36: =IF(AI36<>"",$I$69,"") ->  | AM36: =IF(AK36<>"",$J$69,"") ->  | AN36: 33 | AO36: =IF(AND($F$63,AN36<=$H$63),AN36) -> FALSE | AP36: =IF(AO36,'Commodity Prices'!C48) -> FALSE | AQ36: =IFERROR(INDEX(AP:AP,MATCH(L36,AO:AO,0)),"") ->  | AR36: =IF(AO36,'Commodity Prices'!D48) -> FALSE | AS36: =IFERROR(INDEX(AR:AR,MATCH(L36,AO:AO,0)),"") ->  | AT36: =IF(AQ36<>"",$I$63,"") ->  | AU36: =IF(AS36<>"",$J$63,"") ->  | AV36: 51 | AW36: =IF(AND($F$6,AV36<=$H$6),AV36) -> FALSE | AX36: =IF(AW36,'Yahoo Stocks'!D42) -> FALSE | AY36: =IFERROR(INDEX(AX:AX,MATCH(L36,AW:AW,0)),"") -> 015760.KS | AZ36: =IF(AW36,'Yahoo Stocks'!E42) -> FALSE | BA36: =IFERROR(INDEX(AZ:AZ,MATCH(L36,AW:AW,0)),"") -> Korea Electric Power | BB36: =IF(AY36<>"",$I$6,"") -> B | BC36: =IF(BA36<>"",$J$6,"") -> Yahoo | BD36: 32 | BE36: FALSE | BF36: =IF(BE36,#REF!) -> FALSE | BH36: =IF(BE36,#REF!) -> FALSE | BL36: 79 | BM36: =IF(AND($F$9,BL36<=$H$9),BL36) -> 79 | BN36: ='FRED Series'!D48 -> Net Interest and Mis | BP36: =IF(BM36,'FRED Series'!E48) -> Net Interest and Miscellaneous Payments, Transactions (BOGZ1FA086130003Q) | BR36: =IF(BQ36<>"",$I$9,"") ->  | BS36: =IF(BQ36<>"",$J$9,"") -> 
C37: data workbook name | D37: Stock_Output.xlsx | L37: 34 | M37: NG.L | N37: National Grid plc | O37: B | P37: Yahoo | Q37: =Q36+1 -> 34 | R37: =IF(AND($F$4,Q37<=$H$4),Q37) -> FALSE | S37: =IF(R37,'Yahoo Index'!E43,"") ->  | T37: =IF(R37,'Yahoo Index'!E43,"") ->  | X37: =X36+1 -> 52 | Y37: FALSE | Z37: =IF($F$69,'FRED Indicies'!E49) -> FALSE | AB37: =IF($F$69,'FRED Indicies'!D49) -> FALSE | AF37: =AF36+1 -> 52 | AG37: FALSE | AH37: =IF(AG37,#REF!) -> FALSE | AN37: =AN36+1 -> 34 | AO37: FALSE | AP37: =IF(AO37,'Commodity Prices'!C49) -> FALSE | AR37: =IF(AO37,'Commodity Prices'!D49) -> FALSE | AV37: =AV36+1 -> 52 | AW37: FALSE | AX37: =IF(AW37,'Yahoo Stocks'!D43) -> FALSE | AY37: NG.L | AZ37: =IF(AW37,'Yahoo Stocks'!E43) -> FALSE | BA37: National Grid plc | BB37: B | BC37: Yahoo | BD37: =BD36+1 -> 33 | BE37: FALSE | BF37: =IF(BE37,#REF!) -> FALSE | BH37: =IF(BE37,#REF!) -> FALSE | BL37: =BL36+1 -> 80 | BM37: 80 | BN37: ='FRED Series'!D49 -> Corp Profit | BP37: =IF(BM37,'FRED Series'!E49) -> Corporate Profits
L38: 35 | M38: ED | N38: Consolidated Edison | O38: B | P38: Yahoo | Q38: 35 | R38: FALSE | S38: =IF(R38,'Yahoo Index'!E44,"") ->  | T38: =IF(R38,'Yahoo Index'!E44,"") ->  | X38: 53 | Y38: FALSE | Z38: =IF($F$69,'FRED Indicies'!E50) -> FALSE | AB38: =IF($F$69,'FRED Indicies'!D50) -> FALSE | AF38: 53 | AG38: FALSE | AH38: =IF(AG38,#REF!) -> FALSE | AN38: 35 | AO38: FALSE | AP38: =IF(AO38,'Commodity Prices'!C50) -> FALSE | AR38: =IF(AO38,'Commodity Prices'!D50) -> FALSE | AV38: 53 | AW38: FALSE | AX38: =IF(AW38,'Yahoo Stocks'!D44) -> FALSE | AY38: ED | AZ38: =IF(AW38,'Yahoo Stocks'!E44) -> FALSE | BA38: Consolidated Edison | BB38: B | BC38: Yahoo | BD38: 34 | BE38: FALSE | BF38: =IF(BE38,#REF!) -> FALSE | BH38: =IF(BE38,#REF!) -> FALSE | BL38: 81 | BM38: 81 | BN38: ='FRED Series'!D50 -> Corp Profits AT no Inv | BP38: =IF(BM38,'FRED Series'!E50) -> Corporate Profits After Tax with Inventory Valuation Adjustment (IVA) and Capital Consumption Adjustment (CCAdj) (CPATAX)
L39: 36 | M39: WEC | N39: Wisconsin Energy Group | O39: B | P39: Yahoo | Q39: 36 | R39: FALSE | S39: =IF(R39,'Yahoo Index'!E45,"") ->  | T39: =IF(R39,'Yahoo Index'!E45,"") ->  | X39: 54 | Y39: FALSE | Z39: =IF($F$69,'FRED Indicies'!E51) -> FALSE | AB39: =IF($F$69,'FRED Indicies'!D51) -> FALSE | AF39: 54 | AG39: FALSE | AH39: =IF(AG39,#REF!) -> FALSE | AN39: 36 | AO39: FALSE | AP39: =IF(AO39,'Commodity Prices'!C51) -> FALSE | AR39: =IF(AO39,'Commodity Prices'!D51) -> FALSE | AV39: 54 | AW39: FALSE | AX39: =IF(AW39,'Yahoo Stocks'!D45) -> FALSE | AY39: WEC | AZ39: =IF(AW39,'Yahoo Stocks'!E45) -> FALSE | BA39: Wisconsin Energy Group | BB39: B | BC39: Yahoo | BD39: 35 | BE39: FALSE | BF39: =IF(BE39,#REF!) -> FALSE | BH39: =IF(BE39,#REF!) -> FALSE | BL39: 82 | BM39: 82 | BN39: ='FRED Series'!D51 -> Corp Nonfin | BP39: =IF(BM39,'FRED Series'!E51) -> Non Financial Corporate Profits
L40: 37 | M40: =S40&AA40&AI40&AQ40&AY40&BG40&BO40 -> EDPR.LS | N40: EDP Renovaveis S/A | O40: B | P40: Yahoo | Q40: 37 | R40: FALSE | S40: =IF(R40,'Yahoo Index'!#REF!,"") ->  | T40: =IF(R40,'Yahoo Index'!E46,"") ->  | X40: 55 | Y40: FALSE | Z40: =IF($F$69,'FRED Indicies'!E52) -> FALSE | AB40: =IF($F$69,'FRED Indicies'!D52) -> FALSE | AF40: 55 | AG40: FALSE | AH40: =IF(AG40,#REF!) -> FALSE | AN40: 37 | AO40: FALSE | AP40: =IF(AO40,'Commodity Prices'!C52) -> FALSE | AR40: =IF(AO40,'Commodity Prices'!D52) -> FALSE | AV40: 55 | AW40: FALSE | AX40: =IF(AW40,'Yahoo Stocks'!D46) -> FALSE | AY40: EDPR.LS | AZ40: =IF(AW40,'Yahoo Stocks'!E46) -> FALSE | BA40: EDP Renovaveis S/A | BB40: B | BC40: Yahoo | BD40: 36 | BE40: FALSE | BF40: =IF(BE40,#REF!) -> FALSE | BH40: =IF(BE40,#REF!) -> FALSE | BL40: 83 | BM40: 83 | BN40: ='FRED Series'!D52 -> Corp Aft Tax | BP40: =IF(BM40,'FRED Series'!E52) -> Corporate Profits After Tax
L41: 38 | M41: =S41&AA41&AI41&AQ41&AY41&BG41&BO41 -> 1038.HK | N41: CK Infrastructure | O41: B | P41: Yahoo | Q41: 38 | R41: FALSE | S41: =IF(R41,'Yahoo Index'!#REF!,"") ->  | T41: =IF(R41,'Yahoo Index'!E47,"") ->  | X41: 56 | Y41: FALSE | Z41: =IF($F$69,'FRED Indicies'!E53) -> FALSE | AB41: =IF($F$69,'FRED Indicies'!D53) -> FALSE | AF41: 56 | AG41: FALSE | AH41: =IF(AG41,#REF!) -> FALSE | AN41: 38 | AO41: FALSE | AP41: =IF(AO41,'Commodity Prices'!C53) -> FALSE | AR41: =IF(AO41,'Commodity Prices'!D53) -> FALSE | AV41: 56 | AW41: FALSE | AX41: =IF(AW41,'Yahoo Stocks'!D47) -> FALSE | AY41: 1038.HK | AZ41: =IF(AW41,'Yahoo Stocks'!E47) -> FALSE | BA41: CK Infrastructure | BB41: B | BC41: =IF(BA41<>"",$J$6,"") -> Yahoo | BD41: 37 | BE41: FALSE | BF41: =IF(BE41,#REF!) -> FALSE | BH41: =IF(BE41,#REF!) -> FALSE | BL41: 84 | BM41: 84 | BN41: ='FRED Series'!D53 -> Corp Inf Adjusted | BP41: =IF(BM41,'FRED Series'!E53) -> Corporate Profits with Inflation Adj
L42: 39 | M42: ETR | N42: Entergy Corporation | O42: B | P42: Yahoo | Q42: 39 | R42: FALSE | S42: =IF(R42,'Yahoo Index'!#REF!,"") ->  | T42: =IF(R42,'Yahoo Index'!E48,"") ->  | X42: 57 | Y42: FALSE | Z42: =IF($F$69,'FRED Indicies'!E54) -> FALSE | AB42: =IF($F$69,'FRED Indicies'!D54) -> FALSE | AF42: 57 | AG42: FALSE | AH42: =IF(AG42,#REF!) -> FALSE | AN42: 39 | AO42: FALSE | AP42: =IF(AO42,'Commodity Prices'!C54) -> FALSE | AR42: =IF(AO42,'Commodity Prices'!D54) -> FALSE | AV42: 57 | AW42: FALSE | AX42: =IF(AW42,'Yahoo Stocks'!D48) -> FALSE | AY42: ETR | AZ42: =IF(AW42,'Yahoo Stocks'!E48) -> FALSE | BA42: Entergy Corporation | BB42: B | BC42: Yahoo | BD42: 38 | BE42: FALSE | BF42: =IF(BE42,#REF!) -> FALSE | BH42: =IF(BE42,#REF!) -> FALSE | BL42: 85 | BM42: 85 | BN42: ='FRED Series'!D54 -> Rest of the World | BP42: =IF(BM42,'FRED Series'!E54) -> Rest of the World; Foreign Direct Investment in U.S.: Equity; Asset Market Value, Level (BOGZ1FL263092141Q)
L43: 40 | M43: ENEL.MI | N43: ENEL | O43: B | P43: Yahoo | Q43: 40 | R43: FALSE | S43: =IF(R43,'Yahoo Index'!#REF!,"") ->  | T43: =IF(R43,'Yahoo Index'!E49,"") ->  | X43: 58 | Y43: FALSE | Z43: =IF($F$69,'FRED Indicies'!E55) -> FALSE | AB43: =IF($F$69,'FRED Indicies'!D55) -> FALSE | AF43: 58 | AG43: FALSE | AH43: =IF(AG43,#REF!) -> FALSE | AN43: 40 | AO43: FALSE | AP43: =IF(AO43,'Commodity Prices'!C55) -> FALSE | AR43: =IF(AO43,'Commodity Prices'!D55) -> FALSE | AV43: 58 | AW43: FALSE | AX43: =IF(AW43,'Yahoo Stocks'!D49) -> FALSE | AY43: ENEL.MI | AZ43: =IF(AW43,'Yahoo Stocks'!E49) -> FALSE | BA43: ENEL | BB43: B | BC43: Yahoo | BD43: 39 | BE43: FALSE | BF43: =IF(BE43,#REF!) -> FALSE | BH43: =IF(BE43,#REF!) -> FALSE | BL43: 86 | BM43: 86 | BN43: ='FRED Series'!D55 -> Population UK | BP43: =IF(BM43,'FRED Series'!E55) -> Population in the United Kingdom (POPUKA)
L44: 41 | M44: DUK | N44: DUKE ENERGY CORPORATION | O44: B | P44: Yahoo | Q44: 41 | R44: FALSE | S44: =IF(R44,'Yahoo Index'!#REF!,"") ->  | T44: =IF(R44,'Yahoo Index'!E50,"") ->  | X44: 59 | Y44: FALSE | Z44: =IF($F$69,'FRED Indicies'!E56) -> FALSE | AB44: =IF($F$69,'FRED Indicies'!D56) -> FALSE | AF44: 59 | AG44: FALSE | AH44: =IF(AG44,#REF!) -> FALSE | AN44: 41 | AO44: FALSE | AP44: =IF(AO44,'Commodity Prices'!C56) -> FALSE | AR44: =IF(AO44,'Commodity Prices'!D56) -> FALSE | AV44: 59 | AW44: FALSE | AX44: =IF(AW44,'Yahoo Stocks'!D50) -> FALSE | AY44: DUK | AZ44: =IF(AW44,'Yahoo Stocks'!E50) -> FALSE | BA44: DUKE ENERGY CORPORATION | BB44: B | BC44: Yahoo | BD44: 40 | BE44: FALSE | BF44: =IF(BE44,#REF!) -> FALSE | BH44: =IF(BE44,#REF!) -> FALSE | BL44: 87 | BM44: 87 | BN44: ='FRED Series'!D56 -> Population DE | BP44: =IF(BM44,'FRED Series'!E56) -> Population, Total for Germany (POPTOTDEA647NWDB)
L45: 42 | M45: AEP | N45: AMERICAN ELECTRIC POWER COMPANY INC | O45: B | P45: Yahoo | Q45: 42 | R45: FALSE | S45: =IF(R45,'Yahoo Index'!#REF!,"") ->  | T45: =IF(R45,'Yahoo Index'!E51,"") ->  | X45: 60 | Y45: FALSE | Z45: =IF($F$69,'FRED Indicies'!E57) -> FALSE | AB45: =IF($F$69,'FRED Indicies'!D57) -> FALSE | AF45: 60 | AG45: FALSE | AH45: =IF(AG45,#REF!) -> FALSE | AN45: 42 | AO45: FALSE | AP45: =IF(AO45,'Commodity Prices'!C57) -> FALSE | AR45: =IF(AO45,'Commodity Prices'!D57) -> FALSE | AV45: 60 | AW45: FALSE | AX45: =IF(AW45,'Yahoo Stocks'!D51) -> FALSE | AY45: AEP | AZ45: =IF(AW45,'Yahoo Stocks'!E51) -> FALSE | BA45: AMERICAN ELECTRIC POWER COMPANY INC | BB45: B | BC45: Yahoo | BD45: 41 | BE45: FALSE | BF45: =IF(BE45,#REF!) -> FALSE | BH45: =IF(BE45,#REF!) -> FALSE | BL45: 88 | BM45: 88 | BN45: ='FRED Series'!D57 -> Median Family Income LT | BP45: =IF(BM45,'FRED Series'!E57) -> Median Family Income in the United States (MEFAINUSA646N)
L46: 43 | M46: EXC | N46: EXELON CORPORATION | O46: B | P46: Yahoo | Q46: 43 | R46: FALSE | S46: =IF(R46,'Yahoo Index'!#REF!,"") ->  | T46: =IF(R46,'Yahoo Index'!E52,"") ->  | X46: 61 | Y46: FALSE | Z46: =IF($F$69,'FRED Indicies'!E58) -> FALSE | AB46: =IF($F$69,'FRED Indicies'!D58) -> FALSE | AF46: 61 | AG46: FALSE | AH46: =IF(AG46,#REF!) -> FALSE | AN46: 43 | AO46: FALSE | AP46: =IF(AO46,'Commodity Prices'!C58) -> FALSE | AR46: =IF(AO46,'Commodity Prices'!D58) -> FALSE | AV46: 61 | AW46: FALSE | AX46: =IF(AW46,'Yahoo Stocks'!D52) -> FALSE | AY46: EXC | AZ46: =IF(AW46,'Yahoo Stocks'!E52) -> FALSE | BA46: EXELON CORPORATION | BB46: B | BC46: Yahoo | BD46: 42 | BE46: FALSE | BF46: =IF(BE46,#REF!) -> FALSE | BH46: =IF(BE46,#REF!) -> FALSE | BL46: 89 | BM46: FALSE | BN46: ='FRED Series'!D58 -> 0 | BP46: =IF(BM46,'FRED Series'!E58) -> FALSE
L47: 44 | M47: MAEOY | N47: MERALCO | O47: B | P47: Yahoo | Q47: 44 | R47: FALSE | S47: =IF(R47,'Yahoo Index'!#REF!,"") ->  | T47: =IF(R47,'Yahoo Index'!E53,"") ->  | X47: 62 | Y47: FALSE | Z47: =IF($F$69,'FRED Indicies'!E59) -> FALSE | AB47: =IF($F$69,'FRED Indicies'!D59) -> FALSE | AF47: 62 | AG47: FALSE | AH47: =IF(AG47,#REF!) -> FALSE | AN47: 44 | AO47: FALSE | AP47: =IF(AO47,'Commodity Prices'!C59) -> FALSE | AR47: =IF(AO47,'Commodity Prices'!D59) -> FALSE | AV47: 62 | AW47: FALSE | AX47: =IF(AW47,'Yahoo Stocks'!D53) -> FALSE | AY47: MAEOY | AZ47: =IF(AW47,'Yahoo Stocks'!E53) -> FALSE | BA47: MERALCO | BB47: B | BC47: Yahoo | BD47: 43 | BE47: FALSE | BF47: =IF(BE47,#REF!) -> FALSE | BH47: =IF(BE47,#REF!) -> FALSE | BL47: 90 | BM47: FALSE | BN47: ='FRED Series'!D59 -> 0 | BP47: =IF(BM47,'FRED Series'!E59) -> FALSE
L48: 45 | M48: NTPC.NS | N48: NTPC | O48: B | P48: Yahoo | Q48: 45 | R48: FALSE | S48: =IF(R48,'Yahoo Index'!#REF!,"") ->  | T48: =IF(R48,'Yahoo Index'!E54,"") ->  | X48: 63 | Y48: FALSE | Z48: =IF($F$69,'FRED Indicies'!E60) -> FALSE | AB48: =IF($F$69,'FRED Indicies'!D60) -> FALSE | AF48: 63 | AG48: FALSE | AH48: =IF(AG48,#REF!) -> FALSE | AN48: 45 | AO48: FALSE | AP48: =IF(AO48,'Commodity Prices'!C60) -> FALSE | AR48: =IF(AO48,'Commodity Prices'!D60) -> FALSE | AV48: 63 | AW48: FALSE | AX48: =IF(AW48,'Yahoo Stocks'!D54) -> FALSE | AY48: NTPC.NS | AZ48: =IF(AW48,'Yahoo Stocks'!E54) -> FALSE | BA48: NTPC | BB48: B | BC48: Yahoo | BD48: 44 | BE48: FALSE | BF48: =IF(BE48,#REF!) -> FALSE | BH48: =IF(BE48,#REF!) -> FALSE | BL48: 91 | BM48: FALSE | BN48: ='FRED Series'!D60 -> 0 | BP48: =IF(BM48,'FRED Series'!E60) -> FALSE
L49: 46 | M49: ENA.MU | N49: ENDESA SA | O49: B | P49: Yahoo | Q49: 46 | R49: FALSE | S49: =IF(R49,'Yahoo Index'!#REF!,"") ->  | T49: =IF(R49,'Yahoo Index'!E55,"") ->  | X49: 64 | Y49: FALSE | Z49: =IF($F$69,'FRED Indicies'!E61) -> FALSE | AB49: =IF($F$69,'FRED Indicies'!D61) -> FALSE | AF49: 64 | AG49: FALSE | AH49: =IF(AG49,#REF!) -> FALSE | AN49: 46 | AO49: FALSE | AP49: =IF(AO49,'Commodity Prices'!C61) -> FALSE | AR49: =IF(AO49,'Commodity Prices'!D61) -> FALSE | AV49: 64 | AW49: FALSE | AX49: =IF(AW49,'Yahoo Stocks'!D55) -> FALSE | AY49: ENA.MU | AZ49: =IF(AW49,'Yahoo Stocks'!E55) -> FALSE | BA49: ENDESA SA | BB49: B | BC49: Yahoo | BD49: 45 | BE49: FALSE | BF49: =IF(BE49,#REF!) -> FALSE | BH49: =IF(BE49,#REF!) -> FALSE | BL49: 92 | BM49: FALSE | BN49: ='FRED Series'!D61 -> 0 | BP49: =IF(BM49,'FRED Series'!E61) -> FALSE
L50: 47 | M50: GDP Deflator | N50: GDP Deflator | O50: B | P50: FRED | Q50: 47 | R50: FALSE | S50: =IF(R50,'Yahoo Index'!#REF!,"") ->  | T50: =IF(R50,'Yahoo Index'!E56,"") ->  | X50: 65 | Y50: FALSE | Z50: =IF($F$69,'FRED Indicies'!E62) -> FALSE | AB50: =IF($F$69,'FRED Indicies'!D62) -> FALSE | AF50: 65 | AG50: FALSE | AH50: =IF(AG50,#REF!) -> FALSE | AN50: 47 | AO50: FALSE | AP50: =IF(AO50,'Commodity Prices'!C62) -> FALSE | AR50: =IF(AO50,'Commodity Prices'!D62) -> FALSE | AV50: 65 | AW50: FALSE | AX50: =IF(AW50,'Yahoo Stocks'!D56) -> FALSE | AZ50: =IF(AW50,'Yahoo Stocks'!E56) -> FALSE | BD50: 46 | BE50: FALSE | BF50: =IF(BE50,#REF!) -> FALSE | BH50: =IF(BE50,#REF!) -> FALSE | BL50: 93 | BM50: FALSE | BN50: ='FRED Series'!D62 -> 0 | BO50: GDP Deflator | BP50: =IF(BM50,'FRED Series'!E62) -> FALSE | BQ50: GDP Deflator | BR50: B | BS50: FRED
L51: 48 | M51: CPI US | N51: CPI US | O51: B | P51: FRED | Q51: 48 | R51: FALSE | S51: =IF(R51,'Yahoo Index'!#REF!,"") ->  | T51: =IF(R51,'Yahoo Index'!E57,"") ->  | X51: 66 | Y51: FALSE | Z51: =IF($F$69,'FRED Indicies'!E63) -> FALSE | AB51: =IF($F$69,'FRED Indicies'!D63) -> FALSE | AF51: 66 | AG51: FALSE | AH51: =IF(AG51,#REF!) -> FALSE | AN51: 48 | AO51: FALSE | AP51: =IF(AO51,'Commodity Prices'!C63) -> FALSE | AR51: =IF(AO51,'Commodity Prices'!D63) -> FALSE | AV51: 66 | AW51: FALSE | AX51: =IF(AW51,'Yahoo Stocks'!D57) -> FALSE | AZ51: =IF(AW51,'Yahoo Stocks'!E57) -> FALSE | BD51: 47 | BE51: FALSE | BF51: =IF(BE51,#REF!) -> FALSE | BH51: =IF(BE51,#REF!) -> FALSE | BL51: 94 | BM51: FALSE | BN51: ='FRED Series'!D63 -> 0 | BO51: CPI US | BP51: =IF(BM51,'FRED Series'!E63) -> FALSE | BQ51: CPI US | BR51: B | BS51: FRED
L52: 49 | M52: USD_EUR | N52: USD_EUR | O52: B | P52: FRED | Q52: 49 | R52: FALSE | S52: =IF(R52,'Yahoo Index'!#REF!,"") ->  | T52: =IF(R52,'Yahoo Index'!E58,"") ->  | X52: 67 | Y52: FALSE | Z52: =IF($F$69,'FRED Indicies'!E64) -> FALSE | AB52: =IF($F$69,'FRED Indicies'!D64) -> FALSE | AF52: 67 | AG52: FALSE | AH52: =IF(AG52,#REF!) -> FALSE | AN52: 49 | AO52: FALSE | AP52: =IF(AO52,'Commodity Prices'!C64) -> FALSE | AR52: =IF(AO52,'Commodity Prices'!D64) -> FALSE | AV52: 67 | AW52: FALSE | AX52: =IF(AW52,'Yahoo Stocks'!D58) -> FALSE | AZ52: =IF(AW52,'Yahoo Stocks'!E58) -> FALSE | BD52: 48 | BE52: FALSE | BF52: =IF(BE52,#REF!) -> FALSE | BH52: =IF(BE52,#REF!) -> FALSE | BL52: 95 | BM52: FALSE | BN52: ='FRED Series'!D64 -> 0 | BO52: USD_EUR | BP52: =IF(BM52,'FRED Series'!E64) -> FALSE | BQ52: USD_EUR | BR52: B | BS52: FRED
L53: 50 | M53: INR | N53: INR | O53: B | P53: FRED | Q53: 50 | R53: FALSE | S53: =IF(R53,'Yahoo Index'!#REF!,"") ->  | T53: =IF(R53,'Yahoo Index'!E59,"") ->  | X53: 68 | Y53: FALSE | Z53: =IF($F$69,'FRED Indicies'!E65) -> FALSE | AB53: =IF($F$69,'FRED Indicies'!D65) -> FALSE | AF53: 68 | AG53: FALSE | AH53: =IF(AG53,#REF!) -> FALSE | AN53: 50 | AO53: FALSE | AP53: =IF(AO53,'Commodity Prices'!C65) -> FALSE | AR53: =IF(AO53,'Commodity Prices'!D65) -> FALSE | AV53: 68 | AW53: FALSE | AX53: =IF(AW53,'Yahoo Stocks'!D59) -> FALSE | AZ53: =IF(AW53,'Yahoo Stocks'!E59) -> FALSE | BD53: 49 | BE53: FALSE | BF53: =IF(BE53,#REF!) -> FALSE | BH53: =IF(BE53,#REF!) -> FALSE | BL53: 96 | BM53: FALSE | BN53: ='FRED Series'!D65 -> 0 | BO53: INR | BP53: =IF(BM53,'FRED Series'!E65) -> FALSE | BQ53: INR | BR53: B | BS53: FRED
L54: 51 | M54: USD_GBP | N54: USD_GBP | O54: B | P54: FRED | Q54: 51 | R54: FALSE | S54: =IF(R54,'Yahoo Index'!#REF!,"") ->  | T54: =IF(R54,'Yahoo Index'!E60,"") ->  | X54: 69 | Y54: FALSE | Z54: =IF($F$69,'FRED Indicies'!E66) -> FALSE | AB54: =IF($F$69,'FRED Indicies'!D66) -> FALSE | AF54: 69 | AG54: FALSE | AH54: =IF(AG54,#REF!) -> FALSE | AN54: 51 | AO54: FALSE | AP54: =IF(AO54,'Commodity Prices'!C66) -> FALSE | AR54: =IF(AO54,'Commodity Prices'!D66) -> FALSE | AV54: 69 | AW54: FALSE | AX54: =IF(AW54,'Yahoo Stocks'!D60) -> FALSE | AZ54: =IF(AW54,'Yahoo Stocks'!E60) -> FALSE | BD54: 50 | BE54: FALSE | BF54: =IF(BE54,#REF!) -> FALSE | BH54: =IF(BE54,#REF!) -> FALSE | BL54: 97 | BM54: FALSE | BN54: ='FRED Series'!D66 -> 0 | BO54: USD_GBP | BP54: =IF(BM54,'FRED Series'!E66) -> FALSE | BQ54: USD_GBP | BR54: B | BS54: FRED
L55: 52 | M55: US Population | N55: US Population | O55: B | P55: FRED | Q55: 52 | R55: FALSE | S55: =IF(R55,'Yahoo Index'!#REF!,"") ->  | T55: =IF(R55,'Yahoo Index'!E61,"") ->  | X55: 70 | Y55: FALSE | Z55: =IF($F$69,'FRED Indicies'!E67) -> FALSE | AB55: =IF($F$69,'FRED Indicies'!D67) -> FALSE | AF55: 70 | AG55: FALSE | AH55: =IF(AG55,#REF!) -> FALSE | AN55: 52 | AO55: FALSE | AP55: =IF(AO55,'Commodity Prices'!C67) -> FALSE | AR55: =IF(AO55,'Commodity Prices'!D67) -> FALSE | AV55: 70 | AW55: FALSE | AX55: =IF(AW55,'Yahoo Stocks'!D61) -> FALSE | AZ55: =IF(AW55,'Yahoo Stocks'!E61) -> FALSE | BD55: 51 | BE55: FALSE | BF55: =IF(BE55,#REF!) -> FALSE | BH55: =IF(BE55,#REF!) -> FALSE | BL55: 98 | BM55: FALSE | BN55: ='FRED Series'!D67 -> 0 | BO55: US Population | BP55: =IF(BM55,'FRED Series'!E67) -> FALSE | BQ55: US Population | BR55: B | BS55: FRED
L56: 53 | M56: US NOM GNP | N56: US NOM GNP | O56: B | P56: FRED | Q56: 53 | R56: FALSE | S56: =IF(R56,'Yahoo Index'!#REF!,"") ->  | T56: =IF(R56,'Yahoo Index'!E62,"") ->  | X56: 71 | Y56: FALSE | Z56: =IF($F$69,'FRED Indicies'!E68) -> FALSE | AB56: =IF($F$69,'FRED Indicies'!D68) -> FALSE | AF56: 71 | AG56: FALSE | AH56: =IF(AG56,#REF!) -> FALSE | AN56: 53 | AO56: FALSE | AP56: =IF(AO56,'Commodity Prices'!C68) -> FALSE | AR56: =IF(AO56,'Commodity Prices'!D68) -> FALSE | AV56: 71 | AW56: FALSE | AX56: =IF(AW56,'Yahoo Stocks'!D62) -> FALSE | AZ56: =IF(AW56,'Yahoo Stocks'!E62) -> FALSE | BD56: 52 | BE56: FALSE | BF56: =IF(BE56,#REF!) -> FALSE | BH56: =IF(BE56,#REF!) -> FALSE | BL56: 99 | BM56: FALSE | BN56: ='FRED Series'!D68 -> 0 | BO56: US NOM GNP | BP56: =IF(BM56,'FRED Series'!E68) -> FALSE | BQ56: US NOM GNP | BR56: B | BS56: FRED
L57: 54 | M57: 5 yr treasury | N57: 5 yr treasury | O57: B | P57: FRED | Q57: 54 | R57: FALSE | S57: =IF(R57,'Yahoo Index'!#REF!,"") ->  | T57: =IF(R57,'Yahoo Index'!E63,"") ->  | X57: 72 | Y57: FALSE | Z57: =IF($F$69,'FRED Indicies'!E69) -> FALSE | AB57: =IF($F$69,'FRED Indicies'!D69) -> FALSE | AF57: 72 | AG57: FALSE | AH57: =IF(AG57,#REF!) -> FALSE | AN57: 54 | AO57: FALSE | AP57: =IF(AO57,'Commodity Prices'!C69) -> FALSE | AR57: =IF(AO57,'Commodity Prices'!D69) -> FALSE | AV57: 72 | AW57: FALSE | AX57: =IF(AW57,'Yahoo Stocks'!D63) -> FALSE | AZ57: =IF(AW57,'Yahoo Stocks'!E63) -> FALSE | BD57: 53 | BE57: FALSE | BF57: =IF(BE57,#REF!) -> FALSE | BH57: =IF(BE57,#REF!) -> FALSE | BL57: 100 | BM57: FALSE | BN57: ='FRED Series'!D69 -> 0 | BO57: 5 yr treasury | BP57: =IF(BM57,'FRED Series'!E69) -> FALSE | BQ57: 5 yr treasury | BR57: B | BS57: FRED
L58: 55 | M58: 10 year treasury | N58: 10 year treasury | O58: B | P58: FRED | Q58: 55 | R58: FALSE | S58: =IF(R58,'Yahoo Index'!#REF!,"") ->  | T58: =IF(R58,'Yahoo Index'!E64,"") ->  | X58: 73 | Y58: FALSE | Z58: =IF($F$69,'FRED Indicies'!E70) -> FALSE | AB58: =IF($F$69,'FRED Indicies'!D70) -> FALSE | AF58: 73 | AG58: FALSE | AH58: =IF(AG58,#REF!) -> FALSE | AN58: 55 | AO58: FALSE | AP58: =IF(AO58,'Commodity Prices'!C70) -> FALSE | AR58: =IF(AO58,'Commodity Prices'!D70) -> FALSE | AV58: 73 | AW58: FALSE | AX58: =IF(AW58,'Yahoo Stocks'!D64) -> FALSE | AZ58: =IF(AW58,'Yahoo Stocks'!E64) -> FALSE | BD58: 54 | BE58: FALSE | BF58: =IF(BE58,#REF!) -> FALSE | BH58: =IF(BE58,#REF!) -> FALSE | BL58: 101 | BM58: FALSE | BN58: ='FRED Series'!D70 -> 0 | BO58: 10 year treasury | BP58: =IF(BM58,'FRED Series'!E70) -> FALSE | BQ58: 10 year treasury | BR58: B | BS58: FRED
L59: 56 | M59: 6 Month Treasury Bil | N59: 6 Month Treasury Bil | O59: B | P59: FRED | Q59: 56 | R59: FALSE | S59: =IF(R59,'Yahoo Index'!#REF!,"") ->  | T59: =IF(R59,'Yahoo Index'!E65,"") ->  | X59: 74 | Y59: FALSE | Z59: =IF($F$69,'FRED Indicies'!E71) -> FALSE | AB59: =IF($F$69,'FRED Indicies'!D71) -> FALSE | AF59: 74 | AG59: FALSE | AH59: =IF(AG59,#REF!) -> FALSE | AN59: 56 | AO59: FALSE | AP59: =IF(AO59,'Commodity Prices'!C71) -> FALSE | AR59: =IF(AO59,'Commodity Prices'!D71) -> FALSE | AV59: 74 | AW59: FALSE | AX59: =IF(AW59,'Yahoo Stocks'!D65) -> FALSE | AZ59: =IF(AW59,'Yahoo Stocks'!E65) -> FALSE | BD59: 55 | BE59: FALSE | BF59: =IF(BE59,#REF!) -> FALSE | BH59: =IF(BE59,#REF!) -> FALSE | BL59: 102 | BM59: FALSE | BN59: ='FRED Series'!D71 -> 0 | BO59: 6 Month Treasury Bil | BP59: =IF(BM59,'FRED Series'!E71) -> FALSE | BQ59: 6 Month Treasury Bil | BR59: B | BS59: FRED
L60: 57 | M60: 3-Month Treasury Bil | N60: 3-Month Treasury Bil | O60: B | P60: FRED | Q60: 57 | R60: FALSE | S60: =IF(R60,'Yahoo Index'!#REF!,"") ->  | T60: =IF(R60,'Yahoo Index'!E66,"") ->  | X60: 75 | Y60: FALSE | Z60: =IF($F$69,'FRED Indicies'!E72) -> FALSE | AB60: =IF($F$69,'FRED Indicies'!D72) -> FALSE | AF60: 75 | AG60: FALSE | AH60: =IF(AG60,#REF!) -> FALSE | AN60: 57 | AO60: FALSE | AP60: =IF(AO60,'Commodity Prices'!C72) -> FALSE | AR60: =IF(AO60,'Commodity Prices'!D72) -> FALSE | AV60: 75 | AW60: FALSE | AX60: =IF(AW60,'Yahoo Stocks'!D66) -> FALSE | AZ60: =IF(AW60,'Yahoo Stocks'!E66) -> FALSE | BD60: 56 | BE60: FALSE | BF60: =IF(BE60,#REF!) -> FALSE | BH60: =IF(BE60,#REF!) -> FALSE | BL60: 103 | BM60: FALSE | BN60: ='FRED Series'!D72 -> 0 | BO60: 3-Month Treasury Bil | BP60: =IF(BM60,'FRED Series'!E72) -> FALSE | BQ60: 3-Month Treasury Bil | BR60: B | BS60: FRED
L61: 58 | M61: Disposable Personal | N61: Disposable Personal | O61: B | P61: FRED | Q61: 58 | R61: FALSE | S61: =IF(R61,'Yahoo Index'!#REF!,"") ->  | T61: =IF(R61,'Yahoo Index'!E67,"") ->  | X61: 76 | Y61: FALSE | Z61: =IF($F$69,'FRED Indicies'!E73) -> FALSE | AB61: =IF($F$69,'FRED Indicies'!D73) -> FALSE | AF61: 76 | AG61: FALSE | AH61: =IF(AG61,#REF!) -> FALSE | AN61: 58 | AO61: FALSE | AP61: =IF(AO61,'Commodity Prices'!C73) -> FALSE | AR61: =IF(AO61,'Commodity Prices'!D73) -> FALSE | AV61: 76 | AW61: FALSE | AX61: =IF(AW61,'Yahoo Stocks'!D67) -> FALSE | AZ61: =IF(AW61,'Yahoo Stocks'!E67) -> FALSE | BD61: 57 | BE61: FALSE | BF61: =IF(BE61,#REF!) -> FALSE | BH61: =IF(BE61,#REF!) -> FALSE | BL61: 104 | BM61: FALSE | BN61: ='FRED Series'!D73 -> 0 | BO61: Disposable Personal | BP61: =IF(BM61,'FRED Series'!E73) -> FALSE | BQ61: Disposable Personal | BR61: B | BS61: FRED
L62: 59 | M62: National inc Rent | N62: National inc Rent | O62: B | P62: FRED | Q62: 59 | R62: FALSE | S62: =IF(R62,'Yahoo Index'!#REF!,"") ->  | T62: =IF(R62,'Yahoo Index'!E68,"") ->  | X62: 77 | Y62: FALSE | Z62: =IF($F$69,'FRED Indicies'!E74) -> FALSE | AB62: =IF($F$69,'FRED Indicies'!D74) -> FALSE | AF62: 77 | AG62: FALSE | AH62: =IF(AG62,#REF!) -> FALSE | AN62: 59 | AO62: FALSE | AP62: =IF(AO62,'Commodity Prices'!C74) -> FALSE | AR62: =IF(AO62,'Commodity Prices'!D74) -> FALSE | AV62: 77 | AW62: FALSE | AX62: =IF(AW62,'Yahoo Stocks'!D68) -> FALSE | AZ62: =IF(AW62,'Yahoo Stocks'!E68) -> FALSE | BD62: 58 | BE62: FALSE | BF62: =IF(BE62,#REF!) -> FALSE | BH62: =IF(BE62,#REF!) -> FALSE | BL62: 105 | BM62: FALSE | BN62: ='FRED Series'!D74 -> 0 | BO62: National inc Rent | BP62: =IF(BM62,'FRED Series'!E74) -> FALSE | BQ62: National inc Rent | BR62: B | BS62: FRED
F63: FALSE | G63: =H72+1 -> 1 | H63: 0 | I63: B | J63: FRED | L63: 60 | M63: Personal Income | N63: Personal Income | O63: B | P63: FRED | Q63: 60 | R63: FALSE | S63: =IF(R63,'Yahoo Index'!#REF!,"") ->  | T63: =IF(R63,'Yahoo Index'!E69,"") ->  | X63: 78 | Y63: FALSE | Z63: =IF($F$69,'FRED Indicies'!E75) -> FALSE | AB63: =IF($F$69,'FRED Indicies'!D75) -> FALSE | AF63: 78 | AG63: FALSE | AH63: =IF(AG63,#REF!) -> FALSE | AN63: 60 | AO63: FALSE | AP63: =IF(AO63,'Commodity Prices'!C75) -> FALSE | AR63: =IF(AO63,'Commodity Prices'!D75) -> FALSE | AV63: 78 | AW63: FALSE | AX63: =IF(AW63,'Yahoo Stocks'!D69) -> FALSE | AZ63: =IF(AW63,'Yahoo Stocks'!E69) -> FALSE | BD63: 59 | BE63: FALSE | BF63: =IF(BE63,#REF!) -> FALSE | BH63: =IF(BE63,#REF!) -> FALSE | BL63: 106 | BM63: FALSE | BN63: ='FRED Series'!D75 -> 0 | BO63: Personal Income | BP63: =IF(BM63,'FRED Series'!E75) -> FALSE | BQ63: Personal Income | BR63: B | BS63: FRED
L64: 61 | M64: Compensation of empl | N64: Compensation of empl | O64: B | P64: FRED | Q64: 61 | R64: FALSE | S64: =IF(R64,'Yahoo Index'!#REF!,"") ->  | T64: =IF(R64,'Yahoo Index'!E70,"") ->  | X64: 79 | Y64: FALSE | Z64: =IF($F$69,'FRED Indicies'!E76) -> FALSE | AB64: =IF($F$69,'FRED Indicies'!D76) -> FALSE | AF64: 79 | AG64: FALSE | AH64: =IF(AG64,#REF!) -> FALSE | AN64: 61 | AO64: FALSE | AP64: =IF(AO64,'Commodity Prices'!C76) -> FALSE | AR64: =IF(AO64,'Commodity Prices'!D76) -> FALSE | AV64: 79 | AW64: FALSE | AX64: =IF(AW64,'Yahoo Stocks'!D70) -> FALSE | AZ64: =IF(AW64,'Yahoo Stocks'!E70) -> FALSE | BD64: 60 | BE64: FALSE | BF64: =IF(BE64,#REF!) -> FALSE | BH64: =IF(BE64,#REF!) -> FALSE | BL64: 107 | BM64: FALSE | BN64: ='FRED Series'!D76 -> 0 | BO64: Compensation of empl | BP64: =IF(BM64,'FRED Series'!E76) -> FALSE | BQ64: Compensation of empl | BR64: B | BS64: FRED
L65: 62 | M65: US Med Inc Nom | N65: US Med Inc Nom | O65: B | P65: FRED | Q65: 62 | R65: FALSE | S65: =IF(R65,'Yahoo Index'!#REF!,"") ->  | T65: =IF(R65,'Yahoo Index'!E71,"") ->  | X65: 80 | Y65: FALSE | Z65: =IF($F$69,'FRED Indicies'!E77) -> FALSE | AB65: =IF($F$69,'FRED Indicies'!D77) -> FALSE | AF65: 80 | AG65: FALSE | AH65: =IF(AG65,#REF!) -> FALSE | AN65: 62 | AO65: FALSE | AP65: =IF(AO65,'Commodity Prices'!C77) -> FALSE | AR65: =IF(AO65,'Commodity Prices'!D77) -> FALSE | AV65: 80 | AW65: FALSE | AX65: =IF(AW65,'Yahoo Stocks'!D71) -> FALSE | AZ65: =IF(AW65,'Yahoo Stocks'!E71) -> FALSE | BD65: 61 | BE65: FALSE | BF65: =IF(BE65,#REF!) -> FALSE | BH65: =IF(BE65,#REF!) -> FALSE | BL65: 108 | BM65: FALSE | BN65: ='FRED Series'!D77 -> 0 | BO65: US Med Inc Nom | BP65: =IF(BM65,'FRED Series'!E77) -> FALSE | BQ65: US Med Inc Nom | BR65: B | BS65: FRED
F66: FALSE | G66: 0 | H66: =0*F66+G66 -> 0 | I66: D | J66: Google | L66: 63 | M66: Median Income | N66: Median Income | O66: B | P66: FRED | Q66: 63 | R66: FALSE | S66: =IF(R66,'Yahoo Index'!#REF!,"") ->  | T66: =IF(R66,'Yahoo Index'!E72,"") ->  | X66: 81 | Y66: FALSE | Z66: =IF($F$69,'FRED Indicies'!E78) -> FALSE | AB66: =IF($F$69,'FRED Indicies'!D78) -> FALSE | AF66: 81 | AG66: FALSE | AH66: =IF(AG66,#REF!) -> FALSE | AN66: 63 | AO66: FALSE | AP66: =IF(AO66,'Commodity Prices'!C78) -> FALSE | AR66: =IF(AO66,'Commodity Prices'!D78) -> FALSE | AV66: 81 | AW66: FALSE | AX66: =IF(AW66,'Yahoo Stocks'!D72) -> FALSE | AZ66: =IF(AW66,'Yahoo Stocks'!E72) -> FALSE | BD66: 62 | BE66: FALSE | BF66: =IF(BE66,#REF!) -> FALSE | BH66: =IF(BE66,#REF!) -> FALSE | BL66: 109 | BM66: FALSE | BN66: ='FRED Series'!D78 -> 0 | BO66: Median Income | BP66: =IF(BM66,'FRED Series'!E78) -> FALSE | BQ66: Median Income | BR66: B | BS66: FRED
L67: 64 | M67: US Real GDP | N67: US Real GDP | O67: B | P67: FRED | Q67: 64 | R67: FALSE | S67: =IF(R67,'Yahoo Index'!#REF!,"") ->  | T67: =IF(R67,'Yahoo Index'!E73,"") ->  | X67: 82 | Y67: FALSE | Z67: =IF($F$69,'FRED Indicies'!E79) -> FALSE | AB67: =IF($F$69,'FRED Indicies'!D79) -> FALSE | AF67: 82 | AG67: FALSE | AH67: =IF(AG67,#REF!) -> FALSE | AN67: 64 | AO67: FALSE | AP67: =IF(AO67,'Commodity Prices'!C79) -> FALSE | AR67: =IF(AO67,'Commodity Prices'!D79) -> FALSE | AV67: 82 | AW67: FALSE | AX67: =IF(AW67,'Yahoo Stocks'!D73) -> FALSE | AZ67: =IF(AW67,'Yahoo Stocks'!E73) -> FALSE | BD67: 63 | BE67: FALSE | BF67: =IF(BE67,#REF!) -> FALSE | BH67: =IF(BE67,#REF!) -> FALSE | BL67: 110 | BM67: FALSE | BN67: ='FRED Series'!D79 -> 0 | BO67: US Real GDP | BP67: =IF(BM67,'FRED Series'!E79) -> FALSE | BQ67: US Real GDP | BR67: B | BS67: FRED
L68: 65 | M68: US Real GNP | N68: US Real GNP | O68: =U68&AD68&AL68&AT68&BB68&BJ68&BR68 -> B | P68: =V68&AE68&AM68&AU68&BC68&BK68&BS68 -> FRED | Q68: 65 | R68: FALSE | S68: =IF(R68,'Yahoo Index'!#REF!,"") ->  | T68: =IF(R68,'Yahoo Index'!E74,"") ->  | U68: =IF(R68,$I$4,"") ->  | V68: =IF(R68,$J$4,"") ->  | X68: 83 | Y68: =IF(AND($F$69,X68<=$H$69),X68) -> FALSE | Z68: =IF($F$69,'FRED Indicies'!E80) -> FALSE | AA68: =IFERROR(INDEX(Z:Z,MATCH(L68,Y:Y,0)),"") ->  | AB68: =IF($F$69,'FRED Indicies'!D80) -> FALSE | AC68: =IFERROR(INDEX(AB:AB,MATCH(L68,Y:Y,0)),"") ->  | AD68: =IF(AA68<>"",$I$69,"") ->  | AE68: =IF(AA68<>"",$J$69,"") ->  | AF68: 83 | AG68: =IF(AND($F$72,AF68<=$H$72),AF68) -> FALSE | AH68: =IF(AG68,#REF!) -> FALSE | AI68: =IFERROR(INDEX(AH:AH,MATCH(Q68,AG:AG,0)),"") ->  | AK68: =IFERROR(INDEX(AJ:AJ,MATCH(Q68,AG:AG,0)),"") ->  | AL68: =IF(AI68<>"",$I$69,"") ->  | AM68: =IF(AK68<>"",$J$69,"") ->  | AN68: 65 | AO68: =IF(AND($F$63,AN68<=$H$63),AN68) -> FALSE | AP68: =IF(AO68,'Commodity Prices'!C80) -> FALSE | AQ68: =IFERROR(INDEX(AP:AP,MATCH(L68,AO:AO,0)),"") ->  | AR68: =IF(AO68,'Commodity Prices'!D80) -> FALSE | AS68: =IFERROR(INDEX(AR:AR,MATCH(L68,AO:AO,0)),"") ->  | AT68: =IF(AQ68<>"",$I$63,"") ->  | AU68: =IF(AS68<>"",$J$63,"") ->  | AV68: 83 | AW68: =IF(AND($F$6,AV68<=$H$6),AV68) -> FALSE | AX68: =IF(AW68,'Yahoo Stocks'!D74) -> FALSE | AZ68: =IF(AW68,'Yahoo Stocks'!E74) -> FALSE | BB68: =IF(AY68<>"",$I$6,"") ->  | BC68: =IF(BA68<>"",$J$6,"") ->  | BD68: 64 | BE68: =IF(AND($F$66,BD68<=$H$66),BD68) -> FALSE | BF68: =IF(BE68,#REF!) -> FALSE | BG68: =IFERROR(INDEX(BF:BF,MATCH(Q68,BE:BE,0)),"") ->  | BH68: =IF(BE68,#REF!) -> FALSE | BI68: =IFERROR(INDEX(BH:BH,MATCH(Q68,BE:BE,0)),"") ->  | BJ68: =IF(BI68<>"",$I$66,"") ->  | BK68: =IF(BI68<>"",$J$66,"") ->  | BL68: 111 | BM68: =IF(AND($F$9,BL68<=$H$9),BL68) -> FALSE | BN68: ='FRED Series'!D80 -> 0 | BO68: US Real GNP | BP68: =IF(BM68,'FRED Series'!E80) -> FALSE | BQ68: US Real GNP | BR68: =IF(BQ68<>"",$I$9,"") -> B | BS68: =IF(BQ68<>"",$J$9,"") -> FRED
F69: FALSE | G69: =H4+1 -> 19 | H69: ='FRED Indicies'!Total_Index*F69+G69-1 -> 18 | I69: B | J69: FRED | L69: 66 | M69: GDP GDI | N69: GDP GDI | O69: B | P69: FRED | Q69: =Q68+1 -> 66 | R69: =IF(AND($F$4,Q69<=$H$4),Q69) -> FALSE | S69: =IF(R69,'Yahoo Index'!#REF!,"") ->  | T69: =IF(R69,'Yahoo Index'!E75,"") ->  | X69: =X68+1 -> 84 | Y69: FALSE | Z69: =IF($F$69,'FRED Indicies'!E81) -> FALSE | AB69: =IF($F$69,'FRED Indicies'!D81) -> FALSE | AF69: =AF68+1 -> 84 | AG69: FALSE | AH69: =IF(AG69,#REF!) -> FALSE | AN69: =AN68+1 -> 66 | AO69: FALSE | AP69: =IF(AO69,'Commodity Prices'!C81) -> FALSE | AR69: =IF(AO69,'Commodity Prices'!D81) -> FALSE | AV69: =AV68+1 -> 84 | AW69: FALSE | AX69: =IF(AW69,'Yahoo Stocks'!D75) -> FALSE | AZ69: =IF(AW69,'Yahoo Stocks'!E75) -> FALSE | BD69: =BD68+1 -> 65 | BE69: FALSE | BF69: =IF(BE69,#REF!) -> FALSE | BH69: =IF(BE69,#REF!) -> FALSE | BL69: =BL68+1 -> 112 | BM69: FALSE | BN69: ='FRED Series'!D81 -> 0 | BO69: =IFERROR(INDEX(BN:BN,MATCH(L69,BM:BM,0)),"") -> GDP GDI | BP69: =IF(BM69,'FRED Series'!E81) -> FALSE | BQ69: =IFERROR(INDEX(BN:BN,MATCH(L69,BM:BM,0)),"") -> GDP GDI | BR69: B | BS69: FRED
L70: 67 | M70: Crude Oil Price | N70: Crude Oil Price | O70: B | P70: FRED | Q70: 67 | R70: FALSE | S70: =IF(R70,'Yahoo Index'!#REF!,"") ->  | T70: =IF(R70,'Yahoo Index'!E76,"") ->  | X70: 85 | Y70: FALSE | Z70: =IF($F$69,'FRED Indicies'!E82) -> FALSE | AB70: =IF($F$69,'FRED Indicies'!D82) -> FALSE | AF70: 85 | AG70: FALSE | AH70: =IF(AG70,#REF!) -> FALSE | AN70: 67 | AO70: FALSE | AP70: =IF(AO70,'Commodity Prices'!C82) -> FALSE | AR70: =IF(AO70,'Commodity Prices'!D82) -> FALSE | AV70: 85 | AW70: FALSE | AX70: =IF(AW70,'Yahoo Stocks'!D76) -> FALSE | AZ70: =IF(AW70,'Yahoo Stocks'!E76) -> FALSE | BD70: 66 | BE70: FALSE | BF70: =IF(BE70,#REF!) -> FALSE | BH70: =IF(BE70,#REF!) -> FALSE | BL70: 113 | BM70: FALSE | BN70: ='FRED Series'!D82 -> 0 | BO70: Crude Oil Price | BP70: =IF(BM70,'FRED Series'!E82) -> FALSE | BQ70: Crude Oil Price | BR70: B | BS70: FRED
L71: 68 | M71: Gold Fixing Pr | N71: Gold Fixing Pr | O71: B | P71: FRED | Q71: 68 | R71: FALSE | S71: =IF(R71,'Yahoo Index'!#REF!,"") ->  | T71: =IF(R71,'Yahoo Index'!E77,"") ->  | X71: 86 | Y71: FALSE | Z71: =IF($F$69,'FRED Indicies'!E83) -> FALSE | AB71: =IF($F$69,'FRED Indicies'!D83) -> FALSE | AF71: 86 | AG71: FALSE | AH71: =IF(AG71,#REF!) -> FALSE | AN71: 68 | AO71: FALSE | AP71: =IF(AO71,'Commodity Prices'!C83) -> FALSE | AR71: =IF(AO71,'Commodity Prices'!D83) -> FALSE | AV71: 86 | AW71: FALSE | AX71: =IF(AW71,'Yahoo Stocks'!D77) -> FALSE | AZ71: =IF(AW71,'Yahoo Stocks'!E77) -> FALSE | BD71: 67 | BE71: FALSE | BF71: =IF(BE71,#REF!) -> FALSE | BH71: =IF(BE71,#REF!) -> FALSE | BL71: 114 | BM71: FALSE | BN71: ='FRED Series'!D83 -> 0 | BO71: Gold Fixing Pr | BP71: =IF(BM71,'FRED Series'!E83) -> FALSE | BQ71: Gold Fixing Pr | BR71: B | BS71: FRED
F72: FALSE | G72: =H69+1 -> 19 | H72: 0 | I72: D | J72: Google | L72: 69 | M72: Henry Hub Natur | N72: Henry Hub Natur | O72: B | P72: FRED | Q72: 69 | R72: FALSE | S72: =IF(R72,'Yahoo Index'!#REF!,"") ->  | T72: =IF(R72,'Yahoo Index'!E78,"") ->  | X72: 87 | Y72: FALSE | Z72: =IF($F$69,'FRED Indicies'!E84) -> FALSE | AB72: =IF($F$69,'FRED Indicies'!D84) -> FALSE | AF72: 87 | AG72: FALSE | AH72: =IF(AG72,#REF!) -> FALSE | AN72: 69 | AO72: FALSE | AP72: =IF(AO72,'Commodity Prices'!C84) -> FALSE | AR72: =IF(AO72,'Commodity Prices'!D84) -> FALSE | AV72: 87 | AW72: FALSE | AX72: =IF(AW72,'Yahoo Stocks'!D78) -> FALSE | AZ72: =IF(AW72,'Yahoo Stocks'!E78) -> FALSE | BD72: 68 | BE72: FALSE | BF72: =IF(BE72,#REF!) -> FALSE | BH72: =IF(BE72,#REF!) -> FALSE | BL72: 115 | BM72: FALSE | BN72: ='FRED Series'!D84 -> 0 | BO72: Henry Hub Natur | BP72: =IF(BM72,'FRED Series'!E84) -> FALSE | BQ72: Henry Hub Natur | BR72: B | BS72: FRED
L73: 70 | M73: LNG, Asia (PNG | N73: LNG, Asia (PNG | O73: B | P73: FRED | Q73: 70 | R73: FALSE | S73: =IF(R73,'Yahoo Index'!#REF!,"") ->  | T73: =IF(R73,'Yahoo Index'!E79,"") ->  | X73: 88 | Y73: FALSE | Z73: =IF($F$69,'FRED Indicies'!E85) -> FALSE | AB73: =IF($F$69,'FRED Indicies'!D85) -> FALSE | AF73: 88 | AG73: FALSE | AH73: =IF(AG73,#REF!) -> FALSE | AN73: 70 | AO73: FALSE | AP73: =IF(AO73,'Commodity Prices'!C85) -> FALSE | AR73: =IF(AO73,'Commodity Prices'!D85) -> FALSE | AV73: 88 | AW73: FALSE | AX73: =IF(AW73,'Yahoo Stocks'!D79) -> FALSE | AZ73: =IF(AW73,'Yahoo Stocks'!E79) -> FALSE | BD73: 69 | BE73: FALSE | BF73: =IF(BE73,#REF!) -> FALSE | BH73: =IF(BE73,#REF!) -> FALSE | BL73: 116 | BM73: FALSE | BN73: ='FRED Series'!D85 -> 0 | BO73: LNG, Asia (PNG | BP73: =IF(BM73,'FRED Series'!E85) -> FALSE | BQ73: LNG, Asia (PNG | BR73: B | BS73: FRED
L74: 71 | M74: EU Natural Gas | N74: EU Natural Gas | O74: B | P74: FRED | Q74: 71 | R74: FALSE | S74: =IF(R74,'Yahoo Index'!#REF!,"") ->  | T74: =IF(R74,'Yahoo Index'!E80,"") ->  | X74: 89 | Y74: FALSE | Z74: =IF($F$69,'FRED Indicies'!E86) -> FALSE | AB74: =IF($F$69,'FRED Indicies'!D86) -> FALSE | AF74: 89 | AG74: FALSE | AH74: =IF(AG74,#REF!) -> FALSE | AN74: 71 | AO74: FALSE | AP74: =IF(AO74,'Commodity Prices'!C86) -> FALSE | AR74: =IF(AO74,'Commodity Prices'!D86) -> FALSE | AV74: 89 | AW74: FALSE | AX74: =IF(AW74,'Yahoo Stocks'!D80) -> FALSE | AZ74: =IF(AW74,'Yahoo Stocks'!E80) -> FALSE | BD74: 70 | BE74: FALSE | BF74: =IF(BE74,#REF!) -> FALSE | BH74: =IF(BE74,#REF!) -> FALSE | BL74: 117 | BM74: FALSE | BN74: ='FRED Series'!D86 -> 0 | BO74: EU Natural Gas | BP74: =IF(BM74,'FRED Series'!E86) -> FALSE | BQ74: EU Natural Gas | BR74: B | BS74: FRED
L75: 72 | M75: Uranium (PURAN | N75: Uranium (PURAN | O75: B | P75: FRED | Q75: 72 | R75: FALSE | S75: =IF(R75,'Yahoo Index'!#REF!,"") ->  | T75: =IF(R75,'Yahoo Index'!E81,"") ->  | X75: 90 | Y75: FALSE | Z75: =IF($F$69,'FRED Indicies'!E87) -> FALSE | AB75: =IF($F$69,'FRED Indicies'!D87) -> FALSE | AF75: 90 | AG75: FALSE | AH75: =IF(AG75,#REF!) -> FALSE | AN75: 72 | AO75: FALSE | AP75: =IF(AO75,'Commodity Prices'!C87) -> FALSE | AR75: =IF(AO75,'Commodity Prices'!D87) -> FALSE | AV75: 90 | AW75: FALSE | AX75: =IF(AW75,'Yahoo Stocks'!D81) -> FALSE | AZ75: =IF(AW75,'Yahoo Stocks'!E81) -> FALSE | BD75: 71 | BE75: FALSE | BF75: =IF(BE75,#REF!) -> FALSE | BH75: =IF(BE75,#REF!) -> FALSE | BL75: 118 | BM75: FALSE | BN75: ='FRED Series'!D87 -> 0 | BO75: Uranium (PURAN | BP75: =IF(BM75,'FRED Series'!E87) -> FALSE | BQ75: Uranium (PURAN | BR75: B | BS75: FRED
L76: 73 | M76: GDP Per Capital France | N76: GDP Per Capital France | O76: B | P76: FRED | Q76: 73 | R76: FALSE | S76: =IF(R76,'Yahoo Index'!#REF!,"") ->  | T76: =IF(R76,'Yahoo Index'!E82,"") ->  | X76: 91 | Y76: FALSE | Z76: =IF($F$69,'FRED Indicies'!E88) -> FALSE | AB76: =IF($F$69,'FRED Indicies'!D88) -> FALSE | AF76: 91 | AG76: FALSE | AH76: =IF(AG76,#REF!) -> FALSE | AN76: 73 | AO76: FALSE | AP76: =IF(AO76,'Commodity Prices'!C88) -> FALSE | AR76: =IF(AO76,'Commodity Prices'!D88) -> FALSE | AV76: 91 | AW76: FALSE | AX76: =IF(AW76,'Yahoo Stocks'!D82) -> FALSE | AZ76: =IF(AW76,'Yahoo Stocks'!E82) -> FALSE | BD76: 72 | BE76: FALSE | BF76: =IF(BE76,#REF!) -> FALSE | BH76: =IF(BE76,#REF!) -> FALSE | BL76: 119 | BM76: FALSE | BN76: ='FRED Series'!D88 -> 0 | BO76: GDP Per Capital France | BP76: =IF(BM76,'FRED Series'!E88) -> FALSE | BQ76: GDP Per Capital France | BR76: B | BS76: FRED
F77: TRUE | L77: 74 | M77: GDP Per Capital Germany | N77: GDP Per Capital Germany | O77: B | P77: FRED | Q77: 74 | R77: FALSE | S77: =IF(R77,'Yahoo Index'!#REF!,"") ->  | T77: =IF(R77,'Yahoo Index'!E83,"") ->  | X77: 92 | Y77: FALSE | Z77: =IF($F$69,'FRED Indicies'!E89) -> FALSE | AB77: =IF($F$69,'FRED Indicies'!D89) -> FALSE | AF77: 92 | AG77: FALSE | AH77: =IF(AG77,#REF!) -> FALSE | AN77: 74 | AO77: FALSE | AP77: =IF(AO77,'Commodity Prices'!C89) -> FALSE | AR77: =IF(AO77,'Commodity Prices'!D89) -> FALSE | AV77: 92 | AW77: FALSE | AX77: =IF(AW77,'Yahoo Stocks'!D83) -> FALSE | AZ77: =IF(AW77,'Yahoo Stocks'!E83) -> FALSE | BD77: 73 | BE77: FALSE | BF77: =IF(BE77,#REF!) -> FALSE | BH77: =IF(BE77,#REF!) -> FALSE | BL77: 120 | BM77: FALSE | BN77: ='FRED Series'!D89 -> 0 | BO77: GDP Per Capital Germany | BP77: =IF(BM77,'FRED Series'!E89) -> FALSE | BQ77: GDP Per Capital Germany | BR77: B | BS77: FRED
L78: 75 | M78: GDP Per Capital US | N78: GDP Per Capital US | O78: B | P78: FRED | Q78: 75 | R78: FALSE | S78: =IF(R78,'Yahoo Index'!#REF!,"") ->  | T78: =IF(R78,'Yahoo Index'!E84,"") ->  | X78: 93 | Y78: FALSE | Z78: =IF($F$69,'FRED Indicies'!E90) -> FALSE | AB78: =IF($F$69,'FRED Indicies'!D90) -> FALSE | AF78: 93 | AG78: FALSE | AH78: =IF(AG78,#REF!) -> FALSE | AN78: 75 | AO78: FALSE | AP78: =IF(AO78,'Commodity Prices'!C90) -> FALSE | AR78: =IF(AO78,'Commodity Prices'!D90) -> FALSE | AV78: 93 | AW78: FALSE | AX78: =IF(AW78,'Yahoo Stocks'!D84) -> FALSE | AZ78: =IF(AW78,'Yahoo Stocks'!E84) -> FALSE | BD78: 74 | BE78: FALSE | BF78: =IF(BE78,#REF!) -> FALSE | BH78: =IF(BE78,#REF!) -> FALSE | BL78: 121 | BM78: FALSE | BN78: ='FRED Series'!D90 -> 0 | BO78: GDP Per Capital US | BP78: =IF(BM78,'FRED Series'!E90) -> FALSE | BQ78: GDP Per Capital US | BR78: B | BS78: FRED
L79: 76 | M79: GDP Per Capital China | N79: GDP Per Capital China | O79: B | P79: FRED | Q79: 76 | R79: FALSE | S79: =IF(R79,'Yahoo Index'!#REF!,"") ->  | T79: =IF(R79,'Yahoo Index'!E85,"") ->  | X79: 94 | Y79: FALSE | Z79: =IF($F$69,'FRED Indicies'!E91) -> FALSE | AB79: =IF($F$69,'FRED Indicies'!D91) -> FALSE | AF79: 94 | AG79: FALSE | AH79: =IF(AG79,#REF!) -> FALSE | AN79: 76 | AO79: FALSE | AP79: =IF(AO79,'Commodity Prices'!C91) -> FALSE | AR79: =IF(AO79,'Commodity Prices'!D91) -> FALSE | AV79: 94 | AW79: FALSE | AX79: =IF(AW79,'Yahoo Stocks'!D85) -> FALSE | AZ79: =IF(AW79,'Yahoo Stocks'!E85) -> FALSE | BD79: 75 | BE79: FALSE | BF79: =IF(BE79,#REF!) -> FALSE | BH79: =IF(BE79,#REF!) -> FALSE | BL79: 122 | BM79: FALSE | BN79: ='FRED Series'!D91 -> 0 | BO79: GDP Per Capital China | BP79: =IF(BM79,'FRED Series'!E91) -> FALSE | BQ79: GDP Per Capital China | BR79: B | BS79: FRED
L80: 77 | M80: Corporate profits BT | N80: Corporate profits BT | O80: B | P80: FRED | Q80: 77 | R80: FALSE | S80: =IF(R80,'Yahoo Index'!#REF!,"") ->  | T80: =IF(R80,'Yahoo Index'!E86,"") ->  | X80: 95 | Y80: FALSE | Z80: =IF($F$69,'FRED Indicies'!E92) -> FALSE | AB80: =IF($F$69,'FRED Indicies'!D92) -> FALSE | AF80: 95 | AG80: FALSE | AH80: =IF(AG80,#REF!) -> FALSE | AN80: 77 | AO80: FALSE | AP80: =IF(AO80,'Commodity Prices'!C92) -> FALSE | AR80: =IF(AO80,'Commodity Prices'!D92) -> FALSE | AV80: 95 | AW80: FALSE | AX80: =IF(AW80,'Yahoo Stocks'!D86) -> FALSE | AZ80: =IF(AW80,'Yahoo Stocks'!E86) -> FALSE | BD80: 76 | BE80: FALSE | BF80: =IF(BE80,#REF!) -> FALSE | BH80: =IF(BE80,#REF!) -> FALSE | BL80: 123 | BM80: FALSE | BN80: ='FRED Series'!D92 -> 0 | BO80: Corporate profits BT | BP80: =IF(BM80,'FRED Series'!E92) -> FALSE | BQ80: Corporate profits BT | BR80: B | BS80: FRED
L81: 78 | M81: Gross national inc | N81: Gross national inc | O81: B | P81: FRED | Q81: 78 | R81: FALSE | S81: =IF(R81,'Yahoo Index'!E154,"") ->  | T81: =IF(R81,'Yahoo Index'!E87,"") ->  | X81: 96 | Y81: FALSE | Z81: =IF($F$69,'FRED Indicies'!E93) -> FALSE | AB81: =IF($F$69,'FRED Indicies'!D93) -> FALSE | AF81: 96 | AG81: FALSE | AH81: =IF(AG81,#REF!) -> FALSE | AN81: 78 | AO81: FALSE | AP81: =IF(AO81,'Commodity Prices'!C93) -> FALSE | AR81: =IF(AO81,'Commodity Prices'!D93) -> FALSE | AV81: 96 | AW81: FALSE | AX81: =IF(AW81,'Yahoo Stocks'!D87) -> FALSE | AZ81: =IF(AW81,'Yahoo Stocks'!E87) -> FALSE | BD81: 77 | BE81: FALSE | BF81: =IF(BE81,#REF!) -> FALSE | BH81: =IF(BE81,#REF!) -> FALSE | BL81: 124 | BM81: FALSE | BN81: ='FRED Series'!D93 -> 0 | BO81: Gross national inc | BP81: =IF(BM81,'FRED Series'!E93) -> FALSE | BQ81: Gross national inc | BR81: B | BS81: FRED
L82: 79 | M82: Net Interest and Mis | N82: Net Interest and Mis | O82: B | P82: FRED | Q82: 79 | R82: FALSE | S82: =IF(R82,'Yahoo Index'!E155,"") ->  | T82: =IF(R82,'Yahoo Index'!E88,"") ->  | X82: 97 | Y82: FALSE | Z82: =IF($F$69,'FRED Indicies'!E94) -> FALSE | AB82: =IF($F$69,'FRED Indicies'!D94) -> FALSE | AF82: 97 | AG82: FALSE | AH82: =IF(AG82,#REF!) -> FALSE | AN82: 79 | AO82: FALSE | AP82: =IF(AO82,'Commodity Prices'!C94) -> FALSE | AR82: =IF(AO82,'Commodity Prices'!D94) -> FALSE | AV82: 97 | AW82: FALSE | AX82: =IF(AW82,'Yahoo Stocks'!D88) -> FALSE | AZ82: =IF(AW82,'Yahoo Stocks'!E88) -> FALSE | BD82: 78 | BE82: FALSE | BF82: =IF(BE82,#REF!) -> FALSE | BH82: =IF(BE82,#REF!) -> FALSE | BL82: 125 | BM82: FALSE | BN82: ='FRED Series'!D94 -> 0 | BO82: Net Interest and Mis | BP82: =IF(BM82,'FRED Series'!E94) -> FALSE | BQ82: Net Interest and Mis | BR82: B | BS82: FRED
H83: Adj Close | I83: TRUE | L83: 80 | M83: Corp Profit | N83: Corp Profit | O83: B | P83: FRED | Q83: 80 | R83: FALSE | S83: =IF(R83,'Yahoo Index'!E156,"") ->  | T83: =IF(R83,'Yahoo Index'!E89,"") ->  | X83: 98 | Y83: FALSE | Z83: =IF($F$69,'FRED Indicies'!E95) -> FALSE | AB83: =IF($F$69,'FRED Indicies'!D95) -> FALSE | AF83: 98 | AG83: FALSE | AH83: =IF(AG83,#REF!) -> FALSE | AN83: 80 | AO83: FALSE | AP83: =IF(AO83,'Commodity Prices'!C95) -> FALSE | AR83: =IF(AO83,'Commodity Prices'!D95) -> FALSE | AV83: 98 | AW83: FALSE | AX83: =IF(AW83,'Yahoo Stocks'!D89) -> FALSE | AZ83: =IF(AW83,'Yahoo Stocks'!E89) -> FALSE | BD83: 79 | BE83: FALSE | BF83: =IF(BE83,#REF!) -> FALSE | BH83: =IF(BE83,#REF!) -> FALSE | BL83: 126 | BM83: FALSE | BN83: ='FRED Series'!D95 -> 0 | BO83: Corp Profit | BP83: =IF(BM83,'FRED Series'!E95) -> FALSE | BQ83: Corp Profit | BR83: B | BS83: FRED
L84: 81 | M84: Corp Profits AT no Inv | N84: Corp Profits AT no Inv | O84: B | P84: FRED | Q84: 81 | R84: FALSE | S84: =IF(R84,'Yahoo Index'!E157,"") ->  | T84: =IF(R84,'Yahoo Index'!E90,"") ->  | X84: 99 | Y84: FALSE | Z84: =IF($F$69,'FRED Indicies'!E96) -> FALSE | AB84: =IF($F$69,'FRED Indicies'!D96) -> FALSE | AF84: 99 | AG84: FALSE | AH84: =IF(AG84,#REF!) -> FALSE | AN84: 81 | AO84: FALSE | AP84: =IF(AO84,'Commodity Prices'!C96) -> FALSE | AR84: =IF(AO84,'Commodity Prices'!D96) -> FALSE | AV84: 99 | AW84: FALSE | AX84: =IF(AW84,'Yahoo Stocks'!D90) -> FALSE | AZ84: =IF(AW84,'Yahoo Stocks'!E90) -> FALSE | BD84: 80 | BE84: FALSE | BF84: =IF(BE84,#REF!) -> FALSE | BH84: =IF(BE84,#REF!) -> FALSE | BL84: 127 | BM84: FALSE | BN84: ='FRED Series'!D96 -> 0 | BO84: Corp Profits AT no Inv | BP84: =IF(BM84,'FRED Series'!E96) -> FALSE | BQ84: Corp Profits AT no Inv | BR84: B | BS84: FRED
E85: Yahoo Column to Use in Summary | I85: =IF(Adj_Close,"B","B") -> B | L85: 82 | M85: Corp Nonfin | N85: Corp Nonfin | O85: B | P85: FRED | Q85: 82 | R85: FALSE | S85: =IF(R85,'Yahoo Index'!E158,"") ->  | T85: =IF(R85,'Yahoo Index'!E91,"") ->  | X85: 100 | Y85: FALSE | Z85: =IF($F$69,'FRED Indicies'!E97) -> FALSE | AB85: =IF($F$69,'FRED Indicies'!D97) -> FALSE | AF85: 100 | AG85: FALSE | AH85: =IF(AG85,#REF!) -> FALSE | AN85: 82 | AO85: FALSE | AP85: =IF(AO85,'Commodity Prices'!C97) -> FALSE | AR85: =IF(AO85,'Commodity Prices'!D97) -> FALSE | AV85: 100 | AW85: FALSE | AX85: =IF(AW85,'Yahoo Stocks'!D91) -> FALSE | AZ85: =IF(AW85,'Yahoo Stocks'!E91) -> FALSE | BD85: 81 | BE85: FALSE | BF85: =IF(BE85,#REF!) -> FALSE | BH85: =IF(BE85,#REF!) -> FALSE | BL85: 128 | BM85: FALSE | BN85: ='FRED Series'!D97 -> 0 | BO85: Corp Nonfin | BP85: =IF(BM85,'FRED Series'!E97) -> FALSE | BQ85: Corp Nonfin | BR85: B | BS85: FRED
L86: 83 | M86: Corp Aft Tax | N86: Corp Aft Tax | O86: B | P86: FRED | Q86: 83 | R86: FALSE | S86: =IF(R86,'Yahoo Index'!E159,"") ->  | T86: =IF(R86,'Yahoo Index'!E92,"") ->  | X86: 101 | Y86: FALSE | Z86: =IF($F$69,'FRED Indicies'!E98) -> FALSE | AB86: =IF($F$69,'FRED Indicies'!D98) -> FALSE | AF86: 101 | AG86: FALSE | AH86: =IF(AG86,#REF!) -> FALSE | AN86: 83 | AO86: FALSE | AP86: =IF(AO86,'Commodity Prices'!C98) -> FALSE | AR86: =IF(AO86,'Commodity Prices'!D98) -> FALSE | AV86: 101 | AW86: FALSE | AX86: =IF(AW86,'Yahoo Stocks'!D92) -> FALSE | AZ86: =IF(AW86,'Yahoo Stocks'!E92) -> FALSE | BD86: 82 | BE86: FALSE | BF86: =IF(BE86,#REF!) -> FALSE | BH86: =IF(BE86,#REF!) -> FALSE | BL86: 129 | BM86: FALSE | BN86: ='FRED Series'!D98 -> 0 | BO86: Corp Aft Tax | BP86: =IF(BM86,'FRED Series'!E98) -> FALSE | BQ86: Corp Aft Tax | BR86: B | BS86: FRED
E87: Monthly/Weekly Code | I87: =IF(monthly,"mo","wk") -> mo | L87: 84 | M87: Corp Inf Adjusted | N87: Corp Inf Adjusted | O87: B | P87: FRED | Q87: 84 | R87: FALSE | S87: =IF(R87,'Yahoo Index'!E160,"") ->  | T87: =IF(R87,'Yahoo Index'!E93,"") ->  | X87: 102 | Y87: FALSE | Z87: =IF($F$69,'FRED Indicies'!E99) -> FALSE | AB87: =IF($F$69,'FRED Indicies'!D99) -> FALSE | AF87: 102 | AG87: FALSE | AH87: =IF(AG87,#REF!) -> FALSE | AN87: 84 | AO87: FALSE | AP87: =IF(AO87,'Commodity Prices'!C99) -> FALSE | AR87: =IF(AO87,'Commodity Prices'!D99) -> FALSE | AV87: 102 | AW87: FALSE | AX87: =IF(AW87,'Yahoo Stocks'!D93) -> FALSE | AZ87: =IF(AW87,'Yahoo Stocks'!E93) -> FALSE | BD87: 83 | BE87: FALSE | BF87: =IF(BE87,#REF!) -> FALSE | BH87: =IF(BE87,#REF!) -> FALSE | BL87: 130 | BM87: FALSE | BN87: ='FRED Series'!D99 -> 0 | BO87: Corp Inf Adjusted | BP87: =IF(BM87,'FRED Series'!E99) -> FALSE | BQ87: Corp Inf Adjusted | BR87: B | BS87: FRED
E88: Month | F88: &interval=1mo&events=history&crumb= | L88: 85 | M88: Rest of the World | N88: Rest of the World | O88: B | P88: FRED | Q88: 85 | R88: FALSE | S88: =IF(R88,'Yahoo Index'!E161,"") ->  | T88: =IF(R88,'Yahoo Index'!E94,"") ->  | X88: 103 | Y88: FALSE | Z88: =IF($F$69,'FRED Indicies'!E100) -> FALSE | AB88: =IF($F$69,'FRED Indicies'!D100) -> FALSE | AF88: 103 | AG88: FALSE | AH88: =IF(AG88,#REF!) -> FALSE | AN88: 85 | AO88: FALSE | AP88: =IF(AO88,'Commodity Prices'!C100) -> FALSE | AR88: =IF(AO88,'Commodity Prices'!D100) -> FALSE | AV88: 103 | AW88: FALSE | AX88: =IF(AW88,'Yahoo Stocks'!D94) -> FALSE | AZ88: =IF(AW88,'Yahoo Stocks'!E94) -> FALSE | BD88: 84 | BE88: FALSE | BF88: =IF(BE88,#REF!) -> FALSE | BH88: =IF(BE88,#REF!) -> FALSE | BL88: 131 | BM88: FALSE | BN88: ='FRED Series'!D100 -> 0 | BO88: Rest of the World | BP88: =IF(BM88,'FRED Series'!E100) -> FALSE | BQ88: Rest of the World | BR88: B | BS88: FRED
E89: Week | F89: &interval=1wk&events=history&crumb= | L89: 86 | M89: Population UK | N89: Population UK | O89: B | P89: FRED | Q89: 86 | R89: FALSE | S89: =IF(R89,'Yahoo Index'!E162,"") ->  | T89: =IF(R89,'Yahoo Index'!E95,"") ->  | X89: 104 | Y89: FALSE | Z89: =IF($F$69,'FRED Indicies'!E101) -> FALSE | AB89: =IF($F$69,'FRED Indicies'!D101) -> FALSE | AF89: 104 | AG89: FALSE | AH89: =IF(AG89,#REF!) -> FALSE | AN89: 86 | AO89: FALSE | AP89: =IF(AO89,'Commodity Prices'!C101) -> FALSE | AR89: =IF(AO89,'Commodity Prices'!D101) -> FALSE | AV89: 104 | AW89: FALSE | AX89: =IF(AW89,'Yahoo Stocks'!D95) -> FALSE | AZ89: =IF(AW89,'Yahoo Stocks'!E95) -> FALSE | BD89: 85 | BE89: FALSE | BF89: =IF(BE89,#REF!) -> FALSE | BH89: =IF(BE89,#REF!) -> FALSE | BL89: 132 | BM89: FALSE | BN89: ='FRED Series'!D101 -> 0 | BO89: Population UK | BP89: =IF(BM89,'FRED Series'!E101) -> FALSE | BQ89: Population UK | BR89: B | BS89: FRED
E90: Applied | F90: =IF(monthly,F88,F89) -> &interval=1mo&events=history&crumb= | L90: 87 | M90: Population DE | N90: Population DE | O90: B | P90: FRED | Q90: 87 | R90: FALSE | S90: =IF(R90,'Yahoo Index'!E163,"") ->  | T90: =IF(R90,'Yahoo Index'!E96,"") ->  | X90: 105 | Y90: FALSE | Z90: =IF($F$69,'FRED Indicies'!E102) -> FALSE | AB90: =IF($F$69,'FRED Indicies'!D102) -> FALSE | AF90: 105 | AG90: FALSE | AH90: =IF(AG90,#REF!) -> FALSE | AN90: 87 | AO90: FALSE | AP90: =IF(AO90,'Commodity Prices'!C102) -> FALSE | AR90: =IF(AO90,'Commodity Prices'!D102) -> FALSE | AV90: 105 | AW90: FALSE | AX90: =IF(AW90,'Yahoo Stocks'!D96) -> FALSE | AZ90: =IF(AW90,'Yahoo Stocks'!E96) -> FALSE | BD90: 86 | BE90: FALSE | BF90: =IF(BE90,#REF!) -> FALSE | BH90: =IF(BE90,#REF!) -> FALSE | BL90: 133 | BM90: FALSE | BN90: ='FRED Series'!D102 -> 0 | BO90: Population DE | BP90: =IF(BM90,'FRED Series'!E102) -> FALSE | BQ90: Population DE | BR90: B | BS90: FRED
L91: 88 | M91: Median Family Income LT | N91: Median Family Income LT | O91: B | P91: FRED | Q91: 88 | R91: FALSE | S91: =IF(R91,'Yahoo Index'!E164,"") ->  | T91: =IF(R91,'Yahoo Index'!E97,"") ->  | X91: 106 | Y91: FALSE | Z91: =IF($F$69,'FRED Indicies'!E103) -> FALSE | AB91: =IF($F$69,'FRED Indicies'!D103) -> FALSE | AF91: 106 | AG91: FALSE | AH91: =IF(AG91,#REF!) -> FALSE | AN91: 88 | AO91: FALSE | AP91: =IF(AO91,'Commodity Prices'!C103) -> FALSE | AR91: =IF(AO91,'Commodity Prices'!D103) -> FALSE | AV91: 106 | AW91: FALSE | AX91: =IF(AW91,'Yahoo Stocks'!D97) -> FALSE | AZ91: =IF(AW91,'Yahoo Stocks'!E97) -> FALSE | BD91: 87 | BE91: FALSE | BF91: =IF(BE91,#REF!) -> FALSE | BH91: =IF(BE91,#REF!) -> FALSE | BL91: 134 | BM91: FALSE | BN91: ='FRED Series'!D103 -> 0 | BO91: Median Family Income LT | BP91: =IF(BM91,'FRED Series'!E103) -> FALSE | BQ91: Median Family Income LT | BR91: B | BS91: FRED
E92: comment | F92: FALSE | L92: 89 | Q92: 89 | R92: FALSE | S92: =IF(R92,'Yahoo Index'!E165,"") ->  | T92: =IF(R92,'Yahoo Index'!E98,"") ->  | X92: 107 | Y92: FALSE | Z92: =IF($F$69,'FRED Indicies'!E104) -> FALSE | AB92: =IF($F$69,'FRED Indicies'!D104) -> FALSE | AF92: 107 | AG92: FALSE | AH92: =IF(AG92,#REF!) -> FALSE | AN92: 89 | AO92: FALSE | AP92: =IF(AO92,'Commodity Prices'!C104) -> FALSE | AR92: =IF(AO92,'Commodity Prices'!D104) -> FALSE | AV92: 107 | AW92: FALSE | AX92: =IF(AW92,'Yahoo Stocks'!D98) -> FALSE | AZ92: =IF(AW92,'Yahoo Stocks'!E98) -> FALSE | BD92: 88 | BE92: FALSE | BF92: =IF(BE92,#REF!) -> FALSE | BH92: =IF(BE92,#REF!) -> FALSE | BL92: 135 | BM92: FALSE | BN92: ='FRED Series'!D104 -> 0 | BP92: =IF(BM92,'FRED Series'!E104) -> FALSE
L93: 90 | Q93: 90 | R93: FALSE | S93: =IF(R93,'Yahoo Index'!E166,"") ->  | T93: =IF(R93,'Yahoo Index'!E99,"") ->  | X93: 108 | Y93: FALSE | Z93: =IF($F$69,'FRED Indicies'!E105) -> FALSE | AB93: =IF($F$69,'FRED Indicies'!D105) -> FALSE | AF93: 108 | AG93: FALSE | AH93: =IF(AG93,#REF!) -> FALSE | AN93: 90 | AO93: FALSE | AP93: =IF(AO93,'Commodity Prices'!C105) -> FALSE | AR93: =IF(AO93,'Commodity Prices'!D105) -> FALSE | AV93: 108 | AW93: FALSE | AX93: =IF(AW93,'Yahoo Stocks'!D99) -> FALSE | AZ93: =IF(AW93,'Yahoo Stocks'!E99) -> FALSE | BD93: 89 | BE93: FALSE | BF93: =IF(BE93,#REF!) -> FALSE | BH93: =IF(BE93,#REF!) -> FALSE | BL93: 136 | BM93: FALSE | BN93: ='FRED Series'!D105 -> 0 | BP93: =IF(BM93,'FRED Series'!E105) -> FALSE
L94: 91 | Q94: 91 | R94: FALSE | S94: =IF(R94,'Yahoo Index'!E167,"") ->  | T94: =IF(R94,'Yahoo Index'!E100,"") ->  | X94: 109 | Y94: FALSE | Z94: =IF($F$69,'FRED Indicies'!E106) -> FALSE | AB94: =IF($F$69,'FRED Indicies'!D106) -> FALSE | AF94: 109 | AG94: FALSE | AH94: =IF(AG94,#REF!) -> FALSE | AN94: 91 | AO94: FALSE | AP94: =IF(AO94,'Commodity Prices'!C106) -> FALSE | AR94: =IF(AO94,'Commodity Prices'!D106) -> FALSE | AV94: 109 | AW94: FALSE | AX94: =IF(AW94,'Yahoo Stocks'!D100) -> FALSE | AZ94: =IF(AW94,'Yahoo Stocks'!E100) -> FALSE | BD94: 90 | BE94: FALSE | BF94: =IF(BE94,#REF!) -> FALSE | BH94: =IF(BE94,#REF!) -> FALSE | BL94: 137 | BM94: FALSE | BN94: ='FRED Series'!D106 -> 0 | BP94: =IF(BM94,'FRED Series'!E106) -> FALSE
L95: 92 | Q95: 92 | R95: FALSE | S95: =IF(R95,'Yahoo Index'!E168,"") ->  | T95: =IF(R95,'Yahoo Index'!E101,"") ->  | X95: 110 | Y95: FALSE | Z95: =IF($F$69,'FRED Indicies'!E107) -> FALSE | AB95: =IF($F$69,'FRED Indicies'!D107) -> FALSE | AF95: 110 | AG95: FALSE | AH95: =IF(AG95,#REF!) -> FALSE | AN95: 92 | AO95: FALSE | AP95: =IF(AO95,'Commodity Prices'!C107) -> FALSE | AR95: =IF(AO95,'Commodity Prices'!D107) -> FALSE | AV95: 110 | AW95: FALSE | AX95: =IF(AW95,'Yahoo Stocks'!D101) -> FALSE | AZ95: =IF(AW95,'Yahoo Stocks'!E101) -> FALSE | BD95: 91 | BE95: FALSE | BF95: =IF(BE95,#REF!) -> FALSE | BH95: =IF(BE95,#REF!) -> FALSE | BL95: 138 | BM95: FALSE | BN95: ='FRED Series'!D107 -> 0 | BP95: =IF(BM95,'FRED Series'!E107) -> FALSE
L96: 93 | Q96: 93 | R96: FALSE | S96: =IF(R96,'Yahoo Index'!E169,"") ->  | T96: =IF(R96,'Yahoo Index'!E102,"") ->  | X96: 111 | Y96: FALSE | Z96: =IF($F$69,'FRED Indicies'!E108) -> FALSE | AB96: =IF($F$69,'FRED Indicies'!D108) -> FALSE | AF96: 111 | AG96: FALSE | AH96: =IF(AG96,#REF!) -> FALSE | AN96: 93 | AO96: FALSE | AP96: =IF(AO96,'Commodity Prices'!C108) -> FALSE | AR96: =IF(AO96,'Commodity Prices'!D108) -> FALSE | AV96: 111 | AW96: FALSE | AX96: =IF(AW96,'Yahoo Stocks'!D102) -> FALSE | AZ96: =IF(AW96,'Yahoo Stocks'!E102) -> FALSE | BD96: 92 | BE96: FALSE | BF96: =IF(BE96,#REF!) -> FALSE | BH96: =IF(BE96,#REF!) -> FALSE | BL96: 139 | BM96: FALSE | BN96: ='FRED Series'!D108 -> 0 | BP96: =IF(BM96,'FRED Series'!E108) -> FALSE
L97: 94 | Q97: 94 | R97: FALSE | S97: =IF(R97,'Yahoo Index'!E170,"") ->  | T97: =IF(R97,'Yahoo Index'!E103,"") ->  | X97: 112 | Y97: FALSE | Z97: =IF($F$69,'FRED Indicies'!E109) -> FALSE | AB97: =IF($F$69,'FRED Indicies'!D109) -> FALSE | AF97: 112 | AG97: FALSE | AH97: =IF(AG97,#REF!) -> FALSE | AN97: 94 | AO97: FALSE | AP97: =IF(AO97,'Commodity Prices'!C109) -> FALSE | AR97: =IF(AO97,'Commodity Prices'!D109) -> FALSE | AV97: 112 | AW97: FALSE | AX97: =IF(AW97,'Yahoo Stocks'!D103) -> FALSE | AZ97: =IF(AW97,'Yahoo Stocks'!E103) -> FALSE | BD97: 93 | BE97: FALSE | BF97: =IF(BE97,#REF!) -> FALSE | BH97: =IF(BE97,#REF!) -> FALSE | BL97: 140 | BM97: FALSE | BN97: ='FRED Series'!D109 -> 0 | BP97: =IF(BM97,'FRED Series'!E109) -> FALSE
L98: 95 | Q98: 95 | R98: FALSE | S98: =IF(R98,'Yahoo Index'!E171,"") ->  | T98: =IF(R98,'Yahoo Index'!E104,"") ->  | X98: 113 | Y98: FALSE | Z98: =IF($F$69,'FRED Indicies'!E110) -> FALSE | AB98: =IF($F$69,'FRED Indicies'!D110) -> FALSE | AF98: 113 | AG98: FALSE | AH98: =IF(AG98,#REF!) -> FALSE | AN98: 95 | AO98: FALSE | AP98: =IF(AO98,'Commodity Prices'!C110) -> FALSE | AR98: =IF(AO98,'Commodity Prices'!D110) -> FALSE | AV98: 113 | AW98: FALSE | AX98: =IF(AW98,'Yahoo Stocks'!D104) -> FALSE | AZ98: =IF(AW98,'Yahoo Stocks'!E104) -> FALSE | BD98: 94 | BE98: FALSE | BF98: =IF(BE98,#REF!) -> FALSE | BH98: =IF(BE98,#REF!) -> FALSE | BL98: 141 | BM98: FALSE | BN98: ='FRED Series'!D110 -> 0 | BP98: =IF(BM98,'FRED Series'!E110) -> FALSE
L99: 96 | Q99: 96 | R99: FALSE | S99: =IF(R99,'Yahoo Index'!E172,"") ->  | T99: =IF(R99,'Yahoo Index'!E105,"") ->  | X99: 114 | Y99: FALSE | Z99: =IF($F$69,'FRED Indicies'!E111) -> FALSE | AB99: =IF($F$69,'FRED Indicies'!D111) -> FALSE | AF99: 114 | AG99: FALSE | AH99: =IF(AG99,#REF!) -> FALSE | AN99: 96 | AO99: FALSE | AP99: =IF(AO99,'Commodity Prices'!C111) -> FALSE | AR99: =IF(AO99,'Commodity Prices'!D111) -> FALSE | AV99: 114 | AW99: FALSE | AX99: =IF(AW99,'Yahoo Stocks'!D105) -> FALSE | AZ99: =IF(AW99,'Yahoo Stocks'!E105) -> FALSE | BD99: 95 | BE99: FALSE | BF99: =IF(BE99,#REF!) -> FALSE | BH99: =IF(BE99,#REF!) -> FALSE | BL99: 142 | BM99: FALSE | BN99: ='FRED Series'!D111 -> 0 | BP99: =IF(BM99,'FRED Series'!E111) -> FALSE
L100: 97 | N100: =T100&AC100&AK100&AS100&BA100&BI100&BQ100 ->  | O100: =U100&AD100&AL100&AT100&BB100&BJ100&BR100 ->  | P100: =V100&AE100&AM100&AU100&BC100&BK100&BS100 ->  | Q100: 97 | R100: FALSE | S100: =IF(R100,'Yahoo Index'!E173,"") ->  | T100: =IF(R100,'Yahoo Index'!E106,"") ->  | U100: =IF(R100,$I$4,"") ->  | V100: =IF(R100,$J$4,"") ->  | X100: 115 | Y100: =IF(AND($F$69,X100<=$H$69),X100) -> FALSE | Z100: =IF($F$69,'FRED Indicies'!E112) -> FALSE | AA100: =IFERROR(INDEX(Z:Z,MATCH(L100,Y:Y,0)),"") ->  | AB100: =IF($F$69,'FRED Indicies'!D112) -> FALSE | AC100: =IFERROR(INDEX(AB:AB,MATCH(L100,Y:Y,0)),"") ->  | AD100: =IF(AA100<>"",$I$69,"") ->  | AE100: =IF(AA100<>"",$J$69,"") ->  | AF100: 115 | AG100: =IF(AND($F$72,AF100<=$H$72),AF100) -> FALSE | AH100: =IF(AG100,#REF!) -> FALSE | AI100: =IFERROR(INDEX(AH:AH,MATCH(Q100,AG:AG,0)),"") ->  | AK100: =IFERROR(INDEX(AJ:AJ,MATCH(Q100,AG:AG,0)),"") ->  | AL100: =IF(AI100<>"",$I$69,"") ->  | AM100: =IF(AK100<>"",$J$69,"") ->  | AN100: 97 | AO100: =IF(AND($F$63,AN100<=$H$63),AN100) -> FALSE | AP100: =IF(AO100,'Commodity Prices'!C112) -> FALSE | AQ100: =IFERROR(INDEX(AP:AP,MATCH(L100,AO:AO,0)),"") ->  | AR100: =IF(AO100,'Commodity Prices'!D112) -> FALSE | AS100: =IFERROR(INDEX(AR:AR,MATCH(L100,AO:AO,0)),"") ->  | AT100: =IF(AQ100<>"",$I$63,"") ->  | AU100: =IF(AS100<>"",$J$63,"") ->  | AV100: 115 | AW100: =IF(AND($F$6,AV100<=$H$6),AV100) -> FALSE | AX100: =IF(AW100,'Yahoo Stocks'!D106) -> FALSE | AY100: =IFERROR(INDEX(AX:AX,MATCH(L100,AW:AW,0)),"") ->  | AZ100: =IF(AW100,'Yahoo Stocks'!E106) -> FALSE | BA100: =IFERROR(INDEX(AZ:AZ,MATCH(L100,AW:AW,0)),"") ->  | BB100: =IF(AY100<>"",$I$6,"") ->  | BC100: =IF(BA100<>"",$J$6,"") ->  | BD100: 96 | BE100: FALSE | BF100: =IF(BE100,#REF!) -> FALSE | BH100: =IF(BE100,#REF!) -> FALSE | BL100: 143 | BM100: =IF(AND($F$9,BL100<=$H$9),BL100) -> FALSE | BN100: ='FRED Series'!D112 -> 0 | BP100: =IF(BM100,'FRED Series'!E112) -> FALSE | BR100: =IF(BQ100<>"",$I$9,"") ->  | BS100: =IF(BQ100<>"",$J$9,"") -> 
L101: 98 | Q101: =Q100+1 -> 98 | R101: =IF(AND($F$4,Q101<=$H$4),Q101) -> FALSE | S101: =IF(R101,'Yahoo Index'!E174,"") ->  | T101: =IF(R101,'Yahoo Index'!E107,"") ->  | X101: =X100+1 -> 116 | Y101: FALSE | Z101: =IF($F$69,'FRED Indicies'!E113) -> FALSE | AB101: =IF($F$69,'FRED Indicies'!D113) -> FALSE | AF101: =AF100+1 -> 116 | AG101: FALSE | AH101: =IF(AG101,#REF!) -> FALSE | AN101: =AN100+1 -> 98 | AO101: FALSE | AP101: =IF(AO101,'Commodity Prices'!C113) -> FALSE | AR101: =IF(AO101,'Commodity Prices'!D113) -> FALSE | AV101: =AV100+1 -> 116 | AW101: FALSE | AX101: =IF(AW101,'Yahoo Stocks'!D107) -> FALSE | AZ101: =IF(AW101,'Yahoo Stocks'!E107) -> FALSE | BD101: =BD100+1 -> 97 | BE101: FALSE | BF101: =IF(BE101,#REF!) -> FALSE | BH101: =IF(BE101,#REF!) -> FALSE | BL101: =BL100+1 -> 144 | BM101: FALSE | BN101: ='FRED Series'!D113 -> 0 | BP101: =IF(BM101,'FRED Series'!E113) -> FALSE
L102: 99 | Q102: 99 | R102: FALSE | S102: =IF(R102,'Yahoo Index'!E175,"") ->  | T102: =IF(R102,'Yahoo Index'!E108,"") ->  | X102: 117 | Y102: FALSE | Z102: =IF($F$69,'FRED Indicies'!E114) -> FALSE | AB102: =IF($F$69,'FRED Indicies'!D114) -> FALSE | AF102: 117 | AG102: FALSE | AH102: =IF(AG102,#REF!) -> FALSE | AN102: 99 | AO102: FALSE | AP102: =IF(AO102,'Commodity Prices'!C114) -> FALSE | AR102: =IF(AO102,'Commodity Prices'!D114) -> FALSE | AV102: 117 | AW102: FALSE | AX102: =IF(AW102,'Yahoo Stocks'!D108) -> FALSE | AZ102: =IF(AW102,'Yahoo Stocks'!E108) -> FALSE | BD102: 98 | BE102: FALSE | BF102: =IF(BE102,#REF!) -> FALSE | BH102: =IF(BE102,#REF!) -> FALSE | BL102: 145 | BM102: FALSE | BN102: ='FRED Series'!D114 -> 0 | BP102: =IF(BM102,'FRED Series'!E114) -> FALSE
L103: 100 | Q103: 100 | R103: FALSE | S103: =IF(R103,'Yahoo Index'!E176,"") ->  | T103: =IF(R103,'Yahoo Index'!E109,"") ->  | X103: 118 | Y103: FALSE | Z103: =IF($F$69,'FRED Indicies'!E115) -> FALSE | AB103: =IF($F$69,'FRED Indicies'!D115) -> FALSE | AF103: 118 | AG103: FALSE | AH103: =IF(AG103,#REF!) -> FALSE | AN103: 100 | AO103: FALSE | AP103: =IF(AO103,'Commodity Prices'!C115) -> FALSE | AR103: =IF(AO103,'Commodity Prices'!D115) -> FALSE | AV103: 118 | AW103: FALSE | AX103: =IF(AW103,'Yahoo Stocks'!D109) -> FALSE | AZ103: =IF(AW103,'Yahoo Stocks'!E109) -> FALSE | BD103: 99 | BE103: FALSE | BF103: =IF(BE103,#REF!) -> FALSE | BH103: =IF(BE103,#REF!) -> FALSE | BL103: 146 | BM103: FALSE | BN103: ='FRED Series'!D115 -> 0 | BP103: =IF(BM103,'FRED Series'!E115) -> FALSE
L104: 101 | Q104: 101 | R104: FALSE | S104: =IF(R104,'Yahoo Index'!E177,"") ->  | T104: =IF(R104,'Yahoo Index'!E110,"") ->  | X104: 119 | Y104: FALSE | Z104: =IF($F$69,'FRED Indicies'!E116) -> FALSE | AB104: =IF($F$69,'FRED Indicies'!D116) -> FALSE | AF104: 119 | AG104: FALSE | AH104: =IF(AG104,#REF!) -> FALSE | AN104: 101 | AO104: FALSE | AP104: =IF(AO104,'Commodity Prices'!C116) -> FALSE | AR104: =IF(AO104,'Commodity Prices'!D116) -> FALSE | AV104: 119 | AW104: FALSE | AX104: =IF(AW104,'Yahoo Stocks'!D110) -> FALSE | AZ104: =IF(AW104,'Yahoo Stocks'!E110) -> FALSE | BD104: 100 | BE104: FALSE | BF104: =IF(BE104,#REF!) -> FALSE | BH104: =IF(BE104,#REF!) -> FALSE | BL104: 147 | BM104: FALSE | BN104: ='FRED Series'!D116 -> 0 | BP104: =IF(BM104,'FRED Series'!E116) -> FALSE
L105: 102 | M105: =S105&AA105&AI105&AQ105&AY105&BG105&BO105 ->  | Q105: 102 | R105: FALSE | S105: =IF(R105,'Yahoo Index'!E178,"") ->  | T105: =IF(R105,'Yahoo Index'!E111,"") ->  | X105: 120 | Y105: FALSE | Z105: =IF($F$69,'FRED Indicies'!E117) -> FALSE | AB105: =IF($F$69,'FRED Indicies'!D117) -> FALSE | AF105: 120 | AG105: FALSE | AH105: =IF(AG105,#REF!) -> FALSE | AN105: 102 | AO105: FALSE | AP105: =IF(AO105,'Commodity Prices'!C117) -> FALSE | AR105: =IF(AO105,'Commodity Prices'!D117) -> FALSE | AV105: 120 | AW105: FALSE | AX105: =IF(AW105,'Yahoo Stocks'!D111) -> FALSE | AZ105: =IF(AW105,'Yahoo Stocks'!E111) -> FALSE | BD105: 101 | BE105: FALSE | BF105: =IF(BE105,#REF!) -> FALSE | BH105: =IF(BE105,#REF!) -> FALSE | BL105: 148 | BM105: FALSE | BN105: ='FRED Series'!D117 -> 0 | BP105: =IF(BM105,'FRED Series'!E117) -> FALSE
L106: 103 | Q106: 103 | R106: FALSE | S106: =IF(R106,'Yahoo Index'!E179,"") ->  | T106: =IF(R106,'Yahoo Index'!E112,"") ->  | X106: 121 | Y106: FALSE | Z106: =IF($F$69,'FRED Indicies'!E118) -> FALSE | AB106: =IF($F$69,'FRED Indicies'!D118) -> FALSE | AF106: 121 | AG106: FALSE | AH106: =IF(AG106,#REF!) -> FALSE | AN106: 103 | AO106: FALSE | AP106: =IF(AO106,'Commodity Prices'!C118) -> FALSE | AR106: =IF(AO106,'Commodity Prices'!D118) -> FALSE | AV106: 121 | AW106: FALSE | AX106: =IF(AW106,'Yahoo Stocks'!D112) -> FALSE | AZ106: =IF(AW106,'Yahoo Stocks'!E112) -> FALSE | BD106: 102 | BE106: FALSE | BF106: =IF(BE106,#REF!) -> FALSE | BH106: =IF(BE106,#REF!) -> FALSE | BL106: 149 | BM106: FALSE | BN106: ='FRED Series'!D118 -> 0 | BP106: =IF(BM106,'FRED Series'!E118) -> FALSE
L107: 104 | Q107: 104 | R107: FALSE | S107: =IF(R107,'Yahoo Index'!E180,"") ->  | T107: =IF(R107,'Yahoo Index'!E113,"") ->  | X107: 122 | Y107: FALSE | Z107: =IF($F$69,'FRED Indicies'!E119) -> FALSE | AB107: =IF($F$69,'FRED Indicies'!D119) -> FALSE | AF107: 122 | AG107: FALSE | AH107: =IF(AG107,#REF!) -> FALSE | AN107: 104 | AO107: FALSE | AP107: =IF(AO107,'Commodity Prices'!C119) -> FALSE | AR107: =IF(AO107,'Commodity Prices'!D119) -> FALSE | AV107: 122 | AW107: FALSE | AX107: =IF(AW107,'Yahoo Stocks'!D113) -> FALSE | AZ107: =IF(AW107,'Yahoo Stocks'!E113) -> FALSE | BD107: 103 | BE107: FALSE | BF107: =IF(BE107,#REF!) -> FALSE | BH107: =IF(BE107,#REF!) -> FALSE | BL107: 150 | BM107: FALSE | BN107: ='FRED Series'!D119 -> 0 | BP107: =IF(BM107,'FRED Series'!E119) -> FALSE
L108: 105 | Q108: 105 | R108: FALSE | S108: =IF(R108,'Yahoo Index'!E181,"") ->  | T108: =IF(R108,'Yahoo Index'!E114,"") ->  | X108: 123 | Y108: FALSE | Z108: =IF($F$69,'FRED Indicies'!E120) -> FALSE | AB108: =IF($F$69,'FRED Indicies'!D120) -> FALSE | AF108: 123 | AG108: FALSE | AH108: =IF(AG108,#REF!) -> FALSE | AN108: 105 | AO108: FALSE | AP108: =IF(AO108,'Commodity Prices'!C120) -> FALSE | AR108: =IF(AO108,'Commodity Prices'!D120) -> FALSE | AV108: 123 | AW108: FALSE | AX108: =IF(AW108,'Yahoo Stocks'!D114) -> FALSE | AZ108: =IF(AW108,'Yahoo Stocks'!E114) -> FALSE | BD108: 104 | BE108: FALSE | BF108: =IF(BE108,#REF!) -> FALSE | BH108: =IF(BE108,#REF!) -> FALSE | BL108: 151 | BM108: FALSE | BN108: ='FRED Series'!D120 -> 0 | BP108: =IF(BM108,'FRED Series'!E120) -> FALSE
L109: 106 | Q109: 106 | R109: FALSE | S109: =IF(R109,'Yahoo Index'!E182,"") ->  | T109: =IF(R109,'Yahoo Index'!E115,"") ->  | X109: 124 | Y109: FALSE | Z109: =IF($F$69,'FRED Indicies'!E121) -> FALSE | AB109: =IF($F$69,'FRED Indicies'!D121) -> FALSE | AF109: 124 | AG109: FALSE | AH109: =IF(AG109,#REF!) -> FALSE | AN109: 106 | AO109: FALSE | AP109: =IF(AO109,'Commodity Prices'!C121) -> FALSE | AR109: =IF(AO109,'Commodity Prices'!D121) -> FALSE | AV109: 124 | AW109: FALSE | AX109: =IF(AW109,'Yahoo Stocks'!D115) -> FALSE | AZ109: =IF(AW109,'Yahoo Stocks'!E115) -> FALSE | BD109: 105 | BE109: FALSE | BF109: =IF(BE109,#REF!) -> FALSE | BH109: =IF(BE109,#REF!) -> FALSE | BL109: 152 | BM109: FALSE | BN109: ='FRED Series'!D121 -> 0 | BP109: =IF(BM109,'FRED Series'!E121) -> FALSE
L110: 107 | Q110: 107 | R110: FALSE | S110: =IF(R110,'Yahoo Index'!E183,"") ->  | T110: =IF(R110,'Yahoo Index'!E116,"") ->  | X110: 125 | Y110: FALSE | Z110: =IF($F$69,'FRED Indicies'!E122) -> FALSE | AB110: =IF($F$69,'FRED Indicies'!D122) -> FALSE | AF110: 125 | AG110: FALSE | AH110: =IF(AG110,#REF!) -> FALSE | AN110: 107 | AO110: FALSE | AP110: =IF(AO110,'Commodity Prices'!C122) -> FALSE | AR110: =IF(AO110,'Commodity Prices'!D122) -> FALSE | AV110: 125 | AW110: FALSE | AX110: =IF(AW110,'Yahoo Stocks'!D116) -> FALSE | AZ110: =IF(AW110,'Yahoo Stocks'!E116) -> FALSE | BD110: 106 | BE110: FALSE | BF110: =IF(BE110,#REF!) -> FALSE | BH110: =IF(BE110,#REF!) -> FALSE | BL110: 153 | BM110: FALSE | BN110: ='FRED Series'!D122 -> 0 | BP110: =IF(BM110,'FRED Series'!E122) -> FALSE
L111: 108 | Q111: 108 | R111: FALSE | S111: =IF(R111,'Yahoo Index'!E184,"") ->  | T111: =IF(R111,'Yahoo Index'!E117,"") ->  | X111: 126 | Y111: FALSE | Z111: =IF($F$69,'FRED Indicies'!E123) -> FALSE | AB111: =IF($F$69,'FRED Indicies'!D123) -> FALSE | AF111: 126 | AG111: FALSE | AH111: =IF(AG111,#REF!) -> FALSE | AN111: 108 | AO111: FALSE | AP111: =IF(AO111,'Commodity Prices'!C123) -> FALSE | AR111: =IF(AO111,'Commodity Prices'!D123) -> FALSE | AV111: 126 | AW111: FALSE | AX111: =IF(AW111,'Yahoo Stocks'!D117) -> FALSE | AZ111: =IF(AW111,'Yahoo Stocks'!E117) -> FALSE | BD111: 107 | BE111: FALSE | BF111: =IF(BE111,#REF!) -> FALSE | BH111: =IF(BE111,#REF!) -> FALSE | BL111: 154 | BM111: FALSE | BN111: ='FRED Series'!D123 -> 0 | BP111: =IF(BM111,'FRED Series'!E123) -> FALSE
L112: 109 | Q112: 109 | R112: FALSE | S112: =IF(R112,'Yahoo Index'!E185,"") ->  | T112: =IF(R112,'Yahoo Index'!E118,"") ->  | X112: 127 | Y112: FALSE | Z112: =IF($F$69,'FRED Indicies'!E124) -> FALSE | AB112: =IF($F$69,'FRED Indicies'!D124) -> FALSE | AF112: 127 | AG112: FALSE | AH112: =IF(AG112,#REF!) -> FALSE | AN112: 109 | AO112: FALSE | AP112: =IF(AO112,'Commodity Prices'!C124) -> FALSE | AR112: =IF(AO112,'Commodity Prices'!D124) -> FALSE | AV112: 127 | AW112: FALSE | AX112: =IF(AW112,'Yahoo Stocks'!D118) -> FALSE | AZ112: =IF(AW112,'Yahoo Stocks'!E118) -> FALSE | BD112: 108 | BE112: FALSE | BF112: =IF(BE112,#REF!) -> FALSE | BH112: =IF(BE112,#REF!) -> FALSE | BL112: 155 | BM112: FALSE | BN112: ='FRED Series'!D124 -> 0 | BP112: =IF(BM112,'FRED Series'!E124) -> FALSE
L113: 110 | Q113: 110 | R113: FALSE | S113: =IF(R113,'Yahoo Index'!E186,"") ->  | T113: =IF(R113,'Yahoo Index'!E119,"") ->  | X113: 128 | Y113: FALSE | Z113: =IF($F$69,'FRED Indicies'!E125) -> FALSE | AB113: =IF($F$69,'FRED Indicies'!D125) -> FALSE | AF113: 128 | AG113: FALSE | AH113: =IF(AG113,#REF!) -> FALSE | AN113: 110 | AO113: FALSE | AP113: =IF(AO113,'Commodity Prices'!C125) -> FALSE | AR113: =IF(AO113,'Commodity Prices'!D125) -> FALSE | AV113: 128 | AW113: FALSE | AX113: =IF(AW113,'Yahoo Stocks'!D119) -> FALSE | AZ113: =IF(AW113,'Yahoo Stocks'!E119) -> FALSE | BD113: 109 | BE113: FALSE | BF113: =IF(BE113,#REF!) -> FALSE | BH113: =IF(BE113,#REF!) -> FALSE | BL113: 156 | BM113: FALSE | BN113: ='FRED Series'!D125 -> 0 | BP113: =IF(BM113,'FRED Series'!E125) -> FALSE
L114: 111 | Q114: 111 | R114: FALSE | S114: =IF(R114,'Yahoo Index'!E187,"") ->  | T114: =IF(R114,'Yahoo Index'!E120,"") ->  | X114: 129 | Y114: FALSE | Z114: =IF($F$69,'FRED Indicies'!E126) -> FALSE | AB114: =IF($F$69,'FRED Indicies'!D126) -> FALSE | AF114: 129 | AG114: FALSE | AH114: =IF(AG114,#REF!) -> FALSE | AN114: 111 | AO114: FALSE | AP114: =IF(AO114,'Commodity Prices'!C126) -> FALSE | AR114: =IF(AO114,'Commodity Prices'!D126) -> FALSE | AV114: 129 | AW114: FALSE | AX114: =IF(AW114,'Yahoo Stocks'!D120) -> FALSE | AZ114: =IF(AW114,'Yahoo Stocks'!E120) -> FALSE | BD114: 110 | BE114: FALSE | BF114: =IF(BE114,#REF!) -> FALSE | BH114: =IF(BE114,#REF!) -> FALSE | BL114: 157 | BM114: FALSE | BN114: ='FRED Series'!D126 -> 0 | BP114: =IF(BM114,'FRED Series'!E126) -> FALSE
L115: 112 | Q115: 112 | R115: FALSE | S115: =IF(R115,'Yahoo Index'!E188,"") ->  | T115: =IF(R115,'Yahoo Index'!E121,"") ->  | X115: 130 | Y115: FALSE | Z115: =IF($F$69,'FRED Indicies'!E127) -> FALSE | AB115: =IF($F$69,'FRED Indicies'!D127) -> FALSE | AF115: 130 | AG115: FALSE | AH115: =IF(AG115,#REF!) -> FALSE | AN115: 112 | AO115: FALSE | AP115: =IF(AO115,'Commodity Prices'!C127) -> FALSE | AR115: =IF(AO115,'Commodity Prices'!D127) -> FALSE | AV115: 130 | AW115: FALSE | AX115: =IF(AW115,'Yahoo Stocks'!D121) -> FALSE | AZ115: =IF(AW115,'Yahoo Stocks'!E121) -> FALSE | BD115: 111 | BE115: FALSE | BF115: =IF(BE115,#REF!) -> FALSE | BH115: =IF(BE115,#REF!) -> FALSE | BL115: 158 | BM115: FALSE | BN115: ='FRED Series'!D127 -> 0 | BP115: =IF(BM115,'FRED Series'!E127) -> FALSE
L116: 113 | Q116: 113 | R116: FALSE | S116: =IF(R116,'Yahoo Index'!E189,"") ->  | T116: =IF(R116,'Yahoo Index'!E122,"") ->  | X116: 131 | Y116: FALSE | Z116: =IF($F$69,'FRED Indicies'!E128) -> FALSE | AB116: =IF($F$69,'FRED Indicies'!D128) -> FALSE | AF116: 131 | AG116: FALSE | AH116: =IF(AG116,#REF!) -> FALSE | AN116: 113 | AO116: FALSE | AP116: =IF(AO116,'Commodity Prices'!C128) -> FALSE | AR116: =IF(AO116,'Commodity Prices'!D128) -> FALSE | AV116: 131 | AW116: FALSE | AX116: =IF(AW116,'Yahoo Stocks'!D122) -> FALSE | AZ116: =IF(AW116,'Yahoo Stocks'!E122) -> FALSE | BD116: 112 | BE116: FALSE | BF116: =IF(BE116,#REF!) -> FALSE | BH116: =IF(BE116,#REF!) -> FALSE | BL116: 159 | BM116: FALSE | BN116: ='FRED Series'!D128 -> 0 | BP116: =IF(BM116,'FRED Series'!E128) -> FALSE
L117: 114 | Q117: 114 | R117: FALSE | S117: =IF(R117,'Yahoo Index'!E190,"") ->  | T117: =IF(R117,'Yahoo Index'!E123,"") ->  | X117: 132 | Y117: FALSE | Z117: =IF($F$69,'FRED Indicies'!E129) -> FALSE | AB117: =IF($F$69,'FRED Indicies'!D129) -> FALSE | AF117: 132 | AG117: FALSE | AH117: =IF(AG117,#REF!) -> FALSE | AN117: 114 | AO117: FALSE | AP117: =IF(AO117,'Commodity Prices'!C129) -> FALSE | AR117: =IF(AO117,'Commodity Prices'!D129) -> FALSE | AV117: 132 | AW117: FALSE | AX117: =IF(AW117,'Yahoo Stocks'!D123) -> FALSE | AZ117: =IF(AW117,'Yahoo Stocks'!E123) -> FALSE | BD117: 113 | BE117: FALSE | BF117: =IF(BE117,#REF!) -> FALSE | BH117: =IF(BE117,#REF!) -> FALSE | BL117: 160 | BM117: FALSE | BN117: ='FRED Series'!D129 -> 0 | BP117: =IF(BM117,'FRED Series'!E129) -> FALSE
L118: 115 | Q118: 115 | R118: FALSE | S118: =IF(R118,'Yahoo Index'!E191,"") ->  | T118: =IF(R118,'Yahoo Index'!E124,"") ->  | X118: 133 | Y118: FALSE | Z118: =IF($F$69,'FRED Indicies'!E130) -> FALSE | AB118: =IF($F$69,'FRED Indicies'!D130) -> FALSE | AF118: 133 | AG118: FALSE | AH118: =IF(AG118,#REF!) -> FALSE | AN118: 115 | AO118: FALSE | AP118: =IF(AO118,'Commodity Prices'!C130) -> FALSE | AR118: =IF(AO118,'Commodity Prices'!D130) -> FALSE | AV118: 133 | AW118: FALSE | AX118: =IF(AW118,'Yahoo Stocks'!D124) -> FALSE | AZ118: =IF(AW118,'Yahoo Stocks'!E124) -> FALSE | BD118: 114 | BE118: FALSE | BF118: =IF(BE118,#REF!) -> FALSE | BH118: =IF(BE118,#REF!) -> FALSE | BL118: 161 | BM118: FALSE | BN118: ='FRED Series'!D130 -> 0 | BP118: =IF(BM118,'FRED Series'!E130) -> FALSE
L119: 116 | Q119: 116 | R119: FALSE | S119: =IF(R119,'Yahoo Index'!E192,"") ->  | T119: =IF(R119,'Yahoo Index'!E125,"") ->  | X119: 134 | Y119: FALSE | Z119: =IF($F$69,'FRED Indicies'!E131) -> FALSE | AB119: =IF($F$69,'FRED Indicies'!D131) -> FALSE | AF119: 134 | AG119: FALSE | AH119: =IF(AG119,#REF!) -> FALSE | AN119: 116 | AO119: FALSE | AP119: =IF(AO119,'Commodity Prices'!C131) -> FALSE | AR119: =IF(AO119,'Commodity Prices'!D131) -> FALSE | AV119: 134 | AW119: FALSE | AX119: =IF(AW119,'Yahoo Stocks'!D125) -> FALSE | AZ119: =IF(AW119,'Yahoo Stocks'!E125) -> FALSE | BD119: 115 | BE119: FALSE | BF119: =IF(BE119,#REF!) -> FALSE | BH119: =IF(BE119,#REF!) -> FALSE | BL119: 162 | BM119: FALSE | BN119: ='FRED Series'!D131 -> 0 | BP119: =IF(BM119,'FRED Series'!E131) -> FALSE
L120: 117 | Q120: 117 | R120: FALSE | S120: =IF(R120,'Yahoo Index'!E193,"") ->  | T120: =IF(R120,'Yahoo Index'!E126,"") ->  | X120: 135 | Y120: FALSE | Z120: =IF($F$69,'FRED Indicies'!E132) -> FALSE | AB120: =IF($F$69,'FRED Indicies'!D132) -> FALSE | AF120: 135 | AG120: FALSE | AH120: =IF(AG120,#REF!) -> FALSE | AN120: 117 | AO120: FALSE | AP120: =IF(AO120,'Commodity Prices'!C132) -> FALSE | AR120: =IF(AO120,'Commodity Prices'!D132) -> FALSE | AV120: 135 | AW120: FALSE | AX120: =IF(AW120,'Yahoo Stocks'!D126) -> FALSE | AZ120: =IF(AW120,'Yahoo Stocks'!E126) -> FALSE | BD120: 116 | BE120: FALSE | BF120: =IF(BE120,#REF!) -> FALSE | BH120: =IF(BE120,#REF!) -> FALSE | BL120: 163 | BM120: FALSE | BN120: ='FRED Series'!D132 -> 0 | BP120: =IF(BM120,'FRED Series'!E132) -> FALSE
L121: 118 | Q121: 118 | R121: FALSE | S121: =IF(R121,'Yahoo Index'!E194,"") ->  | T121: =IF(R121,'Yahoo Index'!E127,"") ->  | X121: 136 | Y121: FALSE | Z121: =IF($F$69,'FRED Indicies'!E133) -> FALSE | AB121: =IF($F$69,'FRED Indicies'!D133) -> FALSE | AF121: 136 | AG121: FALSE | AH121: =IF(AG121,#REF!) -> FALSE | AN121: 118 | AO121: FALSE | AP121: =IF(AO121,'Commodity Prices'!C133) -> FALSE | AR121: =IF(AO121,'Commodity Prices'!D133) -> FALSE | AV121: 136 | AW121: FALSE | AX121: =IF(AW121,'Yahoo Stocks'!D127) -> FALSE | AZ121: =IF(AW121,'Yahoo Stocks'!E127) -> FALSE | BD121: 117 | BE121: FALSE | BF121: =IF(BE121,#REF!) -> FALSE | BH121: =IF(BE121,#REF!) -> FALSE | BL121: 164 | BM121: FALSE | BN121: ='FRED Series'!D133 -> 0 | BP121: =IF(BM121,'FRED Series'!E133) -> FALSE
L122: 119 | Q122: 119 | R122: FALSE | S122: =IF(R122,'Yahoo Index'!E195,"") ->  | T122: =IF(R122,'Yahoo Index'!E128,"") ->  | X122: 137 | Y122: FALSE | Z122: =IF($F$69,'FRED Indicies'!E134) -> FALSE | AB122: =IF($F$69,'FRED Indicies'!D134) -> FALSE | AF122: 137 | AG122: FALSE | AH122: =IF(AG122,#REF!) -> FALSE | AN122: 119 | AO122: FALSE | AP122: =IF(AO122,'Commodity Prices'!C134) -> FALSE | AR122: =IF(AO122,'Commodity Prices'!D134) -> FALSE | AV122: 137 | AW122: FALSE | AX122: =IF(AW122,'Yahoo Stocks'!D128) -> FALSE | AZ122: =IF(AW122,'Yahoo Stocks'!E128) -> FALSE | BD122: 118 | BE122: FALSE | BF122: =IF(BE122,#REF!) -> FALSE | BH122: =IF(BE122,#REF!) -> FALSE | BL122: 165 | BM122: FALSE | BN122: ='FRED Series'!D134 -> 0 | BP122: =IF(BM122,'FRED Series'!E134) -> FALSE
L123: 120 | Q123: 120 | R123: FALSE | S123: =IF(R123,'Yahoo Index'!E196,"") ->  | T123: =IF(R123,'Yahoo Index'!E129,"") ->  | X123: 138 | Y123: FALSE | Z123: =IF($F$69,'FRED Indicies'!E135) -> FALSE | AB123: =IF($F$69,'FRED Indicies'!D135) -> FALSE | AF123: 138 | AG123: FALSE | AH123: =IF(AG123,#REF!) -> FALSE | AN123: 120 | AO123: FALSE | AP123: =IF(AO123,'Commodity Prices'!C135) -> FALSE | AR123: =IF(AO123,'Commodity Prices'!D135) -> FALSE | AV123: 138 | AW123: FALSE | AX123: =IF(AW123,'Yahoo Stocks'!D129) -> FALSE | AZ123: =IF(AW123,'Yahoo Stocks'!E129) -> FALSE | BD123: 119 | BE123: FALSE | BF123: =IF(BE123,#REF!) -> FALSE | BH123: =IF(BE123,#REF!) -> FALSE | BL123: 166 | BM123: FALSE | BN123: ='FRED Series'!D135 -> 0 | BP123: =IF(BM123,'FRED Series'!E135) -> FALSE
L124: 121 | Q124: 121 | R124: FALSE | S124: =IF(R124,'Yahoo Index'!E197,"") ->  | T124: =IF(R124,'Yahoo Index'!E130,"") ->  | X124: 139 | Y124: FALSE | Z124: =IF($F$69,'FRED Indicies'!E136) -> FALSE | AB124: =IF($F$69,'FRED Indicies'!D136) -> FALSE | AF124: 139 | AG124: FALSE | AH124: =IF(AG124,#REF!) -> FALSE | AN124: 121 | AO124: FALSE | AP124: =IF(AO124,'Commodity Prices'!C136) -> FALSE | AR124: =IF(AO124,'Commodity Prices'!D136) -> FALSE | AV124: 139 | AW124: FALSE | AX124: =IF(AW124,'Yahoo Stocks'!D130) -> FALSE | AZ124: =IF(AW124,'Yahoo Stocks'!E130) -> FALSE | BD124: 120 | BE124: FALSE | BF124: =IF(BE124,#REF!) -> FALSE | BH124: =IF(BE124,#REF!) -> FALSE | BL124: 167 | BM124: FALSE | BN124: ='FRED Series'!D136 -> 0 | BP124: =IF(BM124,'FRED Series'!E136) -> FALSE
L125: 122 | Q125: 122 | R125: FALSE | S125: =IF(R125,'Yahoo Index'!E198,"") ->  | T125: =IF(R125,'Yahoo Index'!E131,"") ->  | X125: 140 | Y125: FALSE | Z125: =IF($F$69,'FRED Indicies'!E137) -> FALSE | AB125: =IF($F$69,'FRED Indicies'!D137) -> FALSE | AF125: 140 | AG125: FALSE | AH125: =IF(AG125,#REF!) -> FALSE | AN125: 122 | AO125: FALSE | AP125: =IF(AO125,'Commodity Prices'!C137) -> FALSE | AR125: =IF(AO125,'Commodity Prices'!D137) -> FALSE | AV125: 140 | AW125: FALSE | AX125: =IF(AW125,'Yahoo Stocks'!D131) -> FALSE | AZ125: =IF(AW125,'Yahoo Stocks'!E131) -> FALSE | BD125: 121 | BE125: FALSE | BF125: =IF(BE125,#REF!) -> FALSE | BH125: =IF(BE125,#REF!) -> FALSE | BL125: 168 | BM125: FALSE | BN125: ='FRED Series'!D137 -> 0 | BP125: =IF(BM125,'FRED Series'!E137) -> FALSE
L126: 123 | Q126: 123 | R126: FALSE | S126: =IF(R126,'Yahoo Index'!E199,"") ->  | T126: =IF(R126,'Yahoo Index'!E132,"") ->  | X126: 141 | Y126: FALSE | Z126: =IF($F$69,'FRED Indicies'!E138) -> FALSE | AB126: =IF($F$69,'FRED Indicies'!D138) -> FALSE | AF126: 141 | AG126: FALSE | AH126: =IF(AG126,#REF!) -> FALSE | AN126: 123 | AO126: FALSE | AP126: =IF(AO126,'Commodity Prices'!C138) -> FALSE | AR126: =IF(AO126,'Commodity Prices'!D138) -> FALSE | AV126: 141 | AW126: FALSE | AX126: =IF(AW126,'Yahoo Stocks'!D132) -> FALSE | AZ126: =IF(AW126,'Yahoo Stocks'!E132) -> FALSE | BD126: 122 | BE126: FALSE | BF126: =IF(BE126,#REF!) -> FALSE | BH126: =IF(BE126,#REF!) -> FALSE | BL126: 169 | BM126: FALSE | BN126: ='FRED Series'!D138 -> 0 | BP126: =IF(BM126,'FRED Series'!E138) -> FALSE
L127: 124 | Q127: 124 | R127: FALSE | S127: =IF(R127,'Yahoo Index'!E200,"") ->  | T127: =IF(R127,'Yahoo Index'!E133,"") ->  | X127: 142 | Y127: FALSE | Z127: =IF($F$69,'FRED Indicies'!E139) -> FALSE | AB127: =IF($F$69,'FRED Indicies'!D139) -> FALSE | AF127: 142 | AG127: FALSE | AH127: =IF(AG127,#REF!) -> FALSE | AN127: 124 | AO127: FALSE | AP127: =IF(AO127,'Commodity Prices'!C139) -> FALSE | AR127: =IF(AO127,'Commodity Prices'!D139) -> FALSE | AV127: 142 | AW127: FALSE | AX127: =IF(AW127,'Yahoo Stocks'!D133) -> FALSE | AZ127: =IF(AW127,'Yahoo Stocks'!E133) -> FALSE | BD127: 123 | BE127: FALSE | BF127: =IF(BE127,#REF!) -> FALSE | BH127: =IF(BE127,#REF!) -> FALSE | BL127: 170 | BM127: FALSE | BN127: ='FRED Series'!D139 -> 0 | BP127: =IF(BM127,'FRED Series'!E139) -> FALSE
L128: 125 | Q128: 125 | R128: FALSE | S128: =IF(R128,'Yahoo Index'!E201,"") ->  | T128: =IF(R128,'Yahoo Index'!E134,"") ->  | X128: 143 | Y128: FALSE | Z128: =IF($F$69,'FRED Indicies'!E140) -> FALSE | AB128: =IF($F$69,'FRED Indicies'!D140) -> FALSE | AF128: 143 | AG128: FALSE | AH128: =IF(AG128,#REF!) -> FALSE | AN128: 125 | AO128: FALSE | AP128: =IF(AO128,'Commodity Prices'!C140) -> FALSE | AR128: =IF(AO128,'Commodity Prices'!D140) -> FALSE | AV128: 143 | AW128: FALSE | AX128: =IF(AW128,'Yahoo Stocks'!D134) -> FALSE | AZ128: =IF(AW128,'Yahoo Stocks'!E134) -> FALSE | BD128: 124 | BE128: FALSE | BF128: =IF(BE128,#REF!) -> FALSE | BH128: =IF(BE128,#REF!) -> FALSE | BL128: 171 | BM128: FALSE | BN128: ='FRED Series'!D140 -> 0 | BP128: =IF(BM128,'FRED Series'!E140) -> FALSE
L129: 126 | Q129: 126 | R129: FALSE | X129: 144 | Y129: FALSE | Z129: =IF($F$69,'FRED Indicies'!E141) -> FALSE | AB129: =IF($F$69,'FRED Indicies'!D141) -> FALSE | AF129: 144 | AG129: FALSE | AH129: =IF(AG129,#REF!) -> FALSE | AN129: 126 | AO129: FALSE | AP129: =IF(AO129,'Commodity Prices'!C141) -> FALSE | AR129: =IF(AO129,'Commodity Prices'!D141) -> FALSE | AV129: 144 | AW129: FALSE | AX129: =IF(AW129,'Yahoo Stocks'!D135) -> FALSE | AZ129: =IF(AW129,'Yahoo Stocks'!E135) -> FALSE | BD129: 125 | BE129: FALSE | BF129: =IF(BE129,#REF!) -> FALSE | BH129: =IF(BE129,#REF!) -> FALSE | BL129: 172 | BM129: FALSE | BN129: ='FRED Series'!D141 -> 0 | BP129: =IF(BM129,'FRED Series'!E141) -> FALSE
L130: 127 | Q130: 127 | R130: FALSE | X130: 145 | Y130: FALSE | Z130: =IF($F$69,'FRED Indicies'!E142) -> FALSE | AB130: =IF($F$69,'FRED Indicies'!D142) -> FALSE | AF130: 145 | AG130: FALSE | AH130: =IF(AG130,#REF!) -> FALSE | AN130: 127 | AO130: FALSE | AP130: =IF(AO130,'Commodity Prices'!C142) -> FALSE | AR130: =IF(AO130,'Commodity Prices'!D142) -> FALSE | AV130: 145 | AW130: FALSE | AX130: =IF(AW130,'Yahoo Stocks'!D136) -> FALSE | AZ130: =IF(AW130,'Yahoo Stocks'!E136) -> FALSE | BD130: 126 | BE130: FALSE | BF130: =IF(BE130,#REF!) -> FALSE | BH130: =IF(BE130,#REF!) -> FALSE | BL130: 173 | BM130: FALSE | BN130: ='FRED Series'!D142 -> 0 | BP130: =IF(BM130,'FRED Series'!E142) -> FALSE
L131: 128 | Q131: 128 | R131: FALSE | X131: 146 | Y131: FALSE | Z131: =IF($F$69,'FRED Indicies'!E143) -> FALSE | AB131: =IF($F$69,'FRED Indicies'!D143) -> FALSE | AF131: 146 | AG131: FALSE | AH131: =IF(AG131,#REF!) -> FALSE | AN131: 128 | AO131: FALSE | AP131: =IF(AO131,'Commodity Prices'!C143) -> FALSE | AR131: =IF(AO131,'Commodity Prices'!D143) -> FALSE | AV131: 146 | AW131: FALSE | AX131: =IF(AW131,'Yahoo Stocks'!D137) -> FALSE | AZ131: =IF(AW131,'Yahoo Stocks'!E137) -> FALSE | BD131: 127 | BE131: FALSE | BF131: =IF(BE131,#REF!) -> FALSE | BH131: =IF(BE131,#REF!) -> FALSE | BL131: 174 | BM131: FALSE | BN131: ='FRED Series'!D143 -> 0 | BP131: =IF(BM131,'FRED Series'!E143) -> FALSE
L132: 129 | O132: =U132&AD132&AL132&AT132&BB132&BJ132&BR132 ->  | P132: =V132&AE132&AM132&AU132&BC132&BK132&BS132 ->  | Q132: 129 | R132: FALSE | X132: 147 | Y132: =IF(AND($F$69,X132<=$H$69),X132) -> FALSE | Z132: =IF($F$69,'FRED Indicies'!E144) -> FALSE | AA132: =IFERROR(INDEX(Z:Z,MATCH(L132,Y:Y,0)),"") ->  | AB132: =IF($F$69,'FRED Indicies'!D144) -> FALSE | AC132: =IFERROR(INDEX(AB:AB,MATCH(L132,Y:Y,0)),"") ->  | AD132: =IF(AA132<>"",$I$69,"") ->  | AE132: =IF(AA132<>"",$J$69,"") ->  | AF132: 147 | AG132: =IF(AND($F$72,AF132<=$H$72),AF132) -> FALSE | AH132: =IF(AG132,#REF!) -> FALSE | AI132: =IFERROR(INDEX(AH:AH,MATCH(Q132,AG:AG,0)),"") ->  | AK132: =IFERROR(INDEX(AJ:AJ,MATCH(Q132,AG:AG,0)),"") ->  | AL132: =IF(AI132<>"",$I$69,"") ->  | AM132: =IF(AK132<>"",$J$69,"") ->  | AN132: 129 | AO132: =IF(AND($F$63,AN132<=$H$63),AN132) -> FALSE | AP132: =IF(AO132,'Commodity Prices'!C144) -> FALSE | AQ132: =IFERROR(INDEX(AP:AP,MATCH(L132,AO:AO,0)),"") ->  | AR132: =IF(AO132,'Commodity Prices'!D144) -> FALSE | AS132: =IFERROR(INDEX(AR:AR,MATCH(L132,AO:AO,0)),"") ->  | AT132: =IF(AQ132<>"",$I$63,"") ->  | AU132: =IF(AS132<>"",$J$63,"") ->  | AV132: 147 | AW132: =IF(AND($F$6,AV132<=$H$6),AV132) -> FALSE | AX132: =IF(AW132,'Yahoo Stocks'!D138) -> FALSE | AZ132: =IF(AW132,'Yahoo Stocks'!E138) -> FALSE | BB132: =IF(AY132<>"",$I$6,"") ->  | BC132: =IF(BA132<>"",$J$6,"") ->  | BD132: 128 | BE132: =IF(AND($F$66,BD132<=$H$66),BD132) -> FALSE | BF132: =IF(BE132,#REF!) -> FALSE | BG132: =IFERROR(INDEX(BF:BF,MATCH(Q132,BE:BE,0)),"") ->  | BH132: =IF(BE132,#REF!) -> FALSE | BI132: =IFERROR(INDEX(BH:BH,MATCH(Q132,BE:BE,0)),"") ->  | BJ132: =IF(BI132<>"",$I$66,"") ->  | BK132: =IF(BI132<>"",$J$66,"") ->  | BL132: 175 | BM132: =IF(AND($F$9,BL132<=$H$9),BL132) -> FALSE | BN132: ='FRED Series'!D144 -> 0 | BP132: =IF(BM132,'FRED Series'!E144) -> FALSE | BR132: =IF(BQ132<>"",$I$9,"") ->  | BS132: =IF(BQ132<>"",$J$9,"") -> 
L133: 130 | Q133: =Q132+1 -> 130 | R133: =IF(AND($F$4,Q133<=$H$4),Q133) -> FALSE | X133: =X132+1 -> 148 | Y133: FALSE | Z133: =IF($F$69,'FRED Indicies'!E145) -> FALSE | AB133: =IF($F$69,'FRED Indicies'!D145) -> FALSE | AF133: =AF132+1 -> 148 | AG133: FALSE | AH133: =IF(AG133,#REF!) -> FALSE | AN133: =AN132+1 -> 130 | AO133: FALSE | AP133: =IF(AO133,'Commodity Prices'!C145) -> FALSE | AR133: =IF(AO133,'Commodity Prices'!D145) -> FALSE | AV133: =AV132+1 -> 148 | AW133: FALSE | AX133: =IF(AW133,'Yahoo Stocks'!D139) -> FALSE | AZ133: =IF(AW133,'Yahoo Stocks'!E139) -> FALSE | BD133: =BD132+1 -> 129 | BE133: FALSE | BF133: =IF(BE133,#REF!) -> FALSE | BH133: =IF(BE133,#REF!) -> FALSE | BL133: =BL132+1 -> 176 | BM133: FALSE | BN133: ='FRED Series'!D145 -> 0 | BO133: =IFERROR(INDEX(BN:BN,MATCH(L133,BM:BM,0)),"") ->  | BP133: =IF(BM133,'FRED Series'!E145) -> FALSE | BQ133: =IFERROR(INDEX(BN:BN,MATCH(L133,BM:BM,0)),"") -> 
L134: 131 | Q134: 131 | R134: FALSE | X134: 149 | Y134: FALSE | Z134: =IF($F$69,'FRED Indicies'!E146) -> FALSE | AB134: =IF($F$69,'FRED Indicies'!D146) -> FALSE | AF134: 149 | AG134: FALSE | AH134: =IF(AG134,#REF!) -> FALSE | AN134: 131 | AO134: FALSE | AP134: =IF(AO134,'Commodity Prices'!C146) -> FALSE | AR134: =IF(AO134,'Commodity Prices'!D146) -> FALSE | AV134: 149 | AW134: FALSE | AX134: =IF(AW134,'Yahoo Stocks'!D140) -> FALSE | AZ134: =IF(AW134,'Yahoo Stocks'!E140) -> FALSE | BD134: 130 | BE134: FALSE | BF134: =IF(BE134,#REF!) -> FALSE | BH134: =IF(BE134,#REF!) -> FALSE | BL134: 177 | BM134: FALSE | BN134: ='FRED Series'!D146 -> 0 | BP134: =IF(BM134,'FRED Series'!E146) -> FALSE
L135: 132 | Q135: 132 | R135: FALSE | X135: 150 | Y135: FALSE | Z135: =IF($F$69,'FRED Indicies'!E147) -> FALSE | AB135: =IF($F$69,'FRED Indicies'!D147) -> FALSE | AF135: 150 | AG135: FALSE | AH135: =IF(AG135,#REF!) -> FALSE | AN135: 132 | AO135: FALSE | AP135: =IF(AO135,'Commodity Prices'!C147) -> FALSE | AR135: =IF(AO135,'Commodity Prices'!D147) -> FALSE | AV135: 150 | AW135: FALSE | AX135: =IF(AW135,'Yahoo Stocks'!D141) -> FALSE | AZ135: =IF(AW135,'Yahoo Stocks'!E141) -> FALSE | BD135: 131 | BE135: FALSE | BF135: =IF(BE135,#REF!) -> FALSE | BH135: =IF(BE135,#REF!) -> FALSE | BL135: 178 | BM135: FALSE | BN135: ='FRED Series'!D147 -> 0 | BP135: =IF(BM135,'FRED Series'!E147) -> FALSE
L136: 133 | Q136: 133 | R136: FALSE | X136: 151 | Y136: FALSE | Z136: =IF($F$69,'FRED Indicies'!E148) -> FALSE | AB136: =IF($F$69,'FRED Indicies'!D148) -> FALSE | AF136: 151 | AG136: FALSE | AH136: =IF(AG136,#REF!) -> FALSE | AN136: 133 | AO136: FALSE | AP136: =IF(AO136,'Commodity Prices'!C148) -> FALSE | AR136: =IF(AO136,'Commodity Prices'!D148) -> FALSE | AV136: 151 | AW136: FALSE | AX136: =IF(AW136,'Yahoo Stocks'!D142) -> FALSE | AZ136: =IF(AW136,'Yahoo Stocks'!E142) -> FALSE | BD136: 132 | BE136: FALSE | BF136: =IF(BE136,#REF!) -> FALSE | BH136: =IF(BE136,#REF!) -> FALSE | BL136: 179 | BM136: FALSE | BN136: ='FRED Series'!D148 -> 0 | BP136: =IF(BM136,'FRED Series'!E148) -> FALSE
L137: 134 | Q137: 134 | R137: FALSE | X137: 152 | Y137: FALSE | Z137: =IF($F$69,'FRED Indicies'!E149) -> FALSE | AB137: =IF($F$69,'FRED Indicies'!D149) -> FALSE | AF137: 152 | AG137: FALSE | AH137: =IF(AG137,#REF!) -> FALSE | AN137: 134 | AO137: FALSE | AP137: =IF(AO137,'Commodity Prices'!C149) -> FALSE | AR137: =IF(AO137,'Commodity Prices'!D149) -> FALSE | AV137: 152 | AW137: FALSE | AX137: =IF(AW137,'Yahoo Stocks'!D143) -> FALSE | AZ137: =IF(AW137,'Yahoo Stocks'!E143) -> FALSE | BD137: 133 | BE137: FALSE | BF137: =IF(BE137,#REF!) -> FALSE | BH137: =IF(BE137,#REF!) -> FALSE | BL137: 180 | BM137: FALSE | BN137: ='FRED Series'!D149 -> 0 | BP137: =IF(BM137,'FRED Series'!E149) -> FALSE
L138: 135 | Q138: 135 | R138: FALSE | X138: 153 | Y138: FALSE | Z138: =IF($F$69,'FRED Indicies'!E150) -> FALSE | AB138: =IF($F$69,'FRED Indicies'!D150) -> FALSE | AF138: 153 | AG138: FALSE | AH138: =IF(AG138,#REF!) -> FALSE | AN138: 135 | AO138: FALSE | AP138: =IF(AO138,'Commodity Prices'!C150) -> FALSE | AR138: =IF(AO138,'Commodity Prices'!D150) -> FALSE | AV138: 153 | AW138: FALSE | AX138: =IF(AW138,'Yahoo Stocks'!D144) -> FALSE | AZ138: =IF(AW138,'Yahoo Stocks'!E144) -> FALSE | BD138: 134 | BE138: FALSE | BF138: =IF(BE138,#REF!) -> FALSE | BH138: =IF(BE138,#REF!) -> FALSE | BL138: 181 | BM138: FALSE | BN138: ='FRED Series'!D150 -> 0 | BP138: =IF(BM138,'FRED Series'!E150) -> FALSE
L139: 136 | Q139: 136 | R139: FALSE | X139: 154 | Y139: FALSE | Z139: =IF($F$69,'FRED Indicies'!E151) -> FALSE | AB139: =IF($F$69,'FRED Indicies'!D151) -> FALSE | AF139: 154 | AG139: FALSE | AH139: =IF(AG139,#REF!) -> FALSE | AN139: 136 | AO139: FALSE | AP139: =IF(AO139,'Commodity Prices'!C151) -> FALSE | AR139: =IF(AO139,'Commodity Prices'!D151) -> FALSE | AV139: 154 | AW139: FALSE | AX139: =IF(AW139,'Yahoo Stocks'!D145) -> FALSE | AZ139: =IF(AW139,'Yahoo Stocks'!E145) -> FALSE | BD139: 135 | BE139: FALSE | BF139: =IF(BE139,#REF!) -> FALSE | BH139: =IF(BE139,#REF!) -> FALSE | BL139: 182 | BM139: FALSE | BN139: ='FRED Series'!D151 -> 0 | BP139: =IF(BM139,'FRED Series'!E151) -> FALSE
L140: 137 | Q140: 137 | R140: FALSE | X140: 155 | Y140: FALSE | Z140: =IF($F$69,'FRED Indicies'!E152) -> FALSE | AB140: =IF($F$69,'FRED Indicies'!D152) -> FALSE | AF140: 155 | AG140: FALSE | AH140: =IF(AG140,#REF!) -> FALSE | AN140: 137 | AO140: FALSE | AP140: =IF(AO140,'Commodity Prices'!C152) -> FALSE | AR140: =IF(AO140,'Commodity Prices'!D152) -> FALSE | AV140: 155 | AW140: FALSE | AX140: =IF(AW140,'Yahoo Stocks'!D146) -> FALSE | AZ140: =IF(AW140,'Yahoo Stocks'!E146) -> FALSE | BD140: 136 | BE140: FALSE | BF140: =IF(BE140,#REF!) -> FALSE | BH140: =IF(BE140,#REF!) -> FALSE | BL140: 183 | BM140: FALSE | BN140: ='FRED Series'!D152 -> 0 | BP140: =IF(BM140,'FRED Series'!E152) -> FALSE
L141: 138 | Q141: 138 | R141: FALSE | X141: 156 | Y141: FALSE | Z141: =IF($F$69,'FRED Indicies'!E153) -> FALSE | AB141: =IF($F$69,'FRED Indicies'!D153) -> FALSE | AF141: 156 | AG141: FALSE | AH141: =IF(AG141,#REF!) -> FALSE | AN141: 138 | AO141: FALSE | AP141: =IF(AO141,'Commodity Prices'!C153) -> FALSE | AR141: =IF(AO141,'Commodity Prices'!D153) -> FALSE | AV141: 156 | AW141: FALSE | AX141: =IF(AW141,'Yahoo Stocks'!D147) -> FALSE | AZ141: =IF(AW141,'Yahoo Stocks'!E147) -> FALSE | BD141: 137 | BE141: FALSE | BF141: =IF(BE141,#REF!) -> FALSE | BH141: =IF(BE141,#REF!) -> FALSE | BL141: 184 | BM141: FALSE | BN141: ='FRED Series'!D153 -> 0 | BP141: =IF(BM141,'FRED Series'!E153) -> FALSE
L142: 139 | Q142: 139 | R142: FALSE | X142: 157 | Y142: FALSE | Z142: =IF($F$69,'FRED Indicies'!E154) -> FALSE | AB142: =IF($F$69,'FRED Indicies'!D154) -> FALSE | AF142: 157 | AG142: FALSE | AH142: =IF(AG142,#REF!) -> FALSE | AN142: 139 | AO142: FALSE | AP142: =IF(AO142,'Commodity Prices'!C154) -> FALSE | AR142: =IF(AO142,'Commodity Prices'!D154) -> FALSE | AV142: 157 | AW142: FALSE | AX142: =IF(AW142,'Yahoo Stocks'!D148) -> FALSE | AZ142: =IF(AW142,'Yahoo Stocks'!E148) -> FALSE | BD142: 138 | BE142: FALSE | BF142: =IF(BE142,#REF!) -> FALSE | BH142: =IF(BE142,#REF!) -> FALSE | BL142: 185 | BM142: FALSE | BN142: ='FRED Series'!D154 -> 0 | BP142: =IF(BM142,'FRED Series'!E154) -> FALSE
L143: 140 | Q143: 140 | R143: FALSE | X143: 158 | Y143: FALSE | Z143: =IF($F$69,'FRED Indicies'!E155) -> FALSE | AB143: =IF($F$69,'FRED Indicies'!D155) -> FALSE | AF143: 158 | AG143: FALSE | AH143: =IF(AG143,#REF!) -> FALSE | AN143: 140 | AO143: FALSE | AP143: =IF(AO143,'Commodity Prices'!C155) -> FALSE | AR143: =IF(AO143,'Commodity Prices'!D155) -> FALSE | AV143: 158 | AW143: FALSE | AX143: =IF(AW143,'Yahoo Stocks'!D149) -> FALSE | AZ143: =IF(AW143,'Yahoo Stocks'!E149) -> FALSE | BD143: 139 | BE143: FALSE | BF143: =IF(BE143,#REF!) -> FALSE | BH143: =IF(BE143,#REF!) -> FALSE | BL143: 186 | BM143: FALSE | BN143: ='FRED Series'!D155 -> 0 | BP143: =IF(BM143,'FRED Series'!E155) -> FALSE
L144: 141 | Q144: 141 | R144: FALSE | X144: 159 | Y144: FALSE | Z144: =IF($F$69,'FRED Indicies'!E156) -> FALSE | AB144: =IF($F$69,'FRED Indicies'!D156) -> FALSE | AF144: 159 | AG144: FALSE | AH144: =IF(AG144,#REF!) -> FALSE | AN144: 141 | AO144: FALSE | AP144: =IF(AO144,'Commodity Prices'!C156) -> FALSE | AR144: =IF(AO144,'Commodity Prices'!D156) -> FALSE | AV144: 159 | AW144: FALSE | AX144: =IF(AW144,'Yahoo Stocks'!D150) -> FALSE | AZ144: =IF(AW144,'Yahoo Stocks'!E150) -> FALSE | BD144: 140 | BE144: FALSE | BF144: =IF(BE144,#REF!) -> FALSE | BH144: =IF(BE144,#REF!) -> FALSE | BL144: 187 | BM144: FALSE | BN144: ='FRED Series'!D156 -> 0 | BP144: =IF(BM144,'FRED Series'!E156) -> FALSE
L145: 142 | Q145: 142 | R145: FALSE | X145: 160 | Y145: FALSE | Z145: =IF($F$69,'FRED Indicies'!E157) -> FALSE | AB145: =IF($F$69,'FRED Indicies'!D157) -> FALSE | AF145: 160 | AG145: FALSE | AH145: =IF(AG145,#REF!) -> FALSE | AN145: 142 | AO145: FALSE | AP145: =IF(AO145,'Commodity Prices'!C157) -> FALSE | AR145: =IF(AO145,'Commodity Prices'!D157) -> FALSE | AV145: 160 | AW145: FALSE | AX145: =IF(AW145,'Yahoo Stocks'!D151) -> FALSE | AZ145: =IF(AW145,'Yahoo Stocks'!E151) -> FALSE | BD145: 141 | BE145: FALSE | BF145: =IF(BE145,#REF!) -> FALSE | BH145: =IF(BE145,#REF!) -> FALSE | BL145: 188 | BM145: FALSE | BN145: ='FRED Series'!D157 -> 0 | BP145: =IF(BM145,'FRED Series'!E157) -> FALSE
L146: 143 | Q146: 143 | R146: FALSE | X146: 161 | Y146: FALSE | Z146: =IF($F$69,'FRED Indicies'!E158) -> FALSE | AB146: =IF($F$69,'FRED Indicies'!D158) -> FALSE | AF146: 161 | AG146: FALSE | AH146: =IF(AG146,#REF!) -> FALSE | AN146: 143 | AO146: FALSE | AP146: =IF(AO146,'Commodity Prices'!C158) -> FALSE | AR146: =IF(AO146,'Commodity Prices'!D158) -> FALSE | AV146: 161 | AW146: FALSE | AX146: =IF(AW146,'Yahoo Stocks'!D152) -> FALSE | AZ146: =IF(AW146,'Yahoo Stocks'!E152) -> FALSE | BD146: 142 | BE146: FALSE | BF146: =IF(BE146,#REF!) -> FALSE | BH146: =IF(BE146,#REF!) -> FALSE | BL146: 189 | BM146: FALSE | BN146: ='FRED Series'!D158 -> 0 | BP146: =IF(BM146,'FRED Series'!E158) -> FALSE
L147: 144 | Q147: 144 | R147: FALSE | X147: 162 | Y147: FALSE | Z147: =IF($F$69,'FRED Indicies'!E159) -> FALSE | AB147: =IF($F$69,'FRED Indicies'!D159) -> FALSE | AF147: 162 | AG147: FALSE | AH147: =IF(AG147,#REF!) -> FALSE | AN147: 144 | AO147: FALSE | AP147: =IF(AO147,'Commodity Prices'!C159) -> FALSE | AR147: =IF(AO147,'Commodity Prices'!D159) -> FALSE | AV147: 162 | AW147: FALSE | AX147: =IF(AW147,'Yahoo Stocks'!D153) -> FALSE | AZ147: =IF(AW147,'Yahoo Stocks'!E153) -> FALSE | BD147: 143 | BE147: FALSE | BF147: =IF(BE147,#REF!) -> FALSE | BH147: =IF(BE147,#REF!) -> FALSE | BL147: 190 | BM147: FALSE | BN147: ='FRED Series'!D159 -> 0 | BP147: =IF(BM147,'FRED Series'!E159) -> FALSE
L148: 145 | Q148: 145 | R148: FALSE | X148: 163 | Y148: FALSE | Z148: =IF($F$69,'FRED Indicies'!E160) -> FALSE | AB148: =IF($F$69,'FRED Indicies'!D160) -> FALSE | AF148: 163 | AG148: FALSE | AH148: =IF(AG148,#REF!) -> FALSE | AN148: 145 | AO148: FALSE | AP148: =IF(AO148,'Commodity Prices'!C160) -> FALSE | AR148: =IF(AO148,'Commodity Prices'!D160) -> FALSE | AV148: 163 | AW148: FALSE | AX148: =IF(AW148,'Yahoo Stocks'!D154) -> FALSE | AZ148: =IF(AW148,'Yahoo Stocks'!E154) -> FALSE | BD148: 144 | BE148: FALSE | BF148: =IF(BE148,#REF!) -> FALSE | BH148: =IF(BE148,#REF!) -> FALSE | BL148: 191 | BM148: FALSE | BN148: ='FRED Series'!D160 -> 0 | BP148: =IF(BM148,'FRED Series'!E160) -> FALSE
L149: 146 | Q149: 146 | R149: FALSE | X149: 164 | Y149: FALSE | Z149: =IF($F$69,'FRED Indicies'!E161) -> FALSE | AB149: =IF($F$69,'FRED Indicies'!D161) -> FALSE | AF149: 164 | AG149: FALSE | AH149: =IF(AG149,#REF!) -> FALSE | AN149: 146 | AO149: FALSE | AP149: =IF(AO149,'Commodity Prices'!C161) -> FALSE | AR149: =IF(AO149,'Commodity Prices'!D161) -> FALSE | AV149: 164 | AW149: FALSE | AX149: =IF(AW149,'Yahoo Stocks'!D155) -> FALSE | AZ149: =IF(AW149,'Yahoo Stocks'!E155) -> FALSE | BD149: 145 | BE149: FALSE | BF149: =IF(BE149,#REF!) -> FALSE | BH149: =IF(BE149,#REF!) -> FALSE | BL149: 192 | BM149: FALSE | BN149: ='FRED Series'!D161 -> 0 | BP149: =IF(BM149,'FRED Series'!E161) -> FALSE
L150: 147 | Q150: 147 | R150: FALSE | X150: 165 | Y150: FALSE | Z150: =IF($F$69,'FRED Indicies'!E162) -> FALSE | AB150: =IF($F$69,'FRED Indicies'!D162) -> FALSE | AF150: 165 | AG150: FALSE | AH150: =IF(AG150,#REF!) -> FALSE | AN150: 147 | AO150: FALSE | AP150: =IF(AO150,'Commodity Prices'!C162) -> FALSE | AR150: =IF(AO150,'Commodity Prices'!D162) -> FALSE | AV150: 165 | AW150: FALSE | AX150: =IF(AW150,'Yahoo Stocks'!D156) -> FALSE | AZ150: =IF(AW150,'Yahoo Stocks'!E156) -> FALSE | BD150: 146 | BE150: FALSE | BF150: =IF(BE150,#REF!) -> FALSE | BH150: =IF(BE150,#REF!) -> FALSE | BL150: 193 | BM150: FALSE | BN150: ='FRED Series'!D162 -> 0 | BP150: =IF(BM150,'FRED Series'!E162) -> FALSE
L151: 148 | Q151: 148 | R151: FALSE | X151: 166 | Y151: FALSE | Z151: =IF($F$69,'FRED Indicies'!E163) -> FALSE | AB151: =IF($F$69,'FRED Indicies'!D163) -> FALSE | AF151: 166 | AG151: FALSE | AH151: =IF(AG151,#REF!) -> FALSE | AN151: 148 | AO151: FALSE | AP151: =IF(AO151,'Commodity Prices'!C163) -> FALSE | AR151: =IF(AO151,'Commodity Prices'!D163) -> FALSE | AV151: 166 | AW151: FALSE | AX151: =IF(AW151,'Yahoo Stocks'!D157) -> FALSE | AZ151: =IF(AW151,'Yahoo Stocks'!E157) -> FALSE | BD151: 147 | BE151: FALSE | BF151: =IF(BE151,#REF!) -> FALSE | BH151: =IF(BE151,#REF!) -> FALSE | BL151: 194 | BM151: FALSE | BN151: ='FRED Series'!D163 -> 0 | BP151: =IF(BM151,'FRED Series'!E163) -> FALSE
L152: 149 | Q152: 149 | R152: FALSE | X152: 167 | Y152: FALSE | Z152: =IF($F$69,'FRED Indicies'!E164) -> FALSE | AB152: =IF($F$69,'FRED Indicies'!D164) -> FALSE | AF152: 167 | AG152: FALSE | AH152: =IF(AG152,#REF!) -> FALSE | AN152: 149 | AO152: FALSE | AP152: =IF(AO152,'Commodity Prices'!C164) -> FALSE | AR152: =IF(AO152,'Commodity Prices'!D164) -> FALSE | AV152: 167 | AW152: FALSE | AX152: =IF(AW152,'Yahoo Stocks'!D158) -> FALSE | AZ152: =IF(AW152,'Yahoo Stocks'!E158) -> FALSE | BD152: 148 | BE152: FALSE | BF152: =IF(BE152,#REF!) -> FALSE | BH152: =IF(BE152,#REF!) -> FALSE | BL152: 195 | BM152: FALSE | BN152: ='FRED Series'!D164 -> 0 | BP152: =IF(BM152,'FRED Series'!E164) -> FALSE
L153: 150 | Q153: 150 | R153: FALSE | X153: 168 | Y153: FALSE | Z153: =IF($F$69,'FRED Indicies'!E165) -> FALSE | AB153: =IF($F$69,'FRED Indicies'!D165) -> FALSE | AF153: 168 | AG153: FALSE | AH153: =IF(AG153,#REF!) -> FALSE | AN153: 150 | AO153: FALSE | AP153: =IF(AO153,'Commodity Prices'!C165) -> FALSE | AR153: =IF(AO153,'Commodity Prices'!D165) -> FALSE | AV153: 168 | AW153: FALSE | AX153: =IF(AW153,'Yahoo Stocks'!D159) -> FALSE | AZ153: =IF(AW153,'Yahoo Stocks'!E159) -> FALSE | BD153: 149 | BE153: FALSE | BF153: =IF(BE153,#REF!) -> FALSE | BH153: =IF(BE153,#REF!) -> FALSE | BL153: 196 | BM153: FALSE | BN153: ='FRED Series'!D165 -> 0 | BP153: =IF(BM153,'FRED Series'!E165) -> FALSE
L154: 151 | Q154: 151 | R154: FALSE | X154: 169 | Y154: FALSE | Z154: =IF($F$69,'FRED Indicies'!E166) -> FALSE | AB154: =IF($F$69,'FRED Indicies'!D166) -> FALSE | AF154: 169 | AG154: FALSE | AH154: =IF(AG154,#REF!) -> FALSE | AN154: 151 | AO154: FALSE | AP154: =IF(AO154,'Commodity Prices'!C166) -> FALSE | AR154: =IF(AO154,'Commodity Prices'!D166) -> FALSE | AV154: 169 | AW154: FALSE | AX154: =IF(AW154,'Yahoo Stocks'!D160) -> FALSE | AZ154: =IF(AW154,'Yahoo Stocks'!E160) -> FALSE | BD154: 150 | BE154: FALSE | BF154: =IF(BE154,#REF!) -> FALSE | BH154: =IF(BE154,#REF!) -> FALSE | BL154: 197 | BM154: FALSE | BN154: ='FRED Series'!D166 -> 0 | BP154: =IF(BM154,'FRED Series'!E166) -> FALSE
L155: 152 | X155: 170 | Y155: FALSE | Z155: =IF($F$69,'FRED Indicies'!E167) -> FALSE | AB155: =IF($F$69,'FRED Indicies'!D167) -> FALSE | AF155: 170 | AG155: FALSE | AH155: =IF(AG155,#REF!) -> FALSE | AN155: 152 | AO155: FALSE | AP155: =IF(AO155,'Commodity Prices'!C167) -> FALSE | AR155: =IF(AO155,'Commodity Prices'!D167) -> FALSE | AV155: 170 | AW155: FALSE | AX155: =IF(AW155,'Yahoo Stocks'!D161) -> FALSE | AZ155: =IF(AW155,'Yahoo Stocks'!E161) -> FALSE | BD155: 151 | BE155: FALSE | BF155: =IF(BE155,#REF!) -> FALSE | BH155: =IF(BE155,#REF!) -> FALSE | BL155: 198 | BM155: FALSE | BN155: ='FRED Series'!D167 -> 0 | BP155: =IF(BM155,'FRED Series'!E167) -> FALSE
L156: 153 | X156: 171 | Y156: FALSE | Z156: =IF($F$69,'FRED Indicies'!E168) -> FALSE | AB156: =IF($F$69,'FRED Indicies'!D168) -> FALSE | AF156: 171 | AG156: FALSE | AH156: =IF(AG156,#REF!) -> FALSE | AN156: 153 | AO156: FALSE | AP156: =IF(AO156,'Commodity Prices'!C168) -> FALSE | AR156: =IF(AO156,'Commodity Prices'!D168) -> FALSE | AV156: 171 | AW156: FALSE | AX156: =IF(AW156,'Yahoo Stocks'!D162) -> FALSE | AZ156: =IF(AW156,'Yahoo Stocks'!E162) -> FALSE | BD156: 152 | BE156: FALSE | BF156: =IF(BE156,#REF!) -> FALSE | BH156: =IF(BE156,#REF!) -> FALSE | BL156: 199 | BM156: FALSE | BN156: ='FRED Series'!D168 -> 0 | BP156: =IF(BM156,'FRED Series'!E168) -> FALSE
L157: 154 | X157: 172 | Y157: FALSE | Z157: =IF($F$69,'FRED Indicies'!E169) -> FALSE | AB157: =IF($F$69,'FRED Indicies'!D169) -> FALSE | AF157: 172 | AG157: FALSE | AH157: =IF(AG157,#REF!) -> FALSE | AN157: 154 | AO157: FALSE | AP157: =IF(AO157,'Commodity Prices'!C169) -> FALSE | AR157: =IF(AO157,'Commodity Prices'!D169) -> FALSE | AV157: 172 | AW157: FALSE | AX157: =IF(AW157,'Yahoo Stocks'!D163) -> FALSE | AZ157: =IF(AW157,'Yahoo Stocks'!E163) -> FALSE | BD157: 153 | BE157: FALSE | BF157: =IF(BE157,#REF!) -> FALSE | BH157: =IF(BE157,#REF!) -> FALSE | BL157: 200 | BM157: FALSE | BN157: ='FRED Series'!D169 -> 0 | BP157: =IF(BM157,'FRED Series'!E169) -> FALSE
L158: 155 | X158: 173 | Y158: FALSE | Z158: =IF($F$69,'FRED Indicies'!E170) -> FALSE | AB158: =IF($F$69,'FRED Indicies'!D170) -> FALSE | AF158: 173 | AG158: FALSE | AH158: =IF(AG158,#REF!) -> FALSE | AN158: 155 | AO158: FALSE | AP158: =IF(AO158,'Commodity Prices'!C170) -> FALSE | AR158: =IF(AO158,'Commodity Prices'!D170) -> FALSE | AV158: 173 | AW158: FALSE | AX158: =IF(AW158,'Yahoo Stocks'!D164) -> FALSE | AZ158: =IF(AW158,'Yahoo Stocks'!E164) -> FALSE | BD158: 154 | BE158: FALSE | BF158: =IF(BE158,#REF!) -> FALSE | BH158: =IF(BE158,#REF!) -> FALSE | BL158: 201 | BM158: FALSE | BN158: ='FRED Series'!D170 -> 0 | BP158: =IF(BM158,'FRED Series'!E170) -> FALSE
L159: 156 | X159: 174 | Y159: FALSE | Z159: =IF($F$69,'FRED Indicies'!E171) -> FALSE | AB159: =IF($F$69,'FRED Indicies'!D171) -> FALSE | AF159: 174 | AG159: FALSE | AH159: =IF(AG159,#REF!) -> FALSE | AN159: 156 | AO159: FALSE | AP159: =IF(AO159,'Commodity Prices'!C171) -> FALSE | AR159: =IF(AO159,'Commodity Prices'!D171) -> FALSE | AV159: 174 | AW159: FALSE | AX159: =IF(AW159,'Yahoo Stocks'!D165) -> FALSE | AZ159: =IF(AW159,'Yahoo Stocks'!E165) -> FALSE | BD159: 155 | BE159: FALSE | BF159: =IF(BE159,#REF!) -> FALSE | BH159: =IF(BE159,#REF!) -> FALSE | BL159: 202 | BM159: FALSE | BN159: ='FRED Series'!D171 -> 0 | BP159: =IF(BM159,'FRED Series'!E171) -> FALSE
L160: 157 | X160: 175 | Y160: FALSE | Z160: =IF($F$69,'FRED Indicies'!E172) -> FALSE | AB160: =IF($F$69,'FRED Indicies'!D172) -> FALSE | AF160: 175 | AG160: FALSE | AH160: =IF(AG160,#REF!) -> FALSE | AN160: 157 | AO160: FALSE | AP160: =IF(AO160,'Commodity Prices'!C172) -> FALSE | AR160: =IF(AO160,'Commodity Prices'!D172) -> FALSE | AV160: 175 | AW160: FALSE | AX160: =IF(AW160,'Yahoo Stocks'!D166) -> FALSE | AZ160: =IF(AW160,'Yahoo Stocks'!E166) -> FALSE | BD160: 156 | BE160: FALSE | BF160: =IF(BE160,#REF!) -> FALSE | BH160: =IF(BE160,#REF!) -> FALSE | BL160: 203 | BM160: FALSE | BN160: ='FRED Series'!D172 -> 0 | BP160: =IF(BM160,'FRED Series'!E172) -> FALSE
L161: 158 | X161: 176 | Y161: FALSE | Z161: =IF($F$69,'FRED Indicies'!E173) -> FALSE | AB161: =IF($F$69,'FRED Indicies'!D173) -> FALSE | AF161: 176 | AG161: FALSE | AH161: =IF(AG161,#REF!) -> FALSE | AN161: 158 | AO161: FALSE | AP161: =IF(AO161,'Commodity Prices'!C173) -> FALSE | AR161: =IF(AO161,'Commodity Prices'!D173) -> FALSE | AV161: 176 | AW161: FALSE | AX161: =IF(AW161,'Yahoo Stocks'!D167) -> FALSE | AZ161: =IF(AW161,'Yahoo Stocks'!E167) -> FALSE | BD161: 157 | BE161: FALSE | BF161: =IF(BE161,#REF!) -> FALSE | BH161: =IF(BE161,#REF!) -> FALSE | BL161: 204 | BM161: FALSE | BN161: ='FRED Series'!D173 -> 0 | BP161: =IF(BM161,'FRED Series'!E173) -> FALSE
L162: 159 | X162: 177 | Y162: FALSE | Z162: =IF($F$69,'FRED Indicies'!E174) -> FALSE | AB162: =IF($F$69,'FRED Indicies'!D174) -> FALSE | AF162: 177 | AG162: FALSE | AH162: =IF(AG162,#REF!) -> FALSE | AN162: 159 | AO162: FALSE | AP162: =IF(AO162,'Commodity Prices'!C174) -> FALSE | AR162: =IF(AO162,'Commodity Prices'!D174) -> FALSE | AV162: 177 | AW162: FALSE | AX162: =IF(AW162,'Yahoo Stocks'!D168) -> FALSE | AZ162: =IF(AW162,'Yahoo Stocks'!E168) -> FALSE | BD162: 158 | BE162: FALSE | BF162: =IF(BE162,#REF!) -> FALSE | BH162: =IF(BE162,#REF!) -> FALSE | BL162: 205 | BM162: FALSE | BN162: ='FRED Series'!D174 -> 0 | BP162: =IF(BM162,'FRED Series'!E174) -> FALSE
L163: 160 | X163: 178 | Y163: FALSE | Z163: =IF($F$69,'FRED Indicies'!E175) -> FALSE | AB163: =IF($F$69,'FRED Indicies'!D175) -> FALSE | AF163: 178 | AG163: FALSE | AH163: =IF(AG163,#REF!) -> FALSE | AN163: 160 | AO163: FALSE | AP163: =IF(AO163,'Commodity Prices'!C175) -> FALSE | AR163: =IF(AO163,'Commodity Prices'!D175) -> FALSE | AV163: 178 | AW163: FALSE | AX163: =IF(AW163,'Yahoo Stocks'!D169) -> FALSE | AZ163: =IF(AW163,'Yahoo Stocks'!E169) -> FALSE | BD163: 159 | BE163: FALSE | BF163: =IF(BE163,#REF!) -> FALSE | BH163: =IF(BE163,#REF!) -> FALSE | BL163: 206 | BM163: FALSE | BN163: ='FRED Series'!D175 -> 0 | BP163: =IF(BM163,'FRED Series'!E175) -> FALSE
L164: 161 | N164: =T164&AC164&AK164&AS164&BA164&BI164&BQ164 ->  | O164: =U164&AD164&AL164&AT164&BB164&BJ164&BR164 ->  | P164: =V164&AE164&AM164&AU164&BC164&BK164&BS164 ->  | X164: 179 | Y164: =IF(AND($F$69,X164<=$H$69),X164) -> FALSE | Z164: =IF($F$69,'FRED Indicies'!E176) -> FALSE | AA164: =IFERROR(INDEX(Z:Z,MATCH(L164,Y:Y,0)),"") ->  | AB164: =IF($F$69,'FRED Indicies'!D176) -> FALSE | AC164: =IFERROR(INDEX(AB:AB,MATCH(L164,Y:Y,0)),"") ->  | AD164: =IF(AA164<>"",$I$69,"") ->  | AE164: =IF(AA164<>"",$J$69,"") ->  | AF164: 179 | AG164: =IF(AND($F$72,AF164<=$H$72),AF164) -> FALSE | AH164: =IF(AG164,#REF!) -> FALSE | AI164: =IFERROR(INDEX(AH:AH,MATCH(Q164,AG:AG,0)),"") ->  | AK164: =IFERROR(INDEX(AJ:AJ,MATCH(Q164,AG:AG,0)),"") ->  | AL164: =IF(AI164<>"",$I$69,"") ->  | AM164: =IF(AK164<>"",$J$69,"") ->  | AN164: 161 | AO164: =IF(AND($F$63,AN164<=$H$63),AN164) -> FALSE | AP164: =IF(AO164,'Commodity Prices'!C176) -> FALSE | AQ164: =IFERROR(INDEX(AP:AP,MATCH(L164,AO:AO,0)),"") ->  | AR164: =IF(AO164,'Commodity Prices'!D176) -> FALSE | AS164: =IFERROR(INDEX(AR:AR,MATCH(L164,AO:AO,0)),"") ->  | AT164: =IF(AQ164<>"",$I$63,"") ->  | AU164: =IF(AS164<>"",$J$63,"") ->  | AV164: 179 | AW164: =IF(AND($F$6,AV164<=$H$6),AV164) -> FALSE | AX164: =IF(AW164,'Yahoo Stocks'!D170) -> FALSE | AY164: =IFERROR(INDEX(AX:AX,MATCH(L164,AW:AW,0)),"") ->  | AZ164: =IF(AW164,'Yahoo Stocks'!E170) -> FALSE | BA164: =IFERROR(INDEX(AZ:AZ,MATCH(L164,AW:AW,0)),"") ->  | BB164: =IF(AY164<>"",$I$6,"") ->  | BC164: =IF(BA164<>"",$J$6,"") ->  | BD164: 160 | BE164: FALSE | BF164: =IF(BE164,#REF!) -> FALSE | BH164: =IF(BE164,#REF!) -> FALSE | BL164: 207 | BM164: =IF(AND($F$9,BL164<=$H$9),BL164) -> FALSE | BN164: ='FRED Series'!D176 -> 0 | BP164: =IF(BM164,'FRED Series'!E176) -> FALSE | BR164: =IF(BQ164<>"",$I$9,"") ->  | BS164: =IF(BQ164<>"",$J$9,"") -> 
L165: 162 | X165: =X164+1 -> 180 | Y165: FALSE | Z165: =IF($F$69,'FRED Indicies'!E177) -> FALSE | AB165: =IF($F$69,'FRED Indicies'!D177) -> FALSE | AF165: =AF164+1 -> 180 | AG165: FALSE | AH165: =IF(AG165,#REF!) -> FALSE | AN165: =AN164+1 -> 162 | AO165: FALSE | AP165: =IF(AO165,'Commodity Prices'!C177) -> FALSE | AR165: =IF(AO165,'Commodity Prices'!D177) -> FALSE | AV165: =AV164+1 -> 180 | AW165: FALSE | AX165: =IF(AW165,'Yahoo Stocks'!D171) -> FALSE | AZ165: =IF(AW165,'Yahoo Stocks'!E171) -> FALSE | BD165: =BD164+1 -> 161 | BE165: FALSE | BF165: =IF(BE165,#REF!) -> FALSE | BH165: =IF(BE165,#REF!) -> FALSE | BL165: =BL164+1 -> 208 | BM165: FALSE | BN165: ='FRED Series'!D177 -> 0 | BP165: =IF(BM165,'FRED Series'!E177) -> FALSE
L166: 163 | X166: 181 | Y166: FALSE | Z166: =IF($F$69,'FRED Indicies'!E178) -> FALSE | AB166: =IF($F$69,'FRED Indicies'!D178) -> FALSE | AF166: 181 | AG166: FALSE | AH166: =IF(AG166,#REF!) -> FALSE | AN166: 163 | AO166: FALSE | AP166: =IF(AO166,'Commodity Prices'!C178) -> FALSE | AR166: =IF(AO166,'Commodity Prices'!D178) -> FALSE | AV166: 181 | AW166: FALSE | AX166: =IF(AW166,'Yahoo Stocks'!D172) -> FALSE | AZ166: =IF(AW166,'Yahoo Stocks'!E172) -> FALSE | BD166: 162 | BE166: FALSE | BF166: =IF(BE166,#REF!) -> FALSE | BH166: =IF(BE166,#REF!) -> FALSE | BL166: 209 | BM166: FALSE | BN166: ='FRED Series'!D178 -> 0 | BP166: =IF(BM166,'FRED Series'!E178) -> FALSE
L167: 164 | X167: 182 | Y167: FALSE | Z167: =IF($F$69,'FRED Indicies'!E179) -> FALSE | AB167: =IF($F$69,'FRED Indicies'!D179) -> FALSE | AF167: 182 | AG167: FALSE | AH167: =IF(AG167,#REF!) -> FALSE | AN167: 164 | AO167: FALSE | AP167: =IF(AO167,'Commodity Prices'!C179) -> FALSE | AR167: =IF(AO167,'Commodity Prices'!D179) -> FALSE | AV167: 182 | AW167: FALSE | AX167: =IF(AW167,'Yahoo Stocks'!D173) -> FALSE | AZ167: =IF(AW167,'Yahoo Stocks'!E173) -> FALSE | BD167: 163 | BE167: FALSE | BF167: =IF(BE167,#REF!) -> FALSE | BH167: =IF(BE167,#REF!) -> FALSE | BL167: 210 | BM167: FALSE | BN167: ='FRED Series'!D179 -> 0 | BP167: =IF(BM167,'FRED Series'!E179) -> FALSE
L168: 165 | X168: 183 | Y168: FALSE | Z168: =IF($F$69,'FRED Indicies'!E180) -> FALSE | AB168: =IF($F$69,'FRED Indicies'!D180) -> FALSE | AF168: 183 | AG168: FALSE | AH168: =IF(AG168,#REF!) -> FALSE | AN168: 165 | AO168: FALSE | AP168: =IF(AO168,'Commodity Prices'!C180) -> FALSE | AR168: =IF(AO168,'Commodity Prices'!D180) -> FALSE | AV168: 183 | AW168: FALSE | AX168: =IF(AW168,'Yahoo Stocks'!D174) -> FALSE | AZ168: =IF(AW168,'Yahoo Stocks'!E174) -> FALSE | BD168: 164 | BE168: FALSE | BF168: =IF(BE168,#REF!) -> FALSE | BH168: =IF(BE168,#REF!) -> FALSE | BL168: 211 | BM168: FALSE | BN168: ='FRED Series'!D180 -> 0 | BP168: =IF(BM168,'FRED Series'!E180) -> FALSE
L169: 166 | M169: =S169&AA169&AI169&AQ169&AY169&BG169&BO169 ->  | X169: 184 | Y169: FALSE | Z169: =IF($F$69,'FRED Indicies'!E181) -> FALSE | AB169: =IF($F$69,'FRED Indicies'!D181) -> FALSE | AF169: 184 | AG169: FALSE | AH169: =IF(AG169,#REF!) -> FALSE | AN169: 166 | AO169: FALSE | AP169: =IF(AO169,'Commodity Prices'!C181) -> FALSE | AR169: =IF(AO169,'Commodity Prices'!D181) -> FALSE | AV169: 184 | AW169: FALSE | AX169: =IF(AW169,'Yahoo Stocks'!D175) -> FALSE | AZ169: =IF(AW169,'Yahoo Stocks'!E175) -> FALSE | BD169: 165 | BE169: FALSE | BF169: =IF(BE169,#REF!) -> FALSE | BH169: =IF(BE169,#REF!) -> FALSE | BL169: 212 | BM169: FALSE | BN169: ='FRED Series'!D181 -> 0 | BP169: =IF(BM169,'FRED Series'!E181) -> FALSE
L170: 167 | X170: 185 | Y170: FALSE | Z170: =IF($F$69,'FRED Indicies'!E182) -> FALSE | AB170: =IF($F$69,'FRED Indicies'!D182) -> FALSE | AF170: 185 | AG170: FALSE | AH170: =IF(AG170,#REF!) -> FALSE | AN170: 167 | AO170: FALSE | AP170: =IF(AO170,'Commodity Prices'!C182) -> FALSE | AR170: =IF(AO170,'Commodity Prices'!D182) -> FALSE | AV170: 185 | AW170: FALSE | AX170: =IF(AW170,'Yahoo Stocks'!D176) -> FALSE | AZ170: =IF(AW170,'Yahoo Stocks'!E176) -> FALSE | BD170: 166 | BE170: FALSE | BF170: =IF(BE170,#REF!) -> FALSE | BH170: =IF(BE170,#REF!) -> FALSE | BL170: 213 | BM170: FALSE | BN170: ='FRED Series'!D182 -> 0 | BP170: =IF(BM170,'FRED Series'!E182) -> FALSE
L171: 168 | X171: 186 | Y171: FALSE | Z171: =IF($F$69,'FRED Indicies'!E183) -> FALSE | AB171: =IF($F$69,'FRED Indicies'!D183) -> FALSE | AF171: 186 | AG171: FALSE | AH171: =IF(AG171,#REF!) -> FALSE | AN171: 168 | AO171: FALSE | AP171: =IF(AO171,'Commodity Prices'!C183) -> FALSE | AR171: =IF(AO171,'Commodity Prices'!D183) -> FALSE | AV171: 186 | AW171: FALSE | AX171: =IF(AW171,'Yahoo Stocks'!D177) -> FALSE | AZ171: =IF(AW171,'Yahoo Stocks'!E177) -> FALSE | BD171: 167 | BE171: FALSE | BF171: =IF(BE171,#REF!) -> FALSE | BH171: =IF(BE171,#REF!) -> FALSE | BL171: 214 | BM171: FALSE | BN171: ='FRED Series'!D183 -> 0 | BP171: =IF(BM171,'FRED Series'!E183) -> FALSE
L172: 169 | X172: 187 | Y172: FALSE | Z172: =IF($F$69,'FRED Indicies'!E184) -> FALSE | AB172: =IF($F$69,'FRED Indicies'!D184) -> FALSE | AF172: 187 | AG172: FALSE | AH172: =IF(AG172,#REF!) -> FALSE | AN172: 169 | AO172: FALSE | AP172: =IF(AO172,'Commodity Prices'!C184) -> FALSE | AR172: =IF(AO172,'Commodity Prices'!D184) -> FALSE | AV172: 187 | AW172: FALSE | AX172: =IF(AW172,'Yahoo Stocks'!D178) -> FALSE | AZ172: =IF(AW172,'Yahoo Stocks'!E178) -> FALSE | BD172: 168 | BE172: FALSE | BF172: =IF(BE172,#REF!) -> FALSE | BH172: =IF(BE172,#REF!) -> FALSE | BL172: 215 | BM172: FALSE | BN172: ='FRED Series'!D184 -> 0 | BP172: =IF(BM172,'FRED Series'!E184) -> FALSE
L173: 170 | BD173: 169 | BE173: FALSE | BF173: =IF(BE173,#REF!) -> FALSE | BH173: =IF(BE173,#REF!) -> FALSE | BL173: 216 | BM173: FALSE | BN173: ='FRED Series'!D185 -> 0 | BP173: =IF(BM173,'FRED Series'!E185) -> FALSE
L174: 171 | BD174: 170 | BE174: FALSE | BF174: =IF(BE174,#REF!) -> FALSE | BH174: =IF(BE174,#REF!) -> FALSE | BL174: 217 | BM174: FALSE | BN174: ='FRED Series'!D186 -> 0 | BP174: =IF(BM174,'FRED Series'!E186) -> FALSE
L175: 172 | BD175: 171 | BE175: FALSE | BF175: =IF(BE175,#REF!) -> FALSE | BH175: =IF(BE175,#REF!) -> FALSE | BL175: 218 | BM175: FALSE | BN175: ='FRED Series'!D187 -> 0 | BP175: =IF(BM175,'FRED Series'!E187) -> FALSE
L176: 173 | BD176: 172 | BE176: FALSE | BF176: =IF(BE176,#REF!) -> FALSE | BH176: =IF(BE176,#REF!) -> FALSE | BL176: 219 | BM176: FALSE | BN176: ='FRED Series'!D188 -> 0 | BP176: =IF(BM176,'FRED Series'!E188) -> FALSE
L177: 174 | BD177: 173 | BE177: FALSE | BF177: =IF(BE177,#REF!) -> FALSE | BH177: =IF(BE177,#REF!) -> FALSE | BL177: 220 | BM177: FALSE | BN177: ='FRED Series'!D189 -> 0 | BP177: =IF(BM177,'FRED Series'!E189) -> FALSE
BD178: 174 | BE178: FALSE | BF178: =IF(BE178,#REF!) -> FALSE | BH178: =IF(BE178,#REF!) -> FALSE | BL178: 221 | BM178: FALSE | BN178: ='FRED Series'!D190 -> 0 | BP178: =IF(BM178,'FRED Series'!E190) -> FALSE
BD179: 175 | BE179: FALSE | BF179: =IF(BE179,#REF!) -> FALSE | BH179: =IF(BE179,#REF!) -> FALSE | BL179: 222 | BM179: FALSE | BN179: ='FRED Series'!D191 -> 0 | BP179: =IF(BM179,'FRED Series'!E191) -> FALSE
BD180: 176 | BE180: FALSE | BF180: =IF(BE180,#REF!) -> FALSE | BH180: =IF(BE180,#REF!) -> FALSE | BL180: 223 | BM180: FALSE | BN180: ='FRED Series'!D192 -> 0 | BP180: =IF(BM180,'FRED Series'!E192) -> FALSE
BD181: 177 | BE181: FALSE | BF181: =IF(BE181,#REF!) -> FALSE | BH181: =IF(BE181,#REF!) -> FALSE | BL181: 224 | BM181: FALSE | BN181: ='FRED Series'!D193 -> 0 | BP181: =IF(BM181,'FRED Series'!E193) -> FALSE
BD182: 178 | BE182: FALSE | BF182: =IF(BE182,#REF!) -> FALSE | BH182: =IF(BE182,#REF!) -> FALSE | BL182: 225 | BM182: FALSE | BN182: ='FRED Series'!D194 -> 0 | BP182: =IF(BM182,'FRED Series'!E194) -> FALSE
BD183: 179 | BE183: FALSE | BF183: =IF(BE183,#REF!) -> FALSE | BH183: =IF(BE183,#REF!) -> FALSE | BL183: 226 | BM183: FALSE | BN183: ='FRED Series'!D195 -> 0 | BP183: =IF(BM183,'FRED Series'!E195) -> FALSE
BD184: 180 | BE184: FALSE | BF184: =IF(BE184,#REF!) -> FALSE | BH184: =IF(BE184,#REF!) -> FALSE | BL184: 227 | BM184: FALSE | BN184: ='FRED Series'!D196 -> 0 | BP184: =IF(BM184,'FRED Series'!E196) -> FALSE
BD185: 181 | BE185: FALSE | BF185: =IF(BE185,#REF!) -> FALSE | BH185: =IF(BE185,#REF!) -> FALSE | BL185: 228 | BM185: FALSE | BN185: ='FRED Series'!D197 -> 0 | BP185: =IF(BM185,'FRED Series'!E197) -> FALSE
BD186: 182 | BE186: FALSE | BF186: =IF(BE186,#REF!) -> FALSE | BH186: =IF(BE186,#REF!) -> FALSE | BL186: 229 | BM186: FALSE | BN186: ='FRED Series'!D198 -> 0 | BP186: =IF(BM186,'FRED Series'!E198) -> FALSE
BD187: 183 | BE187: FALSE | BF187: =IF(BE187,#REF!) -> FALSE | BH187: =IF(BE187,#REF!) -> FALSE | BL187: 230 | BM187: FALSE | BN187: ='FRED Series'!D199 -> 0 | BP187: =IF(BM187,'FRED Series'!E199) -> FALSE
BD188: 184 | BE188: FALSE | BF188: =IF(BE188,#REF!) -> FALSE | BH188: =IF(BE188,#REF!) -> FALSE | BL188: 231 | BM188: FALSE | BN188: ='FRED Series'!D200 -> 0 | BP188: =IF(BM188,'FRED Series'!E200) -> FALSE
BD189: 185 | BE189: FALSE | BF189: =IF(BE189,#REF!) -> FALSE | BH189: =IF(BE189,#REF!) -> FALSE | BL189: 232 | BM189: FALSE | BN189: ='FRED Series'!D201 -> 0 | BP189: =IF(BM189,'FRED Series'!E201) -> FALSE
BD190: 186 | BE190: FALSE | BF190: =IF(BE190,#REF!) -> FALSE | BH190: =IF(BE190,#REF!) -> FALSE | BL190: 233 | BM190: FALSE | BN190: ='FRED Series'!D202 -> 0 | BP190: =IF(BM190,'FRED Series'!E202) -> FALSE
BD191: 187 | BE191: FALSE | BF191: =IF(BE191,#REF!) -> FALSE | BH191: =IF(BE191,#REF!) -> FALSE | BL191: 234 | BM191: FALSE | BN191: ='FRED Series'!D203 -> 0 | BP191: =IF(BM191,'FRED Series'!E203) -> FALSE
BD192: 188 | BE192: FALSE | BF192: =IF(BE192,#REF!) -> FALSE | BH192: =IF(BE192,#REF!) -> FALSE | BL192: 235 | BM192: FALSE | BN192: ='FRED Series'!D204 -> 0 | BP192: =IF(BM192,'FRED Series'!E204) -> FALSE
BD193: 189 | BE193: FALSE | BF193: =IF(BE193,#REF!) -> FALSE | BH193: =IF(BE193,#REF!) -> FALSE | BL193: 236 | BM193: FALSE | BN193: ='FRED Series'!D205 -> 0 | BP193: =IF(BM193,'FRED Series'!E205) -> FALSE
BD194: 190 | BE194: FALSE | BF194: =IF(BE194,#REF!) -> FALSE | BH194: =IF(BE194,#REF!) -> FALSE | BL194: 237 | BM194: FALSE | BN194: ='FRED Series'!D206 -> 0 | BP194: =IF(BM194,'FRED Series'!E206) -> FALSE
BD195: 191 | BE195: FALSE | BF195: =IF(BE195,#REF!) -> FALSE | BH195: =IF(BE195,#REF!) -> FALSE | BL195: 238 | BM195: FALSE | BN195: ='FRED Series'!D207 -> 0 | BP195: =IF(BM195,'FRED Series'!E207) -> FALSE
BD196: 192 | BE196: =IF(AND($F$66,BD196<=$H$66),BD196) -> FALSE | BF196: =IF(BE196,#REF!) -> FALSE | BG196: =IFERROR(INDEX(BF:BF,MATCH(Q196,BE:BE,0)),"") ->  | BH196: =IF(BE196,#REF!) -> FALSE | BI196: =IFERROR(INDEX(BH:BH,MATCH(Q196,BE:BE,0)),"") ->  | BJ196: =IF(BI196<>"",$I$66,"") ->  | BK196: =IF(BI196<>"",$J$66,"") ->  | BL196: 239 | BM196: =IF(AND($F$9,BL196<=$H$9),BL196) -> FALSE | BN196: ='FRED Series'!D208 -> 0 | BP196: =IF(BM196,'FRED Series'!E208) -> FALSE | BR196: =IF(BQ196<>"",$I$9,"") ->  | BS196: =IF(BQ196<>"",$J$9,"") -> 
BD197: 193 | BE197: FALSE | BF197: =IF(BE197,#REF!) -> FALSE | BH197: =IF(BE197,#REF!) -> FALSE | BL197: 240 | BM197: FALSE | BN197: ='FRED Series'!D209 -> 0 | BO197: =IFERROR(INDEX(BN:BN,MATCH(L197,BM:BM,0)),"") ->  | BP197: =IF(BM197,'FRED Series'!E209) -> FALSE | BQ197: =IFERROR(INDEX(BN:BN,MATCH(L197,BM:BM,0)),"") -> 
BD198: =BD197+1 -> 194 | BE198: FALSE | BF198: =IF(BE198,#REF!) -> FALSE | BH198: =IF(BE198,#REF!) -> FALSE | BL198: =BL197+1 -> 241 | BM198: FALSE | BN198: ='FRED Series'!D210 -> 0 | BP198: =IF(BM198,'FRED Series'!E210) -> FALSE
BD199: 195 | BE199: FALSE | BF199: =IF(BE199,#REF!) -> FALSE | BH199: =IF(BE199,#REF!) -> FALSE | BL199: 242 | BM199: FALSE | BN199: ='FRED Series'!D211 -> 0 | BP199: =IF(BM199,'FRED Series'!E211) -> FALSE
BD200: 196 | BE200: FALSE | BF200: =IF(BE200,#REF!) -> FALSE | BH200: =IF(BE200,#REF!) -> FALSE | BL200: 243 | BM200: FALSE | BN200: ='FRED Series'!D212 -> 0 | BP200: =IF(BM200,'FRED Series'!E212) -> FALSE
BD201: 197 | BE201: FALSE | BF201: =IF(BE201,#REF!) -> FALSE | BH201: =IF(BE201,#REF!) -> FALSE | BL201: 244 | BM201: FALSE | BN201: ='FRED Series'!D213 -> 0 | BP201: =IF(BM201,'FRED Series'!E213) -> FALSE
... 6 more rows

Sheet Multiple Stock Graph
C1: Index | K1: IRR | L1: Vol | M1: Beta | N1: Avg Ret | P1: =IF(K30," Monthly","Weekly") -> Monthly | R1: From | S1: =Forms!X22 -> 1927-02-01 | T1: to | U1: =Forms!X35 -> 2025-12-31
J2: =O38 -> S&P 500 with Dividend | K2: =Summary!R3 -> 0.050532778 | L2: =Summary!BV5 -> 0.1861333464 | M2: =Summary!BV3 -> 1 | N2: =Summary!R5 -> 0.066972259
B3: Comparison vs Base | G3: Counter | H3: Match | I3: Selection
A4: 1 | B4: ='Read Stocks'!M4 -> ^GSPC | C4: ='Read Stocks'!N4 -> S&P 500 | D4: FALSE | F4: =D4*1 -> 0 | G4: 1 | H4: =MATCH(G4,F$1:F$555,0) ->  | I4: =INDEX(B:B,H4) ->  | J4: =IFERROR(INDEX($C:$C,H4),"") ->  | K4: =IFERROR(TRANSPOSE(Summary!CC4:CH4),"") ->  | L4: =IFERROR(TRANSPOSE(Summary!BW5:CB5),"") -> 0 | M4: =IFERROR(TRANSPOSE(Summary!BW3:CB3),"") -> 0 | N4: =TRANSPOSE(Summary!CC5:CH5) -> 0
A5: 2 | B5: ='Read Stocks'!M5 -> ^GDAXI | C5: ='Read Stocks'!N5 -> DAX | D5: FALSE | F5: =F4+D5 -> 0 | G5: 2 | H5: =MATCH(G5,F$1:F$555,0) ->  | I5: =INDEX(B:B,H5) ->  | J5: =IFERROR(INDEX($C:$C,H5),"") ->  | L5: 0 | M5: 0 | N5: 0
A6: 3 | B6: ='Read Stocks'!M6 -> FTSEMIB.MI | C6: ='Read Stocks'!N6 -> Milan | D6: FALSE | F6: 0 | G6: 3 | L6: 0 | M6: 0 | N6: 0
A7: 4 | B7: ='Read Stocks'!M7 -> ^FCHI | C7: ='Read Stocks'!N7 -> CAC 40 | D7: FALSE | F7: 0 | G7: 4 | H7: =MATCH(G7,F$1:F$555,0) ->  | I7: =INDEX(B:B,H7) ->  | L7: 0 | M7: 0 | N7: 0
A8: 5 | B8: ='Read Stocks'!M8 -> ^NDX | C8: ='Read Stocks'!N8 -> Nasdaq 100 | D8: FALSE | F8: 0 | G8: 5 | L8: 0 | M8: 0 | N8: 0 | AA8: =CHOOSE(timing_code,"Monthly","Weekly","daily") -> Monthly
A9: 6 | B9: ='Read Stocks'!M9 -> ^DJI | C9: ='Read Stocks'!N9 -> 30 Industrials | D9: FALSE | F9: 0 | G9: 6 | H9: =MATCH(G9,F$1:F$555,0) ->  | I9: =INDEX(B:B,H9) ->  | L9: 0 | M9: 0 | N9: 0
A10: 7 | B10: ='Read Stocks'!M10 -> ^SSMI | C10: ='Read Stocks'!N10 -> Swiss | D10: FALSE | F10: 0 | G10: 7 | J10: =IFERROR(INDEX($C:$C,H10),"") -> 
A11: 8 | B11: ='Read Stocks'!M11 -> ^KLSE | C11: ='Read Stocks'!N11 -> Malaysia | D11: FALSE | F11: 0 | G11: 8 | K11: Series Start | L11: Final | M11: Years
A12: 9 | B12: ='Read Stocks'!M12 -> ^SP500TR | C12: ='Read Stocks'!N12 -> S&P TR | D12: FALSE | F12: 0 | G12: 9 | J12: =J2 -> S&P 500 with Dividend | K12: =start_of_date -> 1927-12-01 | L12: =Summary!R2 -> 131.1263812 | M12: =Summary!R4 -> 98.91307324
A13: 10 | B13: ='Read Stocks'!M13 -> ^JKSE | C13: ='Read Stocks'!N13 -> Indonesia | D13: FALSE | F13: 0 | G13: 10 | J13: =J4 ->  | K13: =IFERROR(TRANSPOSE(Summary!AI3:AN3),"") -> FALSE | L13: =TRANSPOSE(Summary!CC3:CH3) -> 1
A14: 11 | B14: ='Read Stocks'!M14 -> ^KS11 | C14: ='Read Stocks'!N14 -> Seoul Composite | D14: FALSE | F14: 0 | G14: 11 | K14: FALSE | L14: 1 | AA14: Indices used for Adjustment
A15: 12 | B15: ='Read Stocks'!M15 -> ^N225 | C15: ='Read Stocks'!N15 -> Nikkei 225 | D15: FALSE | F15: 0 | G15: 12 | K15: FALSE | L15: 1
A16: 13 | B16: ='Read Stocks'!M16 -> ^FTSE | C16: ='Read Stocks'!N16 -> FTSE 100 | D16: FALSE | F16: 0 | G16: 13 | J16: =J7 ->  | K16: FALSE | L16: 1 | AA16: =TRANSPOSE(Summary!AV6:BB6) -> GDP Deflator | AB16: Divide
A17: 14 | B17: ='Read Stocks'!M17 -> NGE | C17: ='Read Stocks'!N17 -> Nigeria | D17: FALSE | F17: 0 | G17: 14 | K17: FALSE | L17: 1 | AA17: CPI US | AB17: Divide
A18: 15 | B18: ='Read Stocks'!M18 -> ^TWII | C18: ='Read Stocks'!N18 -> Taiwan Weighted | D18: FALSE | F18: 0 | G18: 15 | K18: FALSE | L18: 1 | AA18: USD_EUR | AB18: Divide
A19: 16 | B19: ='Read Stocks'!M19 -> ^STI | C19: ='Read Stocks'!N19 -> Straits Times | D19: FALSE | F19: 0 | G19: 16 | J19: Graph Dates | AA19: INR | AB19: Divide
A20: 17 | B20: ='Read Stocks'!M20 -> 000001.SS | C20: ='Read Stocks'!N20 -> SSE Composite | D20: FALSE | F20: 0 | G20: 17 | J20: Start Date | K20: =Summary!I1 -> 1927-02-01 | AA20: USD_GBP | AB20: Divide
A21: 18 | B21: ='Read Stocks'!M21 -> Tadawul Saudi | C21: ='Read Stocks'!N21 -> Tadawul Saudi | D21: FALSE | F21: 0 | G21: 18 | J21: Final Date | K21: =Summary!I2 -> 2025-12-31 | O21: Start Date | R21: End Date | AA21: US Population | AB21: Divide
A22: 19 | B22: ='Read Stocks'!M22 -> ORSTED.CO | C22: ='Read Stocks'!N22 -> ORSTED A/S | D22: FALSE | F22: 0 | G22: 19 | J22: Months | K22: =DATEDIF(K20,K21,"m") -> 1186 | O22: =INDEX(C:C,H14) ->  | AA22: US NOM GNP | AB22: Divide
A23: 20 | B23: ='Read Stocks'!M23 -> RWE.DE | C23: ='Read Stocks'!N23 -> RWE | D23: FALSE | F23: 0 | G23: 20 | J23: Graph Type
A24: 21 | B24: ='Read Stocks'!M24 -> NEE | C24: ='Read Stocks'!N24 -> Nextera | D24: FALSE | F24: 0 | G24: 21 | J24: Use LN Continual
A25: 22 | B25: ='Read Stocks'!M25 -> IBE.MC | C25: ='Read Stocks'!N25 -> Ibederola | D25: FALSE | F25: 0 | G25: 22 | J25: Base Series | O25: Adjustments for Inflation or Currency
A26: 23 | B26: ='Read Stocks'!M26 -> ENGI.PA | C26: ='Read Stocks'!N26 -> ENGIE | D26: FALSE | F26: 0 | G26: 23
A27: 24 | B27: ='Read Stocks'!M27 -> RWE.DE | C27: ='Read Stocks'!N27 -> RWE | D27: FALSE | F27: 0 | G27: 24 | J27: Number of Series for Range | K27: =COUNTIF(D:D,TRUE)+2 -> 2 | Q27: Adjustment 1 | T27: Adjustment 2
A28: 25 | B28: ='Read Stocks'!M28 -> EDP.LS | C28: ='Read Stocks'!N28 -> EDP | D28: FALSE | F28: 0 | G28: 25 | J28: Turn off Calc After Change | K28: FALSE
A29: 26 | B29: ='Read Stocks'!M29 -> SHEL | C29: ='Read Stocks'!N29 -> Shell | D29: FALSE | F29: 0 | G29: 26 | J29: Adjusted Closing Price | K29: =Adj_Close -> TRUE | N29: =J2 -> S&P 500 with Dividend | Q29: 2 | R29: =IF(Q29,INDEX('Read Stocks'!$BN$4:$BN$12,'Multiple Stock Graph'!Q29),"USD") -> CPI US | S29: =_xlfn.XLOOKUP(R29,$AA$16:$AA$22,$AB$16:$AB$22,"",0) -> Divide | T29: 0 | U29: =IF(T29,INDEX('Read Stocks'!$BN$4:$BN$12,'Multiple Stock Graph'!T29),"USD") -> USD | V29: =_xlfn.XLOOKUP(U29,$AA$16:$AA$22,$AB$16:$AB$22,"",0) -> 
A30: 27 | B30: ='Read Stocks'!M30 -> TTE | C30: ='Read Stocks'!N30 -> Total Energies | D30: FALSE | F30: 0 | G30: 27 | J30: Monthly Data | K30: =timing_code=1 -> TRUE | N30: =J4 ->  | Q30: 2 | R30: =IF(Q30,INDEX('Read Stocks'!$BN$4:$BN$12,'Multiple Stock Graph'!Q30),"USD") -> CPI US | S30: =_xlfn.XLOOKUP(R30,$AA$16:$AA$22,$AB$16:$AB$22,"",0) -> Divide | T30: 0 | U30: =IF(T30,INDEX('Read Stocks'!$BN$4:$BN$12,'Multiple Stock Graph'!T30),"USD") -> USD | V30: =_xlfn.XLOOKUP(U30,$AA$16:$AA$22,$AB$16:$AB$22,"",0) -> 
A31: 28 | B31: ='Read Stocks'!M31 -> XOM | C31: ='Read Stocks'!N31 -> Exxon Mobil | D31: FALSE | F31: 0 | G31: 28 | Q31: 2 | R31: =IF(Q31,INDEX('Read Stocks'!$BN$4:$BN$12,'Multiple Stock Graph'!Q31),"USD") -> CPI US | S31: Divide | T31: 0 | U31: =IF(T31,INDEX('Read Stocks'!$BN$4:$BN$12,'Multiple Stock Graph'!T31),"USD") -> USD
A32: 29 | B32: ='Read Stocks'!M32 -> BP | C32: ='Read Stocks'!N32 -> BP | D32: FALSE | F32: 0 | G32: 29 | J32: Start Date of Analysis | K32: =Summary!I1 -> 1927-02-01 | Q32: 2 | R32: =IF(Q32,INDEX('Read Stocks'!$BN$4:$BN$12,'Multiple Stock Graph'!Q32),"USD") -> CPI US | S32: Divide | T32: 0 | U32: =IF(T32,INDEX('Read Stocks'!$BN$4:$BN$12,'Multiple Stock Graph'!T32),"USD") -> USD
A33: 30 | B33: ='Read Stocks'!M33 -> CVX | C33: ='Read Stocks'!N33 -> Chevron | D33: FALSE | F33: 0 | G33: 30 | J33: End Date of Analysis | K33: =Summary!I2 -> 2025-12-31 | Q33: 2 | R33: =IF(Q33,INDEX('Read Stocks'!$BN$4:$BN$12,'Multiple Stock Graph'!Q33),"USD") -> CPI US | S33: Divide | T33: 0 | U33: =IF(T33,INDEX('Read Stocks'!$BN$4:$BN$12,'Multiple Stock Graph'!T33),"USD") -> USD
A34: 31 | B34: ='Read Stocks'!M34 -> 5347.KL | C34: ='Read Stocks'!N34 -> Tenaga Malaysia | D34: FALSE | F34: 0 | G34: 31 | Q34: 0 | R34: =IF(Q34,INDEX('Read Stocks'!$BN$4:$BN$12,'Multiple Stock Graph'!Q34),"USD") -> USD | T34: 0 | U34: =IF(T34,INDEX('Read Stocks'!$BN$4:$BN$12,'Multiple Stock Graph'!T34),"USD") -> USD
A35: 32 | B35: ='Read Stocks'!M35 -> CYZB.F | C35: ='Read Stocks'!N35 -> China Yangtze Power Co | D35: FALSE | F35: 0 | G35: 32 | Q35: 0 | R35: =IF(Q35,INDEX('Read Stocks'!$BN$4:$BN$12,'Multiple Stock Graph'!Q35),"USD") -> USD | T35: 0 | U35: =IF(T35,INDEX('Read Stocks'!$BN$4:$BN$12,'Multiple Stock Graph'!T35),"USD") -> USD
A36: 33 | B36: ='Read Stocks'!M36 -> 015760.KS | C36: ='Read Stocks'!N36 -> Korea Electric Power | D36: FALSE | F36: 0 | G36: 33
A37: 34 | B37: ='Read Stocks'!M37 -> NG.L | C37: ='Read Stocks'!N37 -> National Grid plc | D37: FALSE | F37: 0 | G37: 34
A38: 35 | B38: ='Read Stocks'!M38 -> ED | C38: ='Read Stocks'!N38 -> Consolidated Edison | D38: FALSE | F38: 0 | G38: 35 | L38: Primary Stock | N38: =Forms!AA11 -> 1 | O38: =INDEX(Forms!$AP$9:$AP$13,'S&P 500 Complete'!J1) -> S&P 500 with Dividend
A39: 36 | B39: ='Read Stocks'!M39 -> WEC | C39: ='Read Stocks'!N39 -> Wisconsin Energy Group | D39: FALSE | F39: 0 | G39: 36 | L39: Use the Drop Down Box for Selecting the Index Value for the base and the date
A40: 37 | B40: ='Read Stocks'!M40 -> EDPR.LS | C40: ='Read Stocks'!N40 -> EDP Renovaveis S/A | D40: FALSE | F40: 0 | G40: 37 | L40: Use the check boxes for comparison
A41: 38 | B41: ='Read Stocks'!M41 -> 1038.HK | C41: ='Read Stocks'!N41 -> CK Infrastructure | D41: FALSE | F41: 0 | G41: 38 | L41: Use the first check box for index in computing beta and other statistics
A42: 39 | B42: ='Read Stocks'!M42 -> ETR | C42: ='Read Stocks'!N42 -> Entergy Corporation | D42: FALSE | F42: 0 | G42: 39
A43: 40 | B43: ='Read Stocks'!M43 -> ENEL.MI | C43: ='Read Stocks'!N43 -> ENEL | D43: FALSE | F43: 0 | G43: 40 | L43: When looking at FRED data in individual sheets, shift, CNTL F re-formats.
A44: 41 | B44: ='Read Stocks'!M44 -> DUK | C44: ='Read Stocks'!N44 -> DUKE ENERGY CORPORATION | D44: FALSE | F44: =F43+D44 -> 0 | G44: 41 | I44: =INDEX(B:B,H44) -> 
A45: 42 | B45: ='Read Stocks'!M45 -> AEP | C45: ='Read Stocks'!N45 -> AMERICAN ELECTRIC POWER COMPANY INC | D45: FALSE | F45: =F44+D45 -> 0 | G45: 42 | L45: A range name called graph_output allows you to put in flexible ranges
A46: 43 | B46: ='Read Stocks'!M46 -> EXC | C46: ='Read Stocks'!N46 -> EXELON CORPORATION | D46: FALSE | F46: 0 | G46: 43
A47: 44 | B47: ='Read Stocks'!M47 -> MAEOY | C47: ='Read Stocks'!N47 -> MERALCO | D47: FALSE | F47: 0 | G47: 44
A48: 45 | B48: ='Read Stocks'!M48 -> NTPC.NS | C48: ='Read Stocks'!N48 -> NTPC | D48: FALSE | F48: 0 | G48: 45 | L48: Graph_Output Range
A49: 46 | B49: ='Read Stocks'!M49 -> ENA.MU | C49: ='Read Stocks'!N49 -> ENDESA SA | D49: FALSE | F49: =F48+D49 -> 0 | G49: 45 | I49: =INDEX(B:B,H49) -> 
A50: 47 | B50: ='Read Stocks'!M50 -> GDP Deflator | C50: ='Read Stocks'!N50 -> GDP Deflator | D50: FALSE | F50: 0 | G50: 45 | L50: =graph_output
A51: 48 | B51: ='Read Stocks'!M51 -> CPI US | C51: ='Read Stocks'!N51 -> CPI US | D51: FALSE | F51: 0 | G51: 45
A52: 49 | B52: ='Read Stocks'!M52 -> USD_EUR | C52: ='Read Stocks'!N52 -> USD_EUR | D52: FALSE | F52: 0 | G52: 45
A53: 50 | B53: ='Read Stocks'!M53 -> INR | C53: ='Read Stocks'!N53 -> INR | D53: FALSE | F53: 0 | G53: 45
A54: 51 | B54: ='Read Stocks'!M54 -> USD_GBP | C54: ='Read Stocks'!N54 -> USD_GBP | D54: FALSE | F54: 0 | G54: 45
A55: 52 | B55: ='Read Stocks'!M55 -> US Population | C55: ='Read Stocks'!N55 -> US Population | D55: FALSE | F55: 0 | G55: 45
A56: 53 | B56: ='Read Stocks'!M56 -> US NOM GNP | C56: ='Read Stocks'!N56 -> US NOM GNP | D56: FALSE | F56: 0 | G56: 45
A57: 54 | B57: ='Read Stocks'!M57 -> 5 yr treasury | C57: ='Read Stocks'!N57 -> 5 yr treasury | D57: FALSE | F57: 0 | G57: 45
A58: 55 | B58: ='Read Stocks'!M58 -> 10 year treasury | C58: ='Read Stocks'!N58 -> 10 year treasury | D58: FALSE | F58: 0 | G58: 45
A59: 56 | B59: ='Read Stocks'!M59 -> 6 Month Treasury Bil | C59: ='Read Stocks'!N59 -> 6 Month Treasury Bil | D59: FALSE | F59: 0 | G59: 45
A60: 57 | B60: ='Read Stocks'!M60 -> 3-Month Treasury Bil | C60: ='Read Stocks'!N60 -> 3-Month Treasury Bil | D60: FALSE | F60: 0 | G60: 45
A61: 58 | B61: ='Read Stocks'!M61 -> Disposable Personal | C61: ='Read Stocks'!N61 -> Disposable Personal | D61: FALSE | F61: 0 | G61: 45
A62: 59 | B62: ='Read Stocks'!M62 -> National inc Rent | C62: ='Read Stocks'!N62 -> National inc Rent | D62: FALSE | F62: 0 | G62: 45
A63: 60 | B63: ='Read Stocks'!M63 -> Personal Income | C63: ='Read Stocks'!N63 -> Personal Income | D63: FALSE | F63: 0 | G63: 45
A64: 61 | B64: ='Read Stocks'!M64 -> Compensation of empl | C64: ='Read Stocks'!N64 -> Compensation of empl | D64: FALSE | F64: 0 | G64: 45
A65: 62 | B65: ='Read Stocks'!M65 -> US Med Inc Nom | C65: ='Read Stocks'!N65 -> US Med Inc Nom | D65: FALSE | F65: 0 | G65: 45
A66: 63 | B66: ='Read Stocks'!M66 -> Median Income | C66: ='Read Stocks'!N66 -> Median Income | D66: FALSE | F66: 0 | G66: 45
A67: 64 | B67: ='Read Stocks'!M67 -> US Real GDP | C67: ='Read Stocks'!N67 -> US Real GDP | D67: FALSE | F67: 0 | G67: 45
A68: 65 | B68: ='Read Stocks'!M68 -> US Real GNP | C68: ='Read Stocks'!N68 -> US Real GNP | D68: FALSE | F68: 0 | G68: 45
A69: 66 | B69: ='Read Stocks'!M69 -> GDP GDI | C69: ='Read Stocks'!N69 -> GDP GDI | D69: FALSE | F69: 0 | G69: 45 | H69: =MATCH(G69,F$1:F$555,0) -> 
A70: 67 | B70: ='Read Stocks'!M70 -> Crude Oil Price | C70: ='Read Stocks'!N70 -> Crude Oil Price | D70: FALSE | F70: 0 | G70: 45
A71: 68 | B71: ='Read Stocks'!M71 -> Gold Fixing Pr | C71: ='Read Stocks'!N71 -> Gold Fixing Pr | D71: FALSE | F71: 0 | G71: 45
A72: 69 | B72: ='Read Stocks'!M72 -> Henry Hub Natur | C72: ='Read Stocks'!N72 -> Henry Hub Natur | D72: FALSE | F72: 0 | G72: 45
A73: 70 | B73: ='Read Stocks'!M73 -> LNG, Asia (PNG | C73: ='Read Stocks'!N73 -> LNG, Asia (PNG | D73: FALSE | F73: 0 | G73: 45
A74: 71 | B74: ='Read Stocks'!M74 -> EU Natural Gas | C74: ='Read Stocks'!N74 -> EU Natural Gas | D74: FALSE | F74: 0 | G74: 45
A75: 72 | B75: ='Read Stocks'!M75 -> Uranium (PURAN | C75: ='Read Stocks'!N75 -> Uranium (PURAN | D75: FALSE | F75: 0 | G75: 45
A76: 73 | B76: ='Read Stocks'!M76 -> GDP Per Capital France | C76: ='Read Stocks'!N76 -> GDP Per Capital France | D76: FALSE | F76: 0 | G76: 45
A77: 74 | B77: ='Read Stocks'!M77 -> GDP Per Capital Germany | C77: ='Read Stocks'!N77 -> GDP Per Capital Germany | D77: FALSE | F77: 0 | G77: 45
A78: 75 | B78: ='Read Stocks'!M78 -> GDP Per Capital US | C78: ='Read Stocks'!N78 -> GDP Per Capital US | D78: FALSE | F78: 0 | G78: 45
A79: 76 | B79: ='Read Stocks'!M79 -> GDP Per Capital China | C79: ='Read Stocks'!N79 -> GDP Per Capital China | D79: FALSE | F79: 0 | G79: 45
A80: 77 | B80: ='Read Stocks'!M80 -> Corporate profits BT | C80: ='Read Stocks'!N80 -> Corporate profits BT | D80: FALSE | F80: 0 | G80: 45
A81: 78 | B81: ='Read Stocks'!M81 -> Gross national inc | C81: ='Read Stocks'!N81 -> Gross national inc | D81: FALSE | F81: 0 | G81: 45
A82: 79 | B82: ='Read Stocks'!M82 -> Net Interest and Mis | C82: ='Read Stocks'!N82 -> Net Interest and Mis | D82: FALSE | F82: 0 | G82: 45
A83: 80 | B83: ='Read Stocks'!M83 -> Corp Profit | C83: ='Read Stocks'!N83 -> Corp Profit | D83: FALSE | F83: 0 | G83: 45
A84: 81 | B84: ='Read Stocks'!M84 -> Corp Profits AT no Inv | C84: ='Read Stocks'!N84 -> Corp Profits AT no Inv | D84: FALSE | F84: 0 | G84: 45
A85: 82 | B85: ='Read Stocks'!M85 -> Corp Nonfin | C85: ='Read Stocks'!N85 -> Corp Nonfin | D85: FALSE | F85: 0 | G85: 45
A86: 83 | B86: ='Read Stocks'!M86 -> Corp Aft Tax | C86: ='Read Stocks'!N86 -> Corp Aft Tax | D86: FALSE | F86: 0 | G86: 45
A87: 84 | B87: ='Read Stocks'!M87 -> Corp Inf Adjusted | C87: ='Read Stocks'!N87 -> Corp Inf Adjusted | D87: FALSE | F87: 0 | G87: 45
A88: 85 | B88: ='Read Stocks'!M88 -> Rest of the World | C88: ='Read Stocks'!N88 -> Rest of the World | D88: FALSE | F88: 0 | G88: 45
A89: 86 | B89: ='Read Stocks'!M89 -> Population UK | C89: ='Read Stocks'!N89 -> Population UK | D89: FALSE | F89: 0 | G89: 45
A90: 87 | B90: ='Read Stocks'!M90 -> Population DE | C90: ='Read Stocks'!N90 -> Population DE | D90: FALSE | F90: 0 | G90: 45
A91: 88 | B91: ='Read Stocks'!M91 -> Median Family Income LT | C91: ='Read Stocks'!N91 -> Median Family Income LT | D91: FALSE | F91: 0 | G91: 45
A92: 89 | B92: ='Read Stocks'!M92 ->  | C92: ='Read Stocks'!N92 ->  | D92: FALSE | F92: 0 | G92: 45
A93: 90 | B93: ='Read Stocks'!M93 ->  | C93: ='Read Stocks'!N93 ->  | D93: FALSE | F93: 0 | G93: 45
A94: 91 | B94: ='Read Stocks'!M94 ->  | C94: ='Read Stocks'!N94 ->  | D94: FALSE | F94: 0 | G94: 45
A95: 92 | B95: ='Read Stocks'!M95 ->  | C95: ='Read Stocks'!N95 ->  | D95: FALSE | F95: 0 | G95: 45
A96: 93 | B96: ='Read Stocks'!M96 ->  | C96: ='Read Stocks'!N96 ->  | D96: FALSE | F96: 0 | G96: 45
A97: 94 | B97: ='Read Stocks'!M97 ->  | C97: ='Read Stocks'!N97 ->  | D97: FALSE | F97: 0 | G97: 45
A98: 95 | B98: ='Read Stocks'!M98 ->  | C98: ='Read Stocks'!N98 ->  | D98: FALSE | F98: 0 | G98: 45
A99: 96 | B99: ='Read Stocks'!M99 ->  | C99: ='Read Stocks'!N99 ->  | D99: FALSE | F99: 0 | G99: 45
A100: 97 | B100: ='Read Stocks'!M100 ->  | C100: ='Read Stocks'!N100 ->  | D100: FALSE | F100: 0 | G100: 45
A101: 98 | B101: ='Read Stocks'!M101 ->  | C101: ='Read Stocks'!N101 ->  | D101: FALSE | F101: 0 | G101: 45
A102: 99 | B102: ='Read Stocks'!M102 ->  | C102: ='Read Stocks'!N102 ->  | D102: FALSE | F102: 0 | G102: 45
A103: 100 | B103: ='Read Stocks'!M103 ->  | C103: ='Read Stocks'!N103 ->  | D103: FALSE | F103: 0 | G103: 45
A104: 101 | B104: ='Read Stocks'!M104 ->  | C104: ='Read Stocks'!N104 ->  | D104: FALSE | F104: 0 | G104: 45
A105: 102 | B105: ='Read Stocks'!M105 ->  | C105: ='Read Stocks'!N105 ->  | D105: FALSE | F105: 0 | G105: 45
A106: 103 | B106: ='Read Stocks'!M106 ->  | C106: ='Read Stocks'!N106 ->  | D106: FALSE | F106: 0 | G106: 45
A107: 104 | B107: ='Read Stocks'!M107 ->  | C107: ='Read Stocks'!N107 ->  | D107: FALSE | F107: 0 | G107: 45
A108: 105 | B108: ='Read Stocks'!M108 ->  | C108: ='Read Stocks'!N108 ->  | D108: FALSE | F108: 0 | G108: 45
A109: 106 | B109: ='Read Stocks'!M109 ->  | C109: ='Read Stocks'!N109 ->  | D109: FALSE | F109: 0 | G109: 45
A110: 107 | B110: ='Read Stocks'!M110 ->  | C110: ='Read Stocks'!N110 ->  | D110: FALSE | F110: 0 | G110: 45
A111: 108 | B111: ='Read Stocks'!M111 ->  | C111: ='Read Stocks'!N111 ->  | D111: FALSE | F111: 0 | G111: 45
A112: 109 | B112: ='Read Stocks'!M112 ->  | C112: ='Read Stocks'!N112 ->  | D112: FALSE | F112: 0 | G112: 45
A113: 110 | B113: ='Read Stocks'!M113 ->  | C113: ='Read Stocks'!N113 ->  | D113: FALSE | F113: =F112+D113 -> 0 | G113: 45 | I113: =INDEX(B:B,H113) -> 
A114: 111 | B114: ='Read Stocks'!M114 ->  | C114: ='Read Stocks'!N114 ->  | D114: FALSE | F114: 0 | G114: 45
A115: 112 | B115: ='Read Stocks'!M115 ->  | C115: ='Read Stocks'!N115 ->  | D115: FALSE | F115: 0 | G115: 45
A116: 113 | B116: ='Read Stocks'!M116 ->  | C116: ='Read Stocks'!N116 ->  | D116: FALSE | F116: 0 | G116: 45
A117: 114 | B117: ='Read Stocks'!M117 ->  | C117: ='Read Stocks'!N117 ->  | D117: FALSE | F117: 0 | G117: 45
A118: 115 | B118: ='Read Stocks'!M118 ->  | C118: ='Read Stocks'!N118 ->  | D118: FALSE | F118: 0 | G118: 45
A119: 116 | B119: ='Read Stocks'!M119 ->  | C119: ='Read Stocks'!N119 ->  | D119: FALSE | F119: 0 | G119: 45
A120: 117 | B120: ='Read Stocks'!M120 ->  | C120: ='Read Stocks'!N120 ->  | D120: FALSE | F120: 0 | G120: 45
A121: 118 | B121: ='Read Stocks'!M121 ->  | C121: ='Read Stocks'!N121 ->  | D121: FALSE | F121: 0 | G121: 45
A122: 119 | B122: ='Read Stocks'!M122 ->  | C122: ='Read Stocks'!N122 ->  | D122: FALSE | F122: 0 | G122: 45
A123: 120 | B123: ='Read Stocks'!M123 ->  | C123: ='Read Stocks'!N123 ->  | D123: FALSE | F123: 0 | G123: 45
A124: 121 | B124: ='Read Stocks'!M124 ->  | C124: ='Read Stocks'!N124 ->  | D124: FALSE | F124: 0 | G124: 45
A125: 122 | B125: ='Read Stocks'!M125 ->  | C125: ='Read Stocks'!N125 ->  | D125: FALSE | F125: 0 | G125: 45
A126: 123 | B126: ='Read Stocks'!M126 ->  | C126: ='Read Stocks'!N126 ->  | D126: FALSE | F126: 0 | G126: 45
A127: 124 | B127: ='Read Stocks'!M127 ->  | C127: ='Read Stocks'!N127 ->  | D127: FALSE | F127: 0 | G127: 45
A128: 125 | B128: ='Read Stocks'!M128 ->  | C128: ='Read Stocks'!N128 ->  | D128: FALSE | F128: 0 | G128: 45
A129: 126 | B129: ='Read Stocks'!M129 ->  | C129: ='Read Stocks'!N129 ->  | D129: FALSE | F129: 0 | G129: 45
A130: 127 | B130: ='Read Stocks'!M130 ->  | C130: ='Read Stocks'!N130 ->  | D130: FALSE | F130: 0 | G130: 45
A131: 128 | B131: ='Read Stocks'!M131 ->  | C131: ='Read Stocks'!N131 ->  | D131: FALSE | F131: 0 | G131: 45
A132: 129 | B132: ='Read Stocks'!M132 ->  | C132: ='Read Stocks'!N132 ->  | D132: FALSE | F132: 0 | G132: 45
A133: 130 | B133: ='Read Stocks'!M133 ->  | C133: ='Read Stocks'!N133 ->  | D133: FALSE | F133: 0 | G133: 45 | H133: =MATCH(G133,F$1:F$555,0) -> 
A134: 131 | B134: ='Read Stocks'!M134 ->  | C134: ='Read Stocks'!N134 ->  | D134: FALSE | F134: 0 | G134: 45
A135: 132 | B135: ='Read Stocks'!M135 ->  | C135: ='Read Stocks'!N135 ->  | D135: FALSE | F135: 0 | G135: 45
A136: 133 | B136: ='Read Stocks'!M136 ->  | C136: ='Read Stocks'!N136 ->  | D136: FALSE | F136: 0 | G136: 45
A137: 134 | B137: ='Read Stocks'!M137 ->  | C137: ='Read Stocks'!N137 ->  | D137: FALSE | F137: 0 | G137: 45
A138: 135 | B138: ='Read Stocks'!M138 ->  | C138: ='Read Stocks'!N138 ->  | D138: FALSE | F138: 0 | G138: 45
A139: 136 | B139: ='Read Stocks'!M139 ->  | C139: ='Read Stocks'!N139 ->  | D139: FALSE | F139: 0 | G139: 45
A140: 137 | B140: ='Read Stocks'!M140 ->  | C140: ='Read Stocks'!N140 ->  | D140: FALSE | F140: 0 | G140: 45
A141: 138 | B141: ='Read Stocks'!M141 ->  | C141: ='Read Stocks'!N141 ->  | D141: FALSE | F141: 0 | G141: 45
A142: 139 | B142: ='Read Stocks'!M142 ->  | C142: ='Read Stocks'!N142 ->  | D142: FALSE | F142: 0 | G142: 45
A143: 140 | B143: ='Read Stocks'!M143 ->  | C143: ='Read Stocks'!N143 ->  | D143: FALSE | F143: 0 | G143: 45
A144: 141 | B144: ='Read Stocks'!M144 ->  | C144: ='Read Stocks'!N144 ->  | D144: FALSE | F144: 0 | G144: 45
A145: 142 | B145: ='Read Stocks'!M145 ->  | C145: ='Read Stocks'!N145 ->  | D145: FALSE | F145: 0 | G145: 45
A146: 143 | B146: ='Read Stocks'!M146 ->  | C146: ='Read Stocks'!N146 ->  | D146: FALSE | F146: 0 | G146: 45
A147: 144 | B147: ='Read Stocks'!M147 ->  | C147: ='Read Stocks'!N147 ->  | D147: FALSE | F147: 0 | G147: 45
A148: 145 | B148: ='Read Stocks'!M148 ->  | C148: ='Read Stocks'!N148 ->  | D148: FALSE | F148: 0 | G148: 45
A149: 146 | B149: ='Read Stocks'!M149 ->  | C149: ='Read Stocks'!N149 ->  | D149: FALSE | F149: 0 | G149: 45
A150: 147 | B150: ='Read Stocks'!M150 ->  | C150: ='Read Stocks'!N150 ->  | D150: FALSE | F150: 0 | G150: 45
A151: 148 | B151: ='Read Stocks'!M151 ->  | C151: ='Read Stocks'!N151 ->  | D151: FALSE | F151: 0 | G151: 45
A152: 149 | B152: ='Read Stocks'!M152 ->  | C152: ='Read Stocks'!N152 ->  | D152: FALSE | F152: 0 | G152: 45
A153: 150 | B153: ='Read Stocks'!M153 ->  | C153: ='Read Stocks'!N153 ->  | D153: FALSE | F153: 0 | G153: 45
A154: 151 | B154: ='Read Stocks'!M154 ->  | C154: ='Read Stocks'!N154 ->  | D154: FALSE | F154: 0 | G154: 45
A155: 152 | B155: ='Read Stocks'!M155 ->  | C155: ='Read Stocks'!N155 ->  | D155: FALSE | F155: 0 | G155: 45
A156: 153 | B156: ='Read Stocks'!M156 ->  | C156: ='Read Stocks'!N156 ->  | D156: FALSE | F156: 0 | G156: 45
A157: 154 | B157: ='Read Stocks'!M157 ->  | C157: ='Read Stocks'!N157 ->  | D157: FALSE | F157: 0 | G157: 45
A158: 155 | B158: ='Read Stocks'!M158 ->  | C158: ='Read Stocks'!N158 ->  | D158: FALSE | F158: 0 | G158: 45
A159: 156 | B159: ='Read Stocks'!M159 ->  | C159: ='Read Stocks'!N159 ->  | D159: FALSE | F159: 0 | G159: 45
A160: 157 | B160: ='Read Stocks'!M160 ->  | C160: ='Read Stocks'!N160 ->  | D160: FALSE | F160: 0 | G160: 45
A161: 158 | B161: ='Read Stocks'!M161 ->  | C161: ='Read Stocks'!N161 ->  | D161: FALSE | F161: 0 | G161: 45
A162: 159 | B162: ='Read Stocks'!M162 ->  | C162: ='Read Stocks'!N162 ->  | D162: FALSE | F162: 0 | G162: 45
A163: 160 | B163: ='Read Stocks'!M163 ->  | C163: ='Read Stocks'!N163 ->  | D163: FALSE | F163: 0 | G163: 45
A164: 161 | B164: ='Read Stocks'!M164 ->  | C164: ='Read Stocks'!N164 ->  | D164: FALSE | F164: 0 | G164: 45
A165: 162 | B165: ='Read Stocks'!M165 ->  | C165: ='Read Stocks'!N165 ->  | D165: FALSE | F165: 0 | G165: 45
A166: 163 | B166: ='Read Stocks'!M166 ->  | C166: ='Read Stocks'!N166 ->  | D166: FALSE | F166: 0 | G166: 45
A167: 164 | B167: ='Read Stocks'!M167 ->  | C167: ='Read Stocks'!N167 ->  | D167: FALSE | F167: 0 | G167: 45
A168: 165 | B168: ='Read Stocks'!M168 ->  | C168: ='Read Stocks'!N168 ->  | D168: FALSE | F168: 0 | G168: 45
A169: 166 | B169: ='Read Stocks'!M169 ->  | C169: ='Read Stocks'!N169 ->  | D169: FALSE | F169: 0 | G169: 45
A170: 167 | B170: ='Read Stocks'!M170 ->  | C170: ='Read Stocks'!N170 ->  | D170: FALSE | F170: 0 | G170: 45
A171: 168 | B171: ='Read Stocks'!M171 ->  | C171: ='Read Stocks'!N171 ->  | D171: FALSE | F171: 0 | G171: 45
A172: 169 | B172: ='Read Stocks'!M172 ->  | C172: ='Read Stocks'!N172 ->  | D172: FALSE | F172: 0 | G172: 45
A173: 170 | B173: ='Read Stocks'!M173 ->  | C173: ='Read Stocks'!N173 ->  | D173: FALSE | F173: 0 | G173: 45
A174: 171 | B174: ='Read Stocks'!M174 ->  | C174: ='Read Stocks'!N174 ->  | D174: FALSE | F174: 0 | G174: 45
A175: 172 | B175: ='Read Stocks'!M175 ->  | C175: ='Read Stocks'!N175 ->  | D175: FALSE | F175: 0 | G175: 45
A176: 173 | B176: ='Read Stocks'!M176 ->  | C176: ='Read Stocks'!N176 ->  | D176: FALSE | F176: 0 | G176: 45
A177: 174 | B177: ='Read Stocks'!M177 ->  | C177: ='Read Stocks'!N177 ->  | D177: FALSE | F177: =F176+D177 -> 0 | G177: 45 | I177: =INDEX(B:B,H177) -> 
A178: 175 | B178: ='Read Stocks'!M178 -> 0 | C178: ='Read Stocks'!N178 -> 0 | D178: FALSE | F178: 0 | G178: 45
A179: 176 | B179: ='Read Stocks'!M179 -> 0 | C179: ='Read Stocks'!N179 -> 0 | D179: FALSE | F179: 0 | G179: 45
A180: 177 | B180: ='Read Stocks'!M180 -> 0 | C180: ='Read Stocks'!N180 -> 0 | D180: FALSE | F180: 0 | G180: 45
A181: 178 | B181: ='Read Stocks'!M181 -> 0 | C181: ='Read Stocks'!N181 -> 0 | D181: FALSE | F181: 0 | G181: 45
A182: 179 | B182: ='Read Stocks'!M182 -> 0 | C182: ='Read Stocks'!N182 -> 0 | D182: FALSE | F182: 0 | G182: 45
A183: 180 | B183: ='Read Stocks'!M183 -> 0 | C183: ='Read Stocks'!N183 -> 0 | D183: FALSE | F183: 0 | G183: 45
A184: 181 | B184: ='Read Stocks'!M184 -> 0 | C184: ='Read Stocks'!N184 -> 0 | D184: FALSE | F184: 0 | G184: 45
A185: 182 | B185: ='Read Stocks'!M185 -> 0 | C185: ='Read Stocks'!N185 -> 0 | D185: FALSE | F185: 0 | G185: 45
A186: 183 | B186: ='Read Stocks'!M186 -> 0 | C186: ='Read Stocks'!N186 -> 0 | D186: FALSE | F186: 0 | G186: 45
A187: 184 | B187: ='Read Stocks'!M187 -> 0 | C187: ='Read Stocks'!N187 -> 0 | D187: FALSE | F187: 0 | G187: 45
A188: 185 | B188: ='Read Stocks'!M188 -> 0 | C188: ='Read Stocks'!N188 -> 0 | D188: FALSE | F188: 0 | G188: 45
A189: 186 | B189: ='Read Stocks'!M189 -> 0 | C189: ='Read Stocks'!N189 -> 0 | D189: FALSE | F189: 0 | G189: 45
A190: 187 | B190: ='Read Stocks'!M190 -> 0 | C190: ='Read Stocks'!N190 -> 0 | D190: FALSE | F190: 0 | G190: 45
A191: 188 | B191: ='Read Stocks'!M191 -> 0 | C191: ='Read Stocks'!N191 -> 0 | D191: FALSE | F191: 0 | G191: 45
A192: 189 | B192: ='Read Stocks'!M192 -> 0 | C192: ='Read Stocks'!N192 -> 0 | D192: FALSE | F192: 0 | G192: 45
A193: 190 | B193: ='Read Stocks'!M193 -> 0 | C193: ='Read Stocks'!N193 -> 0 | D193: FALSE | F193: 0 | G193: 45
A194: 191 | B194: ='Read Stocks'!M194 -> 0 | C194: ='Read Stocks'!N194 -> 0 | D194: FALSE | F194: 0 | G194: 45
A195: 192 | B195: ='Read Stocks'!M195 -> 0 | C195: ='Read Stocks'!N195 -> 0 | D195: FALSE | F195: 0 | G195: 45
D196: FALSE | F196: 0 | G196: 45
D197: FALSE | F197: 0 | G197: 45 | H197: =MATCH(G197,F$1:F$555,0) -> 
D198: FALSE | F198: 0 | G198: 45
D199: FALSE | F199: 0 | G199: 45
D200: FALSE | F200: 0 | G200: 45
... 100 more rows

Sheet Yahoo Index
A1: Input Stock Indicies with finance.yahoo tickers
A2: Do not Insert Rows because of the Python Program
C3: Inputs to Python Code
C4: Timing | D4: 1d
C5: Yahoo Index Ticker | D5: 9
C6: Index Tickers | D6: =COUNTA(D10:D114) -> 18
C7: python script | D7: IndexTickersM.py | U7: Symbol | V7: Name
D9: Ticker | E9: Sheet Name | F9: Description | I9: 1 | J9: ^GSPC | K9: S&P 500 | L9: US S&P 500 | M9: USD | O9: ^GSPC | P9: S&P 500 | Q9: US S&P 500 | T9: 2 | U9: ^DJI | V9: Dow 30 | Y9: 29
C10: 1 | D10: ^GSPC | E10: =K9 -> S&P 500 | F10: US S&P 500 | I10: 2 | J10: ^GDAXI | K10: DAX | L10: Germany DAX in Euro | M10: Euro | O10: ^GDAXI | P10: DAX | Q10: DAX | T10: 3 | U10: ^IXIC | V10: Nasdaq | Y10: 30
C11: 2 | D11: ^GDAXI | E11: DAX | F11: Germany DAX in Euro | I11: 3 | J11: ^FCHI | K11: CAC 40 | L11: France CAC 40 | M11: Euro | O11: ^FTSE | P11: FTSE 100 | Q11: FTSE 100 | T11: 4 | U11: ^NYA | V11: NYSE COMPOSITE (DJ) | Y11: 31
C12: 3 | D12: =J12 -> FTSEMIB.MI | E12: =K12 -> Milan | F12: =L12 -> Italy Milan | I12: 4 | J12: FTSEMIB.MI | K12: Milan | L12: Italy Milan | M12: Euro | O12: ^DJI | P12: 30 Industrials | Q12: 30 Industrials | T12: 5 | U12: ^XAX | V12: NYSE AMEX COMPOSITE INDEX | Y12: 32
C13: 4 | D13: =J11 -> ^FCHI | E13: =K11 -> CAC 40 | F13: =L11 -> France CAC 40 | I13: 5 | J13: ^IBEX | K13: IBEX 35 | L13: Spain IBEX 35 | M13: Euro | O13: ^SSMI | P13: Swiss | Q13: Swiss SMI | T13: 6 | U13: ^BUK100P | V13: Cboe UK 100 Price Return | Y13: 33
C14: 5 | D14: =J20 -> ^NDX | E14: =K20 -> Nasdaq 100 | F14: Nasdaq 100 | I14: 6 | J14: ^OMX | K14: Sweeden | L14: Sweeden Index | M14: SEK | O14: ^N225 | P14: Nikkei 225 | Q14: Japan 225 | T14: 7 | U14: ^RUT | V14: Russell 2000 | Y14: 34
C15: 6 | D15: =J18 -> ^DJI | E15: =K18 -> 30 Industrials | F15: Dow Jones 30 Industrials | I15: 7 | J15: ^OSEAX | K15: Oslo | L15: Finland | M15: NOK | O15: ^FCHI | P15: CAC 40 | Q15: France CAC 40 | T15: 8 | U15: ^VIX | V15: Vix | Y15: 35
C16: 7 | D16: =J16 -> ^SSMI | E16: =K16 -> Swiss | F16: =L16 -> Swiss SMI | I16: 8 | J16: ^SSMI | K16: Swiss | L16: Swiss SMI | M16: CFH | O16: ^OEX | P16: Chi Options | Q16: Chicago Options | T16: 9 | U16: ^FTSE | V16: FTSE 100 | Y16: 36
C17: 8 | D17: =J26 -> ^KLSE | E17: =K26 -> Malaysia | F17: =L26 -> Malaysia | I17: 9 | J17: ^BFX | K17: Brussels | L17: Brussels | M17: Euro | T17: 10 | U17: ^GDAXI | V17: DAX PERFORMANCE-INDEX | Y17: 37
C18: 9 | D18: ^SP500TR | E18: S&P TR | F18: US S&P 500 Div | I18: 10 | J18: ^DJI | K18: 30 Industrials | L18: Dow Jones 30 Industrials | M18: USD | T18: 11 | U18: ^FCHI | V18: CAC 40 | Y18: 38
C19: 10 | D19: =J25 -> ^JKSE | E19: =K25 -> Indonesia | F19: Indonesia | I19: 11 | J19: ^OEX | K19: Chi Options | L19: Chicago Options | M19: USD | T19: 12 | U19: ^STOXX50E | V19: ESTX 50 PR.EUR | Y19: 39
C20: 11 | D20: =J29 -> ^KS11 | E20: =K29 -> Seoul Composite | F20: Seoul Composite | I20: 12 | J20: ^NDX | K20: Nasdaq 100 | L20: Nasdaq 100 | M20: USD | T20: 13 | U20: ^N100 | V20: EURONEXT 100 | Y20: 40
C21: 12 | D21: =J21 -> ^N225 | E21: =K21 -> Nikkei 225 | F21: Japan 225 | I21: 14 | J21: ^N225 | K21: Nikkei 225 | L21: Japan 225 | M21: JPY | T21: 14 | U21: ^BFX | V21: BEL 20
C22: 13 | D22: =J34 -> ^FTSE | E22: =K34 -> FTSE 100 | F22: UK FTSE 100 | I22: 15 | J22: ^HSI | K22: Hang Seng | L22: Hong Kong Hang Seng | M22: HKD | T22: 15 | U22: IMOEX.ME | V22: MOEX Russia Index
C23: 14 | D23: =J31 -> NGE | E23: =K31 -> Nigeria | F23: Nigeria | I23: 16 | J23: ^AORD | K23: Austrailian | L23: Austrailian | M23: AUD | T23: 16 | U23: ^N225 | V23: Nikkei 225
C24: 15 | D24: =J30 -> ^TWII | E24: =K30 -> Taiwan Weighted | F24: Taiwan Weighted | I24: 17 | J24: ^BSESN | K24: India | L24: =K24 -> India | M24: INR | T24: 17 | U24: ^HSI | V24: HANG SENG INDEX
C25: 16 | D25: =J37 -> ^STI | E25: =K37 -> Straits Times | F25: Straits Times | I25: 18 | J25: ^JKSE | K25: Indonesia | L25: =K25 -> Indonesia | M25: IDR | T25: 18 | U25: 000001.SS | V25: SSE Composite Index
C26: 17 | D26: =J39 -> 000001.SS | E26: =K39 -> SSE Composite | F26: China Index | I26: 19 | J26: ^KLSE | K26: Malaysia | L26: Malaysia | M26: MYR | T26: 19 | U26: ^STI | V26: STI Index
C27: 18 | D27: ^TASI.SR | E27: Tadawul Saudi | F27: Tadawul Saudi | I27: 20 | J27: ^NZ50 | K27: New Zealand | L27: New Zealand | M27: NZD | T27: 20 | U27: ^AXJO | V27: S&P/ASX 200
C28: 19 | I28: 21 | J28: ^NSEI | K28: S&P CNX NIFTY | L28: S&P CNX NIFTY | M28: INR | T28: 21 | U28: ^AORD | V28: ALL ORDINARIES
C29: 20 | I29: 22 | J29: ^KS11 | K29: Seoul Composite | L29: Seoul Composite | M29: KWR | T29: 22 | U29: ^BSESN | V29: S&P BSE SENSEX
C30: 21 | I30: 23 | J30: ^TWII | K30: Taiwan Weighted | L30: Taiwan Weighted | M30: TWII | T30: 23 | U30: ^JKSE | V30: Jakarta Composite Index
C31: 22 | I31: 24 | J31: NGE | K31: Nigeria | L31: Nigeria | M31: USD | T31: 24 | U31: ^KLSE | V31: FTSE Bursa Malaysia KLCI
C32: 23 | I32: 30 | J32: 000001.SS | K32: CMA | L32: CMA | M32: Yuan | T32: 25 | U32: ^NZ50 | V32: S&P/NZX 50 INDEX GROSS
C33: 24 | I33: 25 | J33: ^BATSK | K33: BATS 1000 Index | L33: BATS 1000 Index | M33: USD | T33: 26 | U33: ^KS11 | V33: KOSPI Composite Index
C34: 25 | I34: 26 | J34: ^FTSE | K34: FTSE 100 | L34: UK FTSE 100 | M34: GBP | T34: 27 | U34: ^TWII | V34: TSEC weighted index
C35: 26 | I35: 27 | J35: RTS.RS | K35: Russia Index | L35: Russia Index | M35: RUB | T35: 28 | U35: ^GSPTSE | V35: S&P/TSX Composite index
C36: 27 | I36: 28 | J36: FPXAA.PR | K36: Prague | L36: Prague | M36: CZX | T36: 29 | U36: ^BVSP | V36: IBOVESPA
C37: 28 | I37: 29 | J37: ^STI | K37: Straits Times | L37: Straits Times | M37: SGD | T37: 30 | U37: ^MXX | V37: IPC MEXICO
C38: 29 | I38: 30 | J38: ^NSEI | K38: Nifty Fifty | L38: Nifty Fifty | M38: INR | T38: 31 | U38: ^IPSA | V38: IPSA SANTIAGO DE CHILE
C39: 30 | I39: 31 | J39: 000001.SS | K39: SSE Composite | L39: China Index | M39: CNY | T39: 32 | U39: ^MERV | V39: MERVAL
C40: 31 | I40: 32 | J40: ^TASI.SR | K40: Tadawul Index Saudi | M40: SAR | T40: 33 | U40: ^TA125.TA | V40: TA-125
C41: 32 | T41: 34 | U41: ^CASE30 | V41: EGX 30 Price Return Index
C42: 33 | T42: 35 | U42: ^JN0U.JO | V42: Top 40 USD Net TRI Index
C43: 34 | U43: NIFTY 50 (^NSEI)
C44: 35
C45: 36
E109: Index_Sheet_Name
A114: URL to Read Yahoo with WEBREQUEST
C116: yahoo index url | D116: =D134 -> 
C117: Fixed | D117: https://query1.finance.yahoo.com/v7/finance/download/GE?period1=-631152000&period2=1510444800&interval=1wk&events=history&crumb=icbgE5Cs2YY
Y119: 1 | Z119: TGfSWDsZJYT
Y120: 2 | Z120: CQ6.CdbO7Vs
A121: Putting Together the URL for WEBREQUEST | Y121: 3 | Z121: O8FSIw42rxF
Y122: 4 | Z122: CSlGI2sdBG0
C123: Part 1 | D123: https://query1.finance.yahoo.com/v7/finance/download/ | Y123: 5 | Z123: XqOSmY3l4xa
C124: Symbol | D124: =Google_Ticker ->  | Z124: bZ13SIJ1ujV
C125: Part 2 | D125: ?period1= | Z125: eifZc4X.5c9
C126: Start Date | D126: =D138 -> -1356998400 | Z126: o5GkgmuQPjR
C127: Part 3 | D127: &period2= | Y127: 6 | Z127: atAaPiixhv3
C128: End Date | D128: =D137 -> 1780963200 | Y128: 7 | Z128: HMInudozYZG
C129: Part 4 | D129: &interval=1 | L129: =(A1-DATE(1970,1,1))*86400 | Y129: 8 | Z129: 1tWBOBQnX2t
C130: Period | D130: ='Read Stocks'!I87 -> mo | K130: =TODAY() -> 2026-06-09 | L130: =(K130-DATE(1970,1,1))*86400 -> 1780963200 | Y130: 9 | Z130: 2rRQ4y6.uzL
C131: Part 5 | D131: &events=history&crumb= | Y131: 10 | Z131: a5Us3Rk4hyO
C132: Crumb | D132: hoU8VCPeEIq | Z132: 0kqOBm4nIld
Z133: vByltQk3sUB
C134: URL | D134: =D123&D124&D125&D126&D127&D128&D129&D130&D131&Crumb ->  | Z134: vVmUXvpBskH
D135: https://query1.finance.yahoo.com/v7/finance/download/%5EGSPC?period1=-1325635200&period2=1586563200&interval=1mo&events=history | Z135: z2LXjkN7s9F
C136: Date | D136: Unix Date | Z136: P5BIJQPrhY2
C137: =TODAY() -> 2026-06-09 | D137: =(C137-DATE(1970,1,1))*86400 -> 1780963200 | E137: =_xlfn.FORMULATEXT(D137) -> =(C137-DATE(1970,1,1))*86400 | Z137: gEkJpIMXCpF
C138: 1927-01-01 | D138: =(C138-DATE(1970,1,1))*86400 -> -1356998400 | E138: =_xlfn.FORMULATEXT(D138) -> =(C138-DATE(1970,1,1))*86400 | G138: =24*60*60 -> 86400 | H138: =_xlfn.FORMULATEXT(G138) -> =24*60*60 | Z138: cramylo4rtq
C140: cookie | D140: B=ft3rqr9fmfq88&b=3&s=5i
Y141: 14 | Z141: 647kXnSPl6G
C142: Yahoo Index | D142: =D144&#REF!&D145&E151&D146&F151&D147 ->  | Y142: 15 | Z142: mmD9oHwXc4Q
Y143: 16 | Z143: QGPH.wTFCEz
D144: http://www.google.com/finance/historical?q= | Y144: 17 | Z144: 2oXbf.DMbbF
D145: &startdate= | Y145: 18 | Z145: dIkNm9YBdCc
D146: &enddate= | I146: Data from Google Site | N146: Single Stock with Combo Box and Check Box | S146: Step 1: Insert and Modify Checkbox | Y146: 19 | Z146: NYteS5Qvgrn
D147: &output=csv | I147: Getting the Data Directly | N147: Create and Attach Checkboxes | S147: Step 2: Find the number of the first checkbox | Y147: 20 | Z147: XV0zNccsK.P
I148: Alternative URL | N148: Re-set Checkboxes | S148: Step 3: Open the macro file to put together checkboxes | Y148: 21
E149: Start | F149: End | I149: Creating Macro Workbooks.open | N149: Set-up Master Date and Forms | S149: Step 4: Run the macro (Shift, CNTL, E) | Y149: 22
E150: =C138 -> 1927-01-01 | F150: =TODAY() -> 2026-06-09 | I150: Adding Macro to Move Data | N150: Option for Raw, Index or Pct Change | S150: Step 5: Insert the standard count, match and index | Y150: 23
E151: =TEXT(E150,"MMM DD, YYYY") -> Jan 01, 1927 | F151: =TEXT(F150,"MMM DD, YYYY") -> Jun 09, 2026 | I151: Loop with Multiple Stocks | N151: Analysis of Single Stock vs Index | S151: Step 6: Use Indirect and lookup to read selected stocks | Y151: 24
I152: Import Stocks to Power BI | N152: Frequency Distribution vs Normal | S152: Step 7: Create growth and index for each stock | Y152: 25
C153: Read Stocks Switch | D153: ='Read Stocks'!F4 -> TRUE | S153: Step 8: Compute statistics and frequency vs normal | Y153: 26

Sheet Yahoo Stocks
A1: Stock Tickers and Company Names from Yahoo
A2: Do not Insert Rows because of the Python Program
C3: Inputs to Python Code
C4: Timing | D4: =timing -> 1d | AT4: 17 | AU4: 2oXbf.DMbbF
C5: Yahoo Counter | D5: =COUNTA(D10:D93) -> 28 | AT5: 24
C6: Total to Summary | D6: =Counter -> 28 | E6: Total_Tickers | AT6: 25
C7: python script stocks | D7: IndexTickersM.py | E7: python_script_stocks | AT7: 26
D9: Ticker | E9: Company Name | J9: General | O9: Oil Companies | T9: Oil Companies | X9: Food Companies | AB9: Telecom Companies | AG9: Utility Companies | AK9: Insurance Company | AN9: Collection | AS9: Renewable | AY9: India Companies | BH9: Dow
C10: =_xlfn.SEQUENCE(200,) -> 1 | D10: ORSTED.CO | E10: ORSTED A/S
C11: 2 | D11: RWE.DE | E11: RWE | I11: 1 | J11: GE | K11: General Electric | O11: Ticker | T11: CHK | U11: Cheasapeak Energy | X11: NSRGY | Y11: Nestle | AA11: DTE.DE | AB11: Deutsche Telekom AG (ADR) | AG11: AAPL | AH11: Apple | AK11: L&G | AL11: LGEN.L | AN11: FB | AO11: Facebook | AS11: ^GSPC | AT11: S&P 500 | AY11: RELIANCE.NS | BA11: Reliance | BD11: IBE.MC | BE11: Ibdrola | BH11: MMM | BI11: 3M Company | BL11: TSLA | BM11: Tesla | BO11: 5347.KL | BP11: Tenaga National
C12: 3 | D12: NEE | E12: Nextera | I12: 2 | J12: AAPL | K12: Apple | N12: 1 | O12: CHK | P12: Cheasapeak Energy | T12: RRC | U12: Range Resources | X12: KRFT | Y12: Kraft | AA12: FTE | AB12: France Telecom SA (ADR) | AG12: GOOG | AH12: Google | AK12: L&G ADR | AL12: LGGNY | AN12: MSFT | AO12: Microsoft | AS12: GE | AT12: General Electric | AY12: INFY.NS | BA12: Infosys | BD12: 5347.KL | BE12: Tenaga | BH12: AXP | BI12: American Express Company | BL12: META | BM12: Facebook | BO12: MSFT | BP12: Microsoft
C13: 4 | D13: IBE.MC | E13: Ibederola | I13: 3 | J13: GOOG | K13: Google | N13: 2 | O13: RRC | P13: Range Resources | T13: CLR | U13: Contential Resources | X13: HSY | Y13: Hershey | AA13: BT | AB13: BT Group plc (ADR) (BT) | AG13: AMZN | AH13: Amazon | AK13: Met Life | AL13: MET | AN13: BBRY | AO13: Blackberry | AS13: VWS.CO | AT13: Vestas (Denmark) | AY13: HDFC.NS | BA13: HDFC | BD13: MAEOY | BE13: Meralco | BH13: AMGN | BI13: Amgen Inc. | BL13: NVDA | BM13: Navida | BO13: AAPL | BP13: Apple Corporation
C14: 5 | D14: ENGI.PA | E14: ENGIE | I14: 4 | J14: AMZN | K14: Amazon | N14: 3 | O14: CLR | P14: Contential Resources | T14: SD | U14: Sandy Ridge | X14: BN.PA | Y14: Dannone | AA14: VOD | AB14: Vodafone Group plc | AG14: FB | AH14: Facebook | AK14: AIG | AL14: AIG | AN14: HPQ | AO14: HP | AS14: GAM.MC | AT14: Gamesa Wind (Spain) | AY14: ICICIBANK.NS | BA14: ICIC Bank | BD14: ED | BE14: ConEd | BH14: AMZN | BI14: Amazon.com, Inc. | BL14: GOOG | BM14: Google | BO14: TSLA | BP14: Tesla
C15: 6 | D15: RWE.DE | E15: RWE | I15: 5 | J15: FB | K15: Facebook | N15: 4 | O15: SD | P15: Sandy Ridge | T15: MPO | U15: Midstates Petroleum | X15: PEP | Y15: Pepsi Co | AA15: VZ | AB15: Verizon Communications... | AG15: MSFT | AH15: Microsoft | AK15: Prudential | AL15: PRU | AN15: 005930.KS | AO15: Samsung Electronics | AS15: NDX1.DE | AT15: Nordex Wind SE: German On-Shore Wind | AY15: TATAMOTORS.NS | BA15: Tata Motors | BD15: 015760.KS | BE15: Kepco | BH15: AAPL | BI15: Apple Inc. | BL15: AMZN | BM15: Amazon | BO15: META | BP15: Facebook
C16: 7 | D16: EDP.LS | E16: EDP | I16: 6 | J16: MSFT | K16: Microsoft | N16: 5 | O16: MPO | P16: Midstates Petroleum | T16: RDS-B | U16: Shell Oil | X16: COKE | Y16: Coca Cola | AA16: S | AB16: Sprint | AG16: JPM | AH16: JP Morgan | AK16: Genworth | AL16: GWO.TO | AN16: 010140.KS | AO16: Samsung Heavy Industries | AS16: 601558.SS | AT16: Sinovel Wind: Chinese Wind Manufactrer | AY16: WIPRO.NS | BA16: Wipro, Ltd. | BD16: TKECF | BE16: Tepco | BH16: BA | BI16: The Boeing Company | BL16: WEC | BM16: Wisconsin Electric | BO16: NVDA | BP16: Navida
C17: 8 | D17: SHEL | E17: Shell | I17: 7 | J17: BBRY | K17: Blackberry | N17: 6 | O17: SHEL | P17: Shell Oil | T17: XOM | U17: Exxon Mobil | X17: K | Y17: Kellog | AA17: PHI | AB17: Philippine Long Distance (PHI) | AG17: MCD | AH17: McDonalds | AK17: Genworth ADR | AL17: GNW | AN17: BT | AO17: Brittish Telecom | AS17: SUZLON.NS | AT17: Suzlon: Indian Wind Manufacturer | AY17: DRREDDY.NS | BA17: Dr. Reddy's Laboratories | BD17: SO | BE17: Southern Companies | BH17: CAT | BI17: Caterpillar Inc. | BL17: ORSTED.CO | BM17: Orsted Denmark | BO17: GOOG | BP17: Google
C18: 9 | D18: TTE | E18: Total Energies | I18: 8 | J18: HPQ | K18: HP | N18: 7 | O18: XOM | P18: Exxon Mobil | T18: CVX | U18: Chevron | X18: GIS | Y18: General Mills | AA18: TKC | AB18: Turkcell Iletisim Hizm... | AG18: WMT | AH18: Wall Mart | AK18: China Insurance Company | AL18: LFC | AN18: NOK | AO18: Nokia | AS18: 002202.SZ | AT18: Goldwind: Chinese Wind Manufacturer | AY18: WNS | BA18: WNS Holdings | BD18: EDF.PA | BE18: EDF | BH18: CVX | BI18: Chevron Corporation | BL18: BYDDY | BM18: BYD Motors | BO18: AMZN | BP18: Amazon
C19: 10 | D19: XOM | E19: Exxon Mobil | I19: 9 | J19: 005930.KS | K19: Samsung Electronics | N19: 8 | O19: CVX | P19: Chevron | T19: BECC | U19: Breitling Energy Corp. | X19: CAG | Y19: ConAgra | AA19: CHU | AB19: China Unicom Limited (ADR (CHU) | AG19: NEE | AH19: NEXTERA ENERGY INC USD | AK19: AIA Group | AL19: AAGIY | AN19: USM | AO19: US Cellular | AS19: RTJ.F | AT19: RE Power: Wind Manufacturer owned by Suzlon | AY19: SIFY | BA19: Sify Technologies | BD19: ENGI.PA | BE19: Engie | BH19: CSCO | BI19: Cisco Systems, Inc. | BL19: GM | BM19: General Motors | BO19: WEC | BP19: Wisconsin Electric
C20: 11 | D20: BP | E20: BP | I20: 10 | J20: 010140.KS | K20: Samsung Heavy Industries | N20: 9 | O20: TOT | P20: Total | T20: TOT | U20: Total | X20: HNZ | Y20: Heinz | AA20: CN | AB20: China Netcom Group Corp ( (CN) | AG20: ENEL.MI | AH20: ENEL EURO | AK20: China Pacific Insrance | AL20: 2601.HK | AN20: VOD | AO20: Vodaphone | AS20: MY | AT20: Ming Yang: Chinese Wind Manufacturer | AY20: REDFY | BA20: Rediff | BD20: NG.L | BE20: National Grid | BH20: KO | BI20: Coca-Cola | BL20: TM | BM20: Toyota | BO20: ORSTED.CO | BP20: Orsted Denmark
C21: 12 | D21: CVX | E21: Chevron | I21: 11 | J21: BT | K21: Brittish Telecom | N21: 10 | O21: BP | P21: BP | T21: BP | U21: BP | X21: SLE | Y21: Sara Lee | AA21: CTL | AB21: CenturyTel, Inc. (CTL) | AG21: DUK | AH21: DUKE ENERGY CORPORATION USD | AK21: Aflac | AL21: AFL | AN21: S | AO21: Sprint | AS21: FSLR | AT21: First Solar (U.S.) | AY21: VEDL.NS | BA21: Vedanta | BD21: ENEL.MI | BE21: Enel | BH21: DIS | BI21: Walt Disney | BL21: BMW.DE | BM21: BMW Motors | BO21: 2222.SR | BP21: Saudi Aramco
C22: 13 | D22: 5347.KL | E22: Tenaga Malaysia | I22: 12 | J22: NOK | K22: Nokia | N22: 11 | O22: GDP | P22: Goodrich Petroleum Corp. | T22: GDP | U22: Goodrich Petroleum Corp. | X22: SENEB | Y22: Seneca Foods Corp | AA22: DCM | AB22: NTT DoCoMo, Inc. (ADR) | AG22: D | AH22: DOMINION ENERGY INC USD | AK22: Dai-ichi Life Holdings Inc | AL22: DSNKY | AN22: CBB | AO22: Cincinnati Bell Inc. (CBB) | AS22: RECSOL.OL | AT22: REC: Solar Manufacturer Norway | AY22: AZRE | BA22: Azure | BD22: EOAN.DE | BE22: E.on | BH22: GS | BI22: Goldman Sachs | BL22: WMT | BM22: Wall Mart | BO22: 1120.SR | BP22: Al Rajhi Bank
C23: 14 | D23: CYZB.F | E23: China Yangtze Power Co | I23: 13 | J23: USM | K23: US Cellular | N23: 12 | O23: SN | P23: Sanchez Energy Corp. | T23: SN | U23: Sanchez Energy Corp. | X23: CZZ | Y23: Cosan LTD | AA23: NIHD | AB23: NII Holdings, Inc. (NIHD) | AG23: SO | AH23: SOUTHERN COMPANY (THE) USD | AK23: Old Mutual | AL23: ODMTY | AN23: JPM | AO23: JP Morgan | AS23: SPWR | AT23: SunPower Corporation (U.S.) | AY23: GRSXY | BA23: Grasim | BD23: EXC | BE23: Exelon | BH23: HD | BI23: Home Depot | BL23: SD | BM23: Sandy Ridge | BO23: 2082.SR | BP23: ACWA POWER Company
C24: 15 | D24: 015760.KS | E24: Korea Electric Power | I24: 14 | J24: VOD | K24: Vodaphone | N24: 14 | O24: CWEI | P24: Clayton Williams Energy Inc. | T24: CWEI | U24: Clayton Williams Energy Inc. | X24: JBSS | Y24: John B Snfillippo | AA24: NTT | AB24: Nippon Telegraph & Teleph (NTT) | AG24: IBE.MC | AH24: IBERDROLA EURO | AK24: Power Financial Corp | AL24: PWF.TO | AN24: MCD | AO24: McDonalds | AS24: TSL | AT24: Trina Solar Limited (China) | AY24: MTENY | BA24: Mahanagar | BD24: DTE | BE24: Detroit Edison | BH24: HON | BI24: Honeywell | BL24: MPO | BM24: Midstates Petroleum | BO24: 2010.SR | BP24: SABIC
C25: 16 | D25: NG.L | E25: National Grid plc | I25: 15 | J25: S | K25: Sprint | N25: 15 | O25: CPE | P25: Callon Petroleum Co. | T25: CPE | U25: Callon Petroleum Co. | X25: CMFP | Y25: China Marine | AA25: GNCMA | AB25: General Communication, In (GNCMA) | AG25: AEP | AH25: AMERICAN ELECTRIC POWER COMPANY INC USD | AK25: Lincoln National Corp | AL25: LNC | AN25: WMT | AO25: Wall Mart | AS25: SCTY | AT25: Solar City | AY25: MMYT | BA25: MakeMyTrip | BD25: AES | BE25: AES | BH25: IBM | BI25: IBM | BL25: SHEL | BM25: Shell Oil | BO25: 1180.SR | BP25: The Saudi National Bank
C26: 17 | D26: ED | E26: Consolidated Edison | I26: 16 | J26: CBB | K26: Cincinnati Bell Inc. (CBB) | N26: 16 | O26: LPI | P26: Laredo Petroleum Co. | T26: LPI | U26: Laredo Petroleum Co. | X26: DF | Y26: Dean Foods | AA26: IIT | AB26: P.T. Indosat Tbk (ADR) (IIT) | AG26: EXC | AH26: EXELON CORPORATION USD | AK26: Principal Financial Group | AL26: PFG | AN26: NG.L | AO26: National Grid | AS26: SRWRY | AT26: SolarWorld (German Roof-top) | AY26: YTRA | BA26: Yatra | BD26: NRG | BE26: NRG Energy | BH26: JNJ | BI26: Johnson & Johnson | BL26: XOM | BM26: Exxon Mobil | BO26: 7010.SR | BP26: Saudi Telecom Company
C27: 18 | D27: WEC | E27: Wisconsin Energy Group | I27: 17 | J27: JPM | K27: JP Morgan | N27: 17 | O27: OAS | P27: Oasis Petroleum Inc. | T27: OAS | U27: Oasis Petroleum Inc. | X27: DLM | Y27: Delmonte | AA27: JCOM | AB27: j2 Global Communications (JCOM) | AG27: NGG | AH27: NATIONAL GRID TRANSCO PLC GBP | AK27: Allianz | AL27: ALIZF | AN27: EXC | AO27: Exelon | AS27: ASTI | AT27: Ascent Solar Tech., Inc. | AY27: TCS.NS | BA27: TCS | BD27: PCG | BE27: PG&E | BH27: JPM | BI27: JPMorgan Chase & Co. | BL27: CVX | BM27: Chevron | BO27: 1211.SR | BP27: Maaden
C28: 19 | D28: EDPR.LS | E28: EDP Renovaveis S/A | I28: 18 | J28: MCD | K28: McDonalds | N28: 18 | O28: SGY | P28: Stone Energy Corp. | T28: SGY | U28: Stone Energy Corp. | X28: LANC | Y28: Lancaster Colony | AA28: LEAP.OB | AB28: Leap Wireless Internation (LEAP.OB) | AG28: ENGI.PA | AH28: ENGIE EURO | AK28: Zurich Insurance Group | AL28: ZFSVF | AN28: ENGI.PA | AO28: GDF Suez | AS28: CSIQ | AT28: Canadian Solar | AY28: HDFCBANK.NS | BA28: HDFC Bank | BD28: RWE.DE | BE28: RWE | BH28: MCD | BI28: McDonald's Corporation | BL28: KEP | BM28: KOREA ELECTRIC POWER | BO28: 4013.SR | BP28: Al Habib Medical
C29: 20 | D29: 1038.HK | E29: CK Infrastructure | I29: 19 | J29: WMT | K29: Wall Mart | N29: 19 | O29: TPLM | P29: Triangle Petroleum Corp. | T29: TPLM | U29: Triangle Petroleum Corp. | X29: SJM | Y29: The JM Smucker Company | AA29: MBT | AB29: Mobile TeleSystems OJS... | AG29: DNNGY | AH29: ORSTED A/S USD | AK29: Swiss Life | AL29: SWSDF | AN29: EDF.PA | AO29: EDF | AS29: BR6.F | AT29: Bard (Germany) | AY29: HINDUNILVR.NS | BA29: HUL | BD29: MGEE | BE29: Madison Gas and Electric | BH29: MRK | BI29: Merck & Co., Inc. | BL29: ENGI.PA | BM29: Engie | BO29: 1010.SR | BP29: Riyad Bank
C30: 21 | D30: ETR | E30: Entergy Corporation | I30: 20 | J30: NG.L | K30: National Grid | N30: 20 | O30: EPE | P30: EP Energy Corp. Class A | T30: EPE | U30: EP Energy Corp. Class A | X30: SNAK | Y30: Inventure Foods | AA30: NZT | AB30: Telecom Corp of New Zeala (NZT) | AG30: EDF.PA | AH30: EDF (Electricite de France) EURO | AK30: Sun Life | AL30: SLF | AN30: ED | AO30: Consolidated Edison | AS30: HQCL | AT30: Q-Cells: German Solar Company | AY30: ITC.NS | BA30: ITC | BD30: WEC | BE30: Wisconsin Public Service | BH30: MSFT | BI30: Microsoft Corporation | BL30: AES | BM30: AES | BO30: 1150.SR | BP30: Alinma Bank
C31: 22 | D31: ENEL.MI | E31: ENEL | I31: 21 | J31: EXC | K31: Exelon | N31: 21 | O31: SWN | P31: Southwestern | T31: NBL | U31: Noble Energy | X31: FLO | Y31: Flowers Foods | AA31: PGI | AB31: Premiere Global Services (PGI) | AG31: ELE.MC | AH31: ENDESA SA EURO | AK31: AXA SA | AL31: AXAHY | AN31: 5347.KL | AO31: Tenaga | AS31: SGFRF | AT31: Solon: German Solar Manufacturer | AY31: HDFC.NS | BA31: HDFC | BD31: AEE | BE31: Ameren | BH31: NKE | BI31: NIKE, Inc. | BL31: NG.L | BM31: National Grid | BO31: 1060.SR | BP31: The Saudi British Bank
C32: 23 | D32: DUK | E32: DUKE ENERGY CORPORATION | I32: 22 | J32: ENGI.PA | K32: Engie | N32: 22 | O32: CXO | P32: Concho | T32: SWN | U32: Southwestern | X32: YMZBY | Y32: Yamazaki Baking Co. Ltd. (YMZBY) | AA32: PT | AB32: Portugal Telecom, SGPS (A (PT) | AG32: 0002.HK | AH32: CLP HOLDINGS HKD | AK32: Sumpo Holdings | AL32: SMPNY | AN32: MAEOY | AO32: Meralco | AS32: YGE | AT32: Yingili: Chinese Solar Manufacturer | AY32: INFY.NS | BA32: Infosys | BD32: CMS | BE32: CMS Energy | BH32: NVDA | BI32: NVIDIA Corporation | BL32: BN.PA | BM32: Dannone | BO32: 7203.SR | BP32: Elm Company
C33: 24 | D33: AEP | E33: AMERICAN ELECTRIC POWER COMPANY INC | I33: 23 | J33: EDF.PA | K33: EDF | N33: 23 | O33: CNX | P33: CNX | T33: CXO | U33: Concho | X33: WN.TO | Y33: George Weston Limited (WN.TO) | AA33: PTNR | AB33: Partner Communications Co (PTNR) | AG33: ES | AH33: EVERSOURCE ENERGY USD | AK33: Aegon NV | AL33: AEG | AN33: TATAPOWER.BO | AO33: TATA Power | AS33: JKS | AT33: Jinko Solar: Chinese Solar Manufacturer | AY33: SBIN.NS | BA33: SBI | BH33: PG | BI33: Procter & Gamble | BL33: PEP | BM33: Pepsi Co | BO33: 5110.SR | BP33: Saudi Electricity
C34: 25 | D34: EXC | E34: EXELON CORPORATION | I34: 24 | J34: ED | K34: Consolidated Edison | N34: 24 | O34: COG | P34: COG | T34: CNX | U34: CNX | X34: TR | Y34: Tootsie Roll Industries Inc. (TR | AA34: CBB | AB34: Cincinnati Bell Inc. (CBB) | AG34: FE | AH34: FIRSTENERGY CORP USD | AK34: NN Group NV | AL34: NNGRY | AN34: AES | AO34: AES | AS34: 3576.TW | AT34: Neo Solar: Tawinese Solar Manufacturer | AY34: HTMEDIA.NS | BA34: HT Media | BH34: CRM | BI34: Salesforce, Inc. | BL34: COKE | BM34: Coca Cola | BO34: 2280.SR | BP34: Almarai
C35: 26 | D35: MAEOY | E35: MERALCO | I35: 25 | J35: TENA.KL | K35: Tenaga | N35: 30 | O35: CPE | P35: CPE | T35: COG | U35: COG | X35: DMND | Y35: Diamond Foods Inc | AA35: CHA | AB35: China Telecom Corporation (CHA) | AG35: PPL | AH35: PPL CORPORATION USD | AN35: ED | AO35: Consolidated Edison | AS35: LDKYQ | AT35: LDK Solar Co., Ltd (China) | BH35: SHW | BI35: Sherwin-Williams | BL35: K | BM35: Kellog | BO35: 2020.SR | BP35: Saudi Arabian Fertilizer
C36: 27 | D36: NTPC.NS | E36: NTPC | I36: 26 | J36: MAEOY | K36: Meralco | N36: 25 | O36: CRZO | P36: CRZO | T36: CPE | U36: CPE | X36: C | Y36: Citibank | AA36: CHL | AB36: China Mobile (Hong Kong) (CHL) | AG36: EXI | AH36: EDISON INTERNATIONAL USD | AN36: KEP | AO36: Korean Electric Power | AS36: S92.DE | AT36: SMA Solar: Solar Inverter | BH36: TRV | BI36: The Travelers | BL36: GIS | BM36: General Mills | BO36: 1050.SR | BP36: Banque Saudi Fransi
C37: 28 | D37: ENA.MU | E37: ENDESA SA | I37: 27 | J37: TATAPOWER.BO | K37: TATA Power | N37: 26 | O37: DVN | P37: Devon Energy | T37: CRZO | U37: CRZO | X37: JPM | Y37: JP Morgan Chase | AA37: CHT | AB37: Chung Hwa Telecom Co., Lt (CHT) | AG37: 5110.SR | AH37: SAUDI ELECTRICITY COMPANY SAR | AN37: NRG | AO37: NRG Energy | AS37: PWER | AT37: Power-one | BH37: UNH | BI37: UnitedHealth | BL37: TXNM | BM37: PNM Resources | BO37: 1140.SR | BP37: Bank Albilad
C38: 29 | I38: 28 | J38: AES | K38: AES | N38: 27 | O38: ERF | P38: ERF | T38: DVN | U38: Devon Energy | X38: MSFT | Y38: Microsoft | AA38: SKM | AB38: SK Telecom Co., Ltd. (ADR (SKM) | AG38: DTE | AH38: DTE ENERGY COMPANY USD | AN38: ENER | AO38: Energy Conversion Devices | AS38: 3800.HK | AT38: GCL-Poly: Polysilicon in China | BH38: VZ | BI38: Verizon | BL38: ED | BM38: Consolidated Edison | BO38: 1080.SR | BP38: Arab National Bank
C39: 30 | I39: 29 | J39: ED | K39: Consolidated Edison | N39: 28 | O39: GDP | P39: Goodrich Energy | T39: ERF | U39: ERF | X39: NOK | Y39: Nokia | AA39: SNGNF.PK | AB39: Singapore Telecommunicati (SNGNF.PK) | AG39: ETR | AH39: ENTERGY CORPORATION USD | AN39: FOE | AO39: Ferro | AS39: WKCMF.PK | AT39: Wacker (Germany Polysilicon | BL39: ALE | BM39: ALLETE, Inc. | BO39: 7020.SR | BP39: Etihad Etisalat (Mobily)
C40: 31 | I40: 30 | J40: KEP | K40: Korean Electric Power | N40: 29 | O40: IDT | P40: IDT | T40: GDP | U40: Goodrich Energy | X40: VOD | Y40: Vodaphone | AA40: SSI | AB40: SpectraSite Inc. (SSI) | AG40: EOAN.DE | AH40: E.ON SE NA EURO | AN40: FSLR | AO40: First Solar | AS40: WFR | AT40: MEMC Electronic Materi... | BL40: LNT | BM40: Alliant Energy Corporation | BO40: 8210.SR | BP40: Bupa Arabia
C41: 32 | I41: 31 | J41: NRG | K41: NRG Energy | O41: LEI | P41: Lucas Energy Company | T41: IDT | U41: IDT | AA41: TDS | AB41: Telephone & Data Systems (TDS) | AG41: FORTUM.HE | AH41: FORTUM OYJ EURO | AN41: GIS | AO41: General Mills | AS41: DSTI | AT41: DayStar Technologies Inc. | BL41: DTE | BM41: DTE ENERGY COMPANY USD | BO41: 7202.SR | BP41: Arabian Internet
C42: 33 | I42: 32 | J42: ENER | K42: Energy Conversion Devices | O42: NFG | P42: National Fuel Gas | T42: LEI | U42: Lucas Energy Company | AA42: TEF | AB42: Telefonica S.A. (ADR) | AG42: AEE | AH42: AMEREN CORPORATION USD | AN42: K | AO42: Kellogs | AS42: WTL.NZ | AT42: Windflow Technology Limited | BL42: NEE | BM42: NEXTERA ENERGY INC USD | BO42: 4250.SR | BP42: Jabal Omar Development
C43: 34 | I43: 33 | J43: FOE | K43: Ferro | O43: NGS | P43: Natonal Gas Services | T43: NFG | U43: National Fuel Gas | AA43: TELNY | AB43: Telenor ASA (ADR) | AG43: 5347.KL | AH43: TENAGA NASIONAL BERHAD MYR | AN43: CAG | AO43: Conagra | AS43: IBE.MC | AT43: Iberdrola SA | BL43: ENEL.MI | BM43: ENEL EURO | BO43: 1111.SR | BP43: Saudi Tadawul
C44: 35 | I44: 34 | J44: FSLR | K44: First Solar | O44: PQ | P44: Petroquest Energy | T44: NGS | U44: Natonal Gas Services | AA44: TI | AB44: Telecom Italia S.p.A. (AD (TI) | AG44: FTS | AH44: FORTIS INC USD | AN44: CCE | AO44: Coca Cola | AS44: FRS.MC | AT44: Fersa Energias Renovables, S.A. | BL44: DUK | BM44: DUKE ENERGY CORPORATION USD | BO44: 4263.SR | BP44: SAL Saudi Logistics
C45: 36 | J45: GIS | K45: General Mills | O45: PXD | P45: Pioneer Energy | T45: PQ | U45: Petroquest Energy | AA45: TLK | AB45: PT Telekomunikasi Indones (TLK) | AG45: CMS | AH45: CMS ENERGY CORPORATION USD | AN45: PEP | AO45: Pepsico | AS45: ANA.MC | AT45: Acciona,S.A. | BL45: D | BM45: DOMINION ENERGY INC USD | BO45: 4280.SR | BP45: Kingdom Holding
C46: 37 | J46: K | K46: Kellogs | O46: REXX | P46: Rex Energy Company | T46: PXD | U46: Pioneer Energy | AA46: TNE | AB46: Tele Norte Leste Particip (TNE) | AG46: NTPC.NS | AH46: NTPC LTD. INR | AN46: MSI | AO46: Motarola | AS46: AYO.DE | AT46: Abengoa S | BL46: SO | BM46: SOUTHERN COMPANY (THE) USD | BO46: 2050.SR | BP46: Savola Group
C47: 38 | J47: CAG | K47: Conagra | O47: UNT | P47: UNT | T47: REXX | U47: Rex Energy Company | AA47: USM | AB47: United States Cellular Co (USM) | AG47: SSE.L | AH47: SSE PLC GBP | AN47: NYT | AO47: New York Times | AS47: AWNE.PK | AT47: Americas Wind Energy Corporation | BL47: IBE.MC | BM47: IBERDROLA EURO | BO47: 4002.SR | BP47: Mouwasat Medical
C48: 39 | J48: CCE | K48: Coca Cola | O48: TPLM | P48: Triangle Petroleum Corporation | T48: UNT | U48: UNT | AA48: USMO | AB48: USA Mobility, Inc. (USMO) | AG48: JXHGF | AH48: JXTG HOLDINGS,INC. USD | AN48: 066570.KS | AO48: LG Electronics | AS48: 300129.SZ | AT48: Shanghai Taisheng Wind Power | BL48: AEE | BM48: Ameren Corporation | BO48: 2223.SR | BP48: Luberef
C49: 40 | J49: PEP | K49: Pepsico | O49: AR | P49: Antero | T49: TPLM | U49: Triangle Petroleum Corporation | AA49: UTSI | AB49: UTStarcom, Inc. (UTSI) | AG49: KEP | AH49: KOREA ELECTRIC POWER | AN49: CARL-B.CO | AO49: Carlesberg | AS49: SUNE | AT49: Sun Edison (Bankrupt Developer) | BL49: EXC | BM49: Excelon | BO49: 2382.SR | BP49: ADES Holding Company
C50: 41 | J50: MSI | K50: Motarola | O50: LNG | P50: Cheniere Energy | T50: AR | U50: Antero | AA50: VIP | AB50: Vimpel-Communications (AD (VIP) | AG50: 0006.HK | AH50: POWER ASSETS USD | AN50: BUD | AO50: Anheuser-Busch Inbev SA (USD) | AS50: HASI | AT50: Hannanon Armstrong (Yieldco) | BL50: GE | BM50: General Electric | BO50: 2290.SR | BP50: Yanbu National Petrochem
C51: 42 | J51: NYT | K51: New York Times | O51: ROSE | P51: Rosetta Resources | T51: LNG | U51: Cheniere Energy | AA51: T | AB51: AT&T | AG51: AGR | AH51: AVANGRID INC USD | AN51: ABEV | AO51: Ambev SA (USD,BRL) | AS51: NYLD | AT51: NRG Yield (Yieldco) | BL51: BKNG | BM51: Priceline | BO51: 8010.SR | BP51: Cooperative Insurance
C52: 43 | J52: 066570.KS | K52: LG Electronics | T52: 4K2.F | U52: Kodiak Oil and Gas | AA52: AT | AB52: Alltel Corporation (AT) | AG52: EDP.LS | AH52: EDP - ENERGIAS DE PORTUGAL, S.A EURO | AN52: TAP | AO52: Molson Coors Brewing Company | AS52: RNW.TO | AT52: TransAlta Renewables (Yieldco) | BL52: PYPL | BM52: Paypal | BO52: 4210.SR | BP52: Saudi Research and Media Group
C53: 44 | J53: CARL-B.CO | K53: Carlesberg | T53: ROSE | U53: Rosetta Resources | AA53: BCE | AB53: BCE Inc. (USA) (BCE) | AG53: 0270.HK | AH53: GUANGDONG INVESTMENT HKD | AN53: STBFY | AO53: Suntory Beverage & Food Limited | AS53: PEGI | AT53: Pattern Energy Group (Yieldco) | BL53: CSIQ | BM53: Canadian Solar | BO53: 2310.SR | BP53: Saudi International Petrochemical
C54: 45 | J54: BUD | K54: Anheuser-Busch Inbev SA (USD) | T54: MHR | U54: Magmum Hunter | AG54: CPN | AH54: CENTERPOINT ENERGY INC USD | AN54: SAM | AO54: Boston Beer | AS54: BEP | AT54: BEP (Yieldco) | BL54: FSLR | BM54: First Solar | BO54: 8230.SR | BP54: Al Rajhi
C55: 46 | J55: ABEV | K55: Ambev SA (USD,BRL) | AG55: ENIA | AH55: ENEL AMERICAS S.A. USD | AN55: STZ | AO55: Constellation Brands | AS55: ABY | AT55: Abengoa Yield (Yieldco) | BL55: BA | BM55: Boeing | BO55: 4100.SR | BP55: Makkah Construction
C56: 47 | J56: TAP | K56: Molson Coors Brewing Company | AG56: POWERGRID.NS | AH56: POWER GRID CORPORATION OF INDIA LTD. INR | AN56: BREW | AO56: Craft Brew Alliance | AS56: NEP | AT56: NextEra Partners (Yieldco) | BL56: AIR.PA | BM56: Airbus | BO56: 4164.SR | BP56: Nahdi Medical Company
C57: 48 | J57: STBFY | K57: Suntory Beverage & Food Limited | AG57: TRN.MI | AH57: TERNA - RETE ELETTRICA NAZIONALE EURO | AN57: WVVI | AO57: Willamett Valley | AS57: TERP | AT57: TerraForm Power (Yieldco) | BL57: LMT | BM57: Lockeed Martin | BO57: 1020.SR | BP57: Bank AlJazira
C58: 49 | J58: SAM | K58: Boston Beer | AG58: VST | AH58: VISTRA ENERGY CORP USD | AN58: KOF | AO58: Coca Cola | AS58: CAFD | AT58: 8point3 (Yieldco) | BL58: AM.PA | BM58: Dassault Aviation | BO58: 1030.SR | BP58: Saudi Investment Bank
C59: 50 | J59: STZ | K59: Constellation Brands | AG59: EBK.F | AH59: ENBW ENERGIE BAD.-WUE. ON EURO | AN59: COKE | AO59: Coca Cola Botteling | AS59: CMW.V | AT59: China Windpower Group Limited | BL59: ECL | BM59: Eco Lab | BO59: 2083.SR | BP59: MARAFIQ
C60: 51 | J60: BREW | K60: Craft Brew Alliance | AG60: ELET6.SA | AH60: CENTRAIS ELECTRICAS BRASILEIRAS S.A.- ELETROBRAS BRL | AN60: DPS | AO60: Dr Pepper | AS60: APWR | AT60: A Power - Chinese Wind | BO60: 2250.SR | BP60: Saudi Industrial Investment
C61: 52 | J61: WVVI | K61: Willamett Valley | AG61: CEZ.F | AH61: CEZ GROUP EURO | AN61: LTEA | AO61: Long Island Tea | AS61: AS1.DU | AT61: Alero Solar (Germany) | BO61: 4190.SR | BP61: Jarir
C62: 53 | J62: KOF | K62: Coca Cola | AG62: AES | AH62: THE AES CORPORATION USD | AN62: PEP | AO62: Pepsi Co | AS62: ENER | AT62: Energy Conversion | BO62: 4004.SR | BP62: Dallah Healthcare
C63: 54 | J63: COKE | K63: Coca Cola Botteling | AG63: UN01.DE | AH63: UNIPER SE NA. EURO | AN63: HEINY | AO63: Heineken | AS63: STPFQ | AT63: Suntech Power Hldgs. China | BO63: 4142.SR | BP63: Riyadh Cables Group Company
C64: 55 | J64: DPS | K64: Dr Pepper | AG64: CHUEF | AH64: CHUBU ELECTRIC POWER COMPANY USD | AN64: FMOCY | AO64: Fomento Economico Mexicano SAB de CV (USD,MXN) | BO64: 4072.SR | BP64: MBC Group Co.
C65: 56 | J65: LTEA | K65: Long Island Tea | AG65: KAEPY | AH65: THE KANSAI ELECTRIC POWER COMPANY USD | AN65: KNBWY | AO65: Kirin Holdings Company, Limited | BO65: 2150.SR | BP65: The National Company Glass
C66: 57 | J66: PEP | K66: Pepsi Co | AG66: NRG | AH66: NRG ENERGY INC USD | AN66: TSGTF | AO66: Tsingtao Brewery Company Limited | BO66: 4017.SR | BP66: Soliman Abdel Kader Fakeeh
C67: 58 | J67: HEINY | K67: Heineken | AG67: NI | AH67: NISOURCE INC USD | AN67: DEO | AO67: Diageo | BO67: 4030.SR | BP67: National Shipping Company
C68: 59 | J68: FMOCY | K68: Fomento Economico Mexicano SAB de CV (USD,MXN) | AG68: PNW | AH68: PINNACLE WEST CAPITAL CORPORATION USD | AN68: CHK | AO68: Cheasapeak Energy | BO68: 4300.SR | BP68: Dar Al Arkan Real Estate
C69: 60 | J69: KNBWY | K69: Kirin Holdings Company, Limited | AG69: ORG.AX | AH69: ORIGIN ENERGY AUD | AN69: RRC | AO69: Range Resources | BO69: 1212.SR | BP69: Astra Industrial Group Company
C70: 61 | J70: TSGTF | K70: Tsingtao Brewery Company Limited | AG70: 601669.SS | AH70: CN POWER CONSTRU CNY | AN70: CLR | AO70: Contential Resources | BO70: 2381.SR | BP70: Arabian Drilling Company
C71: 62 | J71: DEO | K71: Diageo | AG71: AGL.AX | AH71: AGL ENERGY LIMITED AUD | AN71: SD | AO71: Sandy Ridge
C72: 63 | J72: CHK | K72: Cheasapeak Energy | AG72: CPFE3.SA | AH72: CPFL ENERGIA S.A. BRL | AN72: CAT | AO72: Catepillar
C73: 64 | J73: RRC | K73: Range Resources | AG73: OGE | AH73: OGE ENERGY CORPORATION USD | AN73: ECL | AO73: Eco Lab
C74: 65 | J74: CLR | K74: Contential Resources | AG74: CU.TO | AH74: CANADIAN UTILITIES LIMITED CAD | AN74: MFIN | AO74: Medallion Financial Corp.
C75: 66 | J75: SD | K75: Sandy Ridge | AG75: BEP | AH75: BROOKFIELD RENEWABLE PARTNERS L.P. USD | AN75: PYPL | AO75: Paypal
C76: 67 | J76: CAT | K76: Catepillar | AG76: HNP | AH76: HUANENG POWER INTERNATIONAL INC USD | AN76: PCLN | AO76: Priceline
C77: 68 | J77: ECL | K77: Eco Lab | AG77: TKECY | AH77: TOKYO ELECTRIC POWER COMPANY HOLDINGS USD | AN77: EBAY | AO77: Ebay
C78: 69 | J78: MFIN | K78: Medallion Financial Corp. | AG78: AQN | AH78: ALGONQUIN POWER & UTILITIES CORP USD | AN78: LGEN.L | AO78: L&G
C79: 70 | J79: PYPL | K79: Paypal | AG79: MDU | AH79: MDU RESOURCES GROUP INC USD | AN79: LGGNY | AO79: L&G ADR
C80: 71 | J80: BKNG | K80: Priceline | AG80: ELI.BR | AH80: ELIA EURO | AN80: MET | AO80: Met Life
C81: 72 | J81: EBAY | K81: Ebay | AG81: ENELCHILE.SN | AH81: ENEL CHILE S.A. CLP | AN81: AIG | AO81: AIG
C82: 73 | J82: BYDDY | K82: BYD | AG82: IDA | AH82: IDACORP INC USD | AN82: PRU | AO82: Prudential
C83: 74 | J83: YGE | K83: Yingili | AG83: POR | AH83: PORTLAND GENERAL ELECTRIC COMPANY USD | AN83: GWO.TO | AO83: Genworth
C84: 75 | J84: JKS | K84: Jinko Solar | AG84: QEWS.QA | AH84: QATAR ELECTRICITY AND WATER COMPANY QAR | AN84: GNW | AO84: Genworth ADR
C85: 76 | J85: 3576.TW | K85: Neo Solar | AG85: AST.AX | AH85: AUSNET SERVICES LIMITED AUD | AN85: LFC | AO85: China Insurance Company
C86: 77 | J86: LDKYQ | K86: LDK Solar Co | AG86: HE | AH86: HAWAIIAN ELECTRIC INDUSTRIES INC USD | AN86: AAGIY | AO86: AIA Group
C87: 78 | J87: S92.DE | K87: SMA Solar | AG87: CIG | AH87: COMP EN DE MN CEMIG ADS USD | AN87: 2601.HK | AO87: China Pacific Insrance
C88: 79 | AG88: BKH | AH88: BLACK HILLS CORPORATION USD | AN88: AFL | AO88: Aflac
C89: 80 | AG89: ACO-X.TO | AH89: ATCO LTD. CAD | AN89: DSNKY | AO89: Dai-ichi Life Holdings Inc
C90: 81 | AG90: ORA | AH90: ORMAT TECHNOLOGIES INC USD | AN90: ODMTY | AO90: Old Mutual
C91: 82 | AG91: ELP | AH91: COMPANHIA PARANAENSE DE ENERGIA (COPEL) USD | AN91: PWF.TO | AO91: Power Financial Corp
C92: 83 | AG92: PNM | AH92: PNM RESOURCES INC (HOLDING CO.) USD | AN92: LNC | AO92: Lincoln National Corp
C93: 84 | AG93: TERP | AH93: TERRAFORM POWER INC USD | AN93: PFG | AO93: Principal Financial Group
C94: 85 | D94: Stock_Ticker | E94: Stock_Sheet_Name | AG94: RSTI.ME | AH94: ROSSETI RUB | AN94: ALIZF | AO94: Allianz
C95: 86 | AG95: PCG | AH95: PACIFIC GAS & ELECTRIC CO. USD | AN95: ZFSVF | AO95: Zurich Insurance Group
C96: 87 | AG96: NEP | AH96: NEXTERA ENERGY PARTNERS LP USD | AN96: SWSDF | AO96: Swiss Life
C97: 88
C98: 89
C99: 90
C100: 91
C101: 92
C102: 93
C103: 94
C104: 95
C105: 96
C106: 97
C107: 98
C108: 99
C109: 100
C110: 101
C111: 102
C112: 103
C113: 104
C114: 105
C115: 106
C116: 107
C117: 108
C118: 109
C119: 110
C120: 111
C121: 112
C122: 113
C123: 114
C124: 115
C125: 116
C126: 117
C127: 118
C128: 119
C129: 120
C130: 121
C131: 122
C132: 123
C133: 124
C134: 125
C135: 126
C136: 127
C137: 128
C138: 129
C139: 130
C140: 131
C141: 132
C142: 133
C143: 134
C144: 135
C145: 136
C146: 137
C147: 138
C148: 139
C149: 140
C150: 141
C151: 142
C152: 143
C153: 144
C154: 145
C155: 146
C156: 147
C157: 148
C158: 149
C159: 150
C160: 151
C161: 152
C162: 153
C163: 154
C164: 155
C165: 156
C166: 157
C167: 158
C168: 159
C169: 160
C170: 161
C171: 162
C172: 163
C173: 164
C174: 165
C175: 166
C176: 167
C177: 168
C178: 169
C179: 170
C180: 171
C181: 172
C182: 173
C183: 174
C184: 175
C185: 176
C186: 177
C187: 178
C188: 179
C189: 180
C190: 181
C191: 182
C192: 183
C193: 184
C194: 185
C195: 186
C196: 187
C197: 188
C198: 189
C199: 190
C200: 191
C201: 192
... 35 more rows

Sheet FRED Series
M6: Flag for
C7: FRED Counter | D7: 42 | M7: Creating
C8: Total FRED Codes | D8: =COUNTA(E16:E151) -> 42 | M8: Index | P8: FRED Code | R8: Title from FRED Series
C10: Fred Code | D10: Sheet Name | E10: FRED Description | H10: Convert Rate to Index | M10: Step 3 - Copy Down and Should Give you the FRED Code | Q10: Step 4 - Make a good title | R10: Step 1 - Copy Entire Title from Fred
AC11: Step 2 - Find Start and Stop of Paranthesis
C12: =INDEX(C16:C168,$D$7) -> MEFAINUSA646N | D12: =INDEX(D16:D168,$D$7) -> Median Family Income LT | E12: =INDEX(E16:E168,$D$7) -> Median Family Income in the United States (MEFAINUSA646N) | H12: =INDEX(H16:H168,$D$7) -> FALSE
A14: Inflation, Exchange Rate and Economic Series from FRED | H14: Adjustment
M15: Create Index
C16: =AD16 -> GDPDEF | D16: GDP Deflator | E16: =AF16 -> Implicit Price Deflator | H16: FALSE | J16: Deflator/Index: Divide | M16: FALSE | N16: =FIND("(",R16,1) -> 35 | O16: =FIND(")",R16,1) -> 42 | P16: =MID(R16,N16+1,O16-N16-1) -> EXUSEU | Q16: Euro | R16: U.S. / Euro Foreign Exchange Rate (EXUSEU) | AD16: GDPDEF | AE16: GDP Inf | AF16: Implicit Price Deflator
C17: =AD17 -> CPIAUCSL | D17: =AE17 -> CPI US | E17: =AF17 -> Consumer Price Inflation | H17: FALSE | J17: Deflator/Index: Divide | M17: FALSE | N17: =FIND("(",R17,1) -> 35 | O17: =FIND(")",R17,1) -> 42 | P17: =MID(R17,N17+1,O17-N17-1) -> EXUSUK | Q17: UK | R17: U.S. / U.K. Foreign Exchange Rate (EXUSUK) | AD17: CPIAUCSL | AE17: CPI US | AF17: Consumer Price Inflation
C18: EXUSEU | D18: USD_EUR | E18: U.S. / Euro Foreign Exchange Rate (EXUSEU) | H18: FALSE | J18: Deflator/Index: Multiply | M18: FALSE | N18: 62 | O18: 78 | P18: CCUSSP01SEQ650N | Q18: SEK | R18: US Dollar to National Currency Spot Exchange Rate for Sweden (CCUSSP01SEQ650N) | AD18: EXUSEU | AE18: Euro | AF18: U.S. / Euro Foreign Exchange Rate (EXUSEU)
C19: DEXINUS | D19: INR | E19: India / U.S. Foreign Exchange Rate (DEXINUS) | H19: FALSE | J19: Deflator/Index: Multiply | M19: FALSE | N19: 37 | O19: 45 | P19: DEXNOUS | Q19: NOK | R19: Norway / U.S. Foreign Exchange Rate (DEXNOUS) | AD19: DEXINUS | AE19: INR | AF19: India / U.S. Foreign Exchange Rate (DEXINUS)
C20: EXUSUK | D20: USD_GBP | E20: U.S. / U.K. Foreign Exchange Rate (EXUSUK) | H20: FALSE | J20: Deflator/Index: Multiply | M20: FALSE | N20: 42 | O20: 50 | P20: DEXSZUS | Q20: CFH | R20: Switzerland / U.S. Foreign Exchange Rate (DEXSZUS) | AD20: EXUSUK | AE20: UK | AF20: U.S. / U.K. Foreign Exchange Rate (EXUSUK)
C21: =P184 -> POPTOTUSA647NWDB | D21: US Population | E21: =R184 -> Population Total for United States (POPTOTUSA647NWDB) | H21: FALSE | J21: Population: Divide | M21: FALSE | N21: 74 | O21: 90 | P21: CCUSSP01CZM650N | Q21: CZX | R21: US Dollar to National Currency Spot Exchange Rate for the Czech Republic (CCUSSP01CZM650N) | AD21: DEXSZUS | AE21: CFH | AF21: Switzerland / U.S. Foreign Exchange Rate (DEXSZUS)
C22: GNP | D22: US NOM GNP | E22: Gross National Product (GNP) | H22: FALSE | M22: FALSE | N22: 41 | O22: 58 | P22: FXRATERUA618NUPN | Q22: RUB | R22: Exchange Rate to U.S. Dollar for Russia (FXRATERUA618NUPN) | AD22: GNP | AE22: US NOM GNP | AF22: Gross National Product (GNP)
C23: =P72 -> GS5 | D23: 5 yr treasury | E23: =R72 -> 5-Year Treasury Constant Maturity Rate (GS5) | H23: =M72 -> TRUE | M23: FALSE | N23: 61 | O23: 77 | P23: CCUSSP01JPM650N | Q23: JPY | R23: US Dollar to National Currency Spot Exchange Rate for Japan (CCUSSP01JPM650N)
C24: =P73 -> GS10 | D24: 10 year treasury | E24: =R73 -> 10-Year Treasury Constant Maturity Rate (GS10) | H24: =M73 -> TRUE | M24: FALSE | N24: 40 | O24: 48 | P24: DEXHKUS | Q24: HKD | R24: Hong Kong / U.S. Foreign Exchange Rate (DEXHKUS)
C25: =P187 -> DTB6 | D25: =Q187 -> 6 Month Treasury Bil | E25: =R187 -> 6 Month Treasury Bill Secondary Market Rate Discount Basis (DTB6) | H25: TRUE | M25: FALSE | N25: 40 | O25: 48 | P25: DEXSIUS | Q25: SGD | R25: Singapore / U.S. Foreign Exchange Rate (DEXSIUS)
C26: =P188 -> TB3MS | D26: =Q188 -> 3-Month Treasury Bil | E26: 3-Month Treasury Bill Secondary Market Rate, Discount Basis (TB3MS) | H26: TRUE | M26: FALSE | N26: 40 | O26: 47 | P26: EXUSAL | Q26: AUD | R26: U.S. / Australia Foreign Exchange Rate (EXUSAL)
C27: =P179 -> DSPI | D27: Disposable Personal | E27: Disposable Personal Income (DSPI) | H27: FALSE | M27: FALSE | N27: 36 | O27: 44 | P27: DEXINUS | Q27: INR | R27: India / U.S. Foreign Exchange Rate (DEXINUS)
C28: B049RC1Q027SBEA | D28: National inc Rent | E28: National income: Rental income of persons without CCAdj (B049RC1Q027SBEA) | H28: FALSE | M28: FALSE | N28: 65 | O28: 81 | P28: CCUSSP02IDQ650N | Q28: IDR | R28: National Currency to US Dollar Spot Exchange Rate for Indonesia (CCUSSP02IDQ650N)
C29: =P182 -> PI | D29: =Q182 -> Personal Income | E29: =R182 -> Personal Income (PI) | H29: FALSE | M29: FALSE | N29: 39 | O29: 47 | P29: DEXMAUS | Q29: MYR | R29: Malaysia / U.S. Foreign Exchange Rate (DEXMAUS)
C30: =P172 -> A033RC1A027NBEA | D30: =Q172 -> Compensation of empl | E30: =R172 -> Compensation of employees (A033RC1A027NBEA) | H30: FALSE | M30: FALSE | N30: 42 | O30: 50 | P30: DEXUSNZ | Q30: NZD | R30: U.S. / New Zealand Foreign Exchange Rate (DEXUSNZ)
C31: =P60 -> MEHOINUSA646N | D31: US Med Inc Nom | E31: Median Household Income in the United States (MEHOINUSA646N) | H31: FALSE | M31: FALSE | N31: 42 | O31: 49 | P31: EXKOUS | Q31: KWR | R31: South Korea / U.S. Foreign Exchange Rate (EXKOUS)
C32: LES1252881600Q | D32: Median Income | E32: Employed full time: Median usual weekly real earnings: d over (LES1252881600Q) | H32: FALSE | M32: FALSE | N32: 37 | O32: 45 | P32: DEXTAUS | Q32: TWII | R32: Taiwan / U.S. Foreign Exchange Rate (DEXTAUS)
C33: GDPC1 | D33: US Real GDP | E33: Real Gross Domestic Product (GDPC1) | H33: FALSE | M33: FALSE | N33: 61 | O33: 77 | P33: CCUSSP02CNQ650N | Q33: Yuan | R33: National Currency to US Dollar Spot Exchange Rate for China (CCUSSP02CNQ650N)
C34: GNPC96 | D34: US Real GNP | E34: Real Gross National Product (GNPC96) | H34: FALSE | M34: FALSE | N34: 45 | O34: 53 | P34: NBXMBIS | Q34: Euro 1 | R34: Broad Effective Exchange Rate for Euro Area (NBXMBIS)
C35: LB0000091Q020SBEA | D35: GDP GDI | E35: Real Average of GDP and GDI (LB0000091Q020SBEA) | H35: FALSE | M35: FALSE | N35: 40 | O35: 57 | P35: FXRATEGHA618NUPN | Q35: GHS | R35: Exchange Rate to U.S. Dollar for Ghana (FXRATEGHA618NUPN)
C36: =P94 -> DCOILBRENTEU | D36: =Q94 -> Crude Oil Price | E36: =R94 -> Crude Oil Prices: Brent - Europe (DCOILBRENTEU) | H36: FALSE | M36: FALSE | N36: 81 | O36: 97 | P36: CCUSMA02FRM618N | Q36: France | R36: National Currency to US Dollar Exchange Rate: Average of Daily Rates for France (CCUSMA02FRM618N)
C37: =P96 -> GOLDAMGBD228NLBM | D37: Gold Fixing Pr | E37: Gold Fixing Price 10:30 A.M. London time in London Bullion Market, based in U.S. Dollars (GOLDAMGBD228NLBM) | H37: FALSE | M37: FALSE | N37: =FIND("(",R37,1) -> 63 | O37: =FIND(")",R37,1) -> 79 | P37: =MID(R37,N37+1,O37-N37-1) -> CCUSSP01DEM650N | Q37: Germany | R37: US Dollar to National Currency Spot Exchange Rate for Germany (CCUSSP01DEM650N)
C38: MHHNGSP | D38: Henry Hub Natur | E38: Henry Hub Natural Gas Spot Price (MHHNGSP) | H38: FALSE | M38: TRUE | N38: =FIND("(",R38,1) -> 66 | O38: =FIND(")",R38,1) -> 80 | P38: =MID(R38,N38+1,O38-N38-1) -> INTGSTMXM193N | Q38: Mex Int | R38: Interest Rates, Government Securities, Treasury Bills for Mexico (INTGSTMXM193N)
C39: =P111 -> PNGASJPUSDM | D39: =Q111 -> LNG, Asia (PNG | E39: =R111 -> Global price of LNG, Asia (PNGASJPUSDM) | H39: FALSE | M39: TRUE | N39: =FIND("(",R39,1) -> 80 | O39: =FIND(")",R39,1) -> 96 | P39: =MID(R39,N39+1,O39-N39-1) -> IRLTLT01MXM156N | Q39: Mex Bnd | R39: Long-Term Government Bond Yields: 10-year: Main Including Benchmark for Mexico (IRLTLT01MXM156N)
C40: =P100 -> PNGASEUUSDM | D40: EU Natural Gas | E40: =R100 -> Global price of Natural gas, EU (PNGASEUUSDM) | H40: FALSE | M40: FALSE | N40: 81 | O40: 97 | P40: CPGRLE01MXM659N | Q40: Mex CP! | R40: Consumer Price Index: OECD Groups: All Items Non-Food and Non-Energy for Mexico (CPGRLE01MXM659N)
C41: =P101 -> PURANUSDM | D41: =Q101 -> Uranium (PURAN | E41: =R101 -> Global price of Uranium (PURANUSDM) | H41: FALSE | M41: FALSE | N41: 81 | O41: 97 | P41: CPGRLE01MXM657N | Q41: Mex CPI 1 | R41: Consumer Price Index: OECD Groups: All Items Non-Food and Non-Energy for Mexico (CPGRLE01MXM657N)
C42: =P168 -> PCAGDPFRA646NWDB | D42: GDP Per Capital France | E42: Gross Domestic Product Per Capita for France (PCAGDPFRA646NWDB) | H42: FALSE | M42: FALSE | N42: 37 | O42: 44 | P42: EXMXUS | Q42: Mex exch | R42: Mexico / U.S. Foreign Exchange Rate (EXMXUS)
C43: PCAGDPDEA646NWDB | D43: GDP Per Capital Germany | E43: Gross Domestic Product Per Capita for Germany (PCAGDPDEA646NWDB) | H43: FALSE | M43: FALSE | N43: 67 | O43: 83 | P43: IR3TIB01IDQ156N | Q43: INDO Int | R43: 3-Month or 90-day Rates and Yields: Interbank Rates for Indonesia (IR3TIB01IDQ156N)
C44: A939RC0Q052SBEA | D44: GDP Per Capital US | E44: Gross domestic product per capita (A939RC0Q052SBEA) | H44: FALSE | M44: FALSE | N44: 45 | O44: 59 | P44: INTDSRIDM193N | Q44: INDO Int1 | R44: Interest Rates, Discount Rate for Indonesia (INTDSRIDM193N)
C45: PCAGDPCNA646NWDB | D45: GDP Per Capital China | E45: Gross Domestic Product Per Capita for China (PCAGDPCNA646NWDB) | H45: FALSE | M45: FALSE | N45: 42 | O45: 57 | P45: FPCPITOTLZGIDN | Q45: INDO Inf | R45: Inflation, consumer prices for Indonesia (FPCPITOTLZGIDN)
C46: =P173 -> A053RC1Q027SBEA | D46: Corporate profits BT | E46: Corporate profits before tax without IVA and CCAdj (A053RC1Q027SBEA) | H46: FALSE | M46: FALSE | N46: 65 | O46: 81 | P46: CCUSSP02IDM650N | Q46: INDO Exch | R46: National Currency to US Dollar Spot Exchange Rate for Indonesia (CCUSSP02IDM650N)
C47: A023RC1Q027SBEA | D47: Gross national inc | E47: Gross national income (A023RC1Q027SBEA) | H47: FALSE | M47: FALSE | N47: 43 | O47: 59 | P47: INDCPIALLMINMEI | Q47: IND CPI | R47: Consumer Price Index: All Items for India (INDCPIALLMINMEI)
C48: BOGZ1FA086130003Q | D48: Net Interest and Mis | E48: Net Interest and Miscellaneous Payments, Transactions (BOGZ1FA086130003Q) | H48: FALSE | M48: FALSE | N48: =FIND("(",R48,1) -> 57 | O48: =FIND(")",R48,1) -> 66 | P48: CPIAUCSL | Q48: US CPI | R48: Consumer Price Index for All Urban Consumers: All Items (CPIAUCSL)
C49: =P78 -> CP | D49: =Q78 -> Corp Profit | E49: =R78 -> Corporate Profits | H49: FALSE | M49: FALSE | N49: 30 | O49: 34 | P49: GDI | Q49: US GDI | R49: US GDI Gross Domestic Income (GDI)
C50: =P177 -> IVA | D50: =Q177 -> Corp Profits AT no Inv | E50: =R177 -> Corporate Profits After Tax with Inventory Valuation Adjustment (IVA) and Capital Consumption Adjustment (CCAdj) (CPATAX) | H50: FALSE | M50: FALSE | N50: 29 | O50: 35 | P50: GDPC1 | Q50: US Real GDP | R50: Real Gross Domestic Product (GDPC1)
C51: =P81 -> NFCPATAX | D51: =Q81 -> Corp Nonfin | E51: =R81 -> Non Financial Corporate Profits | H51: FALSE | M51: FALSE | N51: 29 | O51: 35 | P51: GDPCA | Q51: US Real GDP A | R51: Real Gross Domestic Product (GDPCA)
C52: =P86 -> A055RC0A144NBEA | D52: Corp Aft Tax | E52: Corporate Profits After Tax | H52: FALSE | M52: FALSE | N52: 24 | O52: 29 | P52: GDPA | Q52: US GDP | R52: Gross Domestic Product (GDPA)
C53: A445RC1Q027SBEA | D53: Corp Inf Adjusted | E53: Corporate Profits with Inflation Adj | H53: FALSE | M53: FALSE | N53: 40 | O53: 56 | P53: A939RX0Q048SBEA | Q53: US REAL GDP CAP | R53: Real gross domestic product per capita (A939RX0Q048SBEA)
C54: =P183 -> BOGZ1FL263092141Q | D54: =Q183 -> Rest of the World | E54: =R183 -> Rest of the World; Foreign Direct Investment in U.S.: Equity; Asset Market Value, Level (BOGZ1FL263092141Q) | H54: FALSE | M54: FALSE | N54: 24 | O54: 28 | P54: GNP | Q54: US NOM GNP | R54: Gross National Product (GNP)
C55: =P185 -> POPUKA | D55: Population UK | E55: Population in the United Kingdom (POPUKA) | H55: FALSE | M55: FALSE | N55: 42 | O55: 50 | P55: NGDPPOT | Q55: US NOM GDP | R55: Nominal Potential Gross Domestic Product (NGDPPOT)
C56: POPTOTDEA647NWDB | D56: Population DE | E56: Population, Total for Germany (POPTOTDEA647NWDB) | H56: FALSE | M56: FALSE | N56: 35 | O56: 51 | P56: A939RC0Q052SBEA | Q56: US GDP CAP | R56: Gross domestic product per capita (A939RC0Q052SBEA)
C57: =P189 -> MEFAINUSA646N | D57: =Q189 -> Median Family Income LT | E57: Median Family Income in the United States (MEFAINUSA646N) | H57: FALSE | M57: FALSE | N57: 35 | O57: 51 | P57: A791RC0Q052SBEA | Q57: US GNP CAP | R57: Gross national product per capita (A791RC0Q052SBEA)
M58: FALSE | N58: 23 | O58: 39 | P58: A023RC1Q027SBEA | Q58: US GNI | R58: Gross national income (A023RC1Q027SBEA)
M59: FALSE | N59: =FIND("(",R59,1) -> 51 | O59: =FIND(")",R59,1) -> 65 | P59: =MID(R59,N59+1,O59-N59-1) -> MEHOINUSA672N | Q59: Real Median Income | R59: Real Median Household Income in the United States (MEHOINUSA672N)
M60: FALSE | N60: 46 | O60: 60 | P60: MEHOINUSA646N | Q60: US Med Inc Nom | R60: Median Household Income in the United States (MEHOINUSA646N)
M61: FALSE | N61: 63 | O61: 78 | P61: LES1252881600Q | Q61: Median Income | R61: Employed full time: Median usual weekly real earnings: d over (LES1252881600Q)
M62: FALSE | N62: 117 | O62: 132 | P62: LEU0252881500Q | Q62: Median Income 1 | R62: Employed full time: Median usual weekly nominal earnings second quartile Wage and salary workers: 16 years and over (LEU0252881500Q)
M63: FALSE | N63: 74 | O63: 90 | P63: N3291C0A144NBEA | Q63: Insurance | R63: Corporate profits after tax: Domestic industries: Finance and insurance (N3291C0A144NBEA)
M64: FALSE | N64: 37 | O64: 54 | P64: POPTOTUSA647NWDB | Q64: US Population | R64: Population, Total for United States (POPTOTUSA647NWDB)
M65: FALSE | N65: =FIND("(",R65,1) -> 30 | O65: =FIND(")",R65,1) -> 43 | P65: =MID(R65,N65+1,O65-N65-1) -> SPPOPTOTLWLD | Q65: World Population | R65: Population, Total for World (SPPOPTOTLWLD)
M66: FALSE | N66: =FIND("(",R66,1) -> 35 | O66: =FIND(")",R66,1) -> 39 | P66: =MID(R66,N66+1,O66-N66-1) -> PCE | Q66: Consumption | R66: Personal Consumption Expenditures (PCE)
M67: FALSE | N67: =FIND("(",R67,1) -> 31 | O67: =FIND(")",R67,1) -> 35 | P67: =MID(R67,N67+1,O67-N67-1) -> GDP | Q67: US GDP | R67: US GDP Gross Domestic Product (GDP)
M68: TRUE | N68: =FIND("(",R68,1) -> 41 | O68: =FIND(")",R68,1) -> 55 | P68: =MID(R68,N68+1,O68-N68-1) -> INTDSRINM193N | Q68: India Disc Rate | R68: Interest Rates, Discount Rate for India (INTDSRINM193N)
M69: TRUE | N69: =FIND("(",R69,1) -> 68 | O69: =FIND(")",R69,1) -> 82 | P69: =MID(R69,N69+1,O69-N69-1) -> INTGSBINM193N | Q69: India Gvt Bonds | R69: Interest Rates, Government Securities, Government Bonds for India (INTGSBINM193N)
M70: TRUE | N70: =FIND("(",R70,1) -> 96 | O70: =FIND(")",R70,1) -> 111 | P70: =MID(R70,N70+1,O70-N70-1) -> INDIRLTLT01STM | Q70: India 10 Yr Main | R70: Interest Rates: Long-term government bond yields: 10-year: Main including benchmark for India (INDIRLTLT01STM)
M71: TRUE | N71: =FIND("(",R71,1) -> 49 | O71: =FIND(")",R71,1) -> 65 | P71: =MID(R71,N71+1,O71-N71-1) -> CPALTT01INM659N | Q71: India Inflation | R71: Consumer Price Index: Total All Items for India (CPALTT01INM659N)
M72: TRUE | N72: =FIND("(",R72,1) -> 40 | O72: =FIND(")",R72,1) -> 44 | P72: =MID(R72,N72+1,O72-N72-1) -> GS5 | Q72: 5-Year Treasury Constant Maturity Rate (GS5) | R72: 5-Year Treasury Constant Maturity Rate (GS5)
M73: TRUE | N73: 41 | O73: 46 | P73: GS10 | Q73: 10-Year Treasury Constant Maturity Rate (GS10) | R73: 10-Year Treasury Constant Maturity Rate (GS10)
M74: FALSE | N74: 43 | O74: 57 | P74: MEFAINUSA646N | Q74: Median Family Income | R74: Median Family Income in the United States (MEFAINUSA646N)
M75: TRUE | N75: 65 | O75: 81 | P75: CCUSSP02IDM650N | Q75: IDR | R75: National Currency to US Dollar Spot Exchange Rate for Indonesia (CCUSSP02IDM650N)
M76: TRUE | N76: 120 | O76: 126 | P76: DFII5 | Q76: INF5 | R76: Market Yield on U.S. Treasury Securities at 5-Year Constant Maturity, Quoted on an Investment Basis, Inflation-Indexed (DFII5)
M77: TRUE | N77: 121 | O77: 128 | P77: DFII10 | Q77: INF10 | R77: Market Yield on U.S. Treasury Securities at 10-Year Constant Maturity, Quoted on an Investment Basis, Inflation-Indexed (DFII10)
M78: FALSE | P78: CP | Q78: Corp Profit | R78: Corporate Profits
M79: FALSE | P79: CPATAX | Q79: Adj Corp Profit | R79: Adjusted Corporate Profits
M80: FALSE | P80: WASCUR | Q80: Comp Emp | R80: Compenstation of Employees
M81: FALSE | P81: NFCPATAX | Q81: Corp Nonfin | R81: Non Financial Corporate Profits
M82: FALSE | P82: NFCPATAX | Q82: Corp Nonfin Adj | R82: Non Financial Corporate Profits No Adj
M83: FALSE | P83: A466RD3Q052SBEA | Q83: Corp Val Added | R83: Corporate per Unit Value Added
M84: FALSE | P84: COE | Q84: Employee Comp | R84: Compensation of Employees
M85: FALSE | P85: COFC | Q85: Comp Cap | R85: Compensation of Capital
M86: FALSE | P86: A055RC0A144NBEA | Q86: Corp Aft Tax | R86: Corporate Profits After Tax
M87: FALSE | P87: A445RC1Q027SBEA | Q87: Corp Inf Adjusted | R87: Corporate Profits with Inflation Adj
M88: FALSE | P88: B394RC1Q027SBEA | Q88: Corp Non Dom | R88: Corporate Profits non Domestic
M89: FALSE | P89: GDI | Q89: GDI US | R89: Gross Domestic Income
M90: FALSE | P90: GDPC1 | Q90: GDP Real | R90: Real Gross Domestic Product
M91: FALSE | P91: GDP | Q91: GDP US | R91: Gross Domestic Product
M92: FALSE | P92: GDPDEF | Q92: GDP Inf | R92: Implicit Price Deflator
M93: FALSE | P93: CPIAUCSL | Q93: CPI US | R93: Consumer Price Inflation
M94: FALSE | P94: =MID(R94,AC94,AD94-AC94) -> DCOILBRENTEU | Q94: =LEFT(SUBSTITUTE(R94,"Global price of",""),15) -> Crude Oil Price | R94: Crude Oil Prices: Brent - Europe (DCOILBRENTEU) | AC94: =FIND("(",R94,1)+1 -> 35 | AD94: =FIND(")",R94,1) -> 47 | AF94: =R94 -> Crude Oil Prices: Brent - Europe (DCOILBRENTEU) | AG94: =AL97 -> (MHHNGSP) | AL94: (DCOILBRENTEU)
M95: FALSE | P95: DCOILBRENTEU | Q95: =LEFT(SUBSTITUTE(R95,"Global price of",""),15) -> Crude Oil Price | R95: Crude Oil Prices: Brent - Europe (DCOILBRENTEU) | AC95: 35 | AD95: 47 | AF95: Crude Oil Prices: Brent - Europe (DCOILBRENTEU) | AG95: =AL100 -> (PNGASEUUSDM) | AL95: (MCOILBRENTEU)
M96: FALSE | P96: GOLDAMGBD228NLBM | Q96: Gold Fixing Pr | R96: Gold Fixing Price 10:30 A.M. London time in London Bullion Market, based in U.S. Dollars (GOLDAMGBD228NLBM) | AC96: 92 | AD96: 108 | AF96: Gold Fixing Price 10:30 A.M. London time in London Bullion Market, based in U.S. Dollars (GOLDAMGBD228NLBM) | AG96: =AL99 -> (WDFUELUSGULF) | AL96: (GOLDAMGBD228NLBM)
M97: FALSE | P97: MHHNGSP | Q97: Henry Hub Natur | R97: Henry Hub Natural Gas Spot Price (MHHNGSP) | AC97: 35 | AD97: 42 | AF97: Henry Hub Natural Gas Spot Price (MHHNGSP) | AG97: =AL111 -> (PNGASJPUSDM) | AL97: (MHHNGSP)
M98: FALSE | P98: PALLFNFINDEXQ | Q98: Global Price I | R98: Global Price Index of All Commodities (PALLFNFINDEXQ) | AC98: 41 | AD98: 54 | AF98: Global Price Index of All Commodities (PALLFNFINDEXQ) | AG98: =AL137 -> (PNGASEUUSDM) | AL98: (PALLFNFINDEXQ)
M99: FALSE | P99: WDFUELUSGULF | Q99: Ultra-Low-Sulf | R99: Ultra-Low-Sulfur No. 2 Diesel Fuel Prices: U.S. Gulf Coast (WDFUELUSGULF) | AC99: 62 | AD99: 74 | AF99: Ultra-Low-Sulfur No. 2 Diesel Fuel Prices: U.S. Gulf Coast (WDFUELUSGULF) | AG99: =AL101 -> (PURANUSDM) | AL99: (WDFUELUSGULF)
M100: FALSE | P100: PNGASEUUSDM | Q100: Natural gas, | R100: Global price of Natural gas, EU (PNGASEUUSDM) | AC100: 35 | AD100: 46 | AF100: Global price of Natural gas, EU (PNGASEUUSDM) | AG100: =AL110 -> (PCOPPUSDM) | AL100: (PNGASEUUSDM)
M101: FALSE | P101: PURANUSDM | Q101: Uranium (PURAN | R101: Global price of Uranium (PURANUSDM) | AC101: 26 | AD101: 35 | AF101: Global price of Uranium (PURANUSDM) | AG101: =AL112 -> (PMAIZMTUSDM) | AL101: (PURANUSDM)
M102: FALSE | P102: WDFUELNYH | Q102: Ultra-Low-Sulfu | R102: Ultra-Low-Sulfur No. 2 Diesel Fuel Prices: New York Harbor (WDFUELNYH) | AC102: 61 | AD102: 70 | AF102: Ultra-Low-Sulfur No. 2 Diesel Fuel Prices: New York Harbor (WDFUELNYH) | AG102: =AL158 -> (PHIDEUSDQ) | AL102: (WDFUELNYH)
M103: FALSE | P103: WHOILNYH | Q103: No. 2 Heating | R103: No. 2 Heating Oil Prices: New York Harbor (WHOILNYH) | AC103: 45 | AD103: 53 | AF103: No. 2 Heating Oil Prices: New York Harbor (WHOILNYH) | AG103: =AL124 -> (PCOTTINDUSDM) | AL103: (WHOILNYH)
M104: FALSE | P104: MNGLCP | Q104: U.S. Natural Ga | R104: U.S. Natural Gas Liquid Composite Price (MNGLCP) | AC104: 42 | AD104: 48 | AF104: U.S. Natural Gas Liquid Composite Price (MNGLCP) | AL104: (MNGLCP)
M105: FALSE | P105: PHIDEUSDQ | Q105: Hides (PHIDEUS | R105: Global price of Hides (PHIDEUSDQ) | AC105: 24 | AD105: 33 | AF105: Global price of Hides (PHIDEUSDQ) | AL105: (PHIDEUSDQ)
M106: FALSE | P106: DGASUSGULF | Q106: Conventional G | R106: Conventional Gasoline Prices: U.S. Gulf Coast, Regular (DGASUSGULF) | AC106: 58 | AD106: 68 | AF106: Conventional Gasoline Prices: U.S. Gulf Coast, Regular (DGASUSGULF) | AL106: (DGASUSGULF)
M107: FALSE | P107: GASREGW | Q107: US Regular All | R107: US Regular All Formulations Gas Price (GASREGW) | AC107: 40 | AD107: 47 | AF107: US Regular All Formulations Gas Price (GASREGW) | AL107: (GASREGW)
M108: FALSE | P108: WHHNGSP | Q108: Henry Hub Natur | R108: Henry Hub Natural Gas Spot Price (WHHNGSP) | AC108: 35 | AD108: 42 | AF108: Henry Hub Natural Gas Spot Price (WHHNGSP) | AL108: (WHHNGSP)
M109: FALSE | P109: DHHNGSP | Q109: Henry Hub Natur | R109: Henry Hub Natural Gas Spot Price (DHHNGSP) | AC109: 35 | AD109: 42 | AF109: Henry Hub Natural Gas Spot Price (DHHNGSP) | AL109: (DHHNGSP)
M110: FALSE | P110: PCOPPUSDM | Q110: Copper (PCOPPU | R110: Global price of Copper (PCOPPUSDM) | AC110: 25 | AD110: 34 | AF110: Global price of Copper (PCOPPUSDM) | AL110: (PCOPPUSDM)
M111: FALSE | P111: PNGASJPUSDM | Q111: LNG, Asia (PNG | R111: Global price of LNG, Asia (PNGASJPUSDM) | AC111: 28 | AD111: 39 | AF111: Global price of LNG, Asia (PNGASJPUSDM) | AL111: (PNGASJPUSDM)
M112: FALSE | P112: PMAIZMTUSDM | Q112: Corn (PMAIZMTU | R112: Global price of Corn (PMAIZMTUSDM) | AC112: 23 | AD112: 34 | AF112: Global price of Corn (PMAIZMTUSDM) | AL112: (PMAIZMTUSDM)
M113: FALSE | P113: PWHEAMTUSDM | Q113: Wheat (PWHEAMT | R113: Global price of Wheat (PWHEAMTUSDM) | AC113: 24 | AD113: 35 | AF113: Global price of Wheat (PWHEAMTUSDM) | AL113: (PWHEAMTUSDM)
M114: FALSE | P114: DPROPANEMBTX | Q114: Propane Prices: | R114: Propane Prices: Mont Belvieu, Texas (DPROPANEMBTX) | AC114: 38 | AD114: 50 | AF114: Propane Prices: Mont Belvieu, Texas (DPROPANEMBTX) | AL114: (DPROPANEMBTX)
M115: FALSE | P115: PIORECRUSDM | Q115: Iron Ore (PIOR | R115: Global price of Iron Ore (PIORECRUSDM) | AC115: 27 | AD115: 38 | AF115: Global price of Iron Ore (PIORECRUSDM) | AL115: (PIORECRUSDM)
M116: FALSE | P116: GASREGW | Q116: US Regular All | R116: US Regular All Formulations Gas Price (GASREGW) | AC116: 40 | AD116: 47 | AF116: US Regular All Formulations Gas Price (GASREGW) | AL116: (GASREGW)
M117: FALSE | P117: PALUMUSDM | Q117: Aluminum (PALU | R117: Global price of Aluminum (PALUMUSDM) | AC117: 27 | AD117: 36 | AF117: Global price of Aluminum (PALUMUSDM) | AL117: (PALUMUSDM)
M118: FALSE | P118: PCOALAUUSDM | Q118: Coal, Australi | R118: Global price of Coal, Australia (PCOALAUUSDM) | AC118: 34 | AD118: 45 | AF118: Global price of Coal, Australia (PCOALAUUSDM) | AL118: (PCOALAUUSDM)
M119: FALSE | P119: POILDUBUSDM | Q119: Dubai Crude (P | R119: Global price of Dubai Crude (POILDUBUSDM) | AC119: 30 | AD119: 41 | AF119: Global price of Dubai Crude (POILDUBUSDM) | AL119: (POILDUBUSDM)
M120: FALSE | P120: PSOYBUSDM | Q120: Soybeans (PSOY | R120: Global price of Soybeans (PSOYBUSDM) | AC120: 27 | AD120: 36 | AF120: Global price of Soybeans (PSOYBUSDM) | AL120: (PSOYBUSDM)
M121: FALSE | P121: PSHRIUSDM | Q121: Shrimp (PSHRIU | R121: Global price of Shrimp (PSHRIUSDM) | AC121: 25 | AD121: 34 | AF121: Global price of Shrimp (PSHRIUSDM) | AL121: (PSHRIUSDM)
M122: FALSE | P122: DJFUELUSGULF | Q122: Kerosene-Type J | R122: Kerosene-Type Jet Fuel Prices: U.S. Gulf Coast (DJFUELUSGULF) | AC122: 49 | AD122: 61 | AF122: Kerosene-Type Jet Fuel Prices: U.S. Gulf Coast (DJFUELUSGULF) | AL122: (DJFUELUSGULF)
M123: FALSE | P123: PRUBBUSDM | Q123: Rubber (PRUBBU | R123: Global price of Rubber (PRUBBUSDM) | AC123: 25 | AD123: 34 | AF123: Global price of Rubber (PRUBBUSDM) | AL123: (PRUBBUSDM)
M124: FALSE | P124: PCOTTINDUSDM | Q124: Cotton (PCOTTI | R124: Global price of Cotton (PCOTTINDUSDM) | AC124: 25 | AD124: 37 | AF124: Global price of Cotton (PCOTTINDUSDM) | AL124: (PCOTTINDUSDM)
M125: FALSE | P125: PBEEFUSDQ | Q125: Beef (PBEEFUSD | R125: Global price of Beef (PBEEFUSDQ) | AC125: 23 | AD125: 32 | AF125: Global price of Beef (PBEEFUSDQ) | AL125: (PBEEFUSDQ)
M126: FALSE | P126: =MID(R126,AC126,AD126-AC126) -> PSUNOUSDM | Q126: Sunflower Oil | R126: Global price of Sunflower Oil (PSUNOUSDM) | AC126: =FIND("(",R126,1)+1 -> 32 | AD126: =FIND(")",R126,1) -> 41 | AF126: =R126 -> Global price of Sunflower Oil (PSUNOUSDM) | AL126: (PSUNOUSDM)
M127: FALSE | P127: PBANSOPUSDM | Q127: Bananas (PBANS | R127: Global price of Bananas (PBANSOPUSDM) | AC127: 26 | AD127: 37 | AF127: Global price of Bananas (PBANSOPUSDM) | AL127: (PBANSOPUSDM)
M128: FALSE | P128: PBARLUSDM | Q128: Barley (PBARLU | R128: Global price of Barley (PBARLUSDM) | AC128: 25 | AD128: 34 | AF128: Global price of Barley (PBARLUSDM) | AL128: (PBARLUSDM)
M129: FALSE | P129: CP0111E3CCM086NEST | Q129: Harmonized Inde | R129: Harmonized Index of Consumer Prices: Bread and Cereals for European Economic Area EEA18-2004, EEA28-2006, EEA30 (CP0111E3CCM086NEST) | AC129: 114 | AD129: 132 | AF129: Harmonized Index of Consumer Prices: Bread and Cereals for European Economic Area EEA18-2004, EEA28-2006, EEA30 (CP0111E3CCM086NEST) | AL129: (CP0111E3CCM086NEST)
M130: FALSE | P130: CP0111EZ18M086NEST | Q130: Harmonized Inde | R130: Harmonized Index of Consumer Prices: Bread and Cereals for Euro Area 18 countries (CP0111EZ18M086NEST) | AC130: 84 | AD130: 102 | AF130: Harmonized Index of Consumer Prices: Bread and Cereals for Euro Area 18 countries (CP0111EZ18M086NEST) | AL130: (CP0111EZ18M086NEST)
M131: FALSE | P131: PCOFFOTMUSDQ | Q131: Coffee, Other | R131: Global price of Coffee, Other Mild Arabica (PCOFFOTMUSDQ) | AC131: 45 | AD131: 57 | AF131: Global price of Coffee, Other Mild Arabica (PCOFFOTMUSDQ) | AL131: (PCOFFOTMUSDQ)
M132: FALSE | P132: GASDESW | Q132: US Diesel Sales | R132: US Diesel Sales Price (GASDESW) | AC132: 24 | AD132: 31 | AF132: US Diesel Sales Price (GASDESW) | AL132: (GASDESW)
M133: FALSE | P133: PZINCUSDA | Q133: Zinc (PZINCUSD | R133: Global price of Zinc (PZINCUSDA) | AC133: 23 | AD133: 32 | AF133: Global price of Zinc (PZINCUSDA) | AL133: (PZINCUSDA)
M134: FALSE | P134: PSUGAISAUSDM | Q134: Sugar, No. 11, | R134: Global price of Sugar, No. 11, World (PSUGAISAUSDM) | AC134: 39 | AD134: 51 | AF134: Global price of Sugar, No. 11, World (PSUGAISAUSDM) | AL134: (PSUGAISAUSDM)
M135: FALSE | P135: PINDUINDEXM | Q135: Industrial Mat | R135: Global price of Industrial Materials index (PINDUINDEXM) | AC135: 45 | AD135: 56 | AF135: Global price of Industrial Materials index (PINDUINDEXM) | AL135: (PINDUINDEXM)
M136: FALSE | P136: PNICKUSDA | Q136: Nickel (PNICKU | R136: Global price of Nickel (PNICKUSDA) | AC136: 25 | AD136: 34 | AF136: Global price of Nickel (PNICKUSDA) | AL136: (PNICKUSDA)
M137: FALSE | P137: PNGASEUUSDM | Q137: Natural gas, E | R137: Global price of Natural gas, EU (PNGASEUUSDM) | AC137: 34 | AD137: 45 | AF137: Global price of Natural gas, EU (PNGASEUUSDM) | AL137: (PNGASEUUSDM)
M138: FALSE | P138: PRICENPQUSDM | Q138: Rice, Thailand | R138: Global price of Rice, Thailand (PRICENPQUSDM) | AC138: 33 | AD138: 45 | AF138: Global price of Rice, Thailand (PRICENPQUSDM) | AL138: (PRICENPQUSDM)
M139: FALSE | P139: PFISHUSDM | Q139: Fish Meal (PFI | R139: Global price of Fish Meal (PFISHUSDM) | AC139: 28 | AD139: 37 | AF139: Global price of Fish Meal (PFISHUSDM) | AL139: (PFISHUSDM)
M140: FALSE | P140: PMETAINDEXM | Q140: Metal index (P | R140: Global price of Metal index (PMETAINDEXM) | AC140: 30 | AD140: 41 | AF140: Global price of Metal index (PMETAINDEXM) | AL140: (PMETAINDEXM)
M141: FALSE | P141: PRAWMINDEXM | Q141: Agr. Raw Mater | R141: Global price of Agr. Raw Material Index (PRAWMINDEXM) | AC141: 42 | AD141: 53 | AF141: Global price of Agr. Raw Material Index (PRAWMINDEXM) | AL141: (PRAWMINDEXM)
M142: FALSE | P142: PCOCOUSDM | Q142: Cocoa (PCOCOUS | R142: Global price of Cocoa (PCOCOUSDM) | AC142: 24 | AD142: 33 | AF142: Global price of Cocoa (PCOCOUSDM) | AL142: (PCOCOUSDM)
M143: FALSE | P143: PORANGUSDM | Q143: Orange (PORANG | R143: Global price of Orange (PORANGUSDM) | AC143: 25 | AD143: 35 | AF143: Global price of Orange (PORANGUSDM) | AL143: (PORANGUSDM)
M144: FALSE | P144: PFOODINDEXM | Q144: Food index (PF | R144: Global price of Food index (PFOODINDEXM) | AC144: 29 | AD144: 40 | AF144: Global price of Food index (PFOODINDEXM) | AL144: (PFOODINDEXM)
M145: FALSE | P145: PPOILUSDM | Q145: Palm Oil (PPOI | R145: Global price of Palm Oil (PPOILUSDM) | AC145: 27 | AD145: 36 | AF145: Global price of Palm Oil (PPOILUSDM) | AL145: (PPOILUSDM)
M146: FALSE | P146: MNGLCP | Q146: U.S. Natural Ga | R146: U.S. Natural Gas Liquid Composite Price (MNGLCP) | AC146: 42 | AD146: 48 | AF146: U.S. Natural Gas Liquid Composite Price (MNGLCP) | AL146: (MNGLCP)
M147: FALSE | P147: PPOULTUSDA | Q147: Poultry (PPOUL | R147: Global price of Poultry (PPOULTUSDA) | AC147: 26 | AD147: 36 | AF147: Global price of Poultry (PPOULTUSDA) | AL147: (PPOULTUSDA)
M148: FALSE | P148: PTINUSDM | Q148: Tin (PTINUSDM) | R148: Global price of Tin (PTINUSDM) | AC148: 22 | AD148: 30 | AF148: Global price of Tin (PTINUSDM) | AL148: (PTINUSDM)
M149: FALSE | P149: PCOFFROBUSDM | Q149: Coffee, Robust | R149: Global price of Coffee, Robustas (PCOFFROBUSDM) | AC149: 35 | AD149: 47 | AF149: Global price of Coffee, Robustas (PCOFFROBUSDM) | AL149: (PCOFFROBUSDM)
M150: FALSE | P150: PSMEAUSDM | Q150: Soybean Meal ( | R150: Global price of Soybean Meal (PSMEAUSDM) | AC150: 31 | AD150: 40 | AF150: Global price of Soybean Meal (PSMEAUSDM) | AL150: (PSMEAUSDM)
M151: FALSE | P151: POLVOILUSDM | Q151: Olive Oil (POL | R151: Global price of Olive Oil (POLVOILUSDM) | AC151: 28 | AD151: 39 | AF151: Global price of Olive Oil (POLVOILUSDM) | AL151: (POLVOILUSDM)
M152: FALSE | P152: PSOILUSDA | Q152: Soybeans Oil ( | R152: Global price of Soybeans Oil (PSOILUSDA) | AC152: 31 | AD152: 40 | AF152: Global price of Soybeans Oil (PSOILUSDA) | AL152: (PSOILUSDA)
M153: FALSE | P153: PSUGAEECUSDA | Q153: Sugar, EU (PSU | R153: Global price of Sugar, EU (PSUGAEECUSDA) | AC153: 28 | AD153: 40 | AF153: Global price of Sugar, EU (PSUGAEECUSDA) | AL153: (PSUGAEECUSDA)
M154: FALSE | P154: PWOOLFUSDM | Q154: Wool, Fine (PW | R154: Global price of Wool, Fine (PWOOLFUSDM) | AC154: 29 | AD154: 39 | AF154: Global price of Wool, Fine (PWOOLFUSDM) | AL154: (PWOOLFUSDM)
M155: FALSE | P155: PSALMUSDM | Q155: Fish (PSALMUSD | R155: Global price of Fish (PSALMUSDM) | AC155: 23 | AD155: 32 | AF155: Global price of Fish (PSALMUSDM) | AL155: (PSALMUSDM)
M156: FALSE | P156: PTEAUSDM | Q156: Tea, Kenyan (P | R156: Global price of Tea, Kenyan (PTEAUSDM) | AC156: 30 | AD156: 38 | AF156: Global price of Tea, Kenyan (PTEAUSDM) | AL156: (PTEAUSDM)
M157: FALSE | P157: PLOGOREUSDM | Q157: Soft Logs (PLO | R157: Global price of Soft Logs (PLOGOREUSDM) | AC157: 28 | AD157: 39 | AF157: Global price of Soft Logs (PLOGOREUSDM) | AL157: (PLOGOREUSDM)
M158: FALSE | P158: =MID(R158,AC158,AD158-AC158) -> PHIDEUSDQ | Q158: Hides (PHIDEUS | R158: Global price of Hides (PHIDEUSDQ) | AC158: =FIND("(",R158,1)+1 -> 24 | AD158: =FIND(")",R158,1) -> 33 | AF158: =R158 -> Global price of Hides (PHIDEUSDQ) | AL158: (PHIDEUSDQ)
M159: FALSE | P159: PFANDBINDEXA | Q159: =LEFT(SUBSTITUTE(R159,"Global price of",""),15) -> Food and bever | R159: Global price of Food and beverage index (PFANDBINDEXA) | AC159: 42 | AD159: 54 | AF159: Global price of Food and beverage index (PFANDBINDEXA) | AL159: (PFANDBINDEXA)
M160: FALSE | P160: PSAWOREUSDA | Q160: Soft Sawnwood, | R160: Global price of Soft Sawnwood, Average of Softwoods, (PSAWOREUSDA) | AC160: 55 | AD160: 66 | AF160: Global price of Soft Sawnwood, Average of Softwoods, (PSAWOREUSDA) | AL160: (PSAWOREUSDA)
M161: FALSE | P161: PLAMBUSDA | Q161: Lamb (PLAMBUSD | R161: Global price of Lamb (PLAMBUSDA) | AC161: 23 | AD161: 32 | AF161: Global price of Lamb (PLAMBUSDA) | AL161: (PLAMBUSDA)
M162: FALSE | P162: PROILUSDA | Q162: Rapeseed Oil ( | R162: Global price of Rapeseed Oil (PROILUSDA) | AC162: 31 | AD162: 40 | AF162: Global price of Rapeseed Oil (PROILUSDA) | AL162: (PROILUSDA)
M163: FALSE | P163: PWOOLCUSDM | Q163: Wool, Coarse ( | R163: Global price of Wool, Coarse (PWOOLCUSDM) | AC163: 31 | AD163: 41 | AF163: Global price of Wool, Coarse (PWOOLCUSDM) | AL163: (PWOOLCUSDM)
M164: FALSE | P164: PGNUTSUSDA | Q164: Groundnuts (PG | R164: Global price of Groundnuts (PGNUTSUSDA) | AC164: 29 | AD164: 39 | AF164: Global price of Groundnuts (PGNUTSUSDA) | AL164: (PGNUTSUSDA)
M165: FALSE | P165: PLOGSKUSDM | Q165: Hard Logs, Imp | R165: Global price of Hard Logs, Import Price Japan (PLOGSKUSDM) | AC165: 48 | AD165: 58 | AF165: Global price of Hard Logs, Import Price Japan (PLOGSKUSDM) | AL165: (PLOGSKUSDM)
M166: FALSE | P166: PSAWMALUSDQ | Q166: Hard Sawnwood, | R166: Global price of Hard Sawnwood, Dark Red Meranti (PSAWMALUSDQ) | AC166: 50 | AD166: 61 | AF166: Global price of Hard Sawnwood, Dark Red Meranti (PSAWMALUSDQ) | AL166: (PSAWMALUSDQ)
M167: FALSE | P167: GASMIDREFM | Q167: US Midgrade Ref | R167: US Midgrade Reformulated Gas Price (GASMIDREFM) | AC167: 37 | AD167: 47 | AF167: US Midgrade Reformulated Gas Price (GASMIDREFM) | AL167: (GASMIDREFM)
M168: FALSE | N168: =AC168 -> 47 | O168: 63 | P168: PCAGDPFRA646NWDB | Q168: GDP Per Capital France | R168: Gross Domestic Product Per Capita for France (PCAGDPFRA646NWDB) | AC168: 47 | AD168: 63 | AF168: Gross Domestic Product Per Capita for France (PCAGDPFRA646NWDB)
M169: FALSE | N169: 48 | O169: 64 | P169: PCAGDPDEA646NWDB | Q169: GDP Per Capital Germany | R169: Gross Domestic Product Per Capita for Germany (PCAGDPDEA646NWDB) | AC169: 48 | AD169: 64 | AF169: Gross Domestic Product Per Capita for Germany (PCAGDPDEA646NWDB)
M170: FALSE | N170: 36 | O170: 51 | P170: A939RC0Q052SBEA | Q170: GDP Per Capital US | R170: Gross domestic product per capita (A939RC0Q052SBEA) | AC170: 36 | AD170: 51 | AF170: Gross domestic product per capita (A939RC0Q052SBEA)
M171: FALSE | N171: 46 | O171: 62 | P171: PCAGDPCNA646NWDB | Q171: GDP Per Capital China | R171: Gross Domestic Product Per Capita for China (PCAGDPCNA646NWDB) | AC171: 46 | AD171: 62 | AF171: Gross Domestic Product Per Capita for China (PCAGDPCNA646NWDB)
M172: FALSE | N172: =AC172 -> 28 | O172: =AD172 -> 43 | P172: A033RC1A027NBEA | Q172: =LEFT(R172,20) -> Compensation of empl | R172: Compensation of employees (A033RC1A027NBEA) | AC172: =FIND("(",R172,1)+1 -> 28 | AD172: =FIND(")",R172,1) -> 43 | AF172: Compensation of employees (A033RC1A027NBEA)
M173: FALSE | N173: =AC173 -> 53 | O173: =AD173 -> 68 | P173: A053RC1Q027SBEA | Q173: Corporate profits BT | R173: Corporate profits before tax without IVA and CCAdj (A053RC1Q027SBEA) | AC173: =FIND("(",R173,1)+1 -> 53 | AD173: =FIND(")",R173,1) -> 68 | AF173: Corporate profits before tax without IVA and CCAdj (A053RC1Q027SBEA)
M174: FALSE | N174: =AC174 -> 24 | O174: =AD174 -> 39 | P174: A023RC1Q027SBEA | Q174: Gross national inc | R174: Gross national income (A023RC1Q027SBEA) | AC174: =FIND("(",R174,1)+1 -> 24 | AD174: =FIND(")",R174,1) -> 39 | AF174: Gross national income (A023RC1Q027SBEA)
M175: FALSE | N175: =AC175 -> 56 | O175: =AD175 -> 73 | P175: BOGZ1FA086130003Q | Q175: =LEFT(R175,20) -> Net Interest and Mis | R175: Net Interest and Miscellaneous Payments, Transactions (BOGZ1FA086130003Q) | AC175: =FIND("(",R175,1)+1 -> 56 | AD175: =FIND(")",R175,1) -> 73 | AF175: Net Interest and Miscellaneous Payments, Transactions (BOGZ1FA086130003Q)
M176: FALSE | N176: =AC176 -> 52 | O176: =AD176 -> 54 | P176: CP | Q176: Corp Profits AT no CCA | R176: Corporate Profits After Tax without IVA and CCAdj (CP) | AC176: =FIND("(",R176,1)+1 -> 52 | AD176: =FIND(")",R176,1) -> 54 | AF176: Corporate Profits After Tax (without IVA and CCAdj) (CP)
M177: FALSE | N177: =AC177 -> 66 | O177: =AD177 -> 69 | P177: IVA | Q177: Corp Profits AT no Inv | R177: Corporate Profits After Tax with Inventory Valuation Adjustment (IVA) and Capital Consumption Adjustment (CCAdj) (CPATAX) | AC177: =FIND("(",R177,1)+1 -> 66 | AD177: =FIND(")",R177,1) -> 69 | AF177: Corporate Profits After Tax with Inventory Valuation Adjustment (IVA) and Capital Consumption Adjustment (CCAdj) (CPATAX)
M178: FALSE | N178: 47 | O178: 60 | P178: MEHOINUSA646N | Q178: Median Household Inc | R178: Median Household Income in the United States (MEHOINUSA646N) | AC178: 47 | AD178: 60 | AF178: Median Household Income in the United States (MEHOINUSA646N)
M179: FALSE | N179: 29 | O179: 33 | P179: DSPI | Q179: Disposable Personal | R179: Disposable Personal Income (DSPI) | AC179: 29 | AD179: 33 | AF179: Disposable Personal Income (DSPI)
M180: FALSE | N180: 58 | O180: 73 | P180: B049RC1Q027SBEA | Q180: National inc Rent | R180: National income: Rental income of persons without CCAdj (B049RC1Q027SBEA) | AC180: 58 | AD180: 73 | AF180: National income: Rental income of persons (without CCAdj) (B049RC1Q027SBEA)
M181: FALSE | N181: 46 | O181: 59 | P181: MEPAINUSA646N | Q181: Median Personal Inco | R181: Median Personal Income in the United States (MEPAINUSA646N) | AC181: 46 | AD181: 59 | AF181: Median Personal Income in the United States (MEPAINUSA646N)
M182: FALSE | N182: 18 | O182: 20 | P182: =MID(R182,AC182,AD182-AC182) -> PI | Q182: Personal Income | R182: Personal Income (PI) | AC182: 18 | AD182: 20 | AF182: Personal Income (PI)
M183: FALSE | N183: 90 | O183: 107 | P183: BOGZ1FL263092141Q | Q183: Rest of the World | R183: Rest of the World; Foreign Direct Investment in U.S.: Equity; Asset Market Value, Level (BOGZ1FL263092141Q) | AC183: 90 | AD183: 107 | AF183: Rest of the World; Foreign Direct Investment in U.S.: Equity; Asset Market Value Level (BOGZ1FL263092141Q)
M184: FALSE | N184: =AC184 -> 37 | O184: =AD184 -> 53 | P184: POPTOTUSA647NWDB | Q184: Population US | R184: Population Total for United States (POPTOTUSA647NWDB) | AC184: =FIND("(",R184,1)+1 -> 37 | AD184: =FIND(")",R184,1) -> 53 | AF184: Population Total for United States (POPTOTUSA647NWDB)
M185: FALSE | N185: =AC185 -> 35 | O185: =AD185 -> 41 | P185: POPUKA | Q185: Population UK | R185: Population in the United Kingdom (POPUKA) | AC185: =FIND("(",R185,1)+1 -> 35 | AD185: =FIND(")",R185,1) -> 41 | AF185: Population in the United Kingdom (POPUKA)
M186: FALSE | N186: =AC186 -> 32 | O186: =AD186 -> 48 | P186: POPTOTDEA647NWDB | Q186: Population DE | R186: Population, Total for Germany (POPTOTDEA647NWDB) | AC186: =FIND("(",R186,1)+1 -> 32 | AD186: =FIND(")",R186,1) -> 48 | AF186: Population, Total for Germany (POPTOTDEA647NWDB)
M187: FALSE | N187: =AC187 -> 61 | O187: =AD187 -> 65 | P187: =MID(R187,AC187,AD187-AC187) -> DTB6 | Q187: 6 Month Treasury Bil | R187: 6 Month Treasury Bill Secondary Market Rate Discount Basis (DTB6) | AC187: =FIND("(",R187,1)+1 -> 61 | AD187: =FIND(")",R187,1) -> 65 | AF187: 6-Month Treasury Bill Secondary Market Rate, Discount Basis (DTB6)
M188: FALSE | N188: =AC188 -> 62 | O188: =AD188 -> 67 | P188: =MID(R188,AC188,AD188-AC188) -> TB3MS | Q188: =LEFT(R188,20) -> 3-Month Treasury Bil | R188: 3-Month Treasury Bill Secondary Market Rate, Discount Basis (TB3MS) | AC188: =FIND("(",R188,1)+1 -> 62 | AD188: =FIND(")",R188,1) -> 67 | AF188: 3-Month Treasury Bill Secondary Market Rate, Discount Basis (TB3MS)
M189: FALSE | N189: =AC189 -> 44 | O189: =AD189 -> 57 | P189: =MID(R189,AC189,AD189-AC189) -> MEFAINUSA646N | Q189: Median Family Income LT | R189: Median Family Income in the United States (MEFAINUSA646N) | AC189: =FIND("(",R189,1)+1 -> 44 | AD189: =FIND(")",R189,1) -> 57 | AF189: Median Family Income in the United States (MEFAINUSA646N)
N206: =AC206 -> 51 | O206: =AD206 -> 64 | P206: =MID(R206,AC206,AD206-AC206) -> MEPAINUSA672N | Q206: Real Median Personal Income in the United States (MEPAINUSA672N) | R206: Real Median Personal Income in the United States (MEPAINUSA672N) | AC206: =FIND("(",R206,1)+1 -> 51 | AD206: =FIND(")",R206,1) -> 64 | AF206: Real Median Personal Income in the United States (MEPAINUSA672N)
C248: Currency_URL | D248: =D249&C12&".txt" -> https://research.stlouisfed.org/fred2/data/MEFAINUSA646N.txt
C249: Base URL | D249: https://research.stlouisfed.org/fred2/data/

Sheet Summary
H1: Selected Start | I1: =Forms!X22 -> 1927-02-01 | K1: Part 2: Adjustment to Primary Index, Growth Rate and IRR -------------------> | S1: Graph Code for Index etc. --> | T1: =Forms!AG10 -> 3 | U1: =COUNT(H:H)+1 -> 1312 | X1: =COUNTIF('Multiple Stock Graph'!D:D,TRUE)+2 -> 2 | AC1: Part 4 -- Reading Data with INDIRECT/LOOKUP for Time Series (e.g. Stocks) Selected Before Re-arrange | AI1: Part 5: Re-arrange the data with Dates Corresponding to Dates in Yellow with LOOKUP | AO1: Part 6: Retrieve Data with Indirect and Lookup for Adjustment Series | AV1: Part 7: Multiply or Divide Each Adjustment Factor AND Re-arrange Dates | BC1: Part 8: Adjustment Code for Six Series (First Adjustment | BI1: Part 8a: Second Adjustment | BO1: Part 9: Raw Data Arranged by Date Multiplied by the Adjustment Factor | BV1: Final Returns from Changes and Calculation of Volatility | BZ1: Periods in Yr | CA1: =timing_code -> 1 | CB1: =CHOOSE(CA1,12,52,232) -> 12 | CC1: IRR's Computed from Index and Average | CF1: =I2 -> 2025-12-31 | CG1: Years | CH1: =R4 -> 98.91307324
H2: End Date | I2: =Forms!X35 -> 2025-12-31 | Q2: Final Value | R2: =LOOKUP(I2,H:H,R:R) -> 131.1263812 | U2: The Data Shaded in Grey is theSix Series Selection for the Graph | AC2: The Data is Arranged by Dates in Column A | AO2: Uses the column in A before re-arrangement | AV2: If Divide is used, then take the reciprical | BU2: Alpha | BV2: =IFERROR(INTERCEPT(BV11:BV1320,BU11:BU1320),0) -> 0 | BW2: 0 | BX2: 0 | BY2: 0 | BZ2: 0 | CA2: 0 | CB2: 0
D3: Part 1 -- Primary Index (S&P) Read and Re-arrange --------> | H3: Start of Series | I3: =I1 -> 1927-02-01 | K3: First Adjustment | L3: Second Adjustment | N3: Base Series | Q3: IRR | R3: =(R2)^(1/($R$4))-1 -> 0.050532778 | U3: This uses graph_output -- a range name with offset (Height and width above) | AI3: =IFERROR(MIN(INDIRECT("'"&AI5&"'!A:A")),FALSE) -> FALSE | AJ3: FALSE | AK3: FALSE | AL3: FALSE | AM3: FALSE | AN3: FALSE | AV3: The Divide and Multiply Drivers are from the Graph Page | BC3: Inflation and Exchange Rate Adjustments to Individual Stocks; The code comes from the multiple graph page | BO3: Adjusted Values for Inflation, Exchange, Population | BU3: Beta | BV3: =IFERROR(SLOPE(BV10:BV1320,$BV$10:$BV$1320),0) -> 1 | BW3: 0 | BX3: 0 | BY3: 0 | BZ3: 0 | CA3: 0 | CB3: 0 | CC3: =LOOKUP($CF$1,$H:$H,CC:CC) -> 1 | CD3: =LOOKUP($I$2,$H:$H,CD:CD) -> 1 | CE3: =LOOKUP($I$2,$H:$H,CE:CE) -> 1 | CF3: =LOOKUP($I$2,$H:$H,CF:CF) -> 1 | CG3: =LOOKUP($I$2,$H:$H,CG:CG) -> 1 | CH3: =LOOKUP($I$2,$H:$H,CH:CH) -> 1
B4: Raw Date | H4: Final Start | I4: =MAX(I3,I1) -> 1927-02-01 | K4: See Right Data | L4: See Right Data | N4: Adjusted for Inflation | Q4: Years for IRR | R4: =(I2-I4)/365.25 -> 98.91307324 | U4: Use CNTL F3 to look at range | AC4: Raw Values without Index, Inflation Adj from INDIRECT Function | AI4: Raw Numbers without Adjustment Matched to Dates in the Yellow Column from Raw Read | AO4: Retrieves first seven items downloaded from FRED; You could change this | BU4: Std Dev | BV4: =IFERROR(STDEV(BV10:BV1320),0) -> 0.05373206882 | BW4: 0 | BX4: 0 | BY4: 0 | BZ4: 0 | CA4: 0 | CB4: 0 | CC4: =IF(AND(CC3<>1,CC3<>0),(CC3)^(1/($CH$1))-1,"") ->  | CD4: =IF(AND(CD3<>1,CD3<>0),(CD3)^(1/($CH$1))-1,"") -> 
B5: Base Index | G5: =timing_code -> 1 | I5: Base S&P 500 | J5: Flag for | K5: Exchange Rate | L5: Exchange Rate | M5: Adjusted | N5: or Exchange rate | Q5: Average | R5: =SUM(Q10:Q1320)/R4 -> 0.066972259 | T5: Single | V5: Base Series | W5: Comparators from Choose and Data to Right | AB5: Code | AC5: =TRANSPOSE('Multiple Stock Graph'!J4:J9) ->  | AI5: =AC5 ->  | AJ5: =AD5 ->  | BC5: =W9 -> IRR | BD5: IRR | BE5: IRR | BF5: IRR | BG5: IRR | BH5: IRR | BI5: =BC5 -> IRR | BJ5: =BD5 -> IRR | BK5: IRR | BL5: IRR | BM5: IRR | BN5: IRR | BU5: Volatiltiy | BV5: =BV4*$CB$1^0.5 -> 0.1861333464 | BW5: 0 | BX5: 0 | BY5: 0 | BZ5: 0 | CA5: 0 | CB5: 0 | CC5: =SUM(BW12:BW1320)/$CH$1 -> 0 | CD5: 0 | CE5: 0 | CF5: 0 | CG5: 0 | CH5: 0
A6: Base Date | B6: S&P 500 Complete | D6: Monthly | E6: Weekly | F6: Daily | G6: Timing Code | I6: Lookup to Yellow | J6: Selected Range | K6: or Inflation | L6: or Inflation | M6: Index | N6: Multiply base by fac | O6: Change S&P 500 | P6: Change S&P 500 | Q6: Change S&P 500 | R6: Index | T6: Graph | V6: =Forms!AA11 -> 1 | W6: First Comparator(Stats) | AC6: B | AD6: B | AE6: B | AF6: B | AG6: B | AH6: B | AO6: =AV6 -> GDP Deflator | AP6: =AW6 -> CPI US | AQ6: USD_EUR | AR6: INR | AS6: USD_GBP | AT6: =BA6 -> US Population | AU6: =BB6 -> US NOM GNP | AV6: =TRANSPOSE('FRED Series'!D16:D47) -> GDP Deflator | AW6: CPI US | AX6: USD_EUR | AY6: INR | AZ6: USD_GBP | BA6: US Population | BB6: US NOM GNP | BC6: Adjustment Code | BD6: Adjustment Code | BE6: Adjustment Code | BF6: Adjustment Code | BG6: Adjustment Code | BH6: Adjustment Code | BI6: Adjustment Code | BJ6: Adjustment Code | BK6: Adjustment Code | BL6: Adjustment Code | BM6: Adjustment Code | BN6: Adjustment Code | BP6: =BC5 -> IRR | BQ6: IRR | BR6: IRR | BS6: IRR | BT6: IRR | BU6: IRR | BV6: Growth Rate | BW6: Growth Rate | CC6: Index
A7: Fixed Copied | B7: Raw Data | D7: Date from | E7: Date from | F7: Date from | G7: 1 - Monthly | I7: from Dates in | J7: (Yellow) | K7: Adjustment | L7: Adjustment | M7: for Zero | N7: =B6 -> S&P 500 Complete | O7: Simple not LN | P7: LN and Continual | Q7: Applied Using | R7: From Left | S7: X-Axis | T7: =CHOOSE($T$1,B6,O7,R7) -> From Left | U7: x-axis | V7: ='S&P 500 Complete'!H3&" "&'S&P 500 Complete'!H4 -> S&P 500 with Dividend | W7: =TRANSPOSE('Multiple Stock Graph'!J4:J9) ->  | AC7: B | AD7: B | AE7: B | AF7: B | AG7: B | AH7: B | AV7: B | AW7: B | AX7: B | AY7: B | AZ7: B | BA7: B | BB7: B | BC7: =TRANSPOSE('Multiple Stock Graph'!Q30:Q35) -> 2 | BD7: 2 | BE7: 2 | BF7: 2 | BG7: 0 | BH7: 0 | BI7: =TRANSPOSE('Multiple Stock Graph'!T30:T35) -> 0 | BJ7: 0 | BK7: 0 | BL7: 0 | BM7: 0 | BN7: 0 | BV7: Base Series | BW7: =AC5 ->  | CC7: =BW7 -> 
A8: S&P 500 | B8: From Start | D8: Selected Start | E8: Selected Start | F8: Selected Start | G8: 2 - Weekly | H8: Month or Day | I8: First | J8: Switch | K8: ='Multiple Stock Graph'!Q29 -> 2 | L8: ='Multiple Stock Graph'!T29 -> 0 | N8: Absolute | O8: Applied Flag Below | P8: Applied Flag Below | Q8: Flag | R8: Changes | T8: Choose | W8: 1 | X8: 2 | Y8: 3 | Z8: 4 | AA8: 5 | AB8: 6 | AC8: 1 | AD8: 2 | AE8: 3 | AF8: 4 | AG8: 5 | AH8: 6 | AV8: =TRANSPOSE('Multiple Stock Graph'!AB16:AB22) -> Divide | AW8: Divide | AX8: Divide | AY8: Divide | AZ8: Divide | BA8: Divide | BB8: Divide | BP8: 1 | BQ8: 2 | BR8: 3 | BS8: 4 | BT8: 5 | BU8: 6
A9: Index for Read | B9: B | D9: Date | E9: Date | F9: Date | G9: 3 - Daily | H9: Date | I9: Column | O9: =NOT(P9) -> FALSE | P9: TRUE | Q9: =IF(O9,1,2) -> 2 | R9: 1 | V9: =V7&" IRR "&TEXT(R3,"##.00%") -> S&P 500 with Dividend IRR 5.05% | W9: =W7&" IRR "&TEXT(CC4,"##.00%") -> IRR | X9: IRR | Y9: IRR | Z9: IRR | AA9: IRR | AB9: IRR | BW9: =Q9 -> 2 | CC9: 1 | CD9: 1 | CE9: 1 | CF9: 1 | CG9: 1 | CH9: 1
A10: 1927-12-01 | B10: =IFERROR(LOOKUP($A10,INDIRECT("'"&B$6&"'!A:A"),INDIRECT("'"&B$6&"'!"&$B$9&":"&$B$9)),0) -> 0 | C10: 1 | D10: =MAX($I$3,$I$1) -> 1927-02-01 | E10: =MAX($I$3,$I$1) -> 1927-02-01 | F10: =MAX($I$3,$I$1) -> 1927-02-01 | G10: =CHOOSE(timing_code,D10,E10,F10) -> 1927-02-01 | H10: =G10 -> 1927-02-01 | I10: =LOOKUP(H10,A:A,B:B) ->  | J10: =AND(H10>=$I$4,H10<=$I$2) -> TRUE | K10: =IF(K$8<>0,INDEX($AV10:$BB10,K$8),1) -> 0.04625346901 | L10: =IF(L$8<>0,INDEX($AV10:$BB10,L$8),1) -> 1 | M10: =IF(K10,K10,IF(M11,M11,1)) -> 0.04625346901 | N10: =IF(ISNUMBER(I10),I10,N11)*M10*L10 -> 0 | O10: =IFERROR(($N10/$N9-1),FALSE) -> FALSE | P10: =IFERROR(LN($N10/$N9),FALSE) -> FALSE | Q10: =IF(J10,CHOOSE($Q$9,O10,P10),FALSE) -> FALSE | R10: =IF($J10,(R9*(1+Q10)),R9) -> 1 | S10: =IF(J10,H10,NA()) -> 1927-02-01 | T10: =CHOOSE($T$1,N10,O10,R10) -> 1 | U10: =S10 -> 1927-02-01 | V10: =IF(ISNUMBER(U10),T10,NA()) -> 1 | W10: =IF(ISNUMBER(U10),CHOOSE($T$1,BP10,BW10,CC10),NA()) -> 1 | X10: =IF(ISNUMBER(U10),CHOOSE($T$1,BQ10,BX10,CD10),NA()) -> 1 | Y10: =IF(ISNUMBER(U10),CHOOSE($T$1,BR10,BY10,CE10),NA()) -> 1 | Z10: =IF(ISNUMBER(U10),CHOOSE($T$1,BS10,BZ10,CF10),NA()) -> 1 | AA10: =IF(ISNUMBER(U10),CHOOSE($T$1,BT10,CA10,CG10),NA()) -> 1 | AB10: =IF(ISNUMBER(U10),CHOOSE($T$1,BU10,CB10,CH10),NA()) -> 1 | AC10: =IFERROR(LOOKUP($A10,INDIRECT("'"&AC$5&"'!A:A"),INDIRECT("'"&AC$5&"'!"&AC$7&":"&AC$7)),0) -> 0 | AD10: =IFERROR(LOOKUP($A10,INDIRECT("'"&AD$5&"'!A:A"),INDIRECT("'"&AD$5&"'!"&AD$7&":"&AD$7)),0) -> 0 | AE10: =IFERROR(LOOKUP($A10,INDIRECT("'"&AE$5&"'!A:A"),INDIRECT("'"&AE$5&"'!"&AE$7&":"&AE$7)),0) -> 0 | AF10: 0 | AG10: 0 | AH10: 0 | AI10: =IF(ISNUMBER(LOOKUP($H10,$A:$A,AC:AC)),LOOKUP($H10,$A:$A,AC:AC),AI9) -> 0 | AJ10: =IF(ISNUMBER(LOOKUP($H10,$A:$A,AD:AD)),LOOKUP($H10,$A:$A,AD:AD),AJ9) -> 0 | AK10: =IF(ISNUMBER(LOOKUP($H10,$A:$A,AE:AE)),LOOKUP($H10,$A:$A,AE:AE),AK9) -> 0 | AL10: =IF(ISNUMBER(LOOKUP($H10,$A:$A,AF:AF)),LOOKUP($H10,$A:$A,AF:AF),AL9) -> 0 | AM10: =IF(ISNUMBER(LOOKUP($H10,$A:$A,AG:AG)),LOOKUP($H10,$A:$A,AG:AG),AM9) -> 0 | AN10: =IF(ISNUMBER(LOOKUP($H10,$A:$A,AH:AH)),LOOKUP($H10,$A:$A,AH:AH),AN9) -> 0 | AO10: =IFERROR(LOOKUP($A10,INDIRECT("'"&AV$6&"'!A:A"),INDIRECT("'"&AV$6&"'!"&AV$7&":"&AV$7)),AO11) -> 11.299 | AP10: =IFERROR(LOOKUP($A10,INDIRECT("'"&AW$6&"'!A:A"),INDIRECT("'"&AW$6&"'!"&AW$7&":"&AW$7)),AP11) -> 21.62 | AQ10: =IFERROR(LOOKUP($A10,INDIRECT("'"&AX$6&"'!A:A"),INDIRECT("'"&AX$6&"'!"&AX$7&":"&AX$7)),AQ11) -> 1.1203 | AR10: =IFERROR(LOOKUP($A10,INDIRECT("'"&AY$6&"'!A:A"),INDIRECT("'"&AY$6&"'!"&AY$7&":"&AY$7)),AR11) -> 8 | AS10: =IFERROR(LOOKUP($A10,INDIRECT("'"&AZ$6&"'!A:A"),INDIRECT("'"&AZ$6&"'!"&AZ$7&":"&AZ$7)),AS11) -> 2.4178 | AT10: =IFERROR(LOOKUP($A10,INDIRECT("'"&BA$6&"'!A:A"),INDIRECT("'"&BA$6&"'!"&BA$7&":"&BA$7)),AT11) -> 183691000 | AU10: =IFERROR(LOOKUP($A10,INDIRECT("'"&BB$6&"'!A:A"),INDIRECT("'"&BB$6&"'!"&BB$7&":"&BB$7)),AU11) -> . | AV10: =IFERROR(IF(AV$8="Divide",1/LOOKUP($H10,$A:$A,AO:AO)*1,LOOKUP($H10,$A:$A,AO:AO)*1),AV11) -> 0.08850340738 | AW10: =IFERROR(IF(AW$8="Divide",1/LOOKUP($H10,$A:$A,AP:AP)*1,LOOKUP($H10,$A:$A,AP:AP)*1),AW11) -> 0.04625346901 | AX10: =IFERROR(IF(AX$8="Divide",1/LOOKUP($H10,$A:$A,AQ:AQ)*1,LOOKUP($H10,$A:$A,AQ:AQ)*1),AX11) -> 0.8926180487 | AY10: =IFERROR(IF(AY$8="Divide",1/LOOKUP($H10,$A:$A,AR:AR)*1,LOOKUP($H10,$A:$A,AR:AR)*1),AY11) -> 0.125 | AZ10: =IFERROR(IF(AZ$8="Divide",1/LOOKUP($H10,$A:$A,AS:AS)*1,LOOKUP($H10,$A:$A,AS:AS)*1),AZ11) -> 0.4135991397 | BA10: =IFERROR(IF(BA$8="Divide",1/LOOKUP($H10,$A:$A,AT:AT)*1,LOOKUP($H10,$A:$A,AT:AT)*1),BA11) -> 5.443924852e-09 | BB10: =IFERROR(IF(BB$8="Divide",1/LOOKUP($H10,$A:$A,AU:AU)*1,LOOKUP($H10,$A:$A,AU:AU)*1),BB11) -> 0.004095976931 | BC10: =IF(BC$7,INDEX($AV10:$BB10,BC$7),1) -> 0.04625346901 | BD10: =IF(BD$7,INDEX($AV10:$BB10,BD$7),1) -> 0.04625346901 | BE10: =IF(BE$7,INDEX($AV10:$BB10,BE$7),1) -> 0.04625346901 | BF10: =IF(BF$7,INDEX($AV10:$BB10,BF$7),1) -> 0.04625346901 | BG10: =IF(BG$7,INDEX($AV10:$BB10,BG$7),1) -> 1 | BH10: =IF(BH$7,INDEX($AV10:$BB10,BH$7),1) -> 1 | BI10: =IF(BI$7,INDEX($AV10:$BB10,BI$7),1) -> 1 | BJ10: =IF(BJ$7,INDEX($AV10:$BB10,BJ$7),1) -> 1 | BK10: =IF(BK$7,INDEX($AV10:$BB10,BK$7),1) -> 1 | BL10: =IF(BL$7,INDEX($AV10:$BB10,BL$7),1) -> 1 | BM10: =IF(BM$7,INDEX($AV10:$BB10,BM$7),1) -> 1 | BN10: =IF(BN$7,INDEX($AV10:$BB10,BN$7),1) -> 1 | BP10: =IFERROR(IF(ISNUMBER(AI10)>0.1,AI10,BP11)*BC10*BI10,BP11) -> 0 | BQ10: =IFERROR(IF(ISNUMBER(AJ10)>0.1,AJ10,BQ11)*BD10*BJ10,BQ11) -> 0 | BR10: 0 | BS10: 0 | BT10: 0 | BU10: 0 | BV10: =IFERROR(IF($I10,LN(BN10/BN9)),FALSE) -> FALSE | BW10: =IFERROR(IF($J10,IF(BW$9=2,LN(BP10/BP9),BP10/BP9-1)),FALSE) -> FALSE | BX10: =IFERROR(IF($J10,IF(BX$9=2,LN(BQ10/BQ9),BQ10/BQ9-1)),FALSE) -> FALSE | BY10: FALSE | BZ10: FALSE | CA10: FALSE | CB10: FALSE | CC10: =IFERROR(IF($J10,CC9*(1+BW10),FALSE),FALSE) -> 1 | CD10: =IFERROR(IF($J10,CD9*(1+BX10),FALSE),FALSE) -> 1 | CE10: 1 | CF10: 1 | CG10: 1 | CH10: 1
A11: 1928-01-01 | B11: =IFERROR(LOOKUP($A11,INDIRECT("'"&B$6&"'!A:A"),INDIRECT("'"&B$6&"'!"&$B$9&":"&$B$9)),0) -> 1.332106295 | C11: 2 | D11: =EOMONTH(D10,0) -> 1927-02-28 | E11: =E10+7 -> 1927-02-08 | F11: =IF(WEEKDAY(F10)=5,F10+3,F10+1) -> 1927-02-02 | G11: 1927-02-28 | H11: =G11 -> 1927-02-28 | J11: =AND(H11>=$I$4,H11<=$I$2) -> TRUE | K11: =IF(K$8<>0,INDEX($AV11:$BB11,K$8),1) -> 0.04625346901 | L11: =IF(L$8<>0,INDEX($AV11:$BB11,L$8),1) -> 1 | M11: =IF(K11,K11,IF(M12,M12,1)) -> 0.04625346901 | N11: =IF(ISNUMBER(I11),I11,N12)*M11*L11 -> 0 | O11: =IFERROR((N11/N10-1),FALSE) -> FALSE | P11: =IFERROR(LN($N11/$N10),FALSE) -> FALSE | Q11: =IF(J11,CHOOSE($Q$9,O11,P11),FALSE) -> FALSE | R11: =IF($J11,(R10*(1+Q11)),R10) -> 1 | S11: 1927-02-28 | T11: 1 | U11: 1927-02-28 | V11: =IF(ISNUMBER(U11),T11,NA()) -> 1 | W11: 1 | X11: 1 | Y11: 1 | Z11: 1 | AA11: 1 | AB11: 1 | AC11: =IFERROR(LOOKUP($A11,INDIRECT("'"&AC$5&"'!A:A"),INDIRECT("'"&AC$5&"'!"&AC$7&":"&AC$7)),0) -> 0 | AD11: =IFERROR(LOOKUP($A11,INDIRECT("'"&AD$5&"'!A:A"),INDIRECT("'"&AD$5&"'!"&AD$7&":"&AD$7)),0) -> 0 | AE11: 0 | AF11: 0 | AG11: 0 | AH11: 0 | AI11: 0 | AJ11: 0 | AK11: 0 | AL11: 0 | AM11: 0 | AN11: 0 | AO11: 11.299 | AP11: 21.62 | AQ11: 1.1203 | AR11: 8 | AS11: 2.4178 | AT11: 183691000 | AU11: . | AV11: 0.08850340738 | AW11: 0.04625346901 | AX11: 0.8926180487 | AY11: 0.125 | AZ11: 0.4135991397 | BA11: 5.443924852e-09 | BB11: 0.004095976931 | BC11: =IF(BC$7,INDEX($AV11:$BB11,BC$7),1) -> 0.04625346901 | BD11: =IF(BD$7,INDEX($AV11:$BB11,BD$7),1) -> 0.04625346901 | BE11: =IF(BE$7,INDEX($AV11:$BB11,BE$7),1) -> 0.04625346901 | BF11: =IF(BF$7,INDEX($AV11:$BB11,BF$7),1) -> 0.04625346901 | BG11: =IF(BG$7,INDEX($AV11:$BB11,BG$7),1) -> 1 | BH11: =IF(BH$7,INDEX($AV11:$BB11,BH$7),1) -> 1 | BI11: =IF(BI$7,INDEX($AV11:$BB11,BI$7),1) -> 1 | BJ11: =IF(BJ$7,INDEX($AV11:$BB11,BJ$7),1) -> 1 | BK11: =IF(BK$7,INDEX($AV11:$BB11,BK$7),1) -> 1 | BL11: =IF(BL$7,INDEX($AV11:$BB11,BL$7),1) -> 1 | BM11: =IF(BM$7,INDEX($AV11:$BB11,BM$7),1) -> 1 | BN11: =IF(BN$7,INDEX($AV11:$BB11,BN$7),1) -> 1 | BP11: =IFERROR(IF(ISNUMBER(AI11)>0.1,AI11,BP12)*BC11*BI11,BP12) -> 0 | BQ11: =IFERROR(IF(ISNUMBER(AJ11)>0.1,AJ11,BQ12)*BD11*BJ11,BQ12) -> 0 | BR11: =IFERROR(IF(ISNUMBER(AK11)>0.1,AK11,BR12)*BE11*BK11,BR12) -> 0 | BS11: =IFERROR(IF(ISNUMBER(AL11)>0.1,AL11,BS12)*BF11*BL11,BS12) -> 0 | BT11: =IFERROR(IF(ISNUMBER(AM11)>0.1,AM11,BT12)*BG11*BM11,BT12) -> 0 | BU11: =IFERROR(IF(ISNUMBER(AN11)>0.1,AN11,BU12)*BH11*BN11,BU12) -> 0 | BV11: =IFERROR(IF($J11,LN(BN11/BN10)),FALSE) -> 0 | BW11: =IFERROR(IF($J11,IF(BW$9=2,LN(BP11/BP10),BP11/BP10-1)),FALSE) -> FALSE | BX11: FALSE | BY11: FALSE | BZ11: FALSE | CA11: FALSE | CB11: FALSE | CC11: =IFERROR(IF($J11,CC10*(1+BW11),FALSE),FALSE) -> 1 | CD11: =IFERROR(IF($J11,CD10*(1+BX11),FALSE),FALSE) -> 1 | CE11: =IFERROR(IF($J11,CE10*(1+BY11),FALSE),FALSE) -> 1 | CF11: =IFERROR(IF($J11,CF10*(1+BZ11),FALSE),FALSE) -> 1 | CG11: =IFERROR(IF($J11,CG10*(1+CA11),FALSE),FALSE) -> 1 | CH11: =IFERROR(IF($J11,CH10*(1+CB11),FALSE),FALSE) -> 1
A12: 1928-02-01 | B12: =IFERROR(LOOKUP($A12,INDIRECT("'"&B$6&"'!A:A"),INDIRECT("'"&B$6&"'!"&$B$9&":"&$B$9)),0) -> 1.314854953 | C12: 3 | D12: =EOMONTH(D11,1) -> 1927-03-31 | E12: =E11+7 -> 1927-02-15 | F12: =IF(WEEKDAY(F11)=5,F11+3,F11+1) -> 1927-02-03 | G12: 1927-03-31 | H12: 1927-03-31 | J12: TRUE | K12: =IF(K$8<>0,INDEX($AV12:$BB12,K$8),1) -> 0.04625346901 | L12: =IF(L$8<>0,INDEX($AV12:$BB12,L$8),1) -> 1 | M12: 0.04625346901 | N12: 0 | O12: FALSE | P12: FALSE | Q12: =IF(J12,CHOOSE($Q$9,O12,P12),FALSE) -> FALSE | R12: 1 | S12: 1927-03-31 | T12: 1 | U12: 1927-03-31 | V12: 1 | W12: 1 | X12: 1 | Y12: 1 | Z12: 1 | AA12: 1 | AB12: 1 | AC12: 0 | AD12: 0 | AE12: 0 | AF12: 0 | AG12: 0 | AH12: 0 | AI12: 0 | AJ12: 0 | AK12: 0 | AL12: 0 | AM12: 0 | AN12: 0 | AO12: 11.299 | AP12: 21.62 | AQ12: 1.1203 | AR12: 8 | AS12: 2.4178 | AT12: 183691000 | AU12: . | AV12: 0.08850340738 | AW12: 0.04625346901 | AX12: 0.8926180487 | AY12: 0.125 | AZ12: 0.4135991397 | BA12: 5.443924852e-09 | BB12: 0.004095976931 | BC12: =IF(BC$7,INDEX($AV12:$BB12,BC$7),1) -> 0.04625346901 | BD12: =IF(BD$7,INDEX($AV12:$BB12,BD$7),1) -> 0.04625346901 | BE12: =IF(BE$7,INDEX($AV12:$BB12,BE$7),1) -> 0.04625346901 | BF12: =IF(BF$7,INDEX($AV12:$BB12,BF$7),1) -> 0.04625346901 | BG12: =IF(BG$7,INDEX($AV12:$BB12,BG$7),1) -> 1 | BH12: =IF(BH$7,INDEX($AV12:$BB12,BH$7),1) -> 1 | BI12: =IF(BI$7,INDEX($AV12:$BB12,BI$7),1) -> 1 | BJ12: =IF(BJ$7,INDEX($AV12:$BB12,BJ$7),1) -> 1 | BK12: =IF(BK$7,INDEX($AV12:$BB12,BK$7),1) -> 1 | BL12: =IF(BL$7,INDEX($AV12:$BB12,BL$7),1) -> 1 | BM12: =IF(BM$7,INDEX($AV12:$BB12,BM$7),1) -> 1 | BN12: =IF(BN$7,INDEX($AV12:$BB12,BN$7),1) -> 1 | BP12: 0 | BQ12: 0 | BR12: 0 | BS12: 0 | BT12: 0 | BU12: 0 | BV12: =IF(J12,O12) -> FALSE | BW12: =IFERROR(IF($J12,IF(BW$9=2,LN(BP12/BP11),BP12/BP11-1)),FALSE) -> FALSE | BX12: FALSE | BY12: FALSE | BZ12: FALSE | CA12: FALSE | CB12: FALSE | CC12: 1 | CD12: 1 | CE12: 1 | CF12: 1 | CG12: 1 | CH12: 1
A13: 1928-03-01 | B13: 1.297603467 | C13: 4 | D13: =EOMONTH(D12,1) -> 1927-04-30 | E13: 1927-02-22 | F13: 1927-02-06 | G13: 1927-04-30 | H13: 1927-04-30 | J13: TRUE | K13: =IF(K$8<>0,INDEX($AV13:$BB13,K$8),1) -> 0.04625346901 | L13: =IF(L$8<>0,INDEX($AV13:$BB13,L$8),1) -> 1 | M13: 0.04625346901 | N13: 0 | O13: FALSE | P13: FALSE | Q13: FALSE | R13: 1 | S13: 1927-04-30 | T13: 1 | U13: 1927-04-30 | V13: 1 | W13: 1 | X13: 1 | Y13: 1 | Z13: 1 | AA13: 1 | AB13: 1 | AC13: 0 | AD13: 0 | AE13: 0 | AF13: 0 | AG13: 0 | AH13: 0 | AI13: 0 | AJ13: 0 | AK13: 0 | AL13: 0 | AM13: 0 | AN13: 0 | AO13: 11.299 | AP13: 21.62 | AQ13: 1.1203 | AR13: 8 | AS13: 2.4178 | AT13: 183691000 | AU13: . | AV13: 0.08850340738 | AW13: 0.04625346901 | AX13: 0.8926180487 | AY13: 0.125 | AZ13: 0.4135991397 | BA13: 5.443924852e-09 | BB13: 0.004095976931 | BC13: =IF(BC$7,INDEX($AV13:$BB13,BC$7),1) -> 0.04625346901 | BD13: =IF(BD$7,INDEX($AV13:$BB13,BD$7),1) -> 0.04625346901 | BE13: =IF(BE$7,INDEX($AV13:$BB13,BE$7),1) -> 0.04625346901 | BF13: =IF(BF$7,INDEX($AV13:$BB13,BF$7),1) -> 0.04625346901 | BG13: =IF(BG$7,INDEX($AV13:$BB13,BG$7),1) -> 1 | BH13: =IF(BH$7,INDEX($AV13:$BB13,BH$7),1) -> 1 | BI13: =IF(BI$7,INDEX($AV13:$BB13,BI$7),1) -> 1 | BJ13: =IF(BJ$7,INDEX($AV13:$BB13,BJ$7),1) -> 1 | BK13: =IF(BK$7,INDEX($AV13:$BB13,BK$7),1) -> 1 | BL13: =IF(BL$7,INDEX($AV13:$BB13,BL$7),1) -> 1 | BM13: =IF(BM$7,INDEX($AV13:$BB13,BM$7),1) -> 1 | BN13: =IF(BN$7,INDEX($AV13:$BB13,BN$7),1) -> 1 | BP13: 0 | BQ13: 0 | BR13: 0 | BS13: 0 | BT13: 0 | BU13: 0 | BV13: FALSE | BW13: =IFERROR(IF($J13,IF(BW$9=2,LN(BP13/BP12),BP13/BP12-1)),FALSE) -> FALSE | BX13: FALSE | BY13: FALSE | BZ13: FALSE | CA13: FALSE | CB13: FALSE | CC13: 1 | CD13: 1 | CE13: 1 | CF13: 1 | CG13: 1 | CH13: 1
A14: 1928-04-01 | B14: 1.446115425 | C14: 5 | D14: 1927-05-31 | E14: 1927-03-01 | F14: 1927-02-07 | G14: 1927-05-31 | H14: 1927-05-31 | J14: TRUE | K14: =IF(K$8<>0,INDEX($AV14:$BB14,K$8),1) -> 0.04625346901 | L14: =IF(L$8<>0,INDEX($AV14:$BB14,L$8),1) -> 1 | M14: 0.04625346901 | N14: 0 | O14: FALSE | P14: FALSE | Q14: FALSE | R14: 1 | S14: 1927-05-31 | T14: 1 | U14: 1927-05-31 | V14: 1 | W14: 1 | X14: 1 | Y14: 1 | Z14: 1 | AA14: 1 | AB14: 1 | AC14: 0 | AD14: 0 | AE14: 0 | AF14: 0 | AG14: 0 | AH14: 0 | AI14: 0 | AJ14: 0 | AK14: 0 | AL14: 0 | AM14: 0 | AN14: 0 | AO14: 11.299 | AP14: 21.62 | AQ14: 1.1203 | AR14: 8 | AS14: 2.4178 | AT14: 183691000 | AU14: . | AV14: 0.08850340738 | AW14: 0.04625346901 | AX14: 0.8926180487 | AY14: 0.125 | AZ14: 0.4135991397 | BA14: 5.443924852e-09 | BB14: 0.004095976931 | BC14: =IF(BC$7,INDEX($AV14:$BB14,BC$7),1) -> 0.04625346901 | BD14: =IF(BD$7,INDEX($AV14:$BB14,BD$7),1) -> 0.04625346901 | BE14: =IF(BE$7,INDEX($AV14:$BB14,BE$7),1) -> 0.04625346901 | BF14: =IF(BF$7,INDEX($AV14:$BB14,BF$7),1) -> 0.04625346901 | BG14: =IF(BG$7,INDEX($AV14:$BB14,BG$7),1) -> 1 | BH14: =IF(BH$7,INDEX($AV14:$BB14,BH$7),1) -> 1 | BI14: =IF(BI$7,INDEX($AV14:$BB14,BI$7),1) -> 1 | BJ14: =IF(BJ$7,INDEX($AV14:$BB14,BJ$7),1) -> 1 | BK14: =IF(BK$7,INDEX($AV14:$BB14,BK$7),1) -> 1 | BL14: =IF(BL$7,INDEX($AV14:$BB14,BL$7),1) -> 1 | BM14: =IF(BM$7,INDEX($AV14:$BB14,BM$7),1) -> 1 | BN14: =IF(BN$7,INDEX($AV14:$BB14,BN$7),1) -> 1 | BP14: 0 | BQ14: 0 | BR14: 0 | BS14: 0 | BT14: 0 | BU14: 0 | BV14: FALSE | BW14: FALSE | BX14: FALSE | BY14: FALSE | BZ14: FALSE | CA14: FALSE | CB14: FALSE | CC14: 1 | CD14: 1 | CE14: 1 | CF14: 1 | CG14: 1 | CH14: 1
A15: 1928-05-01 | B15: 1.483618417 | C15: 6 | D15: 1927-06-30 | E15: 1927-03-08 | F15: 1927-02-08 | G15: 1927-06-30 | H15: 1927-06-30 | J15: TRUE | K15: =IF(K$8<>0,INDEX($AV15:$BB15,K$8),1) -> 0.04625346901 | L15: =IF(L$8<>0,INDEX($AV15:$BB15,L$8),1) -> 1 | M15: 0.04625346901 | N15: 0 | O15: FALSE | P15: FALSE | Q15: FALSE | R15: 1 | S15: 1927-06-30 | T15: 1 | U15: 1927-06-30 | V15: 1 | W15: 1 | X15: 1 | Y15: 1 | Z15: 1 | AA15: 1 | AB15: 1 | AC15: 0 | AD15: 0 | AE15: 0 | AF15: 0 | AG15: 0 | AH15: 0 | AI15: 0 | AJ15: 0 | AK15: 0 | AL15: 0 | AM15: 0 | AN15: 0 | AO15: 11.299 | AP15: 21.62 | AQ15: 1.1203 | AR15: 8 | AS15: 2.4178 | AT15: 183691000 | AU15: . | AV15: 0.08850340738 | AW15: 0.04625346901 | AX15: 0.8926180487 | AY15: 0.125 | AZ15: 0.4135991397 | BA15: 5.443924852e-09 | BB15: 0.004095976931 | BC15: =IF(BC$7,INDEX($AV15:$BB15,BC$7),1) -> 0.04625346901 | BD15: =IF(BD$7,INDEX($AV15:$BB15,BD$7),1) -> 0.04625346901 | BE15: =IF(BE$7,INDEX($AV15:$BB15,BE$7),1) -> 0.04625346901 | BF15: =IF(BF$7,INDEX($AV15:$BB15,BF$7),1) -> 0.04625346901 | BG15: =IF(BG$7,INDEX($AV15:$BB15,BG$7),1) -> 1 | BH15: =IF(BH$7,INDEX($AV15:$BB15,BH$7),1) -> 1 | BI15: =IF(BI$7,INDEX($AV15:$BB15,BI$7),1) -> 1 | BJ15: =IF(BJ$7,INDEX($AV15:$BB15,BJ$7),1) -> 1 | BK15: =IF(BK$7,INDEX($AV15:$BB15,BK$7),1) -> 1 | BL15: =IF(BL$7,INDEX($AV15:$BB15,BL$7),1) -> 1 | BM15: =IF(BM$7,INDEX($AV15:$BB15,BM$7),1) -> 1 | BN15: =IF(BN$7,INDEX($AV15:$BB15,BN$7),1) -> 1 | BP15: 0 | BQ15: 0 | BR15: 0 | BS15: 0 | BT15: 0 | BU15: 0 | BV15: FALSE | BW15: FALSE | BX15: FALSE | BY15: FALSE | BZ15: FALSE | CA15: FALSE | CB15: FALSE | CC15: 1 | CD15: 1 | CE15: 1 | CF15: 1 | CG15: 1 | CH15: 1
A16: 1928-06-01 | B16: 1.505370078 | C16: 7 | D16: 1927-07-31 | E16: 1927-03-15 | F16: 1927-02-09 | G16: 1927-07-31 | H16: 1927-07-31 | J16: TRUE | K16: =IF(K$8<>0,INDEX($AV16:$BB16,K$8),1) -> 0.04625346901 | L16: =IF(L$8<>0,INDEX($AV16:$BB16,L$8),1) -> 1 | M16: 0.04625346901 | N16: 0 | O16: FALSE | P16: FALSE | Q16: FALSE | R16: 1 | S16: 1927-07-31 | T16: 1 | U16: 1927-07-31 | V16: 1 | W16: 1 | X16: 1 | Y16: 1 | Z16: 1 | AA16: 1 | AB16: 1 | AC16: 0 | AD16: 0 | AE16: 0 | AF16: 0 | AG16: 0 | AH16: 0 | AI16: 0 | AJ16: 0 | AK16: 0 | AL16: 0 | AM16: 0 | AN16: 0 | AO16: 11.299 | AP16: 21.62 | AQ16: 1.1203 | AR16: 8 | AS16: 2.4178 | AT16: 183691000 | AU16: . | AV16: 0.08850340738 | AW16: 0.04625346901 | AX16: 0.8926180487 | AY16: 0.125 | AZ16: 0.4135991397 | BA16: 5.443924852e-09 | BB16: 0.004095976931 | BC16: =IF(BC$7,INDEX($AV16:$BB16,BC$7),1) -> 0.04625346901 | BD16: =IF(BD$7,INDEX($AV16:$BB16,BD$7),1) -> 0.04625346901 | BE16: =IF(BE$7,INDEX($AV16:$BB16,BE$7),1) -> 0.04625346901 | BF16: =IF(BF$7,INDEX($AV16:$BB16,BF$7),1) -> 0.04625346901 | BG16: =IF(BG$7,INDEX($AV16:$BB16,BG$7),1) -> 1 | BH16: =IF(BH$7,INDEX($AV16:$BB16,BH$7),1) -> 1 | BI16: =IF(BI$7,INDEX($AV16:$BB16,BI$7),1) -> 1 | BJ16: =IF(BJ$7,INDEX($AV16:$BB16,BJ$7),1) -> 1 | BK16: =IF(BK$7,INDEX($AV16:$BB16,BK$7),1) -> 1 | BL16: =IF(BL$7,INDEX($AV16:$BB16,BL$7),1) -> 1 | BM16: =IF(BM$7,INDEX($AV16:$BB16,BM$7),1) -> 1 | BN16: =IF(BN$7,INDEX($AV16:$BB16,BN$7),1) -> 1 | BP16: 0 | BQ16: 0 | BR16: 0 | BS16: 0 | BT16: 0 | BU16: 0 | BV16: FALSE | BW16: FALSE | BX16: FALSE | BY16: FALSE | BZ16: FALSE | CA16: FALSE | CB16: FALSE | CC16: 1 | CD16: 1 | CE16: 1 | CF16: 1 | CG16: 1 | CH16: 1
A17: 1928-07-01 | B17: 1.43561449 | C17: 8 | D17: 1927-08-31 | E17: 1927-03-22 | F17: 1927-02-10 | G17: 1927-08-31 | H17: 1927-08-31 | J17: TRUE | K17: =IF(K$8<>0,INDEX($AV17:$BB17,K$8),1) -> 0.04625346901 | L17: =IF(L$8<>0,INDEX($AV17:$BB17,L$8),1) -> 1 | M17: 0.04625346901 | N17: 0 | O17: FALSE | P17: FALSE | Q17: FALSE | R17: 1 | S17: 1927-08-31 | T17: 1 | U17: 1927-08-31 | V17: 1 | W17: 1 | X17: 1 | Y17: 1 | Z17: 1 | AA17: 1 | AB17: 1 | AC17: 0 | AD17: 0 | AE17: 0 | AF17: 0 | AG17: 0 | AH17: 0 | AI17: 0 | AJ17: 0 | AK17: 0 | AL17: 0 | AM17: 0 | AN17: 0 | AO17: 11.299 | AP17: 21.62 | AQ17: 1.1203 | AR17: 8 | AS17: 2.4178 | AT17: 183691000 | AU17: . | AV17: 0.08850340738 | AW17: 0.04625346901 | AX17: 0.8926180487 | AY17: 0.125 | AZ17: 0.4135991397 | BA17: 5.443924852e-09 | BB17: 0.004095976931 | BC17: =IF(BC$7,INDEX($AV17:$BB17,BC$7),1) -> 0.04625346901 | BD17: =IF(BD$7,INDEX($AV17:$BB17,BD$7),1) -> 0.04625346901 | BE17: =IF(BE$7,INDEX($AV17:$BB17,BE$7),1) -> 0.04625346901 | BF17: =IF(BF$7,INDEX($AV17:$BB17,BF$7),1) -> 0.04625346901 | BG17: =IF(BG$7,INDEX($AV17:$BB17,BG$7),1) -> 1 | BH17: =IF(BH$7,INDEX($AV17:$BB17,BH$7),1) -> 1 | BI17: =IF(BI$7,INDEX($AV17:$BB17,BI$7),1) -> 1 | BJ17: =IF(BJ$7,INDEX($AV17:$BB17,BJ$7),1) -> 1 | BK17: =IF(BK$7,INDEX($AV17:$BB17,BK$7),1) -> 1 | BL17: =IF(BL$7,INDEX($AV17:$BB17,BL$7),1) -> 1 | BM17: =IF(BM$7,INDEX($AV17:$BB17,BM$7),1) -> 1 | BN17: =IF(BN$7,INDEX($AV17:$BB17,BN$7),1) -> 1 | BP17: 0 | BQ17: 0 | BR17: 0 | BS17: 0 | BT17: 0 | BU17: 0 | BV17: FALSE | BW17: FALSE | BX17: FALSE | BY17: FALSE | BZ17: FALSE | CA17: FALSE | CB17: FALSE | CC17: 1 | CD17: 1 | CE17: 1 | CF17: 1 | CG17: 1 | CH17: 1
A18: 1928-08-01 | B18: 1.456616217 | C18: 9 | D18: 1927-09-30 | E18: 1927-03-29 | F18: 1927-02-13 | G18: 1927-09-30 | H18: 1927-09-30 | J18: TRUE | K18: =IF(K$8<>0,INDEX($AV18:$BB18,K$8),1) -> 0.04625346901 | L18: =IF(L$8<>0,INDEX($AV18:$BB18,L$8),1) -> 1 | M18: 0.04625346901 | N18: 0 | O18: FALSE | P18: FALSE | Q18: FALSE | R18: 1 | S18: 1927-09-30 | T18: 1 | U18: 1927-09-30 | V18: 1 | W18: 1 | X18: 1 | Y18: 1 | Z18: 1 | AA18: 1 | AB18: 1 | AC18: 0 | AD18: 0 | AE18: 0 | AF18: 0 | AG18: 0 | AH18: 0 | AI18: 0 | AJ18: 0 | AK18: 0 | AL18: 0 | AM18: 0 | AN18: 0 | AO18: 11.299 | AP18: 21.62 | AQ18: 1.1203 | AR18: 8 | AS18: 2.4178 | AT18: 183691000 | AU18: . | AV18: 0.08850340738 | AW18: 0.04625346901 | AX18: 0.8926180487 | AY18: 0.125 | AZ18: 0.4135991397 | BA18: 5.443924852e-09 | BB18: 0.004095976931 | BC18: =IF(BC$7,INDEX($AV18:$BB18,BC$7),1) -> 0.04625346901 | BD18: =IF(BD$7,INDEX($AV18:$BB18,BD$7),1) -> 0.04625346901 | BE18: =IF(BE$7,INDEX($AV18:$BB18,BE$7),1) -> 0.04625346901 | BF18: =IF(BF$7,INDEX($AV18:$BB18,BF$7),1) -> 0.04625346901 | BG18: =IF(BG$7,INDEX($AV18:$BB18,BG$7),1) -> 1 | BH18: =IF(BH$7,INDEX($AV18:$BB18,BH$7),1) -> 1 | BI18: =IF(BI$7,INDEX($AV18:$BB18,BI$7),1) -> 1 | BJ18: =IF(BJ$7,INDEX($AV18:$BB18,BJ$7),1) -> 1 | BK18: =IF(BK$7,INDEX($AV18:$BB18,BK$7),1) -> 1 | BL18: =IF(BL$7,INDEX($AV18:$BB18,BL$7),1) -> 1 | BM18: =IF(BM$7,INDEX($AV18:$BB18,BM$7),1) -> 1 | BN18: =IF(BN$7,INDEX($AV18:$BB18,BN$7),1) -> 1 | BP18: 0 | BQ18: 0 | BR18: 0 | BS18: 0 | BT18: 0 | BU18: 0 | BV18: FALSE | BW18: FALSE | BX18: FALSE | BY18: FALSE | BZ18: FALSE | CA18: FALSE | CB18: FALSE | CC18: 1 | CD18: 1 | CE18: 1 | CF18: 1 | CG18: 1 | CH18: 1
A19: 1928-09-01 | B19: 1.565374951 | C19: 10 | D19: 1927-10-31 | E19: 1927-04-05 | F19: 1927-02-14 | G19: 1927-10-31 | H19: 1927-10-31 | J19: TRUE | K19: =IF(K$8<>0,INDEX($AV19:$BB19,K$8),1) -> 0.04625346901 | L19: =IF(L$8<>0,INDEX($AV19:$BB19,L$8),1) -> 1 | M19: 0.04625346901 | N19: 0 | O19: FALSE | P19: FALSE | Q19: FALSE | R19: 1 | S19: 1927-10-31 | T19: 1 | U19: 1927-10-31 | V19: 1 | W19: 1 | X19: 1 | Y19: 1 | Z19: 1 | AA19: 1 | AB19: 1 | AC19: 0 | AD19: 0 | AE19: 0 | AF19: 0 | AG19: 0 | AH19: 0 | AI19: 0 | AJ19: 0 | AK19: 0 | AL19: 0 | AM19: 0 | AN19: 0 | AO19: 11.299 | AP19: 21.62 | AQ19: 1.1203 | AR19: 8 | AS19: 2.4178 | AT19: 183691000 | AU19: . | AV19: 0.08850340738 | AW19: 0.04625346901 | AX19: 0.8926180487 | AY19: 0.125 | AZ19: 0.4135991397 | BA19: 5.443924852e-09 | BB19: 0.004095976931 | BC19: =IF(BC$7,INDEX($AV19:$BB19,BC$7),1) -> 0.04625346901 | BD19: =IF(BD$7,INDEX($AV19:$BB19,BD$7),1) -> 0.04625346901 | BE19: =IF(BE$7,INDEX($AV19:$BB19,BE$7),1) -> 0.04625346901 | BF19: =IF(BF$7,INDEX($AV19:$BB19,BF$7),1) -> 0.04625346901 | BG19: =IF(BG$7,INDEX($AV19:$BB19,BG$7),1) -> 1 | BH19: =IF(BH$7,INDEX($AV19:$BB19,BH$7),1) -> 1 | BI19: =IF(BI$7,INDEX($AV19:$BB19,BI$7),1) -> 1 | BJ19: =IF(BJ$7,INDEX($AV19:$BB19,BJ$7),1) -> 1 | BK19: =IF(BK$7,INDEX($AV19:$BB19,BK$7),1) -> 1 | BL19: =IF(BL$7,INDEX($AV19:$BB19,BL$7),1) -> 1 | BM19: =IF(BM$7,INDEX($AV19:$BB19,BM$7),1) -> 1 | BN19: =IF(BN$7,INDEX($AV19:$BB19,BN$7),1) -> 1 | BP19: 0 | BQ19: 0 | BR19: 0 | BS19: 0 | BT19: 0 | BU19: 0 | BV19: FALSE | BW19: FALSE | BX19: FALSE | BY19: FALSE | BZ19: FALSE | CA19: FALSE | CB19: FALSE | CC19: 1 | CD19: 1 | CE19: 1 | CF19: 1 | CG19: 1 | CH19: 1
A20: 1928-10-01 | B20: 1.602127866 | C20: 11 | D20: 1927-11-30 | E20: 1927-04-12 | F20: 1927-02-15 | G20: 1927-11-30 | H20: 1927-11-30 | J20: TRUE | K20: =IF(K$8<>0,INDEX($AV20:$BB20,K$8),1) -> 0.04625346901 | L20: =IF(L$8<>0,INDEX($AV20:$BB20,L$8),1) -> 1 | M20: 0.04625346901 | N20: 0 | O20: FALSE | P20: FALSE | Q20: FALSE | R20: 1 | S20: 1927-11-30 | T20: 1 | U20: 1927-11-30 | V20: 1 | W20: 1 | X20: 1 | Y20: 1 | Z20: 1 | AA20: 1 | AB20: 1 | AC20: 0 | AD20: 0 | AE20: 0 | AF20: 0 | AG20: 0 | AH20: 0 | AI20: 0 | AJ20: 0 | AK20: 0 | AL20: 0 | AM20: 0 | AN20: 0 | AO20: 11.299 | AP20: 21.62 | AQ20: 1.1203 | AR20: 8 | AS20: 2.4178 | AT20: 183691000 | AU20: . | AV20: 0.08850340738 | AW20: 0.04625346901 | AX20: 0.8926180487 | AY20: 0.125 | AZ20: 0.4135991397 | BA20: 5.443924852e-09 | BB20: 0.004095976931 | BC20: =IF(BC$7,INDEX($AV20:$BB20,BC$7),1) -> 0.04625346901 | BD20: =IF(BD$7,INDEX($AV20:$BB20,BD$7),1) -> 0.04625346901 | BE20: =IF(BE$7,INDEX($AV20:$BB20,BE$7),1) -> 0.04625346901 | BF20: =IF(BF$7,INDEX($AV20:$BB20,BF$7),1) -> 0.04625346901 | BG20: =IF(BG$7,INDEX($AV20:$BB20,BG$7),1) -> 1 | BH20: =IF(BH$7,INDEX($AV20:$BB20,BH$7),1) -> 1 | BI20: =IF(BI$7,INDEX($AV20:$BB20,BI$7),1) -> 1 | BJ20: =IF(BJ$7,INDEX($AV20:$BB20,BJ$7),1) -> 1 | BK20: =IF(BK$7,INDEX($AV20:$BB20,BK$7),1) -> 1 | BL20: =IF(BL$7,INDEX($AV20:$BB20,BL$7),1) -> 1 | BM20: =IF(BM$7,INDEX($AV20:$BB20,BM$7),1) -> 1 | BN20: =IF(BN$7,INDEX($AV20:$BB20,BN$7),1) -> 1 | BP20: 0 | BQ20: 0 | BR20: 0 | BS20: 0 | BT20: 0 | BU20: 0 | BV20: FALSE | BW20: FALSE | BX20: FALSE | BY20: FALSE | BZ20: FALSE | CA20: FALSE | CB20: FALSE | CC20: 1 | CD20: 1 | CE20: 1 | CF20: 1 | CG20: 1 | CH20: 1
A21: 1928-11-01 | B21: 1.649381573 | C21: 12 | D21: 1927-12-31 | E21: 1927-04-19 | F21: 1927-02-16 | G21: 1927-12-31 | H21: 1927-12-31 | I21: 0 | J21: TRUE | K21: =IF(K$8<>0,INDEX($AV21:$BB21,K$8),1) -> 0.04625346901 | L21: =IF(L$8<>0,INDEX($AV21:$BB21,L$8),1) -> 1 | M21: 0.04625346901 | N21: 0 | O21: FALSE | P21: FALSE | Q21: FALSE | R21: 1 | S21: 1927-12-31 | T21: 1 | U21: 1927-12-31 | V21: 1 | W21: 1 | X21: 1 | Y21: 1 | Z21: 1 | AA21: 1 | AB21: 1 | AC21: 0 | AD21: 0 | AE21: 0 | AF21: 0 | AG21: 0 | AH21: 0 | AI21: 0 | AJ21: 0 | AK21: 0 | AL21: 0 | AM21: 0 | AN21: 0 | AO21: 11.299 | AP21: 21.62 | AQ21: 1.1203 | AR21: 8 | AS21: 2.4178 | AT21: 183691000 | AU21: . | AV21: 0.08850340738 | AW21: 0.04625346901 | AX21: 0.8926180487 | AY21: 0.125 | AZ21: 0.4135991397 | BA21: 5.443924852e-09 | BB21: 0.004095976931 | BC21: =IF(BC$7,INDEX($AV21:$BB21,BC$7),1) -> 0.04625346901 | BD21: =IF(BD$7,INDEX($AV21:$BB21,BD$7),1) -> 0.04625346901 | BE21: =IF(BE$7,INDEX($AV21:$BB21,BE$7),1) -> 0.04625346901 | BF21: =IF(BF$7,INDEX($AV21:$BB21,BF$7),1) -> 0.04625346901 | BG21: =IF(BG$7,INDEX($AV21:$BB21,BG$7),1) -> 1 | BH21: =IF(BH$7,INDEX($AV21:$BB21,BH$7),1) -> 1 | BI21: =IF(BI$7,INDEX($AV21:$BB21,BI$7),1) -> 1 | BJ21: =IF(BJ$7,INDEX($AV21:$BB21,BJ$7),1) -> 1 | BK21: =IF(BK$7,INDEX($AV21:$BB21,BK$7),1) -> 1 | BL21: =IF(BL$7,INDEX($AV21:$BB21,BL$7),1) -> 1 | BM21: =IF(BM$7,INDEX($AV21:$BB21,BM$7),1) -> 1 | BN21: =IF(BN$7,INDEX($AV21:$BB21,BN$7),1) -> 1 | BP21: 0 | BQ21: 0 | BR21: 0 | BS21: 0 | BT21: 0 | BU21: 0 | BV21: FALSE | BW21: FALSE | BX21: FALSE | BY21: FALSE | BZ21: FALSE | CA21: FALSE | CB21: FALSE | CC21: 1 | CD21: 1 | CE21: 1 | CF21: 1 | CG21: 1 | CH21: 1
A22: 1928-12-01 | B22: 1.821145345 | C22: 13 | D22: 1928-01-31 | E22: 1927-04-26 | F22: 1927-02-17 | G22: 1928-01-31 | H22: 1928-01-31 | I22: 1.332106295 | J22: TRUE | K22: =IF(K$8<>0,INDEX($AV22:$BB22,K$8),1) -> 0.04625346901 | L22: =IF(L$8<>0,INDEX($AV22:$BB22,L$8),1) -> 1 | M22: 0.04625346901 | N22: 0.06161453721 | O22: FALSE | P22: FALSE | Q22: FALSE | R22: 1 | S22: 1928-01-31 | T22: 1 | U22: 1928-01-31 | V22: 1 | W22: 1 | X22: 1 | Y22: 1 | Z22: 1 | AA22: 1 | AB22: 1 | AC22: 0 | AD22: 0 | AE22: 0 | AF22: 0 | AG22: 0 | AH22: 0 | AI22: 0 | AJ22: 0 | AK22: 0 | AL22: 0 | AM22: 0 | AN22: 0 | AO22: 11.299 | AP22: 21.62 | AQ22: 1.1203 | AR22: 8 | AS22: 2.4178 | AT22: 183691000 | AU22: . | AV22: 0.08850340738 | AW22: 0.04625346901 | AX22: 0.8926180487 | AY22: 0.125 | AZ22: 0.4135991397 | BA22: 5.443924852e-09 | BB22: 0.004095976931 | BC22: =IF(BC$7,INDEX($AV22:$BB22,BC$7),1) -> 0.04625346901 | BD22: =IF(BD$7,INDEX($AV22:$BB22,BD$7),1) -> 0.04625346901 | BE22: =IF(BE$7,INDEX($AV22:$BB22,BE$7),1) -> 0.04625346901 | BF22: =IF(BF$7,INDEX($AV22:$BB22,BF$7),1) -> 0.04625346901 | BG22: =IF(BG$7,INDEX($AV22:$BB22,BG$7),1) -> 1 | BH22: =IF(BH$7,INDEX($AV22:$BB22,BH$7),1) -> 1 | BI22: =IF(BI$7,INDEX($AV22:$BB22,BI$7),1) -> 1 | BJ22: =IF(BJ$7,INDEX($AV22:$BB22,BJ$7),1) -> 1 | BK22: =IF(BK$7,INDEX($AV22:$BB22,BK$7),1) -> 1 | BL22: =IF(BL$7,INDEX($AV22:$BB22,BL$7),1) -> 1 | BM22: =IF(BM$7,INDEX($AV22:$BB22,BM$7),1) -> 1 | BN22: =IF(BN$7,INDEX($AV22:$BB22,BN$7),1) -> 1 | BP22: 0 | BQ22: 0 | BR22: 0 | BS22: 0 | BT22: 0 | BU22: 0 | BV22: FALSE | BW22: FALSE | BX22: FALSE | BY22: FALSE | BZ22: FALSE | CA22: FALSE | CB22: FALSE | CC22: 1 | CD22: 1 | CE22: 1 | CF22: 1 | CG22: 1 | CH22: 1
A23: 1929-01-01 | B23: 1.826395741 | C23: 14 | D23: 1928-02-29 | E23: 1927-05-03 | F23: 1927-02-20 | G23: 1928-02-29 | H23: 1928-02-29 | I23: 1.314854953 | J23: TRUE | K23: =IF(K$8<>0,INDEX($AV23:$BB23,K$8),1) -> 0.04625346901 | L23: =IF(L$8<>0,INDEX($AV23:$BB23,L$8),1) -> 1 | M23: 0.04625346901 | N23: 0.0608166028 | O23: -0.01295042451 | P23: -0.01303501235 | Q23: -0.01303501235 | R23: 0.9869649877 | S23: 1928-02-29 | T23: 0.9869649877 | U23: 1928-02-29 | V23: 0.9869649877 | W23: 1 | X23: 1 | Y23: 1 | Z23: 1 | AA23: 1 | AB23: 1 | AC23: 0 | AD23: 0 | AE23: 0 | AF23: 0 | AG23: 0 | AH23: 0 | AI23: 0 | AJ23: 0 | AK23: 0 | AL23: 0 | AM23: 0 | AN23: 0 | AO23: 11.299 | AP23: 21.62 | AQ23: 1.1203 | AR23: 8 | AS23: 2.4178 | AT23: 183691000 | AU23: . | AV23: 0.08850340738 | AW23: 0.04625346901 | AX23: 0.8926180487 | AY23: 0.125 | AZ23: 0.4135991397 | BA23: 5.443924852e-09 | BB23: 0.004095976931 | BC23: =IF(BC$7,INDEX($AV23:$BB23,BC$7),1) -> 0.04625346901 | BD23: =IF(BD$7,INDEX($AV23:$BB23,BD$7),1) -> 0.04625346901 | BE23: =IF(BE$7,INDEX($AV23:$BB23,BE$7),1) -> 0.04625346901 | BF23: =IF(BF$7,INDEX($AV23:$BB23,BF$7),1) -> 0.04625346901 | BG23: =IF(BG$7,INDEX($AV23:$BB23,BG$7),1) -> 1 | BH23: =IF(BH$7,INDEX($AV23:$BB23,BH$7),1) -> 1 | BI23: =IF(BI$7,INDEX($AV23:$BB23,BI$7),1) -> 1 | BJ23: =IF(BJ$7,INDEX($AV23:$BB23,BJ$7),1) -> 1 | BK23: =IF(BK$7,INDEX($AV23:$BB23,BK$7),1) -> 1 | BL23: =IF(BL$7,INDEX($AV23:$BB23,BL$7),1) -> 1 | BM23: =IF(BM$7,INDEX($AV23:$BB23,BM$7),1) -> 1 | BN23: =IF(BN$7,INDEX($AV23:$BB23,BN$7),1) -> 1 | BP23: 0 | BQ23: 0 | BR23: 0 | BS23: 0 | BT23: 0 | BU23: 0 | BV23: -0.01295042451 | BW23: FALSE | BX23: FALSE | BY23: FALSE | BZ23: FALSE | CA23: FALSE | CB23: FALSE | CC23: 1 | CD23: 1 | CE23: 1 | CF23: 1 | CG23: 1 | CH23: 1
A24: 1929-02-01 | B24: 1.945043851 | C24: 15 | D24: 1928-03-31 | E24: 1927-05-10 | F24: 1927-02-21 | G24: 1928-03-31 | H24: 1928-03-31 | I24: 1.297603467 | J24: TRUE | K24: =IF(K$8<>0,INDEX($AV24:$BB24,K$8),1) -> 0.04625346901 | L24: =IF(L$8<>0,INDEX($AV24:$BB24,L$8),1) -> 1 | M24: 0.04625346901 | N24: 0.06001866177 | O24: -0.01312044727 | P24: -0.0132072807 | Q24: -0.0132072807 | R24: 0.973929864 | S24: 1928-03-31 | T24: 0.973929864 | U24: 1928-03-31 | V24: 0.973929864 | W24: 1 | X24: 1 | Y24: 1 | Z24: 1 | AA24: 1 | AB24: 1 | AC24: 0 | AD24: 0 | AE24: 0 | AF24: 0 | AG24: 0 | AH24: 0 | AI24: 0 | AJ24: 0 | AK24: 0 | AL24: 0 | AM24: 0 | AN24: 0 | AO24: 11.299 | AP24: 21.62 | AQ24: 1.1203 | AR24: 8 | AS24: 2.4178 | AT24: 183691000 | AU24: . | AV24: 0.08850340738 | AW24: 0.04625346901 | AX24: 0.8926180487 | AY24: 0.125 | AZ24: 0.4135991397 | BA24: 5.443924852e-09 | BB24: 0.004095976931 | BC24: =IF(BC$7,INDEX($AV24:$BB24,BC$7),1) -> 0.04625346901 | BD24: =IF(BD$7,INDEX($AV24:$BB24,BD$7),1) -> 0.04625346901 | BE24: =IF(BE$7,INDEX($AV24:$BB24,BE$7),1) -> 0.04625346901 | BF24: =IF(BF$7,INDEX($AV24:$BB24,BF$7),1) -> 0.04625346901 | BG24: =IF(BG$7,INDEX($AV24:$BB24,BG$7),1) -> 1 | BH24: =IF(BH$7,INDEX($AV24:$BB24,BH$7),1) -> 1 | BI24: =IF(BI$7,INDEX($AV24:$BB24,BI$7),1) -> 1 | BJ24: =IF(BJ$7,INDEX($AV24:$BB24,BJ$7),1) -> 1 | BK24: =IF(BK$7,INDEX($AV24:$BB24,BK$7),1) -> 1 | BL24: =IF(BL$7,INDEX($AV24:$BB24,BL$7),1) -> 1 | BM24: =IF(BM$7,INDEX($AV24:$BB24,BM$7),1) -> 1 | BN24: =IF(BN$7,INDEX($AV24:$BB24,BN$7),1) -> 1 | BP24: 0 | BQ24: 0 | BR24: 0 | BS24: 0 | BT24: 0 | BU24: 0 | BV24: -0.01312044727 | BW24: FALSE | BX24: FALSE | BY24: FALSE | BZ24: FALSE | CA24: FALSE | CB24: FALSE | CC24: 1 | CD24: 1 | CE24: 1 | CF24: 1 | CG24: 1 | CH24: 1
A25: 1929-03-01 | B25: 1.949943756 | C25: 16 | D25: 1928-04-30 | E25: 1927-05-17 | F25: 1927-02-22 | G25: 1928-04-30 | H25: 1928-04-30 | I25: 1.446115425 | J25: TRUE | K25: =IF(K$8<>0,INDEX($AV25:$BB25,K$8),1) -> 0.04625346901 | L25: =IF(L$8<>0,INDEX($AV25:$BB25,L$8),1) -> 1 | M25: 0.04625346901 | N25: 0.06688785498 | O25: 0.1144509559 | P25: 0.1083618674 | Q25: 0.1083618674 | R25: 1.079466723 | S25: 1928-04-30 | T25: 1.079466723 | U25: 1928-04-30 | V25: 1.079466723 | W25: 1 | X25: 1 | Y25: 1 | Z25: 1 | AA25: 1 | AB25: 1 | AC25: 0 | AD25: 0 | AE25: 0 | AF25: 0 | AG25: 0 | AH25: 0 | AI25: 0 | AJ25: 0 | AK25: 0 | AL25: 0 | AM25: 0 | AN25: 0 | AO25: 11.299 | AP25: 21.62 | AQ25: 1.1203 | AR25: 8 | AS25: 2.4178 | AT25: 183691000 | AU25: . | AV25: 0.08850340738 | AW25: 0.04625346901 | AX25: 0.8926180487 | AY25: 0.125 | AZ25: 0.4135991397 | BA25: 5.443924852e-09 | BB25: 0.004095976931 | BC25: =IF(BC$7,INDEX($AV25:$BB25,BC$7),1) -> 0.04625346901 | BD25: =IF(BD$7,INDEX($AV25:$BB25,BD$7),1) -> 0.04625346901 | BE25: =IF(BE$7,INDEX($AV25:$BB25,BE$7),1) -> 0.04625346901 | BF25: =IF(BF$7,INDEX($AV25:$BB25,BF$7),1) -> 0.04625346901 | BG25: =IF(BG$7,INDEX($AV25:$BB25,BG$7),1) -> 1 | BH25: =IF(BH$7,INDEX($AV25:$BB25,BH$7),1) -> 1 | BI25: =IF(BI$7,INDEX($AV25:$BB25,BI$7),1) -> 1 | BJ25: =IF(BJ$7,INDEX($AV25:$BB25,BJ$7),1) -> 1 | BK25: =IF(BK$7,INDEX($AV25:$BB25,BK$7),1) -> 1 | BL25: =IF(BL$7,INDEX($AV25:$BB25,BL$7),1) -> 1 | BM25: =IF(BM$7,INDEX($AV25:$BB25,BM$7),1) -> 1 | BN25: =IF(BN$7,INDEX($AV25:$BB25,BN$7),1) -> 1 | BP25: 0 | BQ25: 0 | BR25: 0 | BS25: 0 | BT25: 0 | BU25: 0 | BV25: 0.1144509559 | BW25: FALSE | BX25: FALSE | BY25: FALSE | BZ25: FALSE | CA25: FALSE | CB25: FALSE | CC25: 1 | CD25: 1 | CE25: 1 | CF25: 1 | CG25: 1 | CH25: 1
